{"text_format":"1","workbook":"xlsx","n_sheets":14,"sheets":["Capa","Glossario","Parametros","Rel_01","Apoio_Rel01","Base_SMART200","Rel_02","Apoio_Rel02","Base_SP","Rel_03","Apoio_Rel03","Base_RJ","tblFeriados","tblUsuarios"],"not_rendered":{"charts":0,"images":5,"macros":1,"external_links":2,"defined_names":24,"comments":0,"pivot_tables":3},"unopened":[],"bounds":{"document_bytes":16777216,"sheet_cells":100000,"rows_first":2000,"rows_last":500,"rows_between":2000,"halvings":0,"cell_chars":16384,"cell_head_chars":4096},"cells_cut":0,"cells_raw":0,"read":"whole","date_system":"1900"}

{"sheet":"Capa","index":0,"n_rows":0,"n_cols":0,"rows_kept":0,"cut":false,"hidden":false,"merged":[]}

{"sheet":"Glossario","index":1,"n_rows":25,"n_cols":3,"rows_kept":25,"cut":false,"hidden":true,"merged":[[24,2,24,4],[25,2,25,4],[6,2,6,10],[9,2,9,10],[12,2,12,10],[15,2,15,10],[18,2,18,10],[21,2,21,10]]}
[]
[]
[]
[]
[]
[]
[null,"Fonte:","xx"]
[]
[]
[null,"Período:","Diário"]
[]
[]
[null,"Forma de extração:","Extração da base através da ferramenta Online."]
[]
[]
[null,"Forma de cálculo:"]
[]
[]
[null,"Resultado:","xxx"]
[]
[]
[null,"Nomenclaturas:"]
[]
[]
[null,"Histórico de versões:","Versão 1.0"]

{"sheet":"Parametros","index":2,"n_rows":27,"n_cols":26,"rows_kept":27,"cut":false,"hidden":true,"merged":[[1,22,16,22],[18,12,33,12],[1,0,5,0],[1,12,6,12],[7,0,25,0],[22,1,24,1],[11,12,14,12]]}
[null,null,null,null,null,null,null,null,null,null,null,null,null,null,null,null,null,null,null,null,null,null,null,"NOME","REGRA?"]
["CAPA","TITULO RELATORIO","ATUALIZAÇÃO DA REDE CREDENCIADA - PME",null,null,null,null,null,null,null,null,null,"CONTROLES","ZOOM",80,null,null,null,null,null,null,null,"PLANILHAS VISIVEIS","Capa",true,true]
[null,"USUARIO ALTERAÇÃO",{"$f":"IFERROR(VLOOKUP(tblUsuarios!$E$1,tblUsuarios!$A:$B,2,0),\"*** Cadastre o Usuário ***\")","v":"Jefferson Barbosa"},null,null,null,null,null,null,null,null,null,null,null,null,null,null,null,null,null,null,null,null,"Glossario",false]
[null,"DATA ELABORAÇÃO","2019-04-11T17:37:45",null,null,null,null,null,null,null,null,null,null,null,null,null,null,null,null,null,null,null,null,"Parametros",true]
[null,"DATA REFERÊNCIA",{"$f":"C4","v":"2019-04-11T17:37:45"},null,null,null,null,null,null,null,null,null,null,null,null,null,null,null,null,null,null,null,null,"Rel_01",true]
[null,"VERSÃO","1.0",null,null,null,null,null,null,null,null,null,null,null,null,null,null,null,null,null,null,null,null,"Apoio_Rel01",{"$f":"$Z$2","v":true}]
[null,null,null,null,null,null,null,null,null,null,null,null,null,null,null,null,null,null,null,null,null,null,null,"Base_SMART200",{"$f":"$Z$2","v":true}]
["DATAS E PERÍODOS","MÊS ATUAL",{"$f":"UPPER(TEXT($C$4,\"mmmm\"))","v":"ABRIL"},{"$f":"PROPER(TEXT($C$4,\"mmmm\"))","v":"Abril"},{"$f":"UPPER(TEXT($C$4,\"MMM\"))","v":"ABR"},{"$f":"PROPER(TEXT($C$4,\"MMM\"))","v":"Abr"},null,null,null,null,null,null,null,null,null,null,null,null,null,null,null,null,null,"Rel_02",true]
[null,"INICIO MÊS",{"$f":"DATE(YEAR($C$4),MONTH($C$4),1)","v":"2019-04-01"},null,null,null,null,null,null,null,null,null,null,null,null,null,null,null,null,null,null,null,null,"Apoio_Rel02",{"$f":"$Z$2","v":true}]
[null,"FIM MÊS",{"$f":"EOMONTH(C9,0)","v":"2019-04-30"},null,null,null,null,null,null,null,null,null,null,null,null,null,null,null,null,null,null,null,null,"Base_SP",{"$f":"$Z$2","v":true}]
[null,"DIAS ÚTEIS",{"$f":"NETWORKDAYS(DATE(YEAR(C5),MONTH(C5),1),EOMONTH(C5,0),tblFeriados!$A$2:$A$20)","v":22},null,null,null,null,null,null,null,null,null,null,null,"NOME","RGB",null,null,null,null,null,null,null,"Rel_03",true]
[null,"MÊS ANTERIOR",{"$f":"UPPER(TEXT(EDATE($C$5,-1),\"MMMM\"))","v":"MARÇO"},{"$f":"PROPER(TEXT(EDATE($C$5,-1),\"MMMM\"))","v":"Março"},{"$f":"UPPER(TEXT(EDATE($C$5,-1),\"MMM\"))","v":"MAR"},{"$f":"PROPER(TEXT(EDATE($C$5,-1),\"MMM\"))","v":"Mar"},null,null,null,null,null,null,"CORES",null,"LARANJA ESCURO","241; 90; 34",null,null,null,null,null,null,null,"Apoio_Rel03",{"$f":"$Z$2","v":true}]
[null,"INICIO MÊS",{"$f":"DATE(YEAR($C$4),MONTH($C$4)-1,1)","v":"2019-03-01"},null,null,null,null,null,null,null,null,null,null,null,"LARANJA PRINCIPAL","244; 158;0",null,null,null,null,null,null,null,"Base_RJ",{"$f":"$Z$2","v":true}]
[null,"FIM MÊS",{"$f":"EOMONTH(C13,0)","v":"2019-03-31"},null,null,null,null,null,null,null,null,null,null,null,"CARMIM / BEGE","249; 237; 211",null,null,null,null,null,null,null,"tblFeriados",false]
[null,"DIAS ÚTEIS",{"$f":"NETWORKDAYS(DATE(YEAR(C5),MONTH(C5)-1,1),EOMONTH(EDATE(C5,-1),0),tblFeriados!$A$2:$A$20)","v":21},null,null,null,null,null,null,null,null,null,null,null,"CINZA PRINCIPAL","80; 80; 90",null,null,null,null,null,null,null,"tblUsuarios",false]
[null,"DIF. DIAS UTEIS",{"$f":"C11-C15","v":1}]
[null,"VARIAÇÃO_DIAS_ÚTEIS",{"$f":"C11/C15-1","v":4.7619047619047672E-2}]
[null,null,null,null,null,null,null,null,null,null,null,null,null,"INCLUIR OU EXCLUIR NOMES"]
[null,"NUM DIA SEMANA",{"$f":"DAY(C5)","v":11},null,null,null,null,null,null,null,null,null,"PLANILHAS COM FULLSCREEN ATIVADO","Rel_01","Smart 200"]
[null,"DESCR DIA SEMANA",{"$f":"UPPER(TEXT(C5,\"DDDD\"))","v":"QUINTA-FEIRA"},{"$f":"PROPER(TEXT(C5,\"DDDD\"))","v":"Quinta-Feira"},{"$f":"UPPER(TEXT(C5,\"DDD\"))","v":"QUI"},{"$f":"PROPER(TEXT(C5,\"DDD\"))","v":"Qui"},null,null,null,null,null,null,null,"Rel_02","São Paulo"]
[null,"DIAS UTEIS ATE O MOMENTO",{"$f":"NETWORKDAYS($C$9,$C$5,tblFeriados!$A$2:$A$20)","v":9},null,null,null,null,null,null,null,null,null,null,"Rel_03","Rio de Janeiro"]
[]
[null,"PERIODO",{"$f":"C9","v":"2019-04-01"}]
[null,null,{"$f":"C5","v":"2019-04-11T17:37:45"}]
[null,null,{"$f":"C5","v":"2019-04-11T17:37:45"},{"$f":"(TEXT($C$9,\"DD/MM/AA\"))&\" a \" &(TEXT($C$5,\"DD/MM/AA\"))","v":"01/04/19 a 11/04/19"}]
[null,"HORA EXTRAÇÃO BASE","09:00:00"]
[null,"MODO ATUALIZAÇÃO_ADM","NÃO"]

{"sheet":"Rel_01","index":3,"n_rows":68,"n_cols":16,"rows_kept":68,"cut":false,"hidden":false,"merged":[]}
[]
[null,null,null,null,null,null,"","","","","","",""]
[null,null,null,null,null,null,"","","","","","",""]
[null,null,null,null,null,null,"","","","","","",""]
[null,null,null,null,null,null,"","","","","","",""]
[null,null,null,null,null,null,null,"","","","","",""]
[null,"ID","REDE","REGIÃO","CIDADE","PRESTADOR",{"$f":"Base_SMART200!G1","v":"SMART 150 ABC"},{"$f":"Base_SMART200!H1","v":"SMART 200 ABC + BAIXADA"},{"$f":"Base_SMART200!I1","v":"SMART 200 CAMPINAS"},{"$f":"Base_SMART200!J1","v":"SMART 200 SP CAPITAL"},{"$f":"Base_SMART200!K1","v":"SMART 200 GUARULHOS"},{"$f":"Base_SMART200!L1","v":"SMART 200 JUNDIAÍ"},{"$f":"Base_SMART200!M1","v":"SMART 200 SP OESTE"},{"$f":"Base_SMART200!N1","v":"SMART 200 SOROCABA"},{"$f":"Base_SMART200!O1","v":"SMART 200 SAMED"},{"$f":"Base_SMART200!P1","v":"SMART 200 UP"}]
[null,43,"HOSPITAIS","GRANDE SAO PAULO","GUARULHOS","HOSP E MAT GUARULHOS","-","-","-","-","H/M/PS","-","-","-","H","H/M/PS"]
[null,44,"HOSPITAIS","GRANDE SAO PAULO","GUARULHOS","CC GUARULHOS I","-","-","-","-","PA*","-","-","-","-","PA*"]
[null,45,"HOSPITAIS","GRANDE SAO PAULO","GUARULHOS","CC GUARULHOS II","-","-","-","-","PA*","-","-","-","-","PA*"]
[null,49,"HOSPITAIS","GRANDE SAO PAULO","BARUERI","CC ALPHAVILLE","-","-","-","-","-","-","PA*","-","-","PA*"]
[null,50,"HOSPITAIS","GRANDE SAO PAULO","BARUERI","PS BARUERI","-","-","-","-","-","-","P S","-","-","P S"]
[null,51,"HOSPITAIS","GRANDE SAO PAULO","CARAPICUIBA","CC CARAPICUIBA","-","-","-","-","-","-","PA*","-","-","PA*"]
[null,52,"HOSPITAIS","GRANDE SAO PAULO","OSASCO","UNIDADE AVANCADA CRUZEIRO DO SUL","-","-","-","-","-","-","PA*","-","-","PA*"]
[null,53,"HOSPITAIS","GRANDE SAO PAULO","TABOAO DA SERRA","FAMILY HOSP SS LTDA","-","-","-","-","-","-","H/M/PS","-","-","H/M/PS"]
[null,54,"HOSPITAIS","GRANDE SAO PAULO","TABOAO DA SERRA","CC TABOAO DA SERRA","-","-","-","-","-","-","PA*","-","-","PA*"]
[null,55,"HOSPITAIS","GRANDE SAO PAULO","COTIA","CC COTIA","-","-","-","-","-","-","PA","-","-","PA"]
[null,56,"HOSPITAIS","GRANDE SAO PAULO","COTIA","HOSPITAL E MATERNIDADE NOVA VIDA","-","-","-","-","-","-","PA*","-","-","PA*"]
[null,57,"HOSPITAIS","GRANDE SAO PAULO","ITAPEVI","HOSPITAL E MATERNIDADE NOVA VIDA","-","-","-","-","-","-","H / M / PS","-","-","H / M / PS"]
[null,58,"HOSPITAIS","GRANDE SAO PAULO","ITAPEVI","HOSPITAL CRUZEIRO DO SUL ITAPEVI","-","-","-","-","-","-","PS","-","-","PS"]
[null,59,"HOSPITAIS","GRANDE SAO PAULO","ITAPEVI","CC ITAPEVI","-","-","-","-","-","-","PA*","-","-","PA*"]
[null,60,"HOSPITAIS","GRANDE SAO PAULO","JANDIRA","HOSPITAL E MATERNIDADE NOVA VIDA","-","-","-","-","-","-","PA*","-","-","PA*"]
[null,61,"HOSPITAIS","GRANDE SAO PAULO","OSASCO","HOSPITAL CRUZEIRO DO SUL","-","-","-","-","-","-","H / M / PS","-","-","H / M / PS"]
[null,64,"HOSPITAIS","GRANDE SAO PAULO","CAIEIRAS","CC CAIEIRAS","-","-","-","-","-","-","-","-","-","PA*"]
[null,65,"HOSPITAIS","GRANDE SAO PAULO","ARUJA","CC ARUJA","-","-","-","-","-","-","-","-","-","PA"]
[null,66,"HOSPITAIS","GRANDE SAO PAULO","MOGI DAS CRUZES","HOSPITAL SANTANA  ","-","-","-","-","-","-","-","-","H/PS","H/PS"]
[null,67,"HOSPITAIS","GRANDE SAO PAULO","SUZANO","HOSPITAL SANTA MARIA","-","-","-","-","-","-","-","-","H/M/PS","H/M/PS"]
[null,68,"HOSPITAIS","GRANDE SAO PAULO","SANTA ISABEL","HOSPITAL SANTA CASA DE SANTA ISABEL","-","-","-","-","-","-","-","-","PS","PS"]
[null,69,"HOSPITAIS","GRANDE SAO PAULO","GUARAREMA","HOSPITAL SANTA CASA DE GUARAREMA","-","-","-","-","-","-","-","-","PS","PS"]
[null,119,"LABORATÓRIOS","GRANDE SAO PAULO","GUARULHOS","E J IMAGEM SERVICOS DE RADIOLOGIA LTDA - ME","-","-","-","-","X","-","-","-","-","X"]
[null,120,"LABORATÓRIOS","GRANDE SAO PAULO","GUARULHOS","ECOGENESIS SERVICOS MEDICOS E DIAGNOSTICOS LTDA","-","-","-","-","X","-","-","-","-","X"]
[null,121,"LABORATÓRIOS","GRANDE SAO PAULO","GUARULHOS","NASA LAB BIO CLINICO S/C LTDA","-","-","-","-","X","-","-","-","-","X"]
[null,122,"LABORATÓRIOS","GRANDE SAO PAULO","GUARULHOS","LAB DE ANAL CLINICAS SANITAS S/C LTDA","-","-","-","-","X","-","-","-","-","X"]
[null,123,"LABORATÓRIOS","GRANDE SAO PAULO","GUARULHOS","S M DIAGNOSTICOS ESPECIALIZADOS  LTDA","-","-","-","-","X","-","-","-","-","X"]
[null,124,"LABORATÓRIOS","GRANDE SAO PAULO","GUARULHOS","VANESSA VIVIAN SILVA GONCALVES","-","-","-","-","X","-","-","-","-","X"]
[null,139,"LABORATÓRIOS","GRANDE SAO PAULO","BARUERI","ULTRACRON CENTRO DE DIAGNOSTICOS LTDA","-","-","-","-","-","-","X","-","-","X"]
[null,140,"LABORATÓRIOS","GRANDE SAO PAULO","CARAPICUIBA","BIOCLINIC-LAB DE ANALISES CLINICAS S/ C LTDA","-","-","-","-","-","-","X","-","-","X"]
[null,141,"LABORATÓRIOS","GRANDE SAO PAULO","CARAPICUIBA","FEELING DIAGNOSTICOS MEDICOS S/S LTDA","-","-","-","-","-","-","X","-","-","X"]
[null,142,"LABORATÓRIOS","GRANDE SAO PAULO","CARAPICUIBA","GOMES & BENHOSSI FISIOTERAPIA E ESTETICA LTDA","-","-","-","-","-","-","X","-","-","X"]
[null,143,"LABORATÓRIOS","GRANDE SAO PAULO","CARAPICUIBA","TRANSDUSON MEDICOS ASSOCIADOS LTDA","-","-","-","-","-","-","X","-","-","X"]
[null,144,"LABORATÓRIOS","GRANDE SAO PAULO","COTIA","NOTRELABS","-","-","-","-","-","-","X","-","-","X"]
[null,145,"LABORATÓRIOS","GRANDE SAO PAULO","ITAPEVI","NOVA IMAGEM CTO AVANCADO DE DIAG S/S LTDA","-","-","-","-","-","-","X","-","-","X"]
[null,146,"LABORATÓRIOS","GRANDE SAO PAULO","OSASCO","ALPHA IMAGEM DIAG SERV E RADIOLOGIA LTDA","-","-","-","-","-","-","X","-","-","X"]
[null,147,"LABORATÓRIOS","GRANDE SAO PAULO","OSASCO","ANDREAZZA MEDICINA DIAGNOSTICA LTDA ME","-","-","-","-","-","-","X","-","-","X"]
[null,148,"LABORATÓRIOS","GRANDE SAO PAULO","OSASCO","CENTER BIOMEDICO DE ANAL CLIN OSASCO LTDA","-","-","-","-","-","-","X","-","-","X"]
[null,149,"LABORATÓRIOS","GRANDE SAO PAULO","OSASCO","CENTRO PAULISTA DE NEUROLOGIA CEPAN SC LTDA","-","-","-","-","-","-","X","-","-","X"]
[null,150,"LABORATÓRIOS","GRANDE SAO PAULO","OSASCO","ULTRACRON CENTRO DE DIAGNOSTICOS LTDA","-","-","-","-","-","-","X","-","-","X"]
[null,151,"LABORATÓRIOS","GRANDE SAO PAULO","TABOAO DA SERRA","BIOCLINIC-LAB DE ANALISES CLINICAS S/ C LTDA","-","-","-","-","-","-","X","-","-","X"]
[null,152,"LABORATÓRIOS","GRANDE SAO PAULO","TABOAO DA SERRA","SCAN DIAGNOSTICOS POR IMAGEM  LTDA","-","-","-","-","-","-","X","-","-","X"]
[null,165,"LABORATÓRIOS","GRANDE SAO PAULO","ARUJA","LAB DELIBERATO DE ANAL CLIN S/C LTDA","-","-","-","-","-","-","-","-","X","X"]
[null,166,"LABORATÓRIOS","GRANDE SAO PAULO","ARUJA","HM DIAG POR IMAGEM","-","-","-","-","-","-","-","-","X","X"]
[null,167,"LABORATÓRIOS","GRANDE SAO PAULO","ARUJA","CLINICA DE ESPECIALIDADES SALZGEBER & SANTOS LTDA","-","-","-","-","-","-","-","-","X","X"]
[null,168,"LABORATÓRIOS","GRANDE SAO PAULO","ARUJA","CC ARUJA","-","-","-","-","-","-","-","-","X","X"]
[null,169,"LABORATÓRIOS","GRANDE SAO PAULO","ITAQUAQUECETUBA","LAB DELIBERATO DE ANAL CLIN S/C LTDA","-","-","-","-","-","-","-","-","X","X"]
[null,170,"LABORATÓRIOS","GRANDE SAO PAULO","ITAQUAQUECETUBA","LAB DR PEDRO BONELLI","-","-","-","-","-","-","-","-","X","X"]
[null,171,"LABORATÓRIOS","GRANDE SAO PAULO","MOGI DAS CRUZES","UNIDADE MOGIANA DE DIAGNOSTICO POR IMAGEM S/S LTDA","-","-","-","-","-","-","-","-","X","X"]
[null,172,"LABORATÓRIOS","GRANDE SAO PAULO","MOGI DAS CRUZES","CLINICA DE ESPECIALIDADES SALZGEBER & SANTOS LTDA","-","-","-","-","-","-","-","-","X","X"]
[null,173,"LABORATÓRIOS","GRANDE SAO PAULO","MOGI DAS CRUZES","INSTITUTO DE NEFROLOGIA DE MOGI DAS CRUZES LTDA","-","-","-","-","-","-","-","-","X","X"]
[null,174,"LABORATÓRIOS","GRANDE SAO PAULO","MOGI DAS CRUZES","SALUTE CARE CLIN DE PSICOLOGIA FONAL E FISIOT LTDA","-","-","-","-","-","-","-","-","X","X"]
[null,175,"LABORATÓRIOS","GRANDE SAO PAULO","MOGI DAS CRUZES","LAB DR PEDRO BONELLI","-","-","-","-","-","-","-","-","X","X"]
[null,176,"LABORATÓRIOS","GRANDE SAO PAULO","MOGI DAS CRUZES","CC SAMED","-","-","-","-","-","-","-","-","X","X"]
[null,177,"LABORATÓRIOS","GRANDE SAO PAULO","POA","LAB DELIBERATO DE ANAL CLIN S/C LTDA","-","-","-","-","-","-","-","-","X","X"]
[null,178,"LABORATÓRIOS","GRANDE SAO PAULO","SANTA ISABEL","LAB DELIBERATO DE ANAL CLIN S/C LTDA","-","-","-","-","-","-","-","-","X","X"]
[null,179,"LABORATÓRIOS","GRANDE SAO PAULO","SUZANO","LAB DR PEDRO BONELLI","-","-","-","-","-","-","-","-","X","X"]
[null,180,"LABORATÓRIOS","GRANDE SAO PAULO","SUZANO","CLINICA DE ESPECIALIDADES SALZGEBER & SANTOS LTDA","-","-","-","-","-","-","-","-","X","X"]
[null,181,"LABORATÓRIOS","GRANDE SAO PAULO","SUZANO","CC SAMED","-","-","-","-","-","-","-","-","X","X"]
[null,"","","","","","","","","","","","","","",""]
[null,"","","","","","","","","","","","","","",""]

{"sheet":"Apoio_Rel01","index":4,"n_rows":60,"n_cols":9,"rows_kept":60,"cut":false,"hidden":true,"merged":[[10,8,15,12],[1,8,4,14],[6,8,8,13],[5,8,5,12]]}
["ID","REDE","REGIÃO","CIDADE","PRESTADOR",null,null,null,"MENSAGENS"]
[43,"HOSPITAIS","GRANDE SAO PAULO","GUARULHOS","HOSP E MAT GUARULHOS",null,null,null,"A Rede Credenciada pode ser alterada a qualquer momento, seguindo as diretrizes normativas da ANS. Para consultar a rede completa e atualizada, acesse o site: "]
[44,"HOSPITAIS","GRANDE SAO PAULO","GUARULHOS","CC GUARULHOS I"]
[45,"HOSPITAIS","GRANDE SAO PAULO","GUARULHOS","CC GUARULHOS II"]
[49,"HOSPITAIS","GRANDE SAO PAULO","BARUERI","CC ALPHAVILLE"]
[50,"HOSPITAIS","GRANDE SAO PAULO","BARUERI","PS BARUERI",null,null,null,"www.gndi.com.br"]
[51,"HOSPITAIS","GRANDE SAO PAULO","CARAPICUIBA","CC CARAPICUIBA",null,null,null," A Rede é disponibilizada de acordo com o plano contratado."]
[52,"HOSPITAIS","GRANDE SAO PAULO","OSASCO","UNIDADE AVANCADA CRUZEIRO DO SUL"]
[53,"HOSPITAIS","GRANDE SAO PAULO","TABOAO DA SERRA","FAMILY HOSP SS LTDA"]
[54,"HOSPITAIS","GRANDE SAO PAULO","TABOAO DA SERRA","CC TABOAO DA SERRA",null,null,null,"LEGENDA"]
[55,"HOSPITAIS","GRANDE SAO PAULO","COTIA","CC COTIA",null,null,null,"H - HOSPITAL \nM - MATERNIDADE \nPS - PRONTO-SOCORRO \nPA - PRONTO ATENDIMENTO"]
[56,"HOSPITAIS","GRANDE SAO PAULO","COTIA","HOSPITAL E MATERNIDADE NOVA VIDA"]
[57,"HOSPITAIS","GRANDE SAO PAULO","ITAPEVI","HOSPITAL E MATERNIDADE NOVA VIDA"]
[58,"HOSPITAIS","GRANDE SAO PAULO","ITAPEVI","HOSPITAL CRUZEIRO DO SUL ITAPEVI"]
[59,"HOSPITAIS","GRANDE SAO PAULO","ITAPEVI","CC ITAPEVI"]
[60,"HOSPITAIS","GRANDE SAO PAULO","JANDIRA","HOSPITAL E MATERNIDADE NOVA VIDA"]
[61,"HOSPITAIS","GRANDE SAO PAULO","OSASCO","HOSPITAL CRUZEIRO DO SUL"]
[64,"HOSPITAIS","GRANDE SAO PAULO","CAIEIRAS","CC CAIEIRAS"]
[65,"HOSPITAIS","GRANDE SAO PAULO","ARUJA","CC ARUJA"]
[66,"HOSPITAIS","GRANDE SAO PAULO","MOGI DAS CRUZES","HOSPITAL SANTANA  "]
[67,"HOSPITAIS","GRANDE SAO PAULO","SUZANO","HOSPITAL SANTA MARIA"]
[68,"HOSPITAIS","GRANDE SAO PAULO","SANTA ISABEL","HOSPITAL SANTA CASA DE SANTA ISABEL"]
[69,"HOSPITAIS","GRANDE SAO PAULO","GUARAREMA","HOSPITAL SANTA CASA DE GUARAREMA"]
[119,"LABORATÓRIOS","GRANDE SAO PAULO","GUARULHOS","E J IMAGEM SERVICOS DE RADIOLOGIA LTDA - ME"]
[120,"LABORATÓRIOS","GRANDE SAO PAULO","GUARULHOS","ECOGENESIS SERVICOS MEDICOS E DIAGNOSTICOS LTDA"]
[121,"LABORATÓRIOS","GRANDE SAO PAULO","GUARULHOS","NASA LAB BIO CLINICO S/C LTDA"]
[122,"LABORATÓRIOS","GRANDE SAO PAULO","GUARULHOS","LAB DE ANAL CLINICAS SANITAS S/C LTDA"]
[123,"LABORATÓRIOS","GRANDE SAO PAULO","GUARULHOS","S M DIAGNOSTICOS ESPECIALIZADOS  LTDA"]
[124,"LABORATÓRIOS","GRANDE SAO PAULO","GUARULHOS","VANESSA VIVIAN SILVA GONCALVES"]
[139,"LABORATÓRIOS","GRANDE SAO PAULO","BARUERI","ULTRACRON CENTRO DE DIAGNOSTICOS LTDA"]
[140,"LABORATÓRIOS","GRANDE SAO PAULO","CARAPICUIBA","BIOCLINIC-LAB DE ANALISES CLINICAS S/ C LTDA"]
[141,"LABORATÓRIOS","GRANDE SAO PAULO","CARAPICUIBA","FEELING DIAGNOSTICOS MEDICOS S/S LTDA"]
[142,"LABORATÓRIOS","GRANDE SAO PAULO","CARAPICUIBA","GOMES & BENHOSSI FISIOTERAPIA E ESTETICA LTDA"]
[143,"LABORATÓRIOS","GRANDE SAO PAULO","CARAPICUIBA","TRANSDUSON MEDICOS ASSOCIADOS LTDA"]
[144,"LABORATÓRIOS","GRANDE SAO PAULO","COTIA","NOTRELABS"]
[145,"LABORATÓRIOS","GRANDE SAO PAULO","ITAPEVI","NOVA IMAGEM CTO AVANCADO DE DIAG S/S LTDA"]
[146,"LABORATÓRIOS","GRANDE SAO PAULO","OSASCO","ALPHA IMAGEM DIAG SERV E RADIOLOGIA LTDA"]
[147,"LABORATÓRIOS","GRANDE SAO PAULO","OSASCO","ANDREAZZA MEDICINA DIAGNOSTICA LTDA ME"]
[148,"LABORATÓRIOS","GRANDE SAO PAULO","OSASCO","CENTER BIOMEDICO DE ANAL CLIN OSASCO LTDA"]
[149,"LABORATÓRIOS","GRANDE SAO PAULO","OSASCO","CENTRO PAULISTA DE NEUROLOGIA CEPAN SC LTDA"]
[150,"LABORATÓRIOS","GRANDE SAO PAULO","OSASCO","ULTRACRON CENTRO DE DIAGNOSTICOS LTDA"]
[151,"LABORATÓRIOS","GRANDE SAO PAULO","TABOAO DA SERRA","BIOCLINIC-LAB DE ANALISES CLINICAS S/ C LTDA"]
[152,"LABORATÓRIOS","GRANDE SAO PAULO","TABOAO DA SERRA","SCAN DIAGNOSTICOS POR IMAGEM  LTDA"]
[165,"LABORATÓRIOS","GRANDE SAO PAULO","ARUJA","LAB DELIBERATO DE ANAL CLIN S/C LTDA"]
[166,"LABORATÓRIOS","GRANDE SAO PAULO","ARUJA","HM DIAG POR IMAGEM"]
[167,"LABORATÓRIOS","GRANDE SAO PAULO","ARUJA","CLINICA DE ESPECIALIDADES SALZGEBER & SANTOS LTDA"]
[168,"LABORATÓRIOS","GRANDE SAO PAULO","ARUJA","CC ARUJA"]
[169,"LABORATÓRIOS","GRANDE SAO PAULO","ITAQUAQUECETUBA","LAB DELIBERATO DE ANAL CLIN S/C LTDA"]
[170,"LABORATÓRIOS","GRANDE SAO PAULO","ITAQUAQUECETUBA","LAB DR PEDRO BONELLI"]
[171,"LABORATÓRIOS","GRANDE SAO PAULO","MOGI DAS CRUZES","UNIDADE MOGIANA DE DIAGNOSTICO POR IMAGEM S/S LTDA"]
[172,"LABORATÓRIOS","GRANDE SAO PAULO","MOGI DAS CRUZES","CLINICA DE ESPECIALIDADES SALZGEBER & SANTOS LTDA"]
[173,"LABORATÓRIOS","GRANDE SAO PAULO","MOGI DAS CRUZES","INSTITUTO DE NEFROLOGIA DE MOGI DAS CRUZES LTDA"]
[174,"LABORATÓRIOS","GRANDE SAO PAULO","MOGI DAS CRUZES","SALUTE CARE CLIN DE PSICOLOGIA FONAL E FISIOT LTDA"]
[175,"LABORATÓRIOS","GRANDE SAO PAULO","MOGI DAS CRUZES","LAB DR PEDRO BONELLI"]
[176,"LABORATÓRIOS","GRANDE SAO PAULO","MOGI DAS CRUZES","CC SAMED"]
[177,"LABORATÓRIOS","GRANDE SAO PAULO","POA","LAB DELIBERATO DE ANAL CLIN S/C LTDA"]
[178,"LABORATÓRIOS","GRANDE SAO PAULO","SANTA ISABEL","LAB DELIBERATO DE ANAL CLIN S/C LTDA"]
[179,"LABORATÓRIOS","GRANDE SAO PAULO","SUZANO","LAB DR PEDRO BONELLI"]
[180,"LABORATÓRIOS","GRANDE SAO PAULO","SUZANO","CLINICA DE ESPECIALIDADES SALZGEBER & SANTOS LTDA"]
[181,"LABORATÓRIOS","GRANDE SAO PAULO","SUZANO","CC SAMED"]

{"sheet":"Base_SMART200","index":5,"n_rows":182,"n_cols":16,"rows_kept":182,"cut":false,"hidden":true,"merged":[]}
["ID","ARQUIVO","REDE","REGIÃO","CIDADE","PRESTADOR","SMART 150 ABC","SMART 200 ABC + BAIXADA","SMART 200 CAMPINAS","SMART 200 SP CAPITAL","SMART 200 GUARULHOS","SMART 200 JUNDIAÍ","SMART 200 SP OESTE","SMART 200 SOROCABA","SMART 200 SAMED","SMART 200 UP"]
[{"$f":"ROW()-1","v":1},"SMART 200","HOSPITAIS","SAO PAULO /  CAPITAL","SAO PAULO /  LESTE","CASA DE SAUDE SANTA MARCELINA (TRANSPLANTE DE MEDULA OSSEA ADULTO)","H","H",null,"H","H",null,"H",null,null,"H"]
[2,"SMART 200","HOSPITAIS","SAO PAULO ABC / DIADEMA","DIADEMA","CC DIADEMA ",null,"PA",null,null,null,null,null,null,null,"PA"]
[3,"SMART 200","HOSPITAIS","BAIXADA SANTISTA","GUARUJA","CC FREI GALVAO -GUARUJA",null,"PA*",null,null,null,null,null,null,null,"PA*"]
[4,"SMART 200","HOSPITAIS","BAIXADA SANTISTA","SAO VICENTE","CC FREI GALVAO SAO VICENTE",null,"PA*",null,null,null,null,null,null,null,"PA*"]
[5,"SMART 200","HOSPITAIS","SAO PAULO ABC / MAUA","MAUA","CC MAUA 1 (ANTIGO CC MAUA)",null,"PA*",null,null,null,null,null,null,null,"PA*"]
[6,"SMART 200","HOSPITAIS","SAO PAULO ABC / RIBEIRAO PIRES","RIBEIRAO PIRES","CC RIBEIRAO PIRES",null,"PA",null,null,null,null,null,null,null,"PA"]
[7,"SMART 200","HOSPITAIS","SAO PAULO ABC / SANTO ANDRE","SANTO ANDRE","CC SANTO ANDRE 1 (ANTIGO CC SANTO ANDRE I )","PA","PA",null,null,null,null,null,null,null,"PA"]
[8,"SMART 200","HOSPITAIS","SAO PAULO ABC / SANTO ANDRE","SANTO ANDRE","CC SANTO ANDRE 4 (ANTIGO PA SANTO ANDRE)","PA*","PA*",null,null,null,null,null,null,null,"PA*"]
[9,"SMART 200","HOSPITAIS","SAO PAULO ABC / SANTO ANDRE","SANTO ANDRE","CC SANTO ANDRE 2 (ANTIGO PA SANTO ANDRE)","PA","PA",null,null,null,null,null,null,null,"PA"]
[10,"SMART 200","HOSPITAIS","SAO PAULO ABC / SAO CAETANO DO SUL","SAO CAETANO DO SUL","CC SAO CAETANO 1(ANTIGO CC SAO CAETANO I)",null,"PA*",null,null,null,null,null,null,null,"PA*"]
[11,"SMART 200","HOSPITAIS","SAO PAULO ABC / SAO BERNARDO DO CAMPO","SAO BERNARDO DO CAMPO","CENTRO DE TRATAMENTO BEZERRA DE MENEZES",null,"H/PS ",null,null,null,null,null,null,null,"H/PS "]
[12,"SMART 200","HOSPITAIS","SAO PAULO ABC / SAO BERNARDO DO CAMPO","SAO BERNARDO DO CAMPO","CC SAO BERNARDO",null,"PA*",null,null,null,null,null,null,null,"PA*"]
[13,"SMART 200","HOSPITAIS","SAO PAULO /  CAPITAL","SAO PAULO /  SUL","HOSPITAL DO RIM E HIPERTENSAO (TRANSPLANTE RENAL)","H","H","H","H","H","H","H","H","H","H"]
[14,"SMART 200","HOSPITAIS","SAO PAULO /  CAPITAL","SAO PAULO /  SUL","GRAACC - TRANSPLANTE DE MEDULA OSSEA INFANTIL)","H","H","H","H","H","H","H","H","H","H"]
[15,"SMART 200","HOSPITAIS","SAO PAULO ABC / SAO CAETANO DO SUL","SAO CAETANO DO SUL","HOSP E MAT CENTRAL LTDA",null,"H ",null,null,null,null,null,null,null,"H "]
[16,"SMART 200","HOSPITAIS","SAO PAULO ABC / SAO BERNARDO DO CAMPO","SAO BERNARDO DO CAMPO","HOSP E MAT NOTRE CARE ABC","H/M/PS","H/M/PS",null,null,null,null,null,null,null,"H/M/PS"]
[17,"SMART 200","HOSPITAIS","BAIXADA SANTISTA","SANTOS","HOSP FREI GALVAO",null,"H/P S",null,null,null,null,null,null,null,"H/P S"]
[18,"SMART 200","HOSPITAIS","JUNDIAI E REGIAO","JUNDIAI","HOSP PAULO SACRAMENTO - (CARDIOLOGIA)","H","H","H","H","H","H/M/PS","H","H","H","H/M/PS"]
[19,"SMART 200","HOSPITAIS","SAO PAULO ABC / SAO BERNARDO DO CAMPO","SAO BERNARDO DO CAMPO","HOSP SAO BERNARDO - UNIDADE INFANTIL BAETA NEVES",null,"H/PS ",null,null,null,null,null,null,null,"H/PS "]
[20,"SMART 200","HOSPITAIS","SAO PAULO ABC / SAO BERNARDO DO CAMPO","SAO BERNARDO DO CAMPO","HOSP SAO BERNARDO S/A",null,"H",null,null,null,null,null,null,null,"H"]
[21,"SMART 200","HOSPITAIS","BAIXADA SANTISTA","SANTOS","HOSP SAO LUCAS DE SANTOS LTDA",null,"M",null,null,null,null,null,null,null,"M"]
[22,"SMART 200","HOSPITAIS","SAO PAULO ABC / SANTO ANDRE","SANTO ANDRE","HOSPITAL CORACAO DE JESUS LTDA",null,"H",null,null,null,null,null,null,null,"H"]
[23,"SMART 200","HOSPITAIS","SAO PAULO /  CAPITAL","SAO PAULO / CENTRO","HOSPITAL INGLES (TRANSPLANTE DE MEDULA OSSEA ADULTO)","H","H","H","H","H","H","H","H","H","H"]
[24,"SMART 200","HOSPITAIS","SAO PAULO ABC / MAUA","MAUA","IRM DA STA CASA MISER DE MAUA- HOSP IMAC CONCEICAO",null,"H/M/PS*",null,null,null,null,null,null,null,"H/M/PS*"]
[25,"SMART 200","HOSPITAIS","SAO PAULO ABC / SAO BERNARDO DO CAMPO","SAO BERNARDO DO CAMPO","P S INTERMEDICA ABC",null,"P S ",null,null,null,null,null,null,null,"P S "]
[26,"SMART 200","HOSPITAIS","SAO PAULO /  CAPITAL","SAO PAULO /  SUL","HOSPITAL DOS OLHOS PAULISTA (TRANSPLANTE DE CORNEA)",null,"H","H","H","H","H","H","H","H","H"]
[27,"SMART 200","HOSPITAIS","SAO PAULO /  CAPITAL","SAO PAULO /  SUL","OPHTHAL HOSPITAL ESPECIALIZADO LTDA",null,"P S ",null,"P S","P S",null,"P S",null,null,"P S "]
[28,"SMART 200","HOSPITAIS","CAMPINAS E REGIAO","CAMPINAS","HOSP RENASCENCA CAMPINAS",null,null,"H/M/PS",null,null,null,null,null,null,"H/M/PS"]
[29,"SMART 200","HOSPITAIS","SAO PAULO /  CAPITAL","SAO PAULO /  LESTE","IBCC- INST BRASILEIRO DE CONTROLE DO CANCER",null,null,"H",null,null,"H",null,"H",null,"H"]
[30,"SMART 200","HOSPITAIS","SAO PAULO /  CAPITAL","SAO PAULO /  SUL","API-ASSIST.PSIQUIAT.INTEGRADA S/C LTDA","H",null,"H","H","H","H","H","H","H","H"]
[31,"SMART 200","HOSPITAIS","SAO PAULO /  CAPITAL","SAO PAULO / CENTRO","HOSP E MAT SACRECOEUR",null,null,null,"H/M",null,null,null,null,null,"H/M"]
[32,"SMART 200","HOSPITAIS","SAO PAULO /  CAPITAL","SAO PAULO / CENTRO","HOSP SANTA CECILIA",null,null,null,"H/P S",null,null,null,null,null,"H/P S"]
[33,"SMART 200","HOSPITAIS","SAO PAULO /  CAPITAL","SAO PAULO / CENTRO","CC ANGELICA",null,null,null,"PA*",null,null,null,null,null,"PA*"]
[34,"SMART 200","HOSPITAIS","SAO PAULO /  CAPITAL","SAO PAULO /  LESTE","HOSP MONTEMAGNO",null,null,null,"H/P S",null,null,null,null,null,"H/P S"]
[35,"SMART 200","HOSPITAIS","SAO PAULO /  CAPITAL","SAO PAULO /  LESTE","CC SAO MIGUEL",null,null,null,"PA*",null,null,null,null,null,"PA*"]
[36,"SMART 200","HOSPITAIS","SAO PAULO /  CAPITAL","SAO PAULO /  LESTE","CC TATUAPE I",null,null,null,"PA*",null,null,null,null,null,"PA*"]
[37,"SMART 200","HOSPITAIS","SAO PAULO /  CAPITAL","SAO PAULO /  LESTE","CC ITAQUERA",null,null,null,"PA*",null,null,null,null,null,"PA*"]
[38,"SMART 200","HOSPITAIS","SAO PAULO /  CAPITAL","SAO PAULO / NORTE","HOSP E MAT N S ROSARIO",null,null,null,"H/M/PS",null,null,null,null,null,"H/M/PS"]
[39,"SMART 200","HOSPITAIS","SAO PAULO /  CAPITAL","SAO PAULO / NORTE","CC ZONA NORTE",null,null,null,"PA*",null,null,null,null,null,"PA*"]
[40,"SMART 200","HOSPITAIS","SAO PAULO /  CAPITAL","SAO PAULO / OESTE","CC LAPA",null,null,null,"PA*",null,null,null,null,null,"PA*"]
[41,"SMART 200","HOSPITAIS","SAO PAULO /  CAPITAL","SAO PAULO /  SUL","HOSP BOSQUE DA SAUDE",null,null,null,"H/M/PS",null,null,null,null,"H","H/M/PS"]
[42,"SMART 200","HOSPITAIS","SAO PAULO /  CAPITAL","SAO PAULO /  SUL","CC ZONA SUL",null,null,null,"PA",null,null,null,null,null,"PA"]
[43,"SMART 200","HOSPITAIS","GRANDE SAO PAULO","GUARULHOS","HOSP E MAT GUARULHOS",null,null,null,null,"H/M/PS",null,null,null,"H","H/M/PS"]
[44,"SMART 200","HOSPITAIS","GRANDE SAO PAULO","GUARULHOS","CC GUARULHOS I",null,null,null,null,"PA*",null,null,null,null,"PA*"]
[45,"SMART 200","HOSPITAIS","GRANDE SAO PAULO","GUARULHOS","CC GUARULHOS II",null,null,null,null,"PA*",null,null,null,null,"PA*"]
[46,"SMART 200","HOSPITAIS","JUNDIAI E REGIAO","CAJAMAR","CC POLVILHO",null,null,null,null,null,"PA*",null,null,null,"PA*"]
[47,"SMART 200","HOSPITAIS","JUNDIAI E REGIAO","CAMPO LIMPO PAULISTA","CC CAMPO LIMPO PAULISTA",null,null,null,null,null,"PA*",null,null,null,"PA*"]
[48,"SMART 200","HOSPITAIS","JUNDIAI E REGIAO","VARZEA PAULISTA","CC VARZEA PAULISTA",null,null,null,null,null,"PA*",null,null,null,"PA*"]
[49,"SMART 200","HOSPITAIS","GRANDE SAO PAULO","BARUERI","CC ALPHAVILLE",null,null,null,null,null,null,"PA*",null,null,"PA*"]
[50,"SMART 200","HOSPITAIS","GRANDE SAO PAULO","BARUERI","PS BARUERI",null,null,null,null,null,null,"P S",null,null,"P S"]
[51,"SMART 200","HOSPITAIS","GRANDE SAO PAULO","CARAPICUIBA","CC CARAPICUIBA",null,null,null,null,null,null,"PA*",null,null,"PA*"]
[52,"SMART 200","HOSPITAIS","GRANDE SAO PAULO","OSASCO","UNIDADE AVANCADA CRUZEIRO DO SUL",null,null,null,null,null,null,"PA*",null,null,"PA*"]
[53,"SMART 200","HOSPITAIS","GRANDE SAO PAULO","TABOAO DA SERRA","FAMILY HOSP SS LTDA",null,null,null,null,null,null,"H/M/PS",null,null,"H/M/PS"]
[54,"SMART 200","HOSPITAIS","GRANDE SAO PAULO","TABOAO DA SERRA","CC TABOAO DA SERRA",null,null,null,null,null,null,"PA*",null,null,"PA*"]
[55,"SMART 200","HOSPITAIS","GRANDE SAO PAULO","COTIA","CC COTIA",null,null,null,null,null,null,"PA",null,null,"PA"]
[56,"SMART 200","HOSPITAIS","GRANDE SAO PAULO","COTIA","HOSPITAL E MATERNIDADE NOVA VIDA",null,null,null,null,null,null,"PA*",null,null,"PA*"]
[57,"SMART 200","HOSPITAIS","GRANDE SAO PAULO","ITAPEVI","HOSPITAL E MATERNIDADE NOVA VIDA",null,null,null,null,null,null,"H / M / PS",null,null,"H / M / PS"]
[58,"SMART 200","HOSPITAIS","GRANDE SAO PAULO","ITAPEVI","HOSPITAL CRUZEIRO DO SUL ITAPEVI",null,null,null,null,null,null,"PS",null,null,"PS"]
[59,"SMART 200","HOSPITAIS","GRANDE SAO PAULO","ITAPEVI","CC ITAPEVI",null,null,null,null,null,null,"PA*",null,null,"PA*"]
[60,"SMART 200","HOSPITAIS","GRANDE SAO PAULO","JANDIRA","HOSPITAL E MATERNIDADE NOVA VIDA",null,null,null,null,null,null,"PA*",null,null,"PA*"]
[61,"SMART 200","HOSPITAIS","GRANDE SAO PAULO","OSASCO","HOSPITAL CRUZEIRO DO SUL",null,null,null,null,null,null,"H / M / PS",null,null,"H / M / PS"]
[62,"SMART 200","HOSPITAIS","SOROCABA E REGIAO","ITU","CC ITU",null,null,null,null,null,null,null,"PA*",null,"PA*"]
[63,"SMART 200","HOSPITAIS","SOROCABA E REGIAO","SOROCABA","HOSP MODELO",null,null,null,null,null,null,null,"H/M/PS",null,"H/M/PS"]
[64,"SMART 200","HOSPITAIS","GRANDE SAO PAULO","CAIEIRAS","CC CAIEIRAS",null,null,null,null,null,null,null,null,null,"PA*"]
[{"$f":"ROW()-1","v":65},"SMART 200","HOSPITAIS","GRANDE SAO PAULO","ARUJA","CC ARUJA",null,null,null,null,null,null,null,null,null,"PA"]
[66,"SMART 200","HOSPITAIS","GRANDE SAO PAULO","MOGI DAS CRUZES","HOSPITAL SANTANA  ",null,null,null,null,null,null,null,null,"H/PS","H/PS"]
[67,"SMART 200","HOSPITAIS","GRANDE SAO PAULO","SUZANO","HOSPITAL SANTA MARIA",null,null,null,null,null,null,null,null,"H/M/PS","H/M/PS"]
[68,"SMART 200","HOSPITAIS","GRANDE SAO PAULO","SANTA ISABEL","HOSPITAL SANTA CASA DE SANTA ISABEL",null,null,null,null,null,null,null,null,"PS","PS"]
[69,"SMART 200","HOSPITAIS","GRANDE SAO PAULO","GUARAREMA","HOSPITAL SANTA CASA DE GUARAREMA",null,null,null,null,null,null,null,null,"PS","PS"]
[70,"SMART 200","LABORATÓRIOS","SAO PAULO ABC / DIADEMA","DIADEMA","NOTRELABS DIADEMA","X","X",null,null,null,null,null,null,null,"X"]
[71,"SMART 200","LABORATÓRIOS","SAO PAULO ABC / DIADEMA","DIADEMA","CC DIADEMA","X","X",null,null,null,null,null,null,null,"X"]
[72,"SMART 200","LABORATÓRIOS","SAO PAULO ABC / DIADEMA","DIADEMA","DUNACOR MEDICINA DIAGNOSTICA","X","X",null,null,null,null,null,null,null,"X"]
[73,"SMART 200","LABORATÓRIOS","SAO PAULO ABC / SANTO ANDRE","SANTO ANDRE","LAB PADRAO DE ANAL CLINS SC LTDA","X","X",null,null,null,null,null,null,null,"X"]
[74,"SMART 200","LABORATÓRIOS","SAO PAULO ABC / SANTO ANDRE","SANTO ANDRE","DUNACOR MEDICINA DIAGNOSTICA","X","X",null,null,null,null,null,null,null,"X"]
[75,"SMART 200","LABORATÓRIOS","SAO PAULO ABC / SAO BERNARDO DO CAMPO","SAO BERNARDO DO CAMPO","CENTRO OFTALMOLOGICO GNDI","X","X",null,null,null,null,null,null,null,"X"]
[76,"SMART 200","LABORATÓRIOS","SAO PAULO ABC / SAO BERNARDO DO CAMPO","SAO BERNARDO DO CAMPO","NOTRELABS SAO BERNARDO 6","X","X",null,null,null,null,null,null,null,"X"]
[77,"SMART 200","LABORATÓRIOS","SAO PAULO ABC / SAO BERNARDO DO CAMPO","SAO BERNARDO DO CAMPO","DUNACOR DIAGS MEDS LTDA","X","X",null,null,null,null,null,null,null,"X"]
[78,"SMART 200","LABORATÓRIOS","SAO PAULO ABC / SAO BERNARDO DO CAMPO","SAO BERNARDO DO CAMPO","LAB HORMON LAB ESP EM DOSAGENS HORMONAIS LTDA","X","X",null,null,null,null,null,null,null,"X"]
[79,"SMART 200","LABORATÓRIOS","BAIXADA SANTISTA","CUBATAO","ANALISES CLINICAS CELLULA MATER LTDA",null,"X",null,null,null,null,null,null,null,"X"]
[80,"SMART 200","LABORATÓRIOS","SAO PAULO ABC / DIADEMA","DIADEMA","BIOCENTER DIAGNOSTICOS LABORATORIAIS LTDA",null,"X",null,null,null,null,null,null,null,"X"]
[81,"SMART 200","LABORATÓRIOS","SAO PAULO ABC / DIADEMA","DIADEMA","LAB PADRAO DE ANAL CLINICAS S/C LTDA",null,"X",null,null,null,null,null,null,null,"X"]
[82,"SMART 200","LABORATÓRIOS","BAIXADA SANTISTA","GUARUJA","CLIN RADIOLOGICA DO GUARUJA S/C LTDA",null,"X",null,null,null,null,null,null,null,"X"]
[83,"SMART 200","LABORATÓRIOS","BAIXADA SANTISTA","GUARUJA","LAB DE ANAL CLINICAS GONZAGA S/C LTDA",null,"X",null,null,null,null,null,null,null,"X"]
[84,"SMART 200","LABORATÓRIOS","SAO PAULO ABC / MAUA","MAUA","LAB PADRAO DE ANAL CLINICAS S/C LTDA",null,"X",null,null,null,null,null,null,null,"X"]
[85,"SMART 200","LABORATÓRIOS","SAO PAULO ABC / SANTO ANDRE","SANTO ANDRE","LAB PADRAO DE ANAL CLINICAS S/C LTDA",null,"X",null,null,null,null,null,null,null,"X"]
[86,"SMART 200","LABORATÓRIOS","SAO PAULO ABC / SANTO ANDRE","SANTO ANDRE","ANDREAZZA MEDICINA DIAGNOSTICA LTDA ME",null,"X",null,null,null,null,null,null,null,"X"]
[87,"SMART 200","LABORATÓRIOS","SAO PAULO ABC / SANTO ANDRE","SANTO ANDRE","LAB HORMON - LAB ESP EM DOSAGENS HORMONAIS LTDA",null,"X",null,null,null,null,null,null,null,"X"]
[88,"SMART 200","LABORATÓRIOS","BAIXADA SANTISTA","SANTOS","ANALISES CLINICAS CELLULA MATER LTDA",null,"X",null,null,null,null,null,null,null,"X"]
[89,"SMART 200","LABORATÓRIOS","BAIXADA SANTISTA","SANTOS","EINSTEN IMAGENS MEDICAS LTDA",null,"X",null,null,null,null,null,null,null,"X"]
[90,"SMART 200","LABORATÓRIOS","BAIXADA SANTISTA","SANTOS","LAB DE ANAL CLINICAS GONZAGA S/C LTDA",null,"X",null,null,null,null,null,null,null,"X"]
[91,"SMART 200","LABORATÓRIOS","SAO PAULO ABC / SAO BERNARDO DO CAMPO","SAO BERNARDO DO CAMPO","BIOCENTER LABORATORIO CLINICO LTDA",null,"X",null,null,null,null,null,null,null,"X"]
[92,"SMART 200","LABORATÓRIOS","SAO PAULO ABC / SAO BERNARDO DO CAMPO","SAO BERNARDO DO CAMPO","JMS MEDICINA LTDA - EPP",null,"X",null,null,null,null,null,null,null,"X"]
[93,"SMART 200","LABORATÓRIOS","SAO PAULO ABC / SAO BERNARDO DO CAMPO","SAO BERNARDO DO CAMPO","LAB HORMON - LAB ESP EM DOSAGENS HORMONAIS LTDA",null,"X",null,null,null,null,null,null,null,"X"]
[94,"SMART 200","LABORATÓRIOS","SAO PAULO ABC / SAO CAETANO DO SUL","SAO CAETANO DO SUL","ANDREAZZA MEDICINA DIAGNOSTICA LTDA ME",null,"X",null,null,null,null,null,null,null,"X"]
[95,"SMART 200","LABORATÓRIOS","SAO PAULO ABC / SAO CAETANO DO SUL","SAO CAETANO DO SUL","LAB MODELO DE PAT.CLINICAS S/C LTDA",null,"X",null,null,null,null,null,null,null,"X"]
[96,"SMART 200","LABORATÓRIOS","SAO PAULO ABC / SAO CAETANO DO SUL","SAO CAETANO DO SUL","MEDICAL LABORATORIO DE ANALISES CLINICAS S/S LTDA",null,"X",null,null,null,null,null,null,null,"X"]
[97,"SMART 200","LABORATÓRIOS","BAIXADA SANTISTA","SAO VICENTE","ANALISES CLINICAS CELLULA MATER LTDA",null,"X",null,null,null,null,null,null,null,"X"]
[98,"SMART 200","LABORATÓRIOS","BAIXADA SANTISTA","SAO VICENTE","LAB DE ANAL CLINICAS GONZAGA S/C LTDA",null,"X",null,null,null,null,null,null,null,"X"]
[99,"SMART 200","LABORATÓRIOS","CAMPINAS E REGIAO","CAMPINAS","CENTRO CAMPINENSE DE ECOGRAFIA S/S LTDA",null,null,"X",null,null,null,null,null,null,"X"]
[100,"SMART 200","LABORATÓRIOS","CAMPINAS E REGIAO","CAMPINAS","CETE CENTRO ESP DE TERAPIA E ESTIM LTDA",null,null,"X",null,null,null,null,null,null,"X"]
[101,"SMART 200","LABORATÓRIOS","CAMPINAS E REGIAO","CAMPINAS","CLINICA DE FONOAUDIOLOGIA TEAM AUDIO LTDA",null,null,"X",null,null,null,null,null,null,"X"]
[102,"SMART 200","LABORATÓRIOS","CAMPINAS E REGIAO","CAMPINAS","ECOCENTER SERVICOS HOSPITALARES E DIAGNOSTICOS S/S",null,null,"X",null,null,null,null,null,null,"X"]
[103,"SMART 200","LABORATÓRIOS","CAMPINAS E REGIAO","CAMPINAS","HEMOCLINICA S/C LTDA",null,null,"X",null,null,null,null,null,null,"X"]
[104,"SMART 200","LABORATÓRIOS","CAMPINAS E REGIAO","CAMPINAS","LABORATORIOS FREEMAN DE ANALISES CLINICAS LTDA EPP",null,null,"X",null,null,null,null,null,null,"X"]
[105,"SMART 200","LABORATÓRIOS","SAO PAULO CAPITAL","SAO PAULO","B A - BIOQUIMICOS ASSOCIADOS LTDA",null,null,null,"X",null,null,null,null,null,"X"]
[106,"SMART 200","LABORATÓRIOS","SAO PAULO CAPITAL","SAO PAULO","CC DOM PEDRO",null,null,null,"X",null,null,null,null,null,"X"]
[107,"SMART 200","LABORATÓRIOS","SAO PAULO CAPITAL","SAO PAULO","C&M ASSOCIADOS SERVICOS MEDICOS LTDA",null,null,null,"X",null,null,null,null,null,"X"]
[108,"SMART 200","LABORATÓRIOS","SAO PAULO CAPITAL","SAO PAULO","DR.GHELFOND DIAGNOSTICO MEDICO LTDA",null,null,null,"X",null,null,null,null,null,"X"]
[109,"SMART 200","LABORATÓRIOS","SAO PAULO CAPITAL","SAO PAULO","ED ECOGRAFIA DIAGNOSTICA S/C LTDA",null,null,null,"X",null,null,null,null,null,"X"]
[110,"SMART 200","LABORATÓRIOS","SAO PAULO CAPITAL","SAO PAULO","LABORAMEDI ANALISES CLINICAS LTDA",null,null,null,"X",null,null,null,null,null,"X"]
[111,"SMART 200","LABORATÓRIOS","SAO PAULO CAPITAL","SAO PAULO","LABORATORIO DE ANALISES SAO VICENTE S/C LTDA",null,null,null,"X",null,null,null,null,null,"X"]
[112,"SMART 200","LABORATÓRIOS","SAO PAULO CAPITAL","SAO PAULO","LOCUS ANATOMIA PATOLOGIA E CITOLOGIA LTDA",null,null,null,"X",null,null,null,null,null,"X"]
[113,"SMART 200","LABORATÓRIOS","SAO PAULO CAPITAL","SAO PAULO","NASA LAB BIO CLINICO S/C LTDA",null,null,null,"X",null,null,null,null,null,"X"]
[114,"SMART 200","LABORATÓRIOS","SAO PAULO CAPITAL","SAO PAULO","PATHOS ANATOMOPATOLOGIA LTDA",null,null,null,"X",null,null,null,null,null,"X"]
[115,"SMART 200","LABORATÓRIOS","SAO PAULO CAPITAL","SAO PAULO","CRYA MEDICINA DIAGNOSTICA",null,null,null,"X",null,null,null,null,null,"X"]
[116,"SMART 200","LABORATÓRIOS","SAO PAULO CAPITAL","SAO PAULO","CENTRO MEDICO DE DIAGNOSTICOS ENDOMAX LTDA",null,null,null,"X",null,null,null,null,null,"X"]
[117,"SMART 200","LABORATÓRIOS","SAO PAULO CAPITAL","SAO PAULO","CADI CTO DE ANAL DIAGNOSTICOS POR IMAGEM S/C LTDA",null,null,null,"X",null,null,null,null,null,"X"]
[118,"SMART 200","LABORATÓRIOS","SAO PAULO CAPITAL","SAO PAULO","CEDIG-CT DIAGNOST TRAT GASTROENTEROLOGIA SC LTDA",null,null,null,"X",null,null,null,null,null,"X"]
[119,"SMART 200","LABORATÓRIOS","GRANDE SAO PAULO","GUARULHOS","E J IMAGEM SERVICOS DE RADIOLOGIA LTDA - ME",null,null,null,null,"X",null,null,null,null,"X"]
[120,"SMART 200","LABORATÓRIOS","GRANDE SAO PAULO","GUARULHOS","ECOGENESIS SERVICOS MEDICOS E DIAGNOSTICOS LTDA",null,null,null,null,"X",null,null,null,null,"X"]
[121,"SMART 200","LABORATÓRIOS","GRANDE SAO PAULO","GUARULHOS","NASA LAB BIO CLINICO S/C LTDA",null,null,null,null,"X",null,null,null,null,"X"]
[122,"SMART 200","LABORATÓRIOS","GRANDE SAO PAULO","GUARULHOS","LAB DE ANAL CLINICAS SANITAS S/C LTDA",null,null,null,null,"X",null,null,null,null,"X"]
[123,"SMART 200","LABORATÓRIOS","GRANDE SAO PAULO","GUARULHOS","S M DIAGNOSTICOS ESPECIALIZADOS  LTDA",null,null,null,null,"X",null,null,null,null,"X"]
[124,"SMART 200","LABORATÓRIOS","GRANDE SAO PAULO","GUARULHOS","VANESSA VIVIAN SILVA GONCALVES",null,null,null,null,"X",null,null,null,null,"X"]
[125,"SMART 200","LABORATÓRIOS","JUNDIAI E REGIAO","CAJAMAR","FISIOSTAR UNIDADE DE FISIOTERAPIA LTDA",null,null,null,null,null,"X",null,null,null,"X"]
[126,"SMART 200","LABORATÓRIOS","JUNDIAI E REGIAO","CAJAMAR","VITA DIAGNOSTICOS MEDICOS S/S LTDA",null,null,null,null,null,"X",null,null,null,"X"]
[127,"SMART 200","LABORATÓRIOS","JUNDIAI E REGIAO","ITUPEVA","INSIGHT CLINICA DE IMAGENS MEDICAS S/C LTDA",null,null,null,null,null,"X",null,null,null,"X"]
[128,"SMART 200","LABORATÓRIOS","JUNDIAI E REGIAO","ITUPEVA","LABORATORIO DE ANALISES CLINICAS ANCHIETA S/C LTDA",null,null,null,null,null,"X",null,null,null,"X"]
[{"$f":"ROW()-1","v":129},"SMART 200","LABORATÓRIOS","JUNDIAI E REGIAO","JUNDIAI","CLINICA DIAGNOSTICA DRA VALDEREZ LTDA",null,null,null,null,null,"X",null,null,null,"X"]
[130,"SMART 200","LABORATÓRIOS","JUNDIAI E REGIAO","JUNDIAI","GABRIELE L HERNANDEZ - ASSES E CONS EM SAUDE - ME.",null,null,null,null,null,"X",null,null,null,"X"]
[131,"SMART 200","LABORATÓRIOS","JUNDIAI E REGIAO","JUNDIAI","INSTITUTO DE PATOLOGIA CARDOSO DE ALMEIDA LTDA",null,null,null,null,null,"X",null,null,null,"X"]
[132,"SMART 200","LABORATÓRIOS","JUNDIAI E REGIAO","JUNDIAI","INTERCLIN CLINICA INTER EM TERAPIA E DIAG LTDA ME",null,null,null,null,null,"X",null,null,null,"X"]
[133,"SMART 200","LABORATÓRIOS","JUNDIAI E REGIAO","JUNDIAI","LAB DE PATOLOGIA CLIN BIOLOGICO S/S LTDA",null,null,null,null,null,"X",null,null,null,"X"]
[134,"SMART 200","LABORATÓRIOS","JUNDIAI E REGIAO","JUNDIAI","UNICA - CLINICA MEDICA DE DIAGNOSTICO POR IMAGEM L",null,null,null,null,null,"X",null,null,null,"X"]
[135,"SMART 200","LABORATÓRIOS","JUNDIAI E REGIAO","JUNDIAI","UNIDADE DE ECOGRAFIA E RADIOLOGIA PINHEIROS LTDA",null,null,null,null,null,"X",null,null,null,"X"]
[136,"SMART 200","LABORATÓRIOS","CAMPINAS E REGIAO","LOUVEIRA","DONNUS LABORATORIO MEDICO S/C LTDA",null,null,null,null,null,"X",null,null,null,"X"]
[137,"SMART 200","LABORATÓRIOS","JUNDIAI E REGIAO","VARZEA PAULISTA","LAB DE PATOLOGIA CLIN BIOLOGICO S/S LTDA",null,null,null,null,null,"X",null,null,null,"X"]
[138,"SMART 200","LABORATÓRIOS","JUNDIAI E REGIAO","VINHEDO","DONNUS LABORATORIO MEDICO S/C LTDA",null,null,null,null,null,"X",null,null,null,"X"]
[139,"SMART 200","LABORATÓRIOS","GRANDE SAO PAULO","BARUERI","ULTRACRON CENTRO DE DIAGNOSTICOS LTDA",null,null,null,null,null,null,"X",null,null,"X"]
[140,"SMART 200","LABORATÓRIOS","GRANDE SAO PAULO","CARAPICUIBA","BIOCLINIC-LAB DE ANALISES CLINICAS S/ C LTDA",null,null,null,null,null,null,"X",null,null,"X"]
[141,"SMART 200","LABORATÓRIOS","GRANDE SAO PAULO","CARAPICUIBA","FEELING DIAGNOSTICOS MEDICOS S/S LTDA",null,null,null,null,null,null,"X",null,null,"X"]
[142,"SMART 200","LABORATÓRIOS","GRANDE SAO PAULO","CARAPICUIBA","GOMES & BENHOSSI FISIOTERAPIA E ESTETICA LTDA",null,null,null,null,null,null,"X",null,null,"X"]
[143,"SMART 200","LABORATÓRIOS","GRANDE SAO PAULO","CARAPICUIBA","TRANSDUSON MEDICOS ASSOCIADOS LTDA",null,null,null,null,null,null,"X",null,null,"X"]
[144,"SMART 200","LABORATÓRIOS","GRANDE SAO PAULO","COTIA","NOTRELABS",null,null,null,null,null,null,"X",null,null,"X"]
[145,"SMART 200","LABORATÓRIOS","GRANDE SAO PAULO","ITAPEVI","NOVA IMAGEM CTO AVANCADO DE DIAG S/S LTDA",null,null,null,null,null,null,"X",null,null,"X"]
[146,"SMART 200","LABORATÓRIOS","GRANDE SAO PAULO","OSASCO","ALPHA IMAGEM DIAG SERV E RADIOLOGIA LTDA",null,null,null,null,null,null,"X",null,null,"X"]
[147,"SMART 200","LABORATÓRIOS","GRANDE SAO PAULO","OSASCO","ANDREAZZA MEDICINA DIAGNOSTICA LTDA ME",null,null,null,null,null,null,"X",null,null,"X"]
[148,"SMART 200","LABORATÓRIOS","GRANDE SAO PAULO","OSASCO","CENTER BIOMEDICO DE ANAL CLIN OSASCO LTDA",null,null,null,null,null,null,"X",null,null,"X"]
[149,"SMART 200","LABORATÓRIOS","GRANDE SAO PAULO","OSASCO","CENTRO PAULISTA DE NEUROLOGIA CEPAN SC LTDA",null,null,null,null,null,null,"X",null,null,"X"]
[150,"SMART 200","LABORATÓRIOS","GRANDE SAO PAULO","OSASCO","ULTRACRON CENTRO DE DIAGNOSTICOS LTDA",null,null,null,null,null,null,"X",null,null,"X"]
[151,"SMART 200","LABORATÓRIOS","GRANDE SAO PAULO","TABOAO DA SERRA","BIOCLINIC-LAB DE ANALISES CLINICAS S/ C LTDA",null,null,null,null,null,null,"X",null,null,"X"]
[152,"SMART 200","LABORATÓRIOS","GRANDE SAO PAULO","TABOAO DA SERRA","SCAN DIAGNOSTICOS POR IMAGEM  LTDA",null,null,null,null,null,null,"X",null,null,"X"]
[153,"SMART 200","LABORATÓRIOS","SOROCABA E REGIAO","ITU","DIACOR DIAGNOSTICO CARDIOLOGICO LTDA",null,null,null,null,null,null,null,"X",null,"X"]
[154,"SMART 200","LABORATÓRIOS","SOROCABA E REGIAO","ITU","EXACTALAB LABORATORIO CLINICO & IMAGEM LTDA",null,null,null,null,null,null,null,"X",null,"X"]
[155,"SMART 200","LABORATÓRIOS","SOROCABA E REGIAO","ITU","ITULAB LABORATORIO DE ANALISES CLINICAS DE ITU S/C",null,null,null,null,null,null,null,"X",null,"X"]
[156,"SMART 200","LABORATÓRIOS","SOROCABA E REGIAO","ITU","UNIDADE DE ECOGRAFIA E RADIOLOGIA PINHEIROS LTDA",null,null,null,null,null,null,null,"X",null,"X"]
[157,"SMART 200","LABORATÓRIOS","SOROCABA E REGIAO","SOROCABA","BIOLABOR LAB DE ANALISES",null,null,null,null,null,null,null,"X",null,"X"]
[158,"SMART 200","LABORATÓRIOS","SOROCABA E REGIAO","SOROCABA","IDS INSTITUTO DE DIAGNOSTICO DE SOROCABA SC LTDA",null,null,null,null,null,null,null,"X",null,"X"]
[159,"SMART 200","LABORATÓRIOS","SOROCABA E REGIAO","SOROCABA","LABORATORIO CLINICO TRIANALISES S/C LTDA",null,null,null,null,null,null,null,"X",null,"X"]
[160,"SMART 200","LABORATÓRIOS","SOROCABA E REGIAO","SOROCABA","LABORATORIO COLPAT SC LTDA",null,null,null,null,null,null,null,"X",null,"X"]
[161,"SMART 200","LABORATÓRIOS","SOROCABA E REGIAO","SOROCABA","CARDIO VIDA",null,null,null,null,null,null,null,"X",null,"X"]
[162,"SMART 200","LABORATÓRIOS","SOROCABA E REGIAO","SOROCABA","TOP IMAGEM MEDICINA DIAGNOSTICA SS LTDA",null,null,null,null,null,null,null,"X",null,"X"]
[163,"SMART 200","LABORATÓRIOS","SOROCABA E REGIAO","SOROCABA","VIDA DIAGNOSTICO LABORATORIO CLINICO",null,null,null,null,null,null,null,"X",null,"X"]
[164,"SMART 200","LABORATÓRIOS","SOROCABA E REGIAO","VOTORANTIM","VIDA INSTITUTO DIAGNOSTICO",null,null,null,null,null,null,null,"X",null,"X"]
[165,"SMART 200","LABORATÓRIOS","GRANDE SAO PAULO","ARUJA","LAB DELIBERATO DE ANAL CLIN S/C LTDA",null,null,null,null,null,null,null,null,"X","X"]
[166,"SMART 200","LABORATÓRIOS","GRANDE SAO PAULO","ARUJA","HM DIAG POR IMAGEM",null,null,null,null,null,null,null,null,"X","X"]
[167,"SMART 200","LABORATÓRIOS","GRANDE SAO PAULO","ARUJA","CLINICA DE ESPECIALIDADES SALZGEBER & SANTOS LTDA",null,null,null,null,null,null,null,null,"X","X"]
[168,"SMART 200","LABORATÓRIOS","GRANDE SAO PAULO","ARUJA","CC ARUJA",null,null,null,null,null,null,null,null,"X","X"]
[169,"SMART 200","LABORATÓRIOS","GRANDE SAO PAULO","ITAQUAQUECETUBA","LAB DELIBERATO DE ANAL CLIN S/C LTDA",null,null,null,null,null,null,null,null,"X","X"]
[170,"SMART 200","LABORATÓRIOS","GRANDE SAO PAULO","ITAQUAQUECETUBA","LAB DR PEDRO BONELLI",null,null,null,null,null,null,null,null,"X","X"]
[171,"SMART 200","LABORATÓRIOS","GRANDE SAO PAULO","MOGI DAS CRUZES","UNIDADE MOGIANA DE DIAGNOSTICO POR IMAGEM S/S LTDA",null,null,null,null,null,null,null,null,"X","X"]
[172,"SMART 200","LABORATÓRIOS","GRANDE SAO PAULO","MOGI DAS CRUZES","CLINICA DE ESPECIALIDADES SALZGEBER & SANTOS LTDA",null,null,null,null,null,null,null,null,"X","X"]
[173,"SMART 200","LABORATÓRIOS","GRANDE SAO PAULO","MOGI DAS CRUZES","INSTITUTO DE NEFROLOGIA DE MOGI DAS CRUZES LTDA",null,null,null,null,null,null,null,null,"X","X"]
[174,"SMART 200","LABORATÓRIOS","GRANDE SAO PAULO","MOGI DAS CRUZES","SALUTE CARE CLIN DE PSICOLOGIA FONAL E FISIOT LTDA",null,null,null,null,null,null,null,null,"X","X"]
[175,"SMART 200","LABORATÓRIOS","GRANDE SAO PAULO","MOGI DAS CRUZES","LAB DR PEDRO BONELLI",null,null,null,null,null,null,null,null,"X","X"]
[176,"SMART 200","LABORATÓRIOS","GRANDE SAO PAULO","MOGI DAS CRUZES","CC SAMED",null,null,null,null,null,null,null,null,"X","X"]
[177,"SMART 200","LABORATÓRIOS","GRANDE SAO PAULO","POA","LAB DELIBERATO DE ANAL CLIN S/C LTDA",null,null,null,null,null,null,null,null,"X","X"]
[178,"SMART 200","LABORATÓRIOS","GRANDE SAO PAULO","SANTA ISABEL","LAB DELIBERATO DE ANAL CLIN S/C LTDA",null,null,null,null,null,null,null,null,"X","X"]
[179,"SMART 200","LABORATÓRIOS","GRANDE SAO PAULO","SUZANO","LAB DR PEDRO BONELLI",null,null,null,null,null,null,null,null,"X","X"]
[180,"SMART 200","LABORATÓRIOS","GRANDE SAO PAULO","SUZANO","CLINICA DE ESPECIALIDADES SALZGEBER & SANTOS LTDA",null,null,null,null,null,null,null,null,"X","X"]
[181,"SMART 200","LABORATÓRIOS","GRANDE SAO PAULO","SUZANO","CC SAMED",null,null,null,null,null,null,null,null,"X","X"]

{"sheet":"Rel_02","index":6,"n_rows":768,"n_cols":14,"rows_kept":768,"cut":false,"hidden":false,"merged":[]}
[]
[]
[]
[]
[]
[]
[null,"ID","REDE","REGIÃO","CIDADE","PRESTADOR",{"$f":"Base_SP!G1","v":"SMART 300"},{"$f":"Base_SP!H1","v":"SMART 400"},{"$f":"Base_SP!I1","v":"SMART 500"},{"$f":"Base_SP!J1","v":"ADVANCE 600"},{"$f":"Base_SP!K1","v":"ADVANCE 700"},{"$f":"Base_SP!L1","v":"PREMIUM 900"},{"$f":"Base_SP!M1","v":"PREMIUM 900 CARE"},{"$f":"Base_SP!N1","v":"INFINITY"}]
[null,1,"HOSPITAIS","SAO PAULO - CAPITAL","SAO PAULO / CENTRO","CRUZ AZUL DE SAO PAULO","H/M","H/M","H/M","H/M","H/M/PS","H/M/PS","H/M/PS","H/M/PS"]
[null,2,"HOSPITAIS","SAO PAULO - CAPITAL","SAO PAULO / CENTRO","HOSPITAL INGLES","H","H","H","H","H","H","H","H"]
[null,3,"HOSPITAIS","SAO PAULO - CAPITAL","SAO PAULO / CENTRO","CC ANGELICA","PA*","PA*","PA*","PA*","PA*","PA*","PA*","PA*"]
[null,4,"HOSPITAIS","SAO PAULO - CAPITAL","SAO PAULO / CENTRO","HOSP E MAT SACRECOEUR","H/M","H/M","H/M","H/M","H/M","H/M","H/M","H/M"]
[null,5,"HOSPITAIS","SAO PAULO - CAPITAL","SAO PAULO / CENTRO","HOSP SANTA CECILIA","H/PS","H/PS","H/PS","H/PS","H/PS","H/PS","H/PS","H/PS"]
[null,6,"HOSPITAIS","SAO PAULO - CAPITAL","SAO PAULO / CENTRO","IGESP CT/MED CIR INST GASTRO DE SAO PAULO","-","H/PS","H/PS","H/PS","H/PS","H/PS","H/PS","H/PS"]
[null,7,"HOSPITAIS","SAO PAULO - CAPITAL","SAO PAULO / CENTRO","CERTA CENTRO DE REF EM TRAT AVANCADOS-HOSP DIA","-","-","-","H","H","H","H","H"]
[null,8,"HOSPITAIS","SAO PAULO - CAPITAL","SAO PAULO / CENTRO","HOSPITAL BANDEIRANTES S.A","-","-","-","H/PS","H/PS","H/PS","H/PS","H/PS"]
[null,9,"HOSPITAIS","SAO PAULO - CAPITAL","SAO PAULO / CENTRO","REAL E BEN SOC PORT BENF-HOSP SAO JOAQUIM","-","-","-","-","H/PS","H/PS","H/PS","H/PS"]
[null,10,"HOSPITAIS","SAO PAULO - CAPITAL","SAO PAULO / CENTRO","CENTRAL TOWERS HOSPITAL","-","-","-","-","H","H","H","H"]
[null,11,"HOSPITAIS","SAO PAULO - CAPITAL","SAO PAULO / CENTRO","HOSP SANTA CATARINA","-","-","-","-","-","H/PS","H/PS","H/PS"]
[null,12,"HOSPITAIS","SAO PAULO - CAPITAL","SAO PAULO / CENTRO","FUND ANTONIO PRUDENTE -HOSP A C CAMARGO","-","-","-","-","-","H/PS","H/PS","H/PS"]
[null,13,"HOSPITAIS","SAO PAULO - CAPITAL","SAO PAULO / CENTRO","HOSP INFANTIL SABARA S A","-","-","-","-","-","H/PS","H/PS","H/PS"]
[null,14,"HOSPITAIS","SAO PAULO - CAPITAL","SAO PAULO / CENTRO","HOSPITAL SAMARITANO DE SAO PAULO","-","-","-","-","-","H/M/PS","H/M/PS","H/M/PS"]
[null,15,"HOSPITAIS","SAO PAULO - CAPITAL","SAO PAULO / CENTRO","HOSP NOVE DE JULHO","-","-","-","-","-","H/PS","H/PS","H/PS"]
[null,16,"HOSPITAIS","SAO PAULO - CAPITAL","SAO PAULO / CENTRO","IRM STA CASA DE MISER DE S PAULO- HOSP STA ISABEL","-","-","-","-","-","H/PS","H/PS","H/PS"]
[null,17,"HOSPITAIS","SAO PAULO - CAPITAL","SAO PAULO / CENTRO","HOSP ALEMAO OSWALDO CRUZ","-","-","-","-","-","H/PS","H/PS","H/PS"]
[null,18,"HOSPITAIS","SAO PAULO - CAPITAL","SAO PAULO / CENTRO","PRO MATRE PAULISTA","-","-","-","-","-","M/PS (OBST)","M/PS (OBST)","M/PS (OBST)"]
[null,19,"HOSPITAIS","SAO PAULO - CAPITAL","SAO PAULO / CENTRO","HOSPITAL SAO JOSE","-","-","-","-","-","H/PS","H/PS","H/PS"]
[null,20,"HOSPITAIS","SAO PAULO - CAPITAL","SAO PAULO / CENTRO","SOC BENF SRAS-HOSP SIRIO LIBANES","-","-","-","-","-","-","-","H/PS"]
[null,21,"HOSPITAIS","SAO PAULO - CAPITAL","SAO PAULO / LESTE","HOSP SANTA VIRGINIA","H","H/PS","H/PS","H/PS","H/PS","H/PS","H/PS","H/PS"]
[null,22,"HOSPITAIS","SAO PAULO - CAPITAL","SAO PAULO / LESTE","CASA DE SAUDE SANTA MARCELINA","H","H","H","H/PS","H/PS","H/PS","H/PS","H/PS"]
[null,23,"HOSPITAIS","SAO PAULO - CAPITAL","SAO PAULO / LESTE","DAY HOSP ERMELINO MATARAZZO","H","H","H","H/PS","H/PS","H/PS","H/PS","H/PS"]
[null,24,"HOSPITAIS","SAO PAULO - CAPITAL","SAO PAULO / LESTE","HOSPITAL SANTA CLARA","H","H/PS","H/PS","H/M/PS","H/M/PS","H/M/PS","H/M/PS","H/M/PS"]
[null,25,"HOSPITAIS","SAO PAULO - CAPITAL","SAO PAULO / LESTE","HOSP E MAT 8 DE MAIO","H/M/PS*","H/M/PS","H/M/PS","H/M/PS","H/M/PS","H/M/PS","H/M/PS","H/M/PS"]
[null,26,"HOSPITAIS","SAO PAULO - CAPITAL","SAO PAULO / LESTE","HOSP E MAT SAO MIGUEL","H/PS*","H/PS","H/PS","H/PS","H/PS","H/PS","H/PS","H/PS"]
[null,27,"HOSPITAIS","SAO PAULO - CAPITAL","SAO PAULO / LESTE","HOSP CENTRAL DE GUAIANAZES","H","H","H","H/M/PS","H/M/PS","H/M/PS","H/M/PS","H/M/PS"]
[null,28,"HOSPITAIS","SAO PAULO - CAPITAL","SAO PAULO / LESTE","HOSP E MAT MASTER CLIN","H/M/PS*","H/M/PS","H/M/PS","H/M/PS","H/M/PS","H/M/PS","H/M/PS","H/M/PS"]
[null,29,"HOSPITAIS","SAO PAULO - CAPITAL","SAO PAULO / LESTE","IBCC- INST BRASILEIRO DE CONTROLE DO CANCER - (MEDULA OSSEA ADULTO)","H","H/PS","H/PS","H/PS","H/PS","H/PS","H/PS","H/PS"]
[null,30,"HOSPITAIS","SAO PAULO - CAPITAL","SAO PAULO / LESTE","MATERNIDADE DO BRAZ","H/M/PS*","H/M/PS","H/M/PS","H/M/PS","H/M/PS","H/M/PS","H/M/PS","H/M/PS"]
[null,31,"HOSPITAIS","SAO PAULO - CAPITAL","SAO PAULO / LESTE","CC ITAQUERA","PA","PA","PA","PA","PA","PA","PA","PA"]
[null,32,"HOSPITAIS","SAO PAULO - CAPITAL","SAO PAULO / LESTE","CC SAO MIGUEL","PA*","PA*","PA*","PA*","PA*","PA*","PA*","PA*"]
[null,33,"HOSPITAIS","SAO PAULO - CAPITAL","SAO PAULO / LESTE","CC TATUAPE I","PA*","PA*","PA*","PA*","PA*","PA*","PA*","PA*"]
[null,34,"HOSPITAIS","SAO PAULO - CAPITAL","SAO PAULO / LESTE","HOSP MONTEMAGNO","PS","PS","PS","PS","PS","PS","PS","PS"]
[null,35,"HOSPITAIS","SAO PAULO - CAPITAL","SAO PAULO / LESTE","CEMA HOSP ESPEC EM OFTALMO E OTORRINO","-","H/PS","H/PS","H/PS","H/PS","H/PS","H/PS","H/PS"]
[null,36,"HOSPITAIS","SAO PAULO - CAPITAL","SAO PAULO / LESTE","NOVO SANTO EXPEDITO SERVICOS MEDICOS","-","H/M/PS","H/M/PS","H/M/PS","H/M/PS","H/M/PS","H/M/PS","H/M/PS"]
[null,37,"HOSPITAIS","SAO PAULO - CAPITAL","SAO PAULO / LESTE","HOSP E MAT PARANAGUA","-","-","H/PS","H/PS","H/PS","H/PS","H/PS","H/PS"]
[null,38,"HOSPITAIS","SAO PAULO - CAPITAL","SAO PAULO / LESTE","HOSPITAL DE CLINICAS JARDIM HELENA","-","-","-","PS","PS","PS","PS","PS"]
[null,39,"HOSPITAIS","SAO PAULO - CAPITAL","SAO PAULO / LESTE","HOSPITAL E MATERNIDADE VITORIA","-","-","-","H/M/PS","H/M/PS","H/M/PS","H/M/PS","H/M/PS"]
[null,40,"HOSPITAIS","SAO PAULO - CAPITAL","SAO PAULO / LESTE","HOSP E MAT SAO LUIZ UNID ANALIA FRANCO","-","-","-","-","-","H/M/PS","-","H/M/PS"]
[null,41,"HOSPITAIS","SAO PAULO - CAPITAL","SAO PAULO / NORTE","IPASS - HOSP PRESIDENTE","H/PS*","H/PS","H/PS","H/PS","H/PS","H/PS","H/PS","H/PS"]
[null,42,"HOSPITAIS","SAO PAULO - CAPITAL","SAO PAULO / NORTE","CC ZONA NORTE","PA*","PA*","PA*","PA*","PA*","PA*","PA*","PA*"]
[null,43,"HOSPITAIS","SAO PAULO - CAPITAL","SAO PAULO / NORTE","HOSP E MAT N S ROSARIO","H/M/PS","H/M/PS","H/M/PS","H/M/PS","H/M/PS","H/M/PS","H/M/PS","H/M/PS"]
[null,44,"HOSPITAIS","SAO PAULO - CAPITAL","SAO PAULO / NORTE","HOSPITAL CANTAREIRA","H","H","H","H","H","H","H","H"]
[null,45,"HOSPITAIS","SAO PAULO - CAPITAL","SAO PAULO / NORTE","HOSP SAN PAOLO","-","-","H/M/PS","H/M/PS","H/M/PS","H/M/PS","H/M/PS","H/M/PS"]
[null,46,"HOSPITAIS","SAO PAULO - CAPITAL","SAO PAULO / NORTE","BENF NIPO BRASIL SAO PAULO-HOSP NIPO BRASILEIRO","-","-","H","H/M/PS","H/M/PS","H/M/PS","H/M/PS","H/M/PS"]
[null,47,"HOSPITAIS","SAO PAULO - CAPITAL","SAO PAULO / NORTE","HOSP SAO CAMILO - SANTANA","-","-","-","-","H/PS","H/PS","H/PS","H/PS"]
[null,48,"HOSPITAIS","SAO PAULO - CAPITAL","SAO PAULO / OESTE","FUNDACAO FACULDADE DE MEDICINA - INST DE PSIQUIATR","H","H","H","H","H","H","H","H"]
[null,49,"HOSPITAIS","SAO PAULO - CAPITAL","SAO PAULO / OESTE","HOSPITAL E PRONTO SOCORRO PORTINARI","H/M/PS*","H/M/PS","H/M/PS","H/M/PS","H/M/PS","H/M/PS","H/M/PS","H/M/PS"]
[null,50,"HOSPITAIS","SAO PAULO - CAPITAL","SAO PAULO / OESTE","CENTRO MEDICO ADVENTISTA - UNIDADE SUL","PA*","PA","PA","PA","PA","PA","PA","PA"]
[null,51,"HOSPITAIS","SAO PAULO - CAPITAL","SAO PAULO / OESTE","HOSP ALBERT SABIN","H/PS*","H/PS","H/PS","H/PS","H/PS","H/PS","H/PS","H/PS"]
[null,52,"HOSPITAIS","SAO PAULO - CAPITAL","SAO PAULO / OESTE","CC LAPA","PA*","PA*","PA*","PA*","PA*","PA*","PA*","PA*"]
[null,53,"HOSPITAIS","SAO PAULO - CAPITAL","SAO PAULO / OESTE","PREVINA DIAG MEDICOS S/S","PS","PS","PS","PS","PS","PS","PS","PS"]
[null,54,"HOSPITAIS","SAO PAULO - CAPITAL","SAO PAULO / OESTE","FUNDACAO FACULDADE DE MEDICINA - INST DA CRIANCA","-","-","H","H/PS","H/PS","H/PS","H/PS","H/PS"]
[null,55,"HOSPITAIS","SAO PAULO - CAPITAL","SAO PAULO / OESTE","HOSPITAL METROPOLITANO - BUTANTA","-","-","H/PS","H/PS","H/PS","H/PS","H/PS","H/PS"]
[null,56,"HOSPITAIS","SAO PAULO - CAPITAL","SAO PAULO / OESTE","PRONTO SOCORRO ITAMARATY","-","-","H/PS","H/PS","H/PS","H/PS","H/PS","H/PS"]
[null,57,"HOSPITAIS","SAO PAULO - CAPITAL","SAO PAULO / OESTE","SERRA MAYOR","-","-","H/PS","H/PS","H/PS","H/PS","H/PS","H/PS"]
[null,58,"HOSPITAIS","SAO PAULO - CAPITAL","SAO PAULO / OESTE","FUNDACAO FACULDADE DE MEDICINA (IOT)","-","-","-","H/PS","H/PS","H/PS","H/PS","H/PS"]
[null,59,"HOSPITAIS","SAO PAULO - CAPITAL","SAO PAULO / OESTE","HOSPITAL METROPOLITANO","-","-","-","H/M/PS","H/M/PS","H/M/PS","H/M/PS","H/M/PS"]
[null,60,"HOSPITAIS","SAO PAULO - CAPITAL","SAO PAULO / OESTE","HOSPITAL DAS CLINICAS","-","-","-","H/PS","H/PS","H/PS","H/PS","H/PS"]
[null,61,"HOSPITAIS","SAO PAULO - CAPITAL","SAO PAULO / OESTE","HOSPITAL LEFORTE S.A","-","-","-","-","H/PS","H/PS","H/PS","H/PS"]
[null,62,"HOSPITAIS","SAO PAULO - CAPITAL","SAO PAULO / OESTE","FUNDACAO ZERBINI - INCOR","-","-","-","-","-","H/PS","H/PS","H/PS"]
[null,63,"HOSPITAIS","SAO PAULO - CAPITAL","SAO PAULO / OESTE","HOSP SAO CAMILO - POMPEIA","-","-","-","-","H/PS","H/PS","H/PS","H/PS"]
[null,64,"HOSPITAIS","SAO PAULO - CAPITAL","SAO PAULO / OESTE","SAO LUIZ - UNIDADE MORUMBI","-","-","-","-","-","H/PS","-","H/PS"]
[null,65,"HOSPITAIS","SAO PAULO - CAPITAL","SAO PAULO / OESTE","HOSPITAL ISRAELITA ALBERT EINSTEIN (PERDIZES)","-","-","-","-","-","-","-","H/PS"]
[null,66,"HOSPITAIS","SAO PAULO - CAPITAL","SAO PAULO / OESTE","SOC BENF ISRAELITA BRASILEIRA-HOSP ALBERT EINSTEIN (ALTO DE PINHEIROS)","-","-","-","-","-","-","-","PA*"]
[null,67,"HOSPITAIS","SAO PAULO - CAPITAL","SAO PAULO / SUL","HOSPITAL ISRAELITA ALBERT EINSTEIN (MORUMBI)","-","-","-","-","-","-","-","H/M/PS"]
[null,68,"HOSPITAIS","SAO PAULO - CAPITAL","SAO PAULO / SUL","ALBERT EINSTEIN UNIDADE CHACARA KLABIN (IPIRANGA)","-","-","-","-","-","-","-","PS"]
[null,69,"HOSPITAIS","SAO PAULO - CAPITAL","SAO PAULO / SUL","API-ASSIST.PSIQUIAT.INTEGRADA","H","H","H","H","H","H","H","H"]
[null,70,"HOSPITAIS","SAO PAULO - CAPITAL","SAO PAULO / SUL","HOSPITAL DOM ANTONIO DE ALVARENGA","H/PS*","H/PS","H/PS","H/PS","H/PS","H/PS","H/PS","H/PS"]
[null,71,"HOSPITAIS","SAO PAULO - CAPITAL","SAO PAULO / SUL","HOSPITAL DE OLHOS PAULISTA","H","H","H/PS","H/PS","H/PS","H/PS","H/PS","H/PS"]
[null,72,"HOSPITAIS","SAO PAULO - CAPITAL","SAO PAULO / SUL","HOSP DEFEITOS DA FACE","H","H/PS","H/PS","H/PS","H/PS","H/PS","H/PS","H/PS"]
[null,73,"HOSPITAIS","SAO PAULO - CAPITAL","SAO PAULO / SUL","HOSPITAL DO RIM E HIPERTENSAO (TRANSPLANTE RENAL)","H/PS","H/PS","H/PS","H/PS","H/PS","H/PS","H/PS","H/PS"]
[null,74,"HOSPITAIS","SAO PAULO - CAPITAL","SAO PAULO / SUL","GRAACC","H","H/PS","H/PS","H/PS","H/PS","H/PS","H/PS","H/PS"]
[null,75,"HOSPITAIS","SAO PAULO - CAPITAL","SAO PAULO / SUL","HOSP E MATERNIDADE VIDAS","H/M/PS*","H/M/PS","H/M/PS","H/M/PS","H/M/PS","H/M/PS","H/M/PS","H/M/PS"]
[null,76,"HOSPITAIS","SAO PAULO - CAPITAL","SAO PAULO / SUL","CC ZONA SUL","PA","PA","PA","PA","PA","PA","PA","PA"]
[null,77,"HOSPITAIS","SAO PAULO - CAPITAL","SAO PAULO / SUL","HOSP BOSQUE DA SAUDE","H/M/PS","H/M/PS","H/M/PS","H/M/PS","H/M/PS","H/M/PS","H/M/PS","H/M/PS"]
[null,78,"HOSPITAIS","SAO PAULO - CAPITAL","SAO PAULO / SUL","OPHTHAL HOSPITAL ESPECIALIZADO","PS","PS","PS","PS","PS","PS","PS","PS"]
[null,79,"HOSPITAIS","SAO PAULO - CAPITAL","SAO PAULO / SUL","HOSPITAL SEPACO","H/M/PS*","H/M/PS","H/M/PS","H/M/PS","H/M/PS","H/M/PS","H/M/PS","H/M/PS"]
[null,80,"HOSPITAIS","SAO PAULO - CAPITAL","SAO PAULO / SUL","CASA DE SAUDE SANTA RITA","-","H/PS","H/PS","H/PS","H/PS","H/PS","H/PS","H/PS"]
[null,81,"HOSPITAIS","SAO PAULO - CAPITAL","SAO PAULO / SUL","HOSP SANTA PAULA","-","H/PS","H/PS","H/PS","H/PS","H/PS","H/PS","H/PS"]
[null,82,"HOSPITAIS","SAO PAULO - CAPITAL","SAO PAULO / SUL","HOSP SANTA CRUZ","-","H/PS","H/PS","H/PS","H/PS","H/PS","H/PS","H/PS"]
[null,83,"HOSPITAIS","SAO PAULO - CAPITAL","SAO PAULO / SUL","HOSPITAL RUBEM BERTA","-","-","H/PS","H/PS","H/PS","H/PS","H/PS","H/PS"]
[null,84,"HOSPITAIS","SAO PAULO - CAPITAL","SAO PAULO / SUL","CLINICA NUCLEO","-","-","H","H","H","H","H","H"]
[null,85,"HOSPITAIS","SAO PAULO - CAPITAL","SAO PAULO / SUL","HOSP SAO PAULO","-","-","-","H/PS","H/PS","H/PS","H/PS","H/PS"]
[null,86,"HOSPITAIS","SAO PAULO - CAPITAL","SAO PAULO / SUL","CENTRO MED ESP / HOSPITAL E MATERNIDADE SAO RAFAEL","-","-","-","H","H","H","H","H"]
[null,87,"HOSPITAIS","SAO PAULO - CAPITAL","SAO PAULO / SUL","HOSP PAULISTA","-","-","-","H/PS","H/PS","H/PS","H/PS","H/PS"]
[null,88,"HOSPITAIS","SAO PAULO - CAPITAL","SAO PAULO / SUL","HOSPITAL ALVORADA MOEMA","-","-","-","H/PS","H/PS","H/PS","H/PS","H/PS"]
[null,89,"HOSPITAIS","SAO PAULO - CAPITAL","SAO PAULO / SUL","AACD IBIRAPUERA","-","-","-","-","H","H","H","H"]
[null,90,"HOSPITAIS","SAO PAULO - CAPITAL","SAO PAULO / SUL","CLINICA INFANTIL SANTA ISABELLA","-","-","-","-","PS","PS","PS","PS"]
[null,91,"HOSPITAIS","SAO PAULO - CAPITAL","SAO PAULO / SUL","INST DANTE PAZZANESE DE CARDIOLOGIA IDPC SAO PAULO","-","-","-","-","H/PS","H/PS","H/PS","H/PS"]
[null,92,"HOSPITAIS","SAO PAULO - CAPITAL","SAO PAULO / SUL","HOSP SAO CAMILO - IPIRANGA","-","-","-","-","H/PS","H/PS","H/PS","H/PS"]
[null,93,"HOSPITAIS","SAO PAULO - CAPITAL","SAO PAULO / SUL","COMPLEXO HOSPITALAR EDMUNDO VASCONCELOS","-","-","-","-","-","H/PS","H/PS","H/PS"]
[null,94,"HOSPITAIS","SAO PAULO - CAPITAL","SAO PAULO / SUL","HOSP E MAT SANTA JOANA","-","-","-","-","-","M/PS (OBST)","M/PS (OBST)","M/PS (OBST)"]
[null,95,"HOSPITAIS","SAO PAULO - CAPITAL","SAO PAULO / SUL","HOSPITAL SAO LUIZ JABAQUARA","-","-","-","-","-","H/PS","-","H/PS"]
[null,96,"HOSPITAIS","SAO PAULO - CAPITAL","SAO PAULO / SUL","HOSP DO CORACAO ASSOC.SANATORIO SIRIO","-","-","-","-","-","H/PS","H/PS","H/PS"]
[null,97,"HOSPITAIS","SAO PAULO - CAPITAL","SAO PAULO / SUL","HOSP MAT SAO LUIZ - UNIDADE ITAIM","-","-","-","-","-","H/M/PS","-","H/M/PS"]
[null,98,"HOSPITAIS","SAO PAULO - CAPITAL","SAO PAULO / SUL","HOSPITAL SIRIO LIBANES - ITAIM","-","-","-","-","-","H","H","H"]
[null,99,"HOSPITAIS","SAO PAULO - CAPITAL","SAO PAULO / SUL","HOSPITAL E MATERNIDADE SANTA MARIA (UNIDADE SANTA JOANA)","-","-","-","-","-","H/M/PS","H/M/PS","H/M/PS"]
[null,100,"HOSPITAIS","SAO PAULO - CAPITAL","SAO PAULO / SUL","UNIDADE AVANCADA EINSTEIN IBIRAPUERA","-","-","-","-","-","-","-","PS"]
[null,101,"HOSPITAIS","BAIXADA SANTISTA","CUBATAO","HOSP ANA COSTA S A","-","-","-","-","PS","PS","PS","PS"]
[null,102,"HOSPITAIS","BAIXADA SANTISTA","CUBATAO","HOSP DR LUIZ CAMARGO DA FONSECA E SILVA","H/M/PS","H/M/PS","H/M/PS","H/M/PS","H/M/PS","H/M/PS","H/M/PS","H/M/PS"]
[null,103,"HOSPITAIS","BAIXADA SANTISTA","GUARUJA","HOSPITAL DOM DOMENICO","H/M/PS","H/M/PS","H/M/PS","H/M/PS","H/M/PS","H/M/PS","H/M/PS","H/M/PS"]
[null,104,"HOSPITAIS","BAIXADA SANTISTA","GUARUJA","CC FREI GALVAO GUARUJA","PA*","PA*","PA*","PA*","PA*","PA*","PA*","PA*"]
[null,105,"HOSPITAIS","BAIXADA SANTISTA","GUARUJA","HOSPITAL ANA COSTA","-","-","-","-","PS","PS","PS","PS"]
[null,106,"HOSPITAIS","BAIXADA SANTISTA","GUARUJA","HOSPITAL GUARUJA","-","H/M/PS","H/M/PS","H/M/PS","H/M/PS","H/M/PS","H/M/PS","H/M/PS"]
[null,107,"HOSPITAIS","BAIXADA SANTISTA","PRAIA GRANDE","ASSOCIACAO HOSP CASA DE SAUDE DE SANTOS","-","PS","PS","PS","PS","PS","PS","PS"]
[null,108,"HOSPITAIS","BAIXADA SANTISTA","PRAIA GRANDE","HOSPITAL CANTO DO FORTE S/S","-","-","H","H","H","H","H","H"]
[null,109,"HOSPITAIS","BAIXADA SANTISTA","PRAIA GRANDE","HOSP ANA COSTA S A","-","-","-","-","PS","PS","PS","PS"]
[null,110,"HOSPITAIS","BAIXADA SANTISTA","SANTOS","HOSP SAO LUCAS DE SANTOS","M","H/M/PS","H/M/PS","H/M/PS","H/M/PS","H/M/PS","H/M/PS","H/M/PS"]
[null,111,"HOSPITAIS","BAIXADA SANTISTA","SANTOS","HOSP FREI GALVAO","H/PS","H/PS","H/PS","H/PS","H/PS","H/PS","H/PS","H/PS"]
[null,112,"HOSPITAIS","BAIXADA SANTISTA","SANTOS","CASA DE SAUDE DE SANTOS","-","H/M/PS","H/M/PS","H/M/PS","H/M/PS","H/M/PS","H/M/PS","H/M/PS"]
[null,113,"HOSPITAIS","BAIXADA SANTISTA","SANTOS","HOSPITAL E PS INFANTIL GONZAGA","-","-","H/PS","H/PS","H/PS","H/PS","H/PS","H/PS"]
[null,114,"HOSPITAIS","BAIXADA SANTISTA","SANTOS","SOC.PORT.BENEF-HOSP.STO.ANTONIO","-","-","H/PS","H/M/PS","H/M/PS","H/M/PS","H/M/PS","H/M/PS"]
[null,115,"HOSPITAIS","BAIXADA SANTISTA","SANTOS","HOSP ANA COSTA S A","-","-","-","-","H/M/PS","H/M/PS","H/M/PS","H/M/PS"]
[null,116,"HOSPITAIS","BAIXADA SANTISTA","SAO VICENTE","CC FREI GALVAO SAO VICENTE","PA*","PA*","PA*","PA*","PA*","PA*","PA*","PA*"]
[null,117,"HOSPITAIS","BAIXADA SANTISTA","SAO VICENTE","HOSP ANA COSTA S A","-","-","-","-","PS","PS","PS","PS"]
[null,118,"HOSPITAIS","CAMPINAS E REGIAO","ARTUR NOGUEIRA","HOSP BOM SAMARITANO SC","-","-","H/M/PS","H/M/PS","H/M/PS","H/M/PS","H/M/PS","H/M/PS"]
[null,119,"HOSPITAIS","CAMPINAS E REGIAO","CAMPINAS","CENTRO MEDICO DE SOUSAS","-","-","-","-","H","H","H","H"]
[null,120,"HOSPITAIS","CAMPINAS E REGIAO","CAMPINAS","SAN FRANCISCO DAY HOSPITAL","-","-","-","-","H","H","H","H"]
[null,121,"HOSPITAIS","CAMPINAS E REGIAO","CAMPINAS","CAMPINAS DAY HOSPITAL","-","-","H","H","H","H","H","H"]
[null,122,"HOSPITAIS","CAMPINAS E REGIAO","CAMPINAS","INST NOVA CAMPINAS DE MEDICINA E CIRUG","-","-","H","H","H","H","H","H"]
[null,123,"HOSPITAIS","CAMPINAS E REGIAO","CAMPINAS","HOSPITAL GERAL E MATERNIDADE MADRE MARIA THEODORA","-","-","H/PS","H/M/PS","H/M/PS","H/M/PS","H/M/PS","H/M/PS"]
[null,124,"HOSPITAIS","CAMPINAS E REGIAO","CAMPINAS","FUNDACAO CENTRO MED DE CAMPINAS","-","-","-","-","-","H/PS","H/PS","H/PS"]
[null,125,"HOSPITAIS","CAMPINAS E REGIAO","CAMPINAS","HOSP RENASCENCA CAMPINAS","H/M/PS","H/M/PS","H/M/PS","H/M/PS","H/M/PS","H/M/PS","H/M/PS","H/M/PS"]
[null,126,"HOSPITAIS","CAMPINAS E REGIAO","CAMPINAS","HOSP VERA CRUZ S A","-","-","-","-","-","H/M/PS","H/M/PS","H/M/PS"]
[null,127,"HOSPITAIS","CAMPINAS E REGIAO","CAMPINAS","HOSPITAL SANTA SOFIA","-","-","-","H","H","H","H","H"]
[null,128,"HOSPITAIS","CAMPINAS E REGIAO","CAMPINAS","HOSPITAL E MATERNIDADE CELSO PIERRO","-","-","H/M/PS","H/M/PS","H/M/PS","H/M/PS","H/M/PS","H/M/PS"]
[null,129,"HOSPITAIS","CAMPINAS E REGIAO","CAMPINAS","INSTITUTO PENIDO BURNIER DE OFTALMOLOGIA","-","-","-","-","H/PS","H/PS","H/PS","H/PS"]
[null,130,"HOSPITAIS","CAMPINAS E REGIAO","CAMPINAS","REAL SOCIEDADE PORTUGUESA DE BENEFICENCIA","-","-","H/PS","H/PS","H/PS","H/PS","H/PS","H/PS"]
[null,131,"HOSPITAIS","CAMPINAS E REGIAO","CAMPINAS","MATERNIDADE DE CAMPINAS","-","H/PS","H/PS","H/M/PS","H/M/PS","H/M/PS","H/M/PS","H/M/PS"]
[null,132,"HOSPITAIS","CAMPINAS E REGIAO","CAMPINAS","HOSPITAL IRMAOS PENTEADO","-","H","H","H/PS","H/PS","H/PS","H/PS","H/PS"]
[null,133,"HOSPITAIS","CAMPINAS E REGIAO","CAMPINAS","CT INFANTIL DE INVESTIGACOES HEMATOL DR DOMINGOS","-","-","-","-","-","H","H","H"]
[null,134,"HOSPITAIS","CAMPINAS E REGIAO","CAMPINAS","HOSPITAL SANTA TEREZA","-","H/M/PS","H/M/PS","H/M/PS","H/M/PS","H/M/PS","H/M/PS","H/M/PS"]
[null,135,"HOSPITAIS","CAMPINAS E REGIAO","COSMOPOLIS","HOSP BENEFICENTE SANTA GERTRUDES","-","H/M/PS","H/M/PS","H/M/PS","H/M/PS","H/M/PS","H/M/PS","H/M/PS"]
[null,136,"HOSPITAIS","CAMPINAS E REGIAO","MOGI MIRIM","CLINICA GYORGY LASZLO","-","-","-","H","H","H","H","H"]
[null,137,"HOSPITAIS","CAMPINAS E REGIAO","MOGI MIRIM","IRM DA STA CASA DE MIS DE MOGI MIRIM","-","-","H/M/PS","H/M/PS","H/M/PS","H/M/PS","H/M/PS","H/M/PS"]
[null,138,"HOSPITAIS","CAMPINAS E REGIAO","MONTE MOR","ASSOCIACAO HOSP BENEF SAGRADO CORACAO DE EJSUS","-","-","H/M/PS","H/M/PS","H/M/PS","H/M/PS","H/M/PS","H/M/PS"]
[null,139,"HOSPITAIS","CAMPINAS E REGIAO","PAULINIA","CENTRO DE TRATAMENTO BEZERRA DE MENEZES","-","-","-","H","H","H","H","H"]
[null,140,"HOSPITAIS","CAMPINAS E REGIAO","PEDREIRA","FUNDACAO BENEFICENTE DE PEDREIRA - FUNBEPE","-","-","PS","PS","PS","PS","PS","PS"]
[null,141,"HOSPITAIS","CAMPINAS E REGIAO","SUMARE","DAY HOSPITAL SUMARE","H","H","H","H","H","H","H","H"]
[null,142,"HOSPITAIS","CAMPINAS E REGIAO","VALINHOS","HOSPITAL E MATERNIDADE GALILEO","-","-","-","-","H/PS","H/PS","H/PS","H/PS"]
[null,143,"HOSPITAIS","CAMPINAS E REGIAO","VALINHOS","SANTA CASA DE VALINHOS","-","H/M/PS","H/M/PS","H/M/PS","H/M/PS","H/M/PS","H/M/PS","H/M/PS"]
[null,144,"HOSPITAIS","GRANDE SAO PAULO","ARUJA","HOSPITAL E MATERNIDADE IPIRANGA ARUJA","H/M/PS OBST","H/M/PS OBST","H/M/PS OBST","H/M/PS","H/M/PS","H/M/PS","H/M/PS","H/M/PS"]
[null,145,"HOSPITAIS","GRANDE SAO PAULO","ARUJA","CC ARUJA","PA","PA","PA","PA","PA","PA","PA","PA"]
[null,146,"HOSPITAIS","GRANDE SAO PAULO","BARUERI","CC ALPHAVILLE","PA*","PA*","PA*","PA*","PA*","PA*","PA*","PA*"]
[null,147,"HOSPITAIS","GRANDE SAO PAULO","BARUERI","PS BARUERI","PS","PS","PS","PS","PS","PS","PS","PS"]
[null,148,"HOSPITAIS","GRANDE SAO PAULO","BARUERI","HOSPITALIS NUCLEO HOSPITALAR DE BARUERI","-","-","H/M","H/M/PS","H/M/PS","H/M/PS","H/M/PS","H/M/PS"]
[null,149,"HOSPITAIS","GRANDE SAO PAULO","BARUERI","HOSPITAL ISRAELITA ALBERT EINSTEIN","-","-","-","-","-","-","-","PS"]
[null,150,"HOSPITAIS","GRANDE SAO PAULO","CAIEIRAS","CC CAIEIRAS","PA*","PA*","PA*","PA*","PA*","PA*","PA*","PA*"]
[null,151,"HOSPITAIS","GRANDE SAO PAULO","CAIEIRAS","HOSP DE CLIN CAIEIRAS (ANTIGO EMED)","-","-","H/M/PS","H/M/PS","H/M/PS","H/M/PS","H/M/PS","H/M/PS"]
[null,152,"HOSPITAIS","GRANDE SAO PAULO","CARAPICUIBA","CC CARAPICUIBA","PA*","PA*","PA*","PA*","PA*","PA*","PA*","PA*"]
[null,153,"HOSPITAIS","GRANDE SAO PAULO","COTIA","HOSPITAL E MATERNIDADE NOVA VIDA","PA*","PA*","PA*","PA*","PA*","PA*","PA*","PA*"]
[null,154,"HOSPITAIS","GRANDE SAO PAULO","COTIA","CC COTIA","PA","PA","PA","PA","PA","PA","PA","PA"]
[null,155,"HOSPITAIS","GRANDE SAO PAULO","EMBU DAS ARTES","GRUPO CPR","H","H","H","H","H","H","H","H"]
[null,156,"HOSPITAIS","GRANDE SAO PAULO","FERRAZ DE VASCONCELOS","CLIN SANTO ANTONIO DE PREST DE SERV MED E ODONT","PA*","PA*","PA*","PA*","PA*","PA*","PA*","PA*"]
[null,157,"HOSPITAIS","GRANDE SAO PAULO","GUARAREMA","SANTA CASA DE MISERICORDIA DE GUARAREMA","H/M/PS","H/M/PS","H/M/PS","H/M/PS","H/M/PS","H/M/PS","H/M/PS","H/M/PS"]
[null,158,"HOSPITAIS","GRANDE SAO PAULO ","GUARULHOS","CC GUARULHOS I","PA*","PA*","PA*","PA*","PA*","PA*","PA*","PA*"]
[null,159,"HOSPITAIS","GRANDE SAO PAULO ","GUARULHOS","CC GUARULHOS II","PA*","PA*","PA*","PA*","PA*","PA*","PA*","PA*"]
[null,160,"HOSPITAIS","GRANDE SAO PAULO ","GUARULHOS","HOSP E MAT GUARULHOS","H/M/PS","H/M/PS","H/M/PS","H/M/PS","H/M/PS","H/M/PS","H/M/PS","H/M/PS"]
[null,161,"HOSPITAIS","GRANDE SAO PAULO ","GUARULHOS","CONGREG DAS FILHAS DE NOSSA SENHORA STELLA MARIS","-","H","H","H","H","H","H","H"]
[null,162,"HOSPITAIS","GRANDE SAO PAULO ","GUARULHOS","HOSPITAL CARLOS CHAGAS S.A","-","-","-","H/M/PS","H/M/PS","H/M/PS","H/M/PS","H/M/PS"]
[null,163,"HOSPITAIS","GRANDE SAO PAULO ","ITAPECERICA DA SERRA","HOSPITAL SANTA MONICA SC","-","-","H","H/PS","H/PS","H/PS","H/PS","H/PS"]
[null,164,"HOSPITAIS","GRANDE SAO PAULO ","ITAPECERICA DA SERRA","CLINICA MAIA PRIME","H","H","H","H","H","H","H","H"]
[null,165,"HOSPITAIS","GRANDE SAO PAULO ","ITAPEVI","CC ITAPEVI","PA*","PA*","PA*","PA*","PA*","PA*","PA*","PA*"]
[null,166,"HOSPITAIS","GRANDE SAO PAULO ","ITAPEVI","HOSPITAL CRUZEIRO DO SUL ITAPEVI","H/PS","H/PS","H/PS","H/PS","H/PS","H/PS","H/PS","H/PS"]
[null,167,"HOSPITAIS","GRANDE SAO PAULO ","ITAPEVI","HOSPITAL E MATERNIDADE NOVA VIDA","H/M/PS","H/M/PS","H/M/PS","H/M/PS","H/M/PS","H/M/PS","H/M/PS","H/M/PS"]
[null,168,"HOSPITAIS","GRANDE SAO PAULO ","ITAQUAQUECETUBA","UNIDADE AVANCADA ITAQUA","-","-","-","PA","PA","PA","PA","PA"]
[null,169,"HOSPITAIS","GRANDE SAO PAULO ","JANDIRA","HOSP E MATERNIDADE NOVA VIDA","PA*","PA*","PA*","PA*","PA*","PA*","PA*","PA*"]
[null,170,"HOSPITAIS","GRANDE SAO PAULO ","MOGI DAS CRUZES","CASA DE SAUDE E MAT SANTANA","H/PS*","H/PS","H/PS","H/PS","H/PS","H/PS","H/PS","H/PS"]
[null,171,"HOSPITAIS","GRANDE SAO PAULO ","MOGI DAS CRUZES","CLINICA INFANTIL SAO NICOLAU S/S","PA","PA","PA","PA","PA","PA","PA","PA"]
[null,172,"HOSPITAIS","GRANDE SAO PAULO ","MOGI DAS CRUZES","MOGI MATER HOSPITAL E MATERNIDADE","H/M","H/M","H/M","H/M/PS","H/M/PS","H/M/PS","H/M/PS","H/M/PS"]
[null,173,"HOSPITAIS","GRANDE SAO PAULO ","MOGI DAS CRUZES","SAMED SERVS DE ASSIST MED ODONT E HOSPAR","PA*","PA*","PA*","PA*","PA*","PA*","PA*","PA*"]
[null,174,"HOSPITAIS","GRANDE SAO PAULO ","MOGI DAS CRUZES","HOSPITAL E MATERNIDADE IPIRANGA","-","-","-","H/PS","H/PS","H/PS","H/PS","H/PS"]
[null,175,"HOSPITAIS","GRANDE SAO PAULO ","OSASCO","UNIDADE AVANCADA CRUZEIRO DO SUL","PA*","PA*","PA*","PA*","PA*","PA*","PA*","PA*"]
[null,176,"HOSPITAIS","GRANDE SAO PAULO ","OSASCO","GTO-GRUPO DE TRAUMAT.E ORTOPEDIA","-","-","-","PS","PS","PS","PS","PS"]
[null,177,"HOSPITAIS","GRANDE SAO PAULO ","OSASCO","HOSPITAL E MATERNIDADE NOSSA SENHORA DE FATIMA","-","-","-","H","H","H","H","H"]
[null,178,"HOSPITAIS","GRANDE SAO PAULO ","OSASCO","HOSPITAL CRUZEIRO DO SUL","H/M/PS","H/M/PS","H/M/PS","H/M/PS","H/M/PS","H/M/PS","H/M/PS","H/M/PS"]
[null,179,"HOSPITAIS","GRANDE SAO PAULO ","OSASCO","HOSPITAL SINO BRASILEIRO","-","-","-","-","H/M/PS","H/M/PS","-","H/M/PS"]
[null,180,"HOSPITAIS","GRANDE SAO PAULO ","SANTA ISABEL","IRMANDADE DA SANTA CASA DE MISER DE SANTA ISABEL","H/M/PS","H/M/PS","H/M/PS","H/M/PS","H/M/PS","H/M/PS","H/M/PS","H/M/PS"]
[null,181,"HOSPITAIS","GRANDE SAO PAULO ","SUZANO","MEDCARE SUZANO SERVICOS MEDICOS -EPP","PA*","PA*","PA*","PA*","PA*","PA*","PA*","PA*"]
[null,182,"HOSPITAIS","GRANDE SAO PAULO ","TABOAO DA SERRA","CC TABOAO DA SERRA","PA*","PA*","PA*","PA*","PA*","PA*","PA*","PA*"]
[null,183,"HOSPITAIS","GRANDE SAO PAULO ","TABOAO DA SERRA","FAMILY HOSP SS","H/M/PS","H/M/PS","H/M/PS","H/M/PS","H/M/PS","H/M/PS","H/M/PS","H/M/PS"]
[null,184,"HOSPITAIS","GRANDE SAO PAULO ","TABOAO DA SERRA","CLINICA MAIA","-","H","H","H","H","H","H","H"]
[null,185,"HOSPITAIS","JUNDIAI E REGIAO","AMPARO","BENEFICENCIA PORTUGUESA DE AMPARO","-","H/M/PS","H/M/PS","H/M/PS","H/M/PS","H/M/PS","H/M/PS","H/M/PS"]
[null,186,"HOSPITAIS","JUNDIAI E REGIAO","AMPARO","STA CASA ANNA CINTRA","-","-","H/PS","H/PS","H/PS","H/PS","H/PS","H/PS"]
[null,187,"HOSPITAIS","JUNDIAI E REGIAO","ATIBAIA","ALBERT SABIN HOSP E MAT","-","H/M/PS","H/M/PS","H/M/PS","H/M/PS","H/M/PS","H/M/PS","H/M/PS"]
[null,188,"HOSPITAIS","JUNDIAI E REGIAO","ATIBAIA","HOSPITAL NOVO ATIBAIA","-","-","H/M/PS","H/M/PS","H/M/PS","H/M/PS","H/M/PS","H/M/PS"]
[null,189,"HOSPITAIS","JUNDIAI E REGIAO","BRAGANCA PAULISTA","HOSP UNIVERSITARIO SAO FRANCISCO NA PROV DE DEUS","-","H/M/PS","H/M/PS","H/M/PS","H/M/PS","H/M/PS","H/M/PS","H/M/PS"]
[null,190,"HOSPITAIS","JUNDIAI E REGIAO","BRAGANCA PAULISTA","HOSPITAL BRAGANTINO","-","H/PS","H/PS","H/PS","H/PS","H/PS","H/PS","H/PS"]
[null,191,"HOSPITAIS","JUNDIAI E REGIAO","BRAGANCA PAULISTA","SANTA CASA DE BRAGANCA PAULISTA","-","-","H/M/PS","H/M/PS","H/M/PS","H/M/PS","H/M/PS","H/M/PS"]
[null,192,"HOSPITAIS","JUNDIAI E REGIAO ","CABREUVA","API PRIME LTDA EPP","H","H","H","H","H","H","H","H"]
[null,193,"HOSPITAIS","JUNDIAI E REGIAO ","CAJAMAR","CC POLVILHO","PA*","PA*","PA*","PA*","PA*","PA*","PA*","PA*"]
[null,194,"HOSPITAIS","JUNDIAI E REGIAO ","CAMPO LIMPO PAULISTA","CC CAMPO LIMPO PAULISTA","PA*","PA*","PA*","PA*","PA*","PA*","PA*","PA*"]
[null,195,"HOSPITAIS","JUNDIAI E REGIAO ","IBIUINA","INSTITUTO LEONARDO RUSSO CENTRO REAB PSICOSSOCIAL","-","H/PS","H/PS","H/PS","H/PS","H/PS","H/PS","H/PS"]
[null,196,"HOSPITAIS","JUNDIAI E REGIAO ","ITAPIRA","FUNDACAO ESPIRITA AMERICO BAIRRAL","-","H","H","H","H","H","H","H"]
[null,197,"HOSPITAIS","JUNDIAI E REGIAO ","ITAPIRA","CLINICA DE REPOUSO SANTA FE - EPP","-","-","-","-","H","H","H","H"]
[null,198,"HOSPITAIS","JUNDIAI E REGIAO ","ITATIBA","HOSPITAL ITATIBA","H/M/PS","H/M/PS","H/M/PS","H/M/PS","H/M/PS","H/M/PS","H/M/PS","H/M/PS"]
[null,199,"HOSPITAIS","JUNDIAI E REGIAO ","ITATIBA","SANTA CASA DE MISERICORDIA DE ITATIBA","H/M/PS","H/M/PS","H/M/PS","H/M/PS","H/M/PS","H/M/PS","H/M/PS","H/M/PS"]
[null,200,"HOSPITAIS","JUNDIAI E REGIAO ","ITUPEVA","HOSPITAL PSIQUIATRICO ITUPEVA - EPP","H","H/PS","H/PS","H/PS","H/PS","H/PS","H/PS","H/PS"]
[null,201,"HOSPITAIS","JUNDIAI E REGIAO ","JUNDIAI","HOSP PAULO SACRAMENTO","H/M/PS","H/M/PS","H/M/PS","H/M/PS","H/M/PS","H/M/PS","H/M/PS","H/M/PS"]
[null,202,"HOSPITAIS","JUNDIAI E REGIAO ","JUNDIAI","HOSPITAL SANTA ELISA","-","-","H/M/PS","H/M/PS","H/M/PS","H/M/PS","H/M/PS","H/M/PS"]
[null,203,"HOSPITAIS","JUNDIAI E REGIAO ","LOUVEIRA","IRMANDADE SANTA CASA DE LOUVEIRA","H/M/PS","H/M/PS","H/M/PS","H/M/PS","H/M/PS","H/M/PS","H/M/PS","H/M/PS"]
[null,204,"HOSPITAIS","JUNDIAI E REGIAO ","VARZEA PAULISTA","CC VARZEA PAULISTA","PA*","PA*","PA*","PA*","PA*","PA*","PA*","PA*"]
[null,205,"HOSPITAIS","JUNDIAI E REGIAO ","VINHEDO","IRMANDADE DA SANTA CASA DE VINHEDO","H/M/PS","H/M/PS","H/M/PS","H/M/PS","H/M/PS","H/M/PS","H/M/PS","H/M/PS"]
[null,206,"HOSPITAIS","SAO PAULO ABC / DIADEMA","DIADEMA","INNOVA HOSPITAIS ASSOCIADOS","H","H","H","H","H","H/PS","H/PS","H/PS"]
[null,207,"HOSPITAIS","SAO PAULO ABC / DIADEMA","DIADEMA","CC DIADEMA","PA","PA","PA","PA","PA","PA","PA","PA"]
[null,208,"HOSPITAIS","SAO PAULO ABC / MAUA","MAUA","IRM DA STA CASA MISER DE MAUA- HOSP IMAC CONCEICAO","H/PS","H/PS","H/PS","H/M/PS","H/M/PS","H/M/PS","H/M/PS","H/M/PS"]
[null,209,"HOSPITAIS","SAO PAULO ABC / MAUA","MAUA","CC MAUA 1 (ANTIGO CC MAUA)","PA*","PA*","PA*","PA*","PA*","PA*","PA*","PA*"]
[null,210,"HOSPITAIS","SAO PAULO ABC / MAUA","MAUA","HOSPITAL VITAL","-","H/PS","H/PS","H/PS","H/PS","H/PS","H/PS","H/PS"]
[null,211,"HOSPITAIS","SAO PAULO ABC / MAUA","MAUA","HOSP AMERICA","-","-","-","-","H/M/PS","H/M/PS","H/M/PS","H/M/PS"]
[null,212,"HOSPITAIS","SAO PAULO ABC / RIBEIRAO PIRES","RIBEIRAO PIRES","HOSP RIBEIRAO PIRES","H/M","H/M","H/M","H/M","H/M","H/M","-","H/M"]
[null,213,"HOSPITAIS","SAO PAULO ABC / RIBEIRAO PIRES","RIBEIRAO PIRES","CC RIBEIRAO PIRES","PA","PA","PA","PA","PA","PA","PA","PA"]
[null,214,"HOSPITAIS","SAO PAULO ABC / SANTO ANDRE","SANTO ANDRE","HOSPITAL CORACAO DE JESUS","H","H","H","H/PS","H/PS","H/PS","H/PS","H/PS"]
[null,215,"HOSPITAIS","SAO PAULO ABC / SANTO ANDRE","SANTO ANDRE","CC SANTO ANDRE 1 (ANTIGO CC SANTO ANDRE I )","PA","PA","PA","PA","PA","PA","PA","PA"]
[null,216,"HOSPITAIS","SAO PAULO ABC / SANTO ANDRE","SANTO ANDRE","CC SANTO ANDRE 4 (ANTIGO PA SANTO ANDRE )","PA*","PA*","PA*","PA*","PA*","PA*","PA*","PA*"]
[null,217,"HOSPITAIS","SAO PAULO ABC / SANTO ANDRE","SANTO ANDRE","SOC PORT BENF DE SANTTO ANDRE- HOSP SAO PEDRO","H","H","H","H/M/PS","H/M/PS","H/M/PS","H/M/PS","H/M/PS"]
[null,218,"HOSPITAIS","SAO PAULO ABC / SANTO ANDRE","SANTO ANDRE","HOSPITAL E MATERNIDADE SAO JOSE DO ABC","-","H/PS","H/PS","H/PS","H/PS","H/PS","H/PS","H/PS"]
[null,219,"HOSPITAIS","SAO PAULO ABC / SANTO ANDRE","SANTO ANDRE","HOSP E MAT DOUTOR CHRISTOVAO DA GAMA","-","-","H","H/PS","H/PS","H/M/PS","H/M/PS","H/M/PS"]
[null,220,"HOSPITAIS","SAO PAULO ABC / SANTO ANDRE","SANTO ANDRE","HOSPITAL BARTIRA","-","-","-","-","-","H/M/PS","-","H/M/PS"]
[null,221,"HOSPITAIS","SAO PAULO ABC / SANTO ANDRE","SANTO ANDRE","HOSPITAL E MATERNIDADE BRASIL","-","-","-","-","-","H/M/PS","-","H/M/PS"]
[null,222,"HOSPITAIS","SAO PAULO ABC / SAO CAETANO DO SUL","SAO CAETANO DO SUL","HOSP E MAT CENTRAL","H/PS*","H/PS","H/PS","H/PS","H/PS","H/PS","H/PS","H/PS"]
[null,223,"HOSPITAIS","SAO PAULO ABC / SAO CAETANO DO SUL","SAO CAETANO DO SUL","CC SAO CAETANO 1(ANTIGO CC SAO CAETANO I)","PA*","PA*","PA*","PA*","PA*","PA*","PA*","PA*"]
[null,224,"HOSPITAIS","SAO PAULO ABC / SAO CAETANO DO SUL","SAO CAETANO DO SUL","SOC PORTUGUESA DE BENEF DE SAO CAETANO DO SUL","-","-","H/PS","H/M/PS","H/M/PS","H/M/PS","H/M/PS","H/M/PS"]
[null,225,"HOSPITAIS","SAO PAULO ABC/ SAO BERNARDO DO CAMPO","SAO BERNARDO DO CAMPO","HOSP SAO BERNARDO - UNIDADE INFANTIL BAETA NEVES","H/PS","H/PS","H/PS","H/PS","H/PS","H/PS","H/PS","H/PS"]
[null,226,"HOSPITAIS","SAO PAULO ABC/ SAO BERNARDO DO CAMPO","SAO BERNARDO DO CAMPO","HOSP SAO BERNARDO","H","H","H","H","H","H","H","H"]
[null,227,"HOSPITAIS","SAO PAULO ABC/ SAO BERNARDO DO CAMPO","SAO BERNARDO DO CAMPO","CENTRO DE TRATAMENTO BEZERRA DE MENEZES","H/PS","H/PS","H/PS","H/PS","H/PS","H/PS","H/PS","H/PS"]
[null,228,"HOSPITAIS","SAO PAULO ABC/ SAO BERNARDO DO CAMPO","SAO BERNARDO DO CAMPO","HOSP E MAT NOTRE CARE ABC","H/M/PS","H/M/PS","H/M/PS","H/M/PS","H/M/PS","H/M/PS","H/M/PS","H/M/PS"]
[null,229,"HOSPITAIS","SAO PAULO ABC/ SAO BERNARDO DO CAMPO","SAO BERNARDO DO CAMPO","P S INTERMEDICA ABC","PS","PS","PS","PS","PS","PS","PS","PS"]
[null,230,"HOSPITAIS","SAO PAULO ABC/ SAO BERNARDO DO CAMPO","SAO BERNARDO DO CAMPO","HOSPITAL IFOR","-","-","H","H/PS","H/PS","H/PS","-","H/PS"]
[null,231,"HOSPITAIS","SAO PAULO ABC/ SAO BERNARDO DO CAMPO","SAO BERNARDO DO CAMPO","HOSPITAL DE OLHOS ABC-CERPO","-","-","H","H","H","H","H","H"]
[null,232,"HOSPITAIS","SAO PAULO ABC/ SAO BERNARDO DO CAMPO","SAO BERNARDO DO CAMPO","HOSPITAL E MATERNIDADE ASSUNCAO","-","-","-","H/PS","H/PS","H/PS","-","H/PS"]
[null,233,"HOSPITAIS","SAO PAULO ABC/ SAO BERNARDO DO CAMPO","SAO BERNARDO DO CAMPO","ESPACO ABERTO- HOSP DIA S/C LTDA","-","-","-","H","H","H","H","H"]
[null,234,"HOSPITAIS","SAO PAULO ABC/ SAO BERNARDO DO CAMPO","SAO BERNARDO DO CAMPO","API ASSISTENCIA PSIQUIATRICA INTEGRADA ABC LTDA","H/PS","H/PS","H/PS","H/PS","H/PS","H/PS","H/PS","H/PS"]
[null,235,"HOSPITAIS","SAO PAULO DEMAIS CIDADES","ADAMANTINA","IRMANDADE DA SANTA CASA DE MISERICORDIA DE ADAMANT","-","-","-","-","H/M/PS","H/M/PS","H/M/PS","H/M/PS"]
[null,236,"HOSPITAIS","SAO PAULO DEMAIS CIDADES","AMERICANA","CLINICA SAO LUCAS","-","-","-","-","H/M/PS","H/M/PS","H/M/PS","H/M/PS"]
[null,237,"HOSPITAIS","SAO PAULO DEMAIS CIDADES","AMERICANA","INSTITUTO PRO VISAO AMERICANA","-","-","-","-","H","H","H","H"]
[null,238,"HOSPITAIS","SAO PAULO DEMAIS CIDADES","APARECIDA","SANTA CASA DE MISERICORDIA DE APARECIDA","-","-","-","-","H/PS","H/PS","H/PS","H/PS"]
[null,239,"HOSPITAIS","SAO PAULO DEMAIS CIDADES","ARACATUBA","ASSOCIACAO SANTA CASA SAUDE DE ARACATUBA","-","-","-","-","H/M/PS","H/M/PS","H/M/PS","H/M/PS"]
[null,240,"HOSPITAIS","SAO PAULO DEMAIS CIDADES","ARARAQUARA","SOC PORTUGUESA BENEF DE ARARAQUARA","-","-","H/M/PS","H/M/PS","H/M/PS","H/M/PS","H/M/PS","H/M/PS"]
[null,241,"HOSPITAIS","SAO PAULO DEMAIS CIDADES","ARARAS","ASSOCIACAO PRO SAUDE","-","-","-","H/M/PS","H/M/PS","H/M/PS","H/M/PS","H/M/PS"]
[null,242,"HOSPITAIS","SAO PAULO DEMAIS CIDADES","ASSIS","SANTA CASA DE MISERICORDIA DE ASSIS","-","-","H/M/PS","H/M/PS","H/M/PS","H/M/PS","H/M/PS","H/M/PS"]
[null,243,"HOSPITAIS","SAO PAULO DEMAIS CIDADES","ASSIS","IAM ATENDIMENTO MEDICO HOSP","-","-","-","-","H/M","H/M","H/M","H/M"]
[null,244,"HOSPITAIS","SAO PAULO DEMAIS CIDADES","BARIRI","IRMANDADE DA SANTA CASA DE MISERICORDIA DE BARIRI","-","-","H/M/PS","H/M/PS","H/M/PS","H/M/PS","H/M/PS","H/M/PS"]
[null,245,"HOSPITAIS","SAO PAULO DEMAIS CIDADES","BARRETOS","SANTA CASA DE BARRETOS","-","-","-","-","H/M/PS","H/M/PS","H/M/PS","H/M/PS"]
[null,246,"HOSPITAIS","SAO PAULO DEMAIS CIDADES","BAURU","ASSISTENCIA MEDICO HOSPITALAR SAO LUCAS SA","-","-","-","-","H/PS","H/PS","H/PS","H/PS"]
[null,247,"HOSPITAIS","SAO PAULO DEMAIS CIDADES","BAURU","HOSPITAL E MATERNIDADE MARIA JOSE","-","-","-","-","H/M/PS","H/M/PS","H/M/PS","H/M/PS"]
[null,248,"HOSPITAIS","SAO PAULO DEMAIS CIDADES","BEBEDOURO","UNIMED BEBEDOURO COOPERATIVA DE TRABALHO MEDICO","-","-","-","-","H/M/PS","H/M/PS","H/M/PS","H/M/PS"]
[null,249,"HOSPITAIS","SAO PAULO DEMAIS CIDADES","BOTUCATU","UNESP","-","-","H/PS","H/PS","H/PS","H/PS","H/PS","H/PS"]
[null,250,"HOSPITAIS","SAO PAULO DEMAIS CIDADES","BROTAS","HOSPITAL SANTA TEREZINHA","-","-","-","-","H/M/PS","H/M/PS","H/M/PS","H/M/PS"]
[null,251,"HOSPITAIS","SAO PAULO DEMAIS CIDADES","CACAPAVA","FUSAM-FUND DE SAUDE E ASSIS DO MUNIC DE CACAPAVA","-","-","H/M/PS","H/M/PS","H/M/PS","H/M/PS","H/M/PS","H/M/PS"]
[null,252,"HOSPITAIS","SAO PAULO DEMAIS CIDADES","CACAPAVA","POLICLIN -SERV. MEDICO HOSPITALARES","-","-","-","-","H/M/PS","H/M/PS","H/M/PS","H/M/PS"]
[null,253,"HOSPITAIS","SAO PAULO DEMAIS CIDADES","CACHOEIRA PAULISTA","ASSOC BENEF SAO JOSE E SANTA CASA DE MIS SAO JOSE","-","-","-","-","H/M/PS","H/M/PS","H/M/PS","H/M/PS"]
[null,254,"HOSPITAIS","SAO PAULO DEMAIS CIDADES","CARAGUATATUBA","CENTRO MED SAO CAMILO","-","-","PA*","PA*","PA*","PA*","PA*","PA*"]
[null,255,"HOSPITAIS","SAO PAULO DEMAIS CIDADES","CARAGUATATUBA","CASA DE SAUDE STELLA MARIS","-","-","H/M/PS","H/M/PS","H/M/PS","H/M/PS","H/M/PS","H/M/PS"]
[null,256,"HOSPITAIS","SAO PAULO DEMAIS CIDADES","CRAVINHOS","SANTA CASA DE CRAVINHOS","-","-","-","-","H/M/PS","H/M/PS","H/M/PS","H/M/PS"]
[null,257,"HOSPITAIS","SAO PAULO DEMAIS CIDADES","CRUZEIRO","SANTA CASA DE MISERICORDIA DE CRUZEIRO","-","-","H/M/PS","H/M/PS","H/M/PS","H/M/PS","H/M/PS","H/M/PS"]
[null,258,"HOSPITAIS","SAO PAULO DEMAIS CIDADES","FARTURA","SANTA CASA DE MISERICORDIA DE FARTURA","-","-","-","-","-","H/M/PS","H/M/PS","H/M/PS"]
[null,259,"HOSPITAIS","SAO PAULO DEMAIS CIDADES","FRANCA","HOSPITAL E MATERNIDADE SAO JOAQUIM","-","-","H/M/PS","H/M/PS","H/M/PS","H/M/PS","H/M/PS","H/M/PS"]
[null,260,"HOSPITAIS","SAO PAULO DEMAIS CIDADES","FRANCA","HOSPITAL REGIONAL DE FRANCA","-","-","-","-","-","H/M/PS","H/M/PS","H/M/PS"]
[null,261,"HOSPITAIS","SAO PAULO DEMAIS CIDADES","GUARATINGUETA","CEPOG-CENTRO PED E ORTOPEDICO GUARATINGUETA SC L","-","-","PS","PS","PS","PS","PS","PS"]
[null,262,"HOSPITAIS","SAO PAULO DEMAIS CIDADES","GUARATINGUETA","SANTA CASA DE GUARATINGUETA","-","-","H/M/PS","H/M/PS","H/M/PS","H/M/PS","H/M/PS","H/M/PS"]
[null,263,"HOSPITAIS","SAO PAULO DEMAIS CIDADES","JABOTICABAL","HOSPITAL SAO MARCOS","-","-","-","-","H/M/PS","H/M/PS","H/M/PS","H/M/PS"]
[null,264,"HOSPITAIS","SAO PAULO DEMAIS CIDADES","JACAREI","HOSPITAL ALVORADA","-","-","H/M/PS","H/M/PS","H/M/PS","H/M/PS","H/M/PS","H/M/PS"]
[null,265,"HOSPITAIS","SAO PAULO DEMAIS CIDADES","JACAREI","ASS CASA FONTE DA VIDA-HOSP SAO FRANCISCO DE ASSIS","-","-","-","H/M/PS","H/M/PS","H/M/PS","H/M/PS","H/M/PS"]
[null,266,"HOSPITAIS","SAO PAULO DEMAIS CIDADES","JACAREI","POLICLIN SERVICOS MEDICO - HOSPITALARES","-","-","-","-","H/M/PS","H/M/PS","H/M/PS","H/M/PS"]
[null,267,"HOSPITAIS","SAO PAULO DEMAIS CIDADES","JAU","HOSP AMARAL CARVALHO","-","-","-","-","H","H","H","H"]
[null,268,"HOSPITAIS","SAO PAULO DEMAIS CIDADES","LIMEIRA","SOCIEDADE OPERARIA HUMANITARIA","-","-","-","-","H/M/PS","H/M/PS","H/M/PS","H/M/PS"]
[null,269,"HOSPITAIS","SAO PAULO DEMAIS CIDADES","LIMEIRA","SANTA CASA DE LIMEIRA","-","-","-","-","-","H/M/PS","H/M/PS","H/M/PS"]
[null,270,"HOSPITAIS","SAO PAULO DEMAIS CIDADES","LIMEIRA","MEDICAL MED COOP ASSIST.DE LIMEIRA","-","-","-","-","-","H/M/PS","H/M/PS","H/M/PS"]
[null,271,"HOSPITAIS","SAO PAULO DEMAIS CIDADES","LORENA","SANTA CASA DE MISERICORDIA DE LORENA","-","-","H/M/PS","H/M/PS","H/M/PS","H/M/PS","H/M/PS","H/M/PS"]
[null,272,"HOSPITAIS","SAO PAULO DEMAIS CIDADES","LUCELIA","SANTA CASA DE MISERICORDIA DE LUCELIA","-","-","-","-","H/M/PS","H/M/PS","H/M/PS","H/M/PS"]
[null,273,"HOSPITAIS","SAO PAULO DEMAIS CIDADES","MATAO","HOSPITAL CARLOS FERNANDO MALZONI MATAO","-","-","-","-","H/M/PS","H/M/PS","H/M/PS","H/M/PS"]
[null,274,"HOSPITAIS","SAO PAULO DEMAIS CIDADES","MIRASSOL","HOSPITAL DR FERNANDO","-","-","-","-","H/M/PS","H/M/PS","H/M/PS","H/M/PS"]
[null,275,"HOSPITAIS","SAO PAULO DEMAIS CIDADES","OURINHOS","SOCIEDADE SANTA CASA DE MISERICORDIA DE OURINHOS","-","-","-","H/M/PS","H/M/PS","H/M/PS","H/M/PS","H/M/PS"]
[null,276,"HOSPITAIS","SAO PAULO DEMAIS CIDADES","PENAPOLIS","IRMANDADE DA SANTA CASA DE MISERIC DE PENAPOLIS","-","-","-","-","H/M","H/M","H/M","H/M"]
[null,277,"HOSPITAIS","SAO PAULO DEMAIS CIDADES","PIRACICABA","SAO FRANCISCO SISTEMAS DE SAUDE SC","-","-","H/M/PS","H/M/PS","H/M/PS","H/M/PS","H/M/PS","H/M/PS"]
[null,278,"HOSPITAIS","SAO PAULO DEMAIS CIDADES","PIRASSUNUNGA","IRMANDADE STA CASA DE MIS DE PIRASSUNUNGA","-","-","-","-","H/M/PS","H/M/PS","H/M/PS","H/M/PS"]
[null,279,"HOSPITAIS","SAO PAULO DEMAIS CIDADES","PRESIDENTE EPITACIO","IRM DA STA CASA DE MIS DE PRES EPITACIO","-","-","H/M/PS","H/M/PS","H/M/PS","H/M/PS","H/M/PS","H/M/PS"]
[null,280,"HOSPITAIS","SAO PAULO DEMAIS CIDADES","PRESIDENTE PRUDENTE","HOSPITAL E MATERNIDADE PRESIDENTE PRUDENTE SC","-","-","H/M/PS","H/M/PS","H/M/PS","H/M/PS","H/M/PS","H/M/PS"]
[null,281,"HOSPITAIS","SAO PAULO DEMAIS CIDADES","PRESIDENTE PRUDENTE","CENTRO DE FRATURAS E ORTOPEDIA SAO LUCAS S/S","-","-","-","-","H","H","H","H"]
[null,282,"HOSPITAIS","SAO PAULO DEMAIS CIDADES","PRESIDENTE VENCESLAU","IRMANDADE DA SANTA CASA DE PRESIDENTE VENCESLAU","-","-","-","-","H/M/PS","H/M/PS","H/M/PS","H/M/PS"]
[null,283,"HOSPITAIS","SAO PAULO DEMAIS CIDADES","REGISTRO","HOSP E P S E MAT SAO JOSE","-","-","H/M/PS","H/M/PS","H/M/PS","H/M/PS","H/M/PS","H/M/PS"]
[null,284,"HOSPITAIS","SAO PAULO DEMAIS CIDADES","RIBEIRAO PRETO","HOSPITAL E MATERNIDADE SINHA JUNQUEIRA","-","-","H/M/PS","H/M/PS","H/M/PS","H/M/PS","H/M/PS","H/M/PS"]
[null,285,"HOSPITAIS","SAO PAULO DEMAIS CIDADES","RIBEIRAO PRETO","SAO FRANCISCO SISTEMAS DE SAUDE SC","-","-","H/PS","H/M/PS","H/M/PS","H/M/PS","H/M/PS","H/M/PS"]
[null,286,"HOSPITAIS","SAO PAULO DEMAIS CIDADES","RIBEIRAO PRETO","HOSPITAL SANTA LYDIA","-","-","-","-","H/M/PS","H/M/PS","H/M/PS","H/M/PS"]
[null,287,"HOSPITAIS","SAO PAULO DEMAIS CIDADES","RIBEIRAO PRETO","HOSPITAL DAS CLINICAS - FAEPA","-","-","-","-","-","-","-","H/M"]
[null,288,"HOSPITAIS","SAO PAULO DEMAIS CIDADES","RIO CLARO","STA CASA DE MISERICORDIA DE RIO CLARO","-","-","H/M/PS","H/M/PS","H/M/PS","H/M/PS","H/M/PS","H/M/PS"]
[null,289,"HOSPITAIS","SAO PAULO DEMAIS CIDADES","SANTA BARBARA DOESTE","HOSPITAL SANTA BARBARA","-","-","H/M/PS","H/M/PS","H/M/PS","H/M/PS","H/M/PS","H/M/PS"]
[null,290,"HOSPITAIS","SAO PAULO DEMAIS CIDADES","SAO JOAO DA BOA VISTA","STA CASA MIS CAROLINA MALHEIROS","-","-","-","-","H/M/PS","H/M/PS","H/M/PS","H/M/PS"]
[null,291,"HOSPITAIS","SAO PAULO DEMAIS CIDADES","SAO JOSE DO RIO PRETO","IRM DA SANT CASA DE MISER DE SAO JOSE DO RIO PRETO","-","-","H/M/PS","H/M/PS","H/M/PS","H/M/PS","H/M/PS","H/M/PS"]
[null,292,"HOSPITAIS","SAO PAULO DEMAIS CIDADES","SAO JOSE DO RIO PRETO","CLIN PSIQ SIQUEIRA CAMPOS LTDA","-","-","-","H","H","H","H","H"]
[null,293,"HOSPITAIS","SAO PAULO DEMAIS CIDADES","SAO JOSE DO RIO PRETO","CASA DE SAUDE SANTA HELENA","-","-","-","-","H/M/PS","H/M/PS","H/M/PS","H/M/PS"]
[null,294,"HOSPITAIS","SAO PAULO DEMAIS CIDADES","SAO JOSE DO RIO PRETO","CENTRO MEDICO RIO PRETO","-","-","-","-","H/M/PS","H/M/PS","H/M/PS","H/M/PS"]
[null,295,"HOSPITAIS","SAO PAULO DEMAIS CIDADES","SAO JOSE DO RIO PRETO","HOSPITAL DO CORACAO RIO PRETO SC","-","-","-","-","H/PS","H/PS","H/PS","H/PS"]
[null,296,"HOSPITAIS","SAO PAULO DEMAIS CIDADES","SAO JOSE DO RIO PRETO","SOC PORT DE BENEF HOSP INFANTE D. HENRIQUE","-","-","-","-","H/M/PS","H/M/PS","H/M/PS","H/M/PS"]
[null,297,"HOSPITAIS","SAO PAULO DEMAIS CIDADES","SAO JOSE DO RIO PRETO","FUND FACULDADE REGIONAL MED S JOSE DO R PRETO","-","-","-","-","-","H/M/PS","H/M/PS","H/M/PS"]
[null,298,"HOSPITAIS","SAO PAULO DEMAIS CIDADES","SAO JOSE DOS CAMPOS","PROVISAO","-","-","H","H","H","H","H","H"]
[null,299,"HOSPITAIS","SAO PAULO DEMAIS CIDADES","SAO JOSE DOS CAMPOS","GACC GRUPO DE ASSISTENCIA A CRIANCA COM CANCER","-","-","H/PS","H/PS","H/PS","H/PS","H/PS","H/PS"]
[null,300,"HOSPITAIS","SAO PAULO DEMAIS CIDADES","SAO JOSE DOS CAMPOS","IRM DA SANTA CASA DE MIS DE SAO JOSE DOS CAMPOS","-","-","H/M/PS","H/M/PS","H/M/PS","H/M/PS","H/M/PS","H/M/PS"]
[null,301,"HOSPITAIS","SAO PAULO DEMAIS CIDADES","SAO JOSE DOS CAMPOS","FRANCISCA JULIA SAUDE MENTAL E DEPENDENCIA QUIMICA","-","-","H/PS","H/PS","H/PS","H/PS","H/PS","H/PS"]
[null,302,"HOSPITAIS","SAO PAULO DEMAIS CIDADES","SAO JOSE DOS CAMPOS","IPMMI OBRA DE ACAO SOCIAL PIO XII HOSP PIO XII","-","-","-","-","H/PS","H/PS","H/PS","H/PS"]
[null,303,"HOSPITAIS","SAO PAULO DEMAIS CIDADES","SAO JOSE DOS CAMPOS","HOSPITAL E MATERNIDADE POLICLIN","-","-","-","-","H/M/PS","H/M/PS","H/M/PS","H/M/PS"]
[null,304,"HOSPITAIS","SAO PAULO DEMAIS CIDADES","SAO JOSE DOS CAMPOS","POLICLIN -SERV. MEDICO - HOSPITALARES","-","-","-","-","H/PS","H/PS","H/PS","H/PS"]
[null,305,"HOSPITAIS","SAO PAULO DEMAIS CIDADES","SAO JOSE DOS CAMPOS","PRO-INFANCIA SJC HOSP E PS PEDIATRICO","-","-","-","-","H/PS","H/PS","H/PS","H/PS"]
[null,306,"HOSPITAIS","SAO PAULO DEMAIS CIDADES","SAO JOSE DOS CAMPOS","PRONTIL HOSPITAL INFANTIL","-","-","H/PS","H/PS","H/PS","H/PS","H/PS","H/PS"]
[null,307,"HOSPITAIS","SAO PAULO DEMAIS CIDADES","SAO JOSE DOS CAMPOS","HOSPITAL VIVALLE","-","-","-","-","H/PS","H/PS","-","H/PS"]
[null,308,"HOSPITAIS","SAO PAULO DEMAIS CIDADES","SAO SEBASTIAO","IRMANDADE DA SANTA CASA CORACAO DE JESUS","-","-","H/M/PS","H/M/PS","H/M/PS","H/M/PS","H/M/PS","H/M/PS"]
[null,309,"HOSPITAIS","SAO PAULO DEMAIS CIDADES","SERRANA","SANTA CASA DE MISERICORDIA DE SERRANA","-","-","H/M/PS","H/M/PS","H/M/PS","H/M/PS","H/M/PS","H/M/PS"]
[null,310,"HOSPITAIS","SAO PAULO DEMAIS CIDADES","TAUBATE","HOSP SAO CAMILO - HOSPITAL REGIONAL DO VALE","-","-","H/PS","H/PS","H/PS","H/PS","H/PS","H/PS"]
[null,311,"HOSPITAIS","SAO PAULO DEMAIS CIDADES","TAUBATE","CLINICA SAINT GERMAIN","-","-","-","-","H","H","H","H"]
[null,312,"HOSPITAIS","SAO PAULO DEMAIS CIDADES","TAUBATE","POLICLIN SERVICOS MEDICO - HOSPITALARES","-","-","-","-","H/M/PS","H/M/PS","H/M/PS","H/M/PS"]
[null,313,"HOSPITAIS","SAO PAULO DEMAIS CIDADES","TAUBATE","HOSP SAO LUCAS DE TAUBATE","-","-","H/M/PS","H/M/PS","H/M/PS","H/M/PS","H/M/PS","H/M/PS"]
[null,314,"HOSPITAIS","SAO PAULO DEMAIS CIDADES","TREMEMBE","IRM FILANTROPICA HOSP B JESUS STA CS MIS TREMEMBE","-","-","-","-","M","M","M","M"]
[null,315,"HOSPITAIS","SAO PAULO DEMAIS CIDADES","TUPA","HOSPITAL SAO FRANCISCO DE ASSIS DE TUPA","-","-","-","-","H/M/PS","H/M/PS","H/M/PS","H/M/PS"]
[null,316,"HOSPITAIS","SAO PAULO DEMAIS CIDADES","UBATUBA","STA CASA MIS IRM SR DOS PASSOS DE UBATUBA","-","-","H/M/PS","H/M/PS","H/M/PS","H/M/PS","H/M/PS","H/M/PS"]
[null,317,"HOSPITAIS","SOROCABA E REGIAO","BOITUVA","HOSPITAL SAO LUIZ","-","H/M/PS","H/M/PS","H/M/PS","H/M/PS","H/M/PS","H/M/PS","H/M/PS"]
[null,318,"HOSPITAIS","SOROCABA E REGIAO","INDAIATUBA","HOSPITAL AUGUSTO DE OLIVEIRA CAMARGO - HAOC","-","-","H/M/PS","H/M/PS","H/M/PS","H/M/PS","H/M/PS","H/M/PS"]
[null,319,"HOSPITAIS","SOROCABA E REGIAO","ITU","CC ITU","PA*","PA*","PA*","PA*","PA*","PA*","PA*","PA*"]
[null,320,"HOSPITAIS","SOROCABA E REGIAO","ITU","SOCIEDADE BENEFICENTE SAO CAMILO","H/M/PS","H/M/PS","H/M/PS","H/M/PS","H/M/PS","H/M/PS","H/M/PS","H/M/PS"]
[null,321,"HOSPITAIS","SOROCABA E REGIAO","PIEDADE","SANTA CASA DE MISERICORDIA DE PIEDADE","-","H/M/PS","H/M/PS","H/M/PS","H/M/PS","H/M/PS","H/M/PS","H/M/PS"]
[null,322,"HOSPITAIS","SOROCABA E REGIAO","PORTO FELIZ","IRM DA STA CASA DE MIS DE PORTO FELIZ","-","H/M/PS","H/M/PS","H/M/PS","H/M/PS","H/M/PS","H/M/PS","H/M/PS"]
[null,323,"HOSPITAIS","SOROCABA E REGIAO","PILAR DO SUL","IRMANDADE STA CASA MISERICORDIA PILAR DO SUL","-","-","-","-","-","H/M/PS","H/M/PS","H/M/PS"]
[null,324,"HOSPITAIS","SOROCABA E REGIAO","SALTO","HOSP E MAT MUNIC N SRA MONTE SERRAT","-","H/M/PS","H/M/PS","H/M/PS","H/M/PS","H/M/PS","H/M/PS","H/M/PS"]
[null,325,"HOSPITAIS","SOROCABA E REGIAO","SALTO DE PIRAPORA","HOSP IRM DA SANTA CASA DE MIS DE SALTO DE PIRAPORA","H/M/PS","H/M/PS","H/M/PS","H/M/PS","H/M/PS","H/M/PS","H/M/PS","H/M/PS"]
[null,326,"HOSPITAIS","SOROCABA E REGIAO","SAO ROQUE","IRMANDADE DA SANTA CASA DE MISER DE SAO ROQUE","-","H/M/PS","H/M/PS","H/M/PS","H/M/PS","H/M/PS","H/M/PS","H/M/PS"]
[null,327,"HOSPITAIS","SOROCABA E REGIAO","SOROCABA","HOSP MODELO","H/M/PS","H/M/PS","H/M/PS","H/M/PS","H/M/PS","H/M/PS","H/M/PS","H/M/PS"]
[null,328,"HOSPITAIS","SOROCABA E REGIAO","SOROCABA","BANCO DE OLHOS DE SOROCABA S C","H/PS","H/PS","H/PS","H/PS","H/PS","H/PS","H/PS","H/PS"]
[null,329,"HOSPITAIS","SOROCABA E REGIAO","SOROCABA","GPACI GRUPO DE PESQ E ASSIST AO CANCER INFANTIL","-","-","H","H/PS","H/PS","H/PS","H/PS","H/PS"]
[null,330,"HOSPITAIS","SOROCABA E REGIAO","SOROCABA","FUNDACAO SAO PAULO HOSP SANTA LUCINDA","-","H/M","H/M","H/M","H/M","H/M","H/M","H/M"]
[null,331,"HOSPITAIS","SOROCABA E REGIAO","SOROCABA","AEB ASSOC EVANG BENEF HOSP EVANGELICO DE SOROCABA","-","-","H","H","H","H","H","H"]
[null,332,"HOSPITAIS","SOROCABA E REGIAO","TATUI","SANTA CASA DE MISERICORDIA DE TATUI","H/M","H/M","H/M","H/M","H/M","H/M","H/M","H/M"]
[null,333,"HOSPITAIS","SOROCABA E REGIAO","VOTORANTIM","HOSPMED SERV MEDS ME","-","-","H/PS","H/PS","H/PS","H/PS","H/PS","H/PS"]
[null,334,"HOSPITAIS","SOROCABA E REGIAO","VOTUPORANGA","SANTA CASA DE MISERICORDIA DE VOTUPORANGA","-","-","H/M/PS","H/M/PS","H/M/PS","H/M/PS","H/M/PS","H/M/PS"]
[null,335,"LABORATÓRIOS","SAO PAULO CAPITAL","SAO PAULO","BENVISTA OFTALMOLOGIA","X","X","X","X","X","X","X","X"]
[null,336,"LABORATÓRIOS","SAO PAULO CAPITAL","SAO PAULO","BIOTOX CT LAB ANAL CLI E TOXICOLOGICAS","X","X","X","X","X","X","X","X"]
[null,337,"LABORATÓRIOS","SAO PAULO CAPITAL","SAO PAULO","CARDIOLOGICA MED DIAG SERVS","X","X","X","X","X","X","X","X"]
[null,338,"LABORATÓRIOS","SAO PAULO CAPITAL","SAO PAULO","CLIN DE DIAGS DR LUIZ SCOPPETTA","X","X","X","X","X","X","X","X"]
[null,339,"LABORATÓRIOS","SAO PAULO CAPITAL","SAO PAULO","CC DOM PEDRO (ANTIGO CC DA MULHER)","X","X","X","X","X","X","X","X"]
[null,340,"LABORATÓRIOS","SAO PAULO CAPITAL","SAO PAULO","CLIN DE ULTRASS A A DIAG POR IMAGEM .","X","X","X","X","X","X","X","X"]
[null,341,"LABORATÓRIOS","SAO PAULO CAPITAL","SAO PAULO","CRYA MEDICINA DIAGNOSTICA","X","X","X","X","X","X","X","X"]
[null,342,"LABORATÓRIOS","SAO PAULO CAPITAL","SAO PAULO","DR.GHELFOND DIAGNOSTICO MEDICO","X","X","X","X","X","X","X","X"]
[null,343,"LABORATÓRIOS","SAO PAULO CAPITAL","SAO PAULO","INST DE CARDIOLOGIA DA ZONA LESTE SS","X","X","X","X","X","X","X","X"]
[null,344,"LABORATÓRIOS","SAO PAULO CAPITAL","SAO PAULO","INSTITUTO VIDA DE FISIOTERAPIA","X","X","X","X","X","X","X","X"]
[null,345,"LABORATÓRIOS","SAO PAULO CAPITAL","SAO PAULO","LAB DE ANAL CLINICAS SANITAS","X","X","X","X","X","X","X","X"]
[null,346,"LABORATÓRIOS","SAO PAULO CAPITAL","SAO PAULO","LABORATORIO DE ANALISES SAO VICENTE","X","X","X","X","X","X","X","X"]
[null,347,"LABORATÓRIOS","SAO PAULO CAPITAL","SAO PAULO","MAXIMO CENTRO DE DIAGNOSTICO","X","X","X","X","X","X","X","X"]
[null,348,"LABORATÓRIOS","SAO PAULO CAPITAL","SAO PAULO","G2 LAB DE ANAL CLINS LTDA","X","X","X","X","X","X","X","X"]
[null,349,"LABORATÓRIOS","SAO PAULO CAPITAL","SAO PAULO","MELLO LABORATORIO MEDICO DE ANAL CLIN","X","X","X","X","X","X","X","X"]
[null,350,"LABORATÓRIOS","SAO PAULO CAPITAL","SAO PAULO","NASA LAB BIO CLINICO","X","X","X","X","X","X","X","X"]
[null,351,"LABORATÓRIOS","SAO PAULO CAPITAL","SAO PAULO","NOTRELABS HERMINIO LEMOS","X","X","X","X","X","X","X","X"]
[null,352,"LABORATÓRIOS","SAO PAULO CAPITAL","SAO PAULO","OFTALMOCARE MEDICAL","X","X","X","X","X","X","X","X"]
[null,353,"LABORATÓRIOS","SAO PAULO CAPITAL","SAO PAULO","PATHOS ANATOMOPATOLOGIA","X","X","X","X","X","X","X","X"]
[null,354,"LABORATÓRIOS","SAO PAULO CAPITAL","SAO PAULO","PRESECOR DIAGNOSTICOS EM MEDICINA","X","X","X","X","X","X","X","X"]
[null,355,"LABORATÓRIOS","SAO PAULO CAPITAL","SAO PAULO","NOTRELABS BELEM","X","X","X","X","X","X","X","X"]
[null,356,"LABORATÓRIOS","SAO PAULO CAPITAL","SAO PAULO","CDB CTO DE DIAG BRASIL TKS","-","X","X","X","X","X","X","X"]
[null,357,"LABORATÓRIOS","SAO PAULO CAPITAL","SAO PAULO","CIDS CLIN INTEGRADA DE DIAG.SONOGR.","-","X","X","X","X","X","X","X"]
[null,358,"LABORATÓRIOS","SAO PAULO CAPITAL","SAO PAULO","IMED CENTRO DE DIAG POR IMAGEM","-","X","X","X","X","X","X","X"]
[null,359,"LABORATÓRIOS","SAO PAULO CAPITAL","SAO PAULO","CENTRO ULTRASSONOGRAFICO","-","-","X","X","X","X","X","X"]
[null,360,"LABORATÓRIOS","SAO PAULO CAPITAL","SAO PAULO","CLIN SCHMILLEVITCH DIAGNOSTICO POR IMAGEM","-","-","X","X","X","X","X","X"]
[null,361,"LABORATÓRIOS","SAO PAULO CAPITAL","SAO PAULO","DIAGNOSTIKA","-","-","X","X","X","X","X","X"]
[null,362,"LABORATÓRIOS","SAO PAULO CAPITAL","SAO PAULO","AVANTE MEDICINA DIAG EIRELI","-","-","X","X","X","X","X","X"]
[null,363,"LABORATÓRIOS","SAO PAULO CAPITAL","SAO PAULO","LAVOISIER MEDICINA DIAGNOSTICA","-","-","X","X","X","X","X","X"]
[null,364,"LABORATÓRIOS","SAO PAULO CAPITAL","SAO PAULO","RENACOR SERVICOS MEDICOS","-","-","X","X","X","X","X","X"]
[null,365,"LABORATÓRIOS","SAO PAULO CAPITAL","SAO PAULO","FEMME LABORATORIO DA MULHER","-","-","X","X","X","X","X","X"]
[null,366,"LABORATÓRIOS","SAO PAULO CAPITAL","SAO PAULO","A + MEDICINA DIAGNOSTICA","-","-","-","X","X","X","X","X"]
[null,367,"LABORATÓRIOS","SAO PAULO CAPITAL","SAO PAULO","CDB PENHA","-","-","-","X","X","X","X","X"]
[null,368,"LABORATÓRIOS","SAO PAULO CAPITAL","SAO PAULO","CEDAC CENTRO DE DIAGNOSTICO E ANALISES CLINICAS","-","-","-","X","X","X","X","X"]
[null,369,"LABORATÓRIOS","SAO PAULO CAPITAL","SAO PAULO","CENTRO DIAGNOSTICO UCD","-","-","-","X","X","X","X","X"]
[null,370,"LABORATÓRIOS","SAO PAULO CAPITAL","SAO PAULO","CIMERMAN ANALISES CLINICAS","-","-","-","X","X","X","X","X"]
[null,371,"LABORATÓRIOS","SAO PAULO CAPITAL","SAO PAULO","CIUTAT CENTRO DE DIAGNOSTICO","-","-","-","X","X","X","X","X"]
[null,372,"LABORATÓRIOS","SAO PAULO CAPITAL","SAO PAULO","IMUVI INSTITUTO MEDICO HUMANA E VITAE","-","-","-","X","X","X","X","X"]
[null,373,"LABORATÓRIOS","SAO PAULO CAPITAL","SAO PAULO","INSTITUTO DE MEDICINA DIGITAL DIMED","-","-","-","X","X","X","X","X"]
[null,374,"LABORATÓRIOS","SAO PAULO CAPITAL","SAO PAULO","LABOR LABIS","-","-","-","X","X","X","X","X"]
[null,375,"LABORATÓRIOS","SAO PAULO CAPITAL","SAO PAULO","LABORATORIO PLINIO SANTOS","-","-","-","X","X","X","X","X"]
[null,376,"LABORATÓRIOS","SAO PAULO CAPITAL","SAO PAULO","NAKANO E TORATA MEDICINA DIAGNOSTICA","-","-","-","X","X","X","X","X"]
[null,377,"LABORATÓRIOS","SAO PAULO CAPITAL","SAO PAULO","UDDO UND DE DIAGNOSTICO E DENSIT OSSEA","-","-","-","X","X","X","X","X"]
[null,378,"LABORATÓRIOS","SAO PAULO CAPITAL","SAO PAULO","CLINICA NORTH WHITE","-","-","-","-","X","X","X","X"]
[null,379,"LABORATÓRIOS","SAO PAULO CAPITAL","SAO PAULO","LBM LAB BIO-MEDICO","-","-","-","-","X","X","X","X"]
[null,380,"LABORATÓRIOS","SAO PAULO CAPITAL","SAO PAULO","FISIOART","-","-","-","-","X","X","X","X"]
[null,381,"LABORATÓRIOS","SAO PAULO CAPITAL","SAO PAULO","INST DE RAD DR GIOVANNI GUERRINI","-","-","-","-","X","X","X","X"]
[null,382,"LABORATÓRIOS","SAO PAULO CAPITAL","SAO PAULO","JABLONKA CENTRO DE DIAG","-","-","-","-","X","X","X","X"]
[null,383,"LABORATÓRIOS","SAO PAULO CAPITAL","SAO PAULO","LAB CLIN RAUL DIAS DOS SANTOS","-","-","-","-","X","X","X","X"]
[null,384,"LABORATÓRIOS","SAO PAULO CAPITAL","SAO PAULO","LABORATORIO NEURODIAGNOSTICO","-","-","-","-","X","X","X","X"]
[null,385,"LABORATÓRIOS","SAO PAULO CAPITAL","SAO PAULO","MILITELLO","-","-","-","-","X","X","X","X"]
[null,386,"LABORATÓRIOS","SAO PAULO CAPITAL","SAO PAULO","SONIMED","-","-","-","-","X","X","X","X"]
[null,387,"LABORATÓRIOS","SAO PAULO CAPITAL","SAO PAULO","CDB PREMIUM","-","-","-","-","-","X","X","X"]
[null,388,"LABORATÓRIOS","SAO PAULO CAPITAL","SAO PAULO","CENTRO DE DIAGNÓSTICO HOSPITAL SÍRIO LIBANÊS UNIDADE ITAIM","-","-","-","-","-","X","X","X"]
[null,389,"LABORATÓRIOS","SAO PAULO CAPITAL","SAO PAULO","CLUB D A","-","-","-","-","-","X","X","X"]
[null,390,"LABORATÓRIOS","SAO PAULO CAPITAL","SAO PAULO","CTO PAULISTA DE ENDOSCOPIA","-","-","-","-","-","X","X","X"]
[null,391,"LABORATÓRIOS","SAO PAULO CAPITAL","SAO PAULO","CURA CENTRO DE ULTRASSONOGRAFIA E RADIOLOGIA","-","-","-","-","-","X","X","X"]
[null,392,"LABORATÓRIOS","SAO PAULO CAPITAL","SAO PAULO","DELBONI AURIEMO MED DIAG","-","-","-","-","-","X","X","X"]
[null,393,"LABORATÓRIOS","SAO PAULO CAPITAL","SAO PAULO","SALOMAO E ZOPPI MED DIAGNOSTICA","-","-","-","-","-","X","X","X"]
[null,394,"LABORATÓRIOS","SAO PAULO CAPITAL","SAO PAULO","FLEURY","-","-","-","-","-","-","-","X"]
[null,395,"LABORATÓRIOS","SAO PAULO CAPITAL","SAO PAULO","ALTA EXCELENCIA DIAGNOSTICA","-","-","-","-","-","-","-","X"]
[null,396,"LABORATÓRIOS","SAO PAULO CAPITAL","SAO PAULO","CENTRO MEDICO SAO CAMILO","-","-","-","-","-","-","-","X"]
[null,397,"LABORATÓRIOS","SAO PAULO DEMAIS CIDADES","AGUDOS","LABORATORIO SOBRINHO","-","-","-","-","X","X","X","X"]
[null,398,"LABORATÓRIOS","SAO PAULO DEMAIS CIDADES","AMERICANA","LABCLIN","-","-","X","X","X","X","X","X"]
[null,399,"LABORATÓRIOS","SAO PAULO DEMAIS CIDADES","AMERICANA","PRO COR EXAMES DO CORACAO","-","-","X","X","X","X","X","X"]
[null,400,"LABORATÓRIOS","SAO PAULO DEMAIS CIDADES","AMERICANA","CETAM","-","-","-","-","X","X","X","X"]
[null,401,"LABORATÓRIOS","SAO PAULO DEMAIS CIDADES","AMERICANA","LABORATORIO DE ANALISES CLINICAS PREVILAB","-","-","-","-","X","X","X","X"]
[null,402,"LABORATÓRIOS","SAO PAULO DEMAIS CIDADES","AMERICANA","ROSSETTI DIAGNOSTICO POR IMAGEM","-","-","-","-","X","X","X","X"]
[null,403,"LABORATÓRIOS","SAO PAULO DEMAIS CIDADES","AMERICANA","UNIFISIO","-","-","-","-","X","X","X","X"]
[null,404,"LABORATÓRIOS","SOROCABA E REGIAO","ARACOIABA DA SERRA","CEDIAR CENTRO DE DIAGN DE ARACOIABA SC","-","X","X","X","X","X","X","X"]
[null,405,"LABORATÓRIOS","SOROCABA E REGIAO","ARACOIABA DA SERRA","IDS INSTITUTO DE DIAGNOSTICO DE SOROCABA SC","-","X","X","X","X","X","X","X"]
[null,406,"LABORATÓRIOS","SOROCABA E REGIAO","ARACOIABA DA SERRA","TRIADE LAB DE ANAL CLINICAS E CITOLOGIA ME","-","X","X","X","X","X","X","X"]
[null,407,"LABORATÓRIOS","CAMPINAS E REGIAO","ARTUR NOGUEIRA","CLINESP DE ARTUR NOGUEIRA","-","X","X","X","X","X","X","X"]
[null,408,"LABORATÓRIOS","CAMPINAS E REGIAO","ARTUR NOGUEIRA","LABORATORIO SAO PAULO","-","X","X","X","X","X","X","X"]
[null,409,"LABORATÓRIOS","GRANDE SAO PAULO","ARUJA","LAB DELIBERATO DE ANAL CLIN","X","X","X","X","X","X","X","X"]
[null,410,"LABORATÓRIOS","GRANDE SAO PAULO","ASSIS","IAM LAB DIAGNOSTICO ME","-","-","X","X","X","X","X","X"]
[null,411,"LABORATÓRIOS","GRANDE SAO PAULO","ASSIS","TOMOESTE CENTRO DE TOMO COMPUTADORIZADA DE ASSIS","-","-","X","X","X","X","X","X"]
[null,412,"LABORATÓRIOS","JUNDIAI E REGIAO","ATIBAIA","SOCIEDADE MEDICA NOVO MILLENIUM SC","-","X","X","X","X","X","X","X"]
[null,413,"LABORATÓRIOS","JUNDIAI E REGIAO","ATIBAIA","UNILAB LABORATORIO CLINICO","-","-","-","X","X","X","X","X"]
[null,414,"LABORATÓRIOS","JUNDIAI E REGIAO","ATIBAIA","CENTRO RADIOLOGICO ATIBAIA","-","-","-","-","X","X","X","X"]
[null,415,"LABORATÓRIOS","JUNDIAI E REGIAO","ATIBAIA","LABORATORIO CLIMA","-","-","-","-","X","X","X","X"]
[null,416,"LABORATÓRIOS","SAO PAULO DEMAIS CIDADES","BARRETOS","LABORATORIO DR SUZUKI","-","-","-","-","X","X","X","X"]
[null,417,"LABORATÓRIOS","GRANDE SAO PAULO","BARUERI","CLIN ARAGUAIA","-","-","X","X","X","X","X","X"]
[null,418,"LABORATÓRIOS","GRANDE SAO PAULO","BARUERI","LAVOISIER MEDICINA DIAGNOSTICA","-","-","X","X","X","X","X","X"]
[null,419,"LABORATÓRIOS","GRANDE SAO PAULO","BARUERI","FISIOTERAPIA SANTANNA","-","-","-","-","X","X","X","X"]
[null,420,"LABORATÓRIOS","GRANDE SAO PAULO","BARUERI","DELBONI AURIEMO MED DIAG","-","-","-","-","-","X","X","X"]
[null,421,"LABORATÓRIOS","GRANDE SAO PAULO","BARUERI","CLUB D A","-","-","-","-","-","X","X","X"]
[null,422,"LABORATÓRIOS","GRANDE SAO PAULO","BARUERI","FLEURY S.A","-","-","-","-","-","-","-","X"]
[null,423,"LABORATÓRIOS","SAO PAULO DEMAIS CIDADES","BATATAIS","UNIMAGEM RP SERVS MEDS S S","-","-","-","-","X","X","X","X"]
[null,424,"LABORATÓRIOS","SAO PAULO DEMAIS CIDADES","BAURU","CDI CENTRO DE DIAGNOSTICO POR IMAGEM DE BAURU","-","-","-","-","X","X","X","X"]
[null,425,"LABORATÓRIOS","SAO PAULO DEMAIS CIDADES","BAURU","CLIN DE MEDICINA NUCLEAR DE BAURU SC","-","-","-","-","X","X","X","X"]
[null,426,"LABORATÓRIOS","SAO PAULO DEMAIS CIDADES","BAURU","CR MEDICINA DIAGNOSTICA E PATOLOGIA CLINICA","-","-","-","-","X","X","X","X"]
[null,427,"LABORATÓRIOS","SAO PAULO DEMAIS CIDADES","BAURU","INSTITUTO BAURUENSE RESSONANCIA MAGNETICA","-","-","-","-","X","X","X","X"]
[null,428,"LABORATÓRIOS","SAO PAULO DEMAIS CIDADES","BAURU","LABORATORIO DE BAURU DE PATOLOGIA CLINICA SC","-","-","-","-","X","X","X","X"]
[null,429,"LABORATÓRIOS","SAO PAULO DEMAIS CIDADES","BAURU","TECNOLAB PATOLOGIA CLINICA","-","-","-","-","X","X","X","X"]
[null,430,"LABORATÓRIOS","BAIXADA SANTISTA","BERTIOGA","ITAPEMA LABORATORIO DE ANALISES CLINICAS","X","X","X","X","X","X","X","X"]
[null,431,"LABORATÓRIOS","SOROCABA E REGIAO","BOITUVA","C & M DIAGNOSTICOS MEDICOS BOITUVA","-","X","X","X","X","X","X","X"]
[null,432,"LABORATÓRIOS","SOROCABA E REGIAO","BOITUVA","COR TOTALIS CLINICA MEDICA BOITUVA","-","X","X","X","X","X","X","X"]
[null,433,"LABORATÓRIOS","SOROCABA E REGIAO","BOITUVA","LAB DE ANAL CLINS FOIZER","-","X","X","X","X","X","X","X"]
[null,434,"LABORATÓRIOS","JUNDIAI E REGIAO","BRAGANCA PAULISTA","CLIN SANTO ANTONIO S C LIMITADA","-","-","X","X","X","X","X","X"]
[null,435,"LABORATÓRIOS","SAO PAULO DEMAIS CIDADES","CACAPAVA","INSTITUTO TOMOVALE DE RADIOLOGIA","-","-","X","X","X","X","X","X"]
[null,436,"LABORATÓRIOS","SAO PAULO DEMAIS CIDADES","CACAPAVA","LABORATORIO SAO JOSE","-","-","X","X","X","X","X","X"]
[null,437,"LABORATÓRIOS","SAO PAULO DEMAIS CIDADES","CACAPAVA","LABORATORIO DE ANAL CLIN OSWALDO CRUZ","-","-","-","X","X","X","X","X"]
[null,438,"LABORATÓRIOS","GRANDE SAO PAULO","CAIEIRAS","CLINICANALISES CLINICAS","-","-","-","X","X","X","X","X"]
[null,439,"LABORATÓRIOS","CAMPINAS E REGIAO","CAMPINAS","CLINICA SANTA CRUZ","X","X","X","X","X","X","X","X"]
[null,440,"LABORATÓRIOS","CAMPINAS E REGIAO","CAMPINAS","LABORATORIOS FREEMAN DE ANALISES CLINICAS","X","X","X","X","X","X","X","X"]
[null,441,"LABORATÓRIOS","CAMPINAS E REGIAO","CAMPINAS","LAB DE PAT CLIN A FREALDO S C LTD","-","X","X","X","X","X","X","X"]
[null,442,"LABORATÓRIOS","CAMPINAS E REGIAO","CAMPINAS","CENTRO DE CARDIOLOGIA E DIAG CAMPINAS","-","-","X","X","X","X","X","X"]
[null,443,"LABORATÓRIOS","CAMPINAS E REGIAO","CAMPINAS","LABORATORIO EMILIO RIBAS","-","-","X","X","X","X","X","X"]
[null,444,"LABORATÓRIOS","CAMPINAS E REGIAO","CAMPINAS","CAMP IMAGEM IMAGENS MEDICAS DE CAMPINAS","-","-","-","X","X","X","X","X"]
[null,445,"LABORATÓRIOS","CAMPINAS E REGIAO","CAMPINAS","CENDICAMP CENTRAL DIAGNOSTICA CAMPINAS SC","-","-","-","X","X","X","X","X"]
[null,446,"LABORATÓRIOS","CAMPINAS E REGIAO","CAMPINAS","ECO CLINICA","-","-","-","X","X","X","X","X"]
[null,447,"LABORATÓRIOS","CAMPINAS E REGIAO","CAMPINAS","LABORATORIO VOZZA","-","-","-","X","X","X","X","X"]
[null,448,"LABORATÓRIOS","CAMPINAS E REGIAO","CAMPINAS","LABORATORIO DR ROBERTO FRANCO DO AMARAL","-","-","-","X","X","X","X","X"]
[null,449,"LABORATÓRIOS","CAMPINAS E REGIAO","CAMPINAS","LABORATORIO CONFIANCE","-","-","-","X","X","X","X","X"]
[null,450,"LABORATÓRIOS","CAMPINAS E REGIAO","CAMPINAS","ANDREA DA GRACA LIMA ZUCCOLOTTO","-","-","-","-","X","X","X","X"]
[null,451,"LABORATÓRIOS","CAMPINAS E REGIAO","CAMPINAS","CDE CLIN MED LIMITADA","-","-","-","-","X","X","X","X"]
[null,452,"LABORATÓRIOS","CAMPINAS E REGIAO","CAMPINAS","LABORATORIO BACCILI","-","-","-","-","X","X","X","X"]
[null,453,"LABORATÓRIOS","CAMPINAS E REGIAO","CAMPINAS","FENIX LABORATORIO DE ANALISES CLINICAS","-","-","-","-","X","X","X","X"]
[null,454,"LABORATÓRIOS","CAMPINAS E REGIAO","CAMPINAS","LAB DE ANAL CLINS SAMUEL PESSOA LTD","-","-","-","-","X","X","X","X"]
[null,455,"LABORATÓRIOS","CAMPINAS E REGIAO","CAMPINAS","LABORATORIO DE ANALISES E PESQUISAS CLINICAS HENRI","-","-","-","-","X","X","X","X"]
[null,456,"LABORATÓRIOS","CAMPINAS E REGIAO","CAMPINAS","LABORTEST LABORATORIO DE ANALISES CLINICAS","-","-","-","-","X","X","X","X"]
[null,457,"LABORATÓRIOS","CAMPINAS E REGIAO","CAMPINAS","SANCHES E KOEHLER MEDICOS ASSOCIADOS","-","-","-","-","X","X","X","X"]
[null,458,"LABORATÓRIOS","CAMPINAS E REGIAO","CAMPINAS","CENTRO RADIOLOGICO DE CAMPINAS","-","-","-","-","-","X","X","X"]
[null,459,"LABORATÓRIOS","JUNDIAI E REGIAO","CAMPO LIMPO PAULISTA","CC CAMPO LIMPO PAULISTA","X","X","X","X","X","X","X","X"]
[null,460,"LABORATÓRIOS","SAO PAULO DEMAIS CIDADES","CAMPOS DO JORDAO","LAB DE ANALISES CLINICAS SAO LUCAS SS","-","-","X","X","X","X","X","X"]
[null,461,"LABORATÓRIOS","SAO PAULO DEMAIS CIDADES","CAMPOS DO JORDAO","LABORATORIO DE ANAL CLIN OSWALDO CRUZ","-","-","-","X","X","X","X","X"]
[null,462,"LABORATÓRIOS","SAO PAULO DEMAIS CIDADES","CAPIVARI","LABORATORIO DE ANALISES CLINICAS PREVILAB","-","-","-","-","X","X","X","X"]
[null,463,"LABORATÓRIOS","SAO PAULO DEMAIS CIDADES","CARAGUATATUBA","CENTRO OFTALMOLOGICO DO LITORAL NORTE","-","-","X","X","X","X","X","X"]
[null,464,"LABORATÓRIOS","SAO PAULO DEMAIS CIDADES","CARAGUATATUBA","CENTRO MED SAO CAMILO","-","-","X","X","X","X","X","X"]
[null,465,"LABORATÓRIOS","GRANDE SAO PAULO","CARAPICUIBA","R F OFTALMOLOGIA","-","-","X","X","X","X","X","X"]
[null,466,"LABORATÓRIOS","SAO PAULO DEMAIS CIDADES","CATANDUVA","SAO LUCAS LAB DE ANAL CLIN","-","-","-","-","-","X","X","X"]
[null,467,"LABORATÓRIOS","CAMPINAS E REGIAO","COSMOPOLIS","LABORATORIO SAO PAULO","-","X","X","X","X","X","X","X"]
[null,468,"LABORATÓRIOS","GRANDE SAO PAULO","COTIA","CEDIME","X","X","X","X","X","X","X","X"]
[null,469,"LABORATÓRIOS","GRANDE SAO PAULO","COTIA","LAVOISIER MEDICINA DIAGNOSTICA","-","-","X","X","X","X","X","X"]
[null,470,"LABORATÓRIOS","GRANDE SAO PAULO","COTIA","DELBONI AURIEMO MED DIAG","-","-","-","-","-","X","X","X"]
[null,471,"LABORATÓRIOS","GRANDE SAO PAULO","COTIA","CLUB D A","-","-","-","-","-","X","X","X"]
[null,472,"LABORATÓRIOS","BAIXADA SANTISTA","CUBATAO","INST DE ANAL CLINS DE SANTOS SC LTDA","-","-","-","X","X","X","X","X"]
[null,473,"LABORATÓRIOS","BAIXADA SANTISTA","CUBATAO","MULT IMAGEM","-","-","-","X","X","X","X","X"]
[null,474,"LABORATÓRIOS","SAO PAULO ABC / DIADEMA","DIADEMA","NOTRELABS","X","X","X","X","X","X","X","X"]
[null,475,"LABORATÓRIOS","SAO PAULO ABC / DIADEMA","DIADEMA","LABOR UNIAO","-","X","X","X","X","X","X","X"]
[null,476,"LABORATÓRIOS","SAO PAULO ABC / DIADEMA","DIADEMA","SOMEC SOC.DE MEDICINA E CIRURGIA LTDA","-","-","X","X","X","X","X","X"]
[null,477,"LABORATÓRIOS","SAO PAULO ABC / DIADEMA","DIADEMA","TECNOLAB","-","-","-","X","X","X","X","X"]
[null,478,"LABORATÓRIOS","SAO PAULO DEMAIS CIDADES","ELIAS FAUSTO","LAB LABORATORIO DE ANALISES CLINICAS","-","-","-","-","X","X","X","X"]
[null,479,"LABORATÓRIOS","GRANDE SAO PAULO","FRANCO DA ROCHA","CTACT DE APOIO DIAGNOSTICO","X","X","X","X","X","X","X","X"]
[null,480,"LABORATÓRIOS","SAO PAULO DEMAIS CIDADES","GUARATINGUETA","AMM RAIO X ME","-","-","X","X","X","X","X","X"]
[null,481,"LABORATÓRIOS","SAO PAULO DEMAIS CIDADES","GUARATINGUETA","CTO DIAG CARDIO DE GUARATINGUETA SC CARDIOCENTER","-","-","X","X","X","X","X","X"]
[null,482,"LABORATÓRIOS","SAO PAULO DEMAIS CIDADES","GUARATINGUETA","CEPAC CENTRO DE PATOL. E DIAG. CLINICO","-","-","X","X","X","X","X","X"]
[null,483,"LABORATÓRIOS","SAO PAULO DEMAIS CIDADES","GUARATINGUETA","FG LABORATORIO","-","-","X","X","X","X","X","X"]
[null,484,"LABORATÓRIOS","SAO PAULO DEMAIS CIDADES","GUARATINGUETA","LABORATORIO MEDICO VITAL BRASIL","-","-","X","X","X","X","X","X"]
[null,485,"LABORATÓRIOS","SAO PAULO DEMAIS CIDADES","GUARATINGUETA","LABORATORIO SANTA PAULA ANALISES CLINICAS","-","-","X","X","X","X","X","X"]
[null,486,"LABORATÓRIOS","SAO PAULO DEMAIS CIDADES","GUARATINGUETA","SANTA CASA DE GUARATINGUETA","-","-","X","X","X","X","X","X"]
[null,487,"LABORATÓRIOS","BAIXADA SANTISTA","GUARUJA","P A MEDICAL CARE ASSIST MEDICA","-","X","X","X","X","X","X","X"]
[null,488,"LABORATÓRIOS","BAIXADA SANTISTA","GUARUJA","INSTITUTO DE ANALISES CLINICAS DE SANTOS","-","-","-","X","X","X","X","X"]
[null,489,"LABORATÓRIOS","GRANDE SAO PAULO","GUARULHOS","LAB DE ANAL CLINICAS SANITAS","X","X","X","X","X","X","X","X"]
[null,490,"LABORATÓRIOS","GRANDE SAO PAULO","GUARULHOS","LAVOISIER MEDICINA DIAGNOSTICA","-","-","X","X","X","X","X","X"]
[null,491,"LABORATÓRIOS","GRANDE SAO PAULO","GUARULHOS","LOPESFISIO CLIN DE REABILITACAO FISICA","-","-","-","X","X","X","X","X"]
[null,492,"LABORATÓRIOS","GRANDE SAO PAULO","GUARULHOS","DIMAGEM","-","-","-","-","X","X","X","X"]
[null,493,"LABORATÓRIOS","GRANDE SAO PAULO","GUARULHOS","DELBONI AURIEMO MED DIAG","-","-","-","-","-","X","X","X"]
[null,494,"LABORATÓRIOS","CAMPINAS E REGIAO","HORTOLANDIA","PAIVA MOTA ANAL CLINS E SERV MEDS LTDA","X","X","X","X","X","X","X","X"]
[null,495,"LABORATÓRIOS","CAMPINAS E REGIAO","HORTOLANDIA","LABORATORIO ALPHA DE ANALISES CLINICAS","X","X","X","X","X","X","X","X"]
[null,496,"LABORATÓRIOS","GRANDE SAO PAULO","IBIUNA","VITALABOR LABORATORIO DE ANALISES CLINICAS","-","X","X","X","X","X","X","X"]
[null,497,"LABORATÓRIOS","SAO PAULO DEMAIS CIDADES","ILHABELA","DUCLIN LABORATORIOS","-","-","-","X","X","X","X","X"]
[null,498,"LABORATÓRIOS","CAMPINAS E REGIAO","INDAIATUBA","MRI METODOS RADIOLOGICOS E IMAGENS","-","-","X","X","X","X","X","X"]
[null,499,"LABORATÓRIOS","CAMPINAS E REGIAO","INDAIATUBA","LABORATORIO CONFIANCE","-","-","-","X","X","X","X","X"]
[null,500,"LABORATÓRIOS","CAMPINAS E REGIAO","INDAIATUBA","LAB LABORATORIO DE ANALISES CLINICAS","-","-","-","-","X","X","X","X"]
[null,501,"LABORATÓRIOS","CAMPINAS E REGIAO","INDAIATUBA","UNILABOR","-","-","-","-","-","X","X","X"]
[null,502,"LABORATÓRIOS","SAO PAULO DEMAIS CIDADES","IPERO","BIOCENTER","-","X","X","X","X","X","X","X"]
[null,503,"LABORATÓRIOS","BAIXADA SANTISTA","ITANHAEM","ANALISES CLINICAS CELLULA MATER","X","X","X","X","X","X","X","X"]
[null,504,"LABORATÓRIOS","BAIXADA SANTISTA","ITANHAEM","CLINICA ITAMED","-","X","X","X","X","X","X","X"]
[null,505,"LABORATÓRIOS","BAIXADA SANTISTA","ITANHAEM","CT DIAG DE ITANHAEM","-","X","X","X","X","X","X","X"]
[null,506,"LABORATÓRIOS","GRANDE SAO PAULO","ITAPECERICA DA SERRA","COTISCLIN ORT E TRAUMAT DE ITAPEC DA SERRA SC LT","X","X","X","X","X","X","X","X"]
[null,507,"LABORATÓRIOS","GRANDE SAO PAULO","ITAPECERICA DA SERRA","CENTERCLIN LABORATORIO DE ANAL CLIN","-","X","X","X","X","X","X","X"]
[null,508,"LABORATÓRIOS","GRANDE SAO PAULO","ITAPECERICA DA SERRA","DIAGLAB DIAGNOSTICOS LABORATORIAL ","-","-","-","X","X","X","X","X"]
[null,509,"LABORATÓRIOS","SOROCABA E REGIAO","ITAPETININGA","IDS INST DE DIAG DE SOROCABA ITAPETININGA","-","-","X","X","X","X","X","X"]
[null,510,"LABORATÓRIOS","GRANDE SAO PAULO","ITAPEVI","INSTITUTO VIDA DE FISIOTERAPIA","X","X","X","X","X","X","X","X"]
[null,511,"LABORATÓRIOS","GRANDE SAO PAULO","ITAPEVI","NOVA IMAGEM CTO AVANCADO DE DIAG","X","X","X","X","X","X","X","X"]
[null,512,"LABORATÓRIOS","GRANDE SAO PAULO","ITAQUAQUECETUBA","LAB DELIBERATO DE ANAL CLIN","X","X","X","X","X","X","X","X"]
[null,513,"LABORATÓRIOS","JUNDIAI E REGIAO","ITATIBA","CLIMAGEM CLINICA DE DIAGNOSTICO POR IMAGEM","X","X","X","X","X","X","X","X"]
[null,514,"LABORATÓRIOS","JUNDIAI E REGIAO","ITATIBA","EXAME LABORATORIO DE ANAL CLIN .","X","X","X","X","X","X","X","X"]
[null,515,"LABORATÓRIOS","JUNDIAI E REGIAO","ITATIBA","INST DE SAUDE DA MULHER","X","X","X","X","X","X","X","X"]
[null,516,"LABORATÓRIOS","JUNDIAI E REGIAO","ITATIBA","UNILAB LABORATORIO CLINICO","-","-","-","X","X","X","X","X"]
[null,517,"LABORATÓRIOS","JUNDIAI E REGIAO","ITATIBA","BIOCLINICA ANALISES CLINICAS SC","-","-","-","-","X","X","X","X"]
[null,518,"LABORATÓRIOS","SOROCABA E REGIAO","ITU","DIAPREV DIAGNOSTICOS MEDICOS","X","X","X","X","X","X","X","X"]
[null,519,"LABORATÓRIOS","SOROCABA E REGIAO","ITU","FISIOMED CLINICA DE FISIOTERAPIA E REAB","X","X","X","X","X","X","X","X"]
[null,520,"LABORATÓRIOS","SOROCABA E REGIAO","ITU","UNIDADE DE ECOGRAFIA E RADIOLOGIA PINHEIROS","-","-","-","X","X","X","X","X"]
[null,521,"LABORATÓRIOS","SAO PAULO DEMAIS CIDADES","JACAREI","CIPAX MEDICINA DIAGNOSTICA","-","-","X","X","X","X","X","X"]
[null,522,"LABORATÓRIOS","SAO PAULO DEMAIS CIDADES","JACAREI","CLIMED ASSISTENCIA MEDICA","-","-","X","X","X","X","X","X"]
[null,523,"LABORATÓRIOS","SAO PAULO DEMAIS CIDADES","JACAREI","PLANI DIAGNOSTICOS MEDICOS","-","-","X","X","X","X","X","X"]
[null,524,"LABORATÓRIOS","SAO PAULO DEMAIS CIDADES","JACAREI","UNIDADE DE DIAGNOSTICO POR IMAGEM","-","-","X","X","X","X","X","X"]
[null,525,"LABORATÓRIOS","SAO PAULO DEMAIS CIDADES","JACAREI","VALECLIN LABORATORIO DE ANALISES CLINICAS","-","-","X","X","X","X","X","X"]
[null,526,"LABORATÓRIOS","SAO PAULO DEMAIS CIDADES","JACAREI","LABORATORIO DE ANAL CLIN OSWALDO CRUZ","-","-","-","X","X","X","X","X"]
[null,527,"LABORATÓRIOS","SAO PAULO DEMAIS CIDADES","JACAREI","LAB DE ANALISE CLINS SAO JOSE SOC SIMPLES","-","-","-","X","X","X","X","X"]
[null,528,"LABORATÓRIOS","SAO PAULO DEMAIS CIDADES","JACAREI","LABORATORIO UNIDADE MEDICA","-","-","-","-","X","X","X","X"]
[null,529,"LABORATÓRIOS","CAMPINAS E REGIAO","JAGUARIUNA","ANACLIN LAB ANALISES CLINICAS","-","X","X","X","X","X","X","X"]
[null,530,"LABORATÓRIOS","CAMPINAS E REGIAO","JAGUARIUNA","LABORATORIO SAO PAULO","-","X","X","X","X","X","X","X"]
[null,531,"LABORATÓRIOS","GRANDE SAO PAULO","JANDIRA","INSTITUTO VIDA DE FISIOTERAPIA","X","X","X","X","X","X","X","X"]
[null,532,"LABORATÓRIOS","GRANDE SAO PAULO","JANDIRA","CLIN SAO JOAO","-","X","X","X","X","X","X","X"]
[null,533,"LABORATÓRIOS","JUNDIAI E REGIAO","JUNDIAI","BIOCLINICA LABORATORIO - LAB ANAL CLIN SANTA ELISA","X","X","X","X","X","X","X","X"]
[null,534,"LABORATÓRIOS","JUNDIAI E REGIAO","JUNDIAI","STIMULY NUCLEO TERAPIAS INTEGRADAS SC","X","X","X","X","X","X","X","X"]
[null,535,"LABORATÓRIOS","JUNDIAI E REGIAO","JUNDIAI","CARDIOIMAGEM CTO DIAG TERAP CARDIOVASCULAR SC","-","-","-","X","X","X","X","X"]
[null,536,"LABORATÓRIOS","JUNDIAI E REGIAO","JUNDIAI","FISIOCLIN PAOLIELO","-","-","-","X","X","X","X","X"]
[null,537,"LABORATÓRIOS","JUNDIAI E REGIAO","JUNDIAI","A + MEDICINA DIAGNOSTICA","-","-","-","X","X","X","X","X"]
[null,538,"LABORATÓRIOS","JUNDIAI E REGIAO","JUNDIAI","LABORATORIO JORGE EID","-","-","-","X","X","X","X","X"]
[null,539,"LABORATÓRIOS","JUNDIAI E REGIAO","JUNDIAI","UNIDADE DE ECOGRAFIA E RADIOLOGIA PINHEIROS","-","-","-","X","X","X","X","X"]
[null,540,"LABORATÓRIOS","JUNDIAI E REGIAO","JUNDIAI","ANGIOSCAN CTO INTEG DE DIAG E TRAT DE D CIRCULA","-","-","-","-","X","X","X","X"]
[null,541,"LABORATÓRIOS","SAO PAULO DEMAIS CIDADES","LIMEIRA","LABORATORIO DE ANALISES CLINICAS PREVILAB","-","-","-","-","X","X","X","X"]
[null,542,"LABORATÓRIOS","SAO PAULO DEMAIS CIDADES","LIMEIRA","BIO LAB ANALISES CLINICAS","-","-","-","-","-","X","X","X"]
[null,543,"LABORATÓRIOS","SAO PAULO DEMAIS CIDADES","LIMEIRA","IMAGEM CENTRO DE DIAGNOSTICOS","-","-","-","-","-","X","X","X"]
[null,544,"LABORATÓRIOS","SAO PAULO DEMAIS CIDADES","LIMEIRA","LABCLIN LIMEIRA","-","-","-","-","-","X","X","X"]
[null,545,"LABORATÓRIOS","SAO PAULO DEMAIS CIDADES","LIMEIRA","LABCENTER","-","-","-","-","-","X","X","X"]
[null,546,"LABORATÓRIOS","SAO PAULO DEMAIS CIDADES","LORENA","CEPAC CENTRO DE PATOL. E DIAG. CLINICO","-","-","X","X","X","X","X","X"]
[null,547,"LABORATÓRIOS","SAO PAULO DEMAIS CIDADES","LORENA","LABORATORIO MEDICO VITAL BRASIL","-","-","X","X","X","X","X","X"]
[null,548,"LABORATÓRIOS","SAO PAULO DEMAIS CIDADES","LORENA","UEU UNIDADE ESPECIALIZADA EM ULTRASSONOGRAFIA","-","-","X","X","X","X","X","X"]
[null,549,"LABORATÓRIOS","SAO PAULO DEMAIS CIDADES","MATAO","LABORATORIO SAO FRANCISCO DE ANALISES CLINICAS","-","-","-","-","X","X","X","X"]
[null,550,"LABORATÓRIOS","SAO PAULO ABC / MAUA","MAUA","BIOCENTER DIAGNOSTICOS LABORATORIAIS","X","X","X","X","X","X","X","X"]
[null,551,"LABORATÓRIOS","SAO PAULO ABC / MAUA","MAUA","MEDIMAGEM","X","X","X","X","X","X","X","X"]
[null,552,"LABORATÓRIOS","SAO PAULO ABC / MAUA","MAUA","LAB PADRAO DE ANAL CLINICAS","X","X","X","X","X","X","X","X"]
[null,553,"LABORATÓRIOS","SAO PAULO ABC / MAUA","MAUA","TECNOLAB","-","-","-","X","X","X","X","X"]
[null,554,"LABORATÓRIOS","GRANDE SAO PAULO","MOGI DAS CRUZES","CLIN DE MOLESTIA DO AP DIG E VASC CADIVA","X","X","X","X","X","X","X","X"]
[null,555,"LABORATÓRIOS","GRANDE SAO PAULO","MOGI DAS CRUZES","CYTOLAB","X","X","X","X","X","X","X","X"]
[null,556,"LABORATÓRIOS","GRANDE SAO PAULO","MOGI DAS CRUZES","NASA LAB BIO CLINICO","X","X","X","X","X","X","X","X"]
[null,557,"LABORATÓRIOS","GRANDE SAO PAULO","MOGI DAS CRUZES","GARDIENCOR CLINICA MEDICA","-","-","X","X","X","X","X","X"]
[null,558,"LABORATÓRIOS","GRANDE SAO PAULO","MOGI DAS CRUZES","CEDECO","-","-","-","X","X","X","X","X"]
[null,559,"LABORATÓRIOS","GRANDE SAO PAULO","MOGI DAS CRUZES","CDC LABORATORIO","-","-","-","-","X","X","X","X"]
[null,560,"LABORATÓRIOS","GRANDE SAO PAULO","MOGI DAS CRUZES","LAB DE ANAL CLINS DR PEDRO BONELLI S A","-","-","-","-","X","X","X","X"]
[null,561,"LABORATÓRIOS","GRANDE SAO PAULO","MOGI GUACU","CLINMED CLIN ESP EM MED EMB DE MOGI GUACU","-","-","X","X","X","X","X","X"]
[null,562,"LABORATÓRIOS","GRANDE SAO PAULO","MOGI GUACU","LABORATORIO SAO JUDAS TADEU SC","-","-","X","X","X","X","X","X"]
[null,563,"LABORATÓRIOS","GRANDE SAO PAULO","MOGI MIRIM","CITOLAB LABORATORIO DE ANALISES CLINICAS SC","-","-","X","X","X","X","X","X"]
[null,564,"LABORATÓRIOS","BAIXADA SANTISTA","MONGAGUA","CLIN. DE FRATURAS DE MONGAGUA","X","X","X","X","X","X","X","X"]
[null,565,"LABORATÓRIOS","BAIXADA SANTISTA","MONGAGUA","LAB DE ANAL CLINICAS GONZAGA","X","X","X","X","X","X","X","X"]
[null,566,"LABORATÓRIOS","CAMPINAS E REGIAO","MONTE MOR","BIOMEDKA LABORATORIO CLINICO UNIDADE II","-","X","X","X","X","X","X","X"]
[null,567,"LABORATÓRIOS","CAMPINAS E REGIAO","MONTE MOR","MED CENTRO PRESTADORA DE SERVICO MEDICOS","-","X","X","X","X","X","X","X"]
[null,568,"LABORATÓRIOS","GRANDE SAO PAULO","OSASCO","DR.GHELFOND DIAGNOSTICO MEDICO","X","X","X","X","X","X","X","X"]
[null,569,"LABORATÓRIOS","GRANDE SAO PAULO","OSASCO","GS IMAGEM DIAGNOSTICO MEDICO","X","X","X","X","X","X","X","X"]
[null,570,"LABORATÓRIOS","GRANDE SAO PAULO","OSASCO","INSTITUTO VIDA DE FISIOTERAPIA","X","X","X","X","X","X","X","X"]
[null,571,"LABORATÓRIOS","GRANDE SAO PAULO","OSASCO","SION DIAGNOSTICOS","X","X","X","X","X","X","X","X"]
[null,572,"LABORATÓRIOS","GRANDE SAO PAULO","OSASCO","MEDCOR CTO MED CARD DE OSASCO","-","X","X","X","X","X","X","X"]
[null,573,"LABORATÓRIOS","GRANDE SAO PAULO","OSASCO","UNIDADE DE DIAGNOSTICO OSASCO","-","X","X","X","X","X","X","X"]
[null,574,"LABORATÓRIOS","GRANDE SAO PAULO","OSASCO","LAVOISIER MEDICINA DIAGNOSTICA","-","-","X","X","X","X","X","X"]
[null,575,"LABORATÓRIOS","GRANDE SAO PAULO","OSASCO","ENDOPLUS DIAGNOSTICOS","-","-","X","X","X","X","X","X"]
[null,576,"LABORATÓRIOS","GRANDE SAO PAULO","OSASCO","FRIDA DATYSGELD","-","-","X","X","X","X","X","X"]
[null,577,"LABORATÓRIOS","GRANDE SAO PAULO","OSASCO","DELBONI AURIEMO MED DIAG","-","-","-","-","-","X","X","X"]
[null,578,"LABORATÓRIOS","SAO PAULO DEMAIS CIDADES","OURINHOS","LABORATORIO SANTA PAULA OURINHOS","-","-","-","-","X","X","X","X"]
[null,579,"LABORATÓRIOS","CAMPINAS E REGIAO","PEDREIRA","QUALILAB JUNQUEIRA LABORATORIO","-","X","X","X","X","X","X","X"]
[null,580,"LABORATÓRIOS","CAMPINAS E REGIAO","PEDREIRA","PRECISION LABORATORIO DE ANALISES","-","-","-","-","X","X","X","X"]
[null,581,"LABORATÓRIOS","SAO PAULO DEMAIS CIDADES","PENAPOLIS","LABORATORIO DOMINGUES CRUZ","-","-","-","-","X","X","X","X"]
[null,582,"LABORATÓRIOS","BAIXADA SANTISTA","PERUIBE","CLINICA SAO PEDRO","-","X","X","X","X","X","X","X"]
[null,583,"LABORATÓRIOS","BAIXADA SANTISTA","PERUIBE","RUIZ E MILARE","-","-","X","X","X","X","X","X"]
[null,584,"LABORATÓRIOS","SOROCABA E REGIAO","PIEDADE","IDS INSTITUTO DE DIAGNOSTICO SOROCABA SS","-","X","X","X","X","X","X","X"]
[null,585,"LABORATÓRIOS","SAO PAULO DEMAIS CIDADES","PINDAMONHANGABA","LABORATORIO DE ANAL CLIN OSWALDO CRUZ","-","-","-","X","X","X","X","X"]
[null,586,"LABORATÓRIOS","SAO PAULO DEMAIS CIDADES","PINDAMONHANGABA","PRO IMAGEM","-","-","-","-","X","X","X","X"]
[null,587,"LABORATÓRIOS","SAO PAULO DEMAIS CIDADES","PINDAMONHANGABA","WK DIAGNOSE","-","-","-","-","X","X","X","X"]
[null,588,"LABORATÓRIOS","SAO PAULO DEMAIS CIDADES","PIRACICABA","LABORATORIO DE ANALISES CLINICAS PREVILAB","-","-","-","-","X","X","X","X"]
[null,589,"LABORATÓRIOS","SAO PAULO DEMAIS CIDADES","PIRACICABA","LABORATORIO SAO LUCAS","-","-","-","-","X","X","X","X"]
[null,590,"LABORATÓRIOS","GRANDE SAO PAULO","POA","LAB DELIBERATO DE ANAL CLIN","X","X","X","X","X","X","X","X"]
[null,591,"LABORATÓRIOS","GRANDE SAO PAULO","POA","GARDIENCOR CLINICA MEDICA","-","-","X","X","X","X","X","X"]
[null,592,"LABORATÓRIOS","SOROCABA E REGIAO","PORTO FELIZ","DIAGSOM ULTRASSONOGRAFIA SC","-","X","X","X","X","X","X","X"]
[null,593,"LABORATÓRIOS","SOROCABA E REGIAO","PORTO FELIZ","ITULAB LAB DE ANAL CLINS DE ITU S C","-","X","X","X","X","X","X","X"]
[null,594,"LABORATÓRIOS","SOROCABA E REGIAO","PORTO FELIZ","ORTOMED DE SOROCABA","-","X","X","X","X","X","X","X"]
[null,595,"LABORATÓRIOS","BAIXADA SANTISTA","PRAIA GRANDE","CEDIAL CENTRO DE DIAG MEDICOS DO LITORAL","X","X","X","X","X","X","X","X"]
[null,596,"LABORATÓRIOS","BAIXADA SANTISTA","PRAIA GRANDE","LAB DE ANAL CLINICAS GONZAGA","X","X","X","X","X","X","X","X"]
[null,597,"LABORATÓRIOS","BAIXADA SANTISTA","PRAIA GRANDE","INSTITUTO DE ANALISES CLINICAS DE SANTOS","-","-","-","X","X","X","X","X"]
[null,598,"LABORATÓRIOS","BAIXADA SANTISTA","PRAIA GRANDE","LABORATORIO PASTEUR DE ANALISES CLINICAS","-","-","-","X","X","X","X","X"]
[null,599,"LABORATÓRIOS","SAO PAULO DEMAIS CIDADES","PRESIDENTE PRUDENTE","SERVS DE RADIOL E ULTRASSONOGRAFIA DE PRESI","-","-","X","X","X","X","X","X"]
[null,600,"LABORATÓRIOS","SAO PAULO DEMAIS CIDADES","PRESIDENTE PRUDENTE","CENTRO DE ANALISES CLINICAS UNILAB","-","-","-","-","X","X","X","X"]
[null,601,"LABORATÓRIOS","SAO PAULO DEMAIS CIDADES","PRESIDENTE PRUDENTE","IMAGEM MEDICINA DIAGNOSTICA","-","-","-","-","X","X","X","X"]
[null,602,"LABORATÓRIOS","SAO PAULO DEMAIS CIDADES","PRESIDENTE PRUDENTE","INSTITUTO DE RADIOLOGIA PRESIDENTE PRUDENTE","-","-","-","-","X","X","X","X"]
[null,603,"LABORATÓRIOS","SAO PAULO DEMAIS CIDADES","PRESIDENTE PRUDENTE","LABORATORIO DE ANALISES CLINICAS MARLENE SPIR","-","-","-","-","X","X","X","X"]
[null,604,"LABORATÓRIOS","SAO PAULO DEMAIS CIDADES","PRESIDENTE VENCESLAU","LABORATORIO DIAGNOSE","-","-","-","-","X","X","X","X"]
[null,605,"LABORATÓRIOS","SAO PAULO DEMAIS CIDADES","REGISTRO","INST RADIODIAG VALE DO RIBEIRA SC LTD","-","-","X","X","X","X","X","X"]
[null,606,"LABORATÓRIOS","SAO PAULO DEMAIS CIDADES","REGISTRO","CENTRO DE TOMOG. COMP. DO VALE DO RIBEIRA","-","-","-","-","X","X","X","X"]
[null,607,"LABORATÓRIOS","SAO PAULO ABC / RIBEIRAO PIRES","RIBEIRAO PIRES","ELGRA CLIN DE FISIOT E ACUPUNTURA S S","X","X","X","X","X","X","X","X"]
[null,608,"LABORATÓRIOS","SAO PAULO ABC / RIBEIRAO PIRES","RIBEIRAO PIRES","IPAC INST PAULISTA DE ANAL CLINICAS","X","X","X","X","X","X","X","X"]
[null,609,"LABORATÓRIOS","SAO PAULO ABC / RIBEIRAO PIRES","RIBEIRAO PIRES","LAB HORMON LAB ESP EM DOSAGENS HORMONAIS","X","X","X","X","X","X","X","X"]
[null,610,"LABORATÓRIOS","SAO PAULO ABC / RIBEIRAO PIRES","RIBEIRAO PIRES","VITAL LAB LABORATORIO ANALISES CLINICAS","X","X","X","X","X","X","X","X"]
[null,611,"LABORATÓRIOS","SAO PAULO ABC / RIBEIRAO PIRES","RIBEIRAO PIRES","TECNOLAB","-","X","X","X","X","X","X","X"]
[null,612,"LABORATÓRIOS","SAO PAULO ABC / RIBEIRAO PIRES","RIBEIRAO PIRES","INSTITUTO DE RADIOLOGIA E ULTR RIBEIRAO PIRES","-","-","X","X","X","X","X","X"]
[null,613,"LABORATÓRIOS","SAO PAULO ABC / RIBEIRAO PIRES","RIBEIRAO PIRES","MED SONIC DIAG POR IMAGEM SC","-","-","X","X","X","X","X","X"]
[null,614,"LABORATÓRIOS","SAO PAULO DEMAIS CIDADES","RIBEIRAO PRETO","DOCUMENTA CLINICA RADIOLOGICA","-","-","X","X","X","X","X","X"]
[null,615,"LABORATÓRIOS","SAO PAULO DEMAIS CIDADES","RIBEIRAO PRETO","INSTITUTO DE RADIO IMAGEM","-","-","X","X","X","X","X","X"]
[null,616,"LABORATÓRIOS","SAO PAULO DEMAIS CIDADES","RIBEIRAO PRETO","UNID DE ANATOMIA PATOLOGICA E CITOPAT","-","-","X","X","X","X","X","X"]
[null,617,"LABORATÓRIOS","SAO PAULO DEMAIS CIDADES","RIBEIRAO PRETO","CEDIRP RIBEIRAO PRETO","-","-","-","-","X","X","X","X"]
[null,618,"LABORATÓRIOS","SAO PAULO DEMAIS CIDADES","RIBEIRAO PRETO","CENTRO DE DIAGNOSTICOS CONTROLE","-","-","-","-","X","X","X","X"]
[null,619,"LABORATÓRIOS","SAO PAULO DEMAIS CIDADES","RIBEIRAO PRETO","DIMEN MEDICINA NUCLEAR","-","-","-","-","X","X","X","X"]
[null,620,"LABORATÓRIOS","SAO PAULO DEMAIS CIDADES","RIBEIRAO PRETO","INSTITUTO VICTORIO VALERI DE DIAGNOSTICOS MEDICOS","-","-","-","-","X","X","X","X"]
[null,621,"LABORATÓRIOS","SAO PAULO DEMAIS CIDADES","RIBEIRAO PRETO","LABORATORIO DE ANALISES BARACCHINI","-","-","-","-","X","X","X","X"]
[null,622,"LABORATÓRIOS","SAO PAULO DEMAIS CIDADES","RIBEIRAO PRETO","UNIMAGEM SERVICOS MEDICOS","-","-","-","-","X","X","X","X"]
[null,623,"LABORATÓRIOS","GRANDE SAO PAULO","RIO GRANDE DA SERRA","BIOLAB LABORATORIOS DE ANALISES CLINICAS","X","X","X","X","X","X","X","X"]
[null,624,"LABORATÓRIOS","SOROCABA E REGIAO","SALTO","CENTRO MEDICO PIO XII","-","X","X","X","X","X","X","X"]
[null,625,"LABORATÓRIOS","SOROCABA E REGIAO","SALTO","LABORATORIO CLINICO TRIANALISES","-","X","X","X","X","X","X","X"]
[null,626,"LABORATÓRIOS","SOROCABA E REGIAO","SALTO DE PIRAPORA","CLINICA MEDICA ANTUNES & MARCHETTI SC","X","X","X","X","X","X","X","X"]
[null,627,"LABORATÓRIOS","SAO PAULO DEMAIS CIDADES","SANTA BARBARA D'OESTE","LABCLIN","-","-","X","X","X","X","X","X"]
[null,628,"LABORATÓRIOS","GRANDE SAO PAULO","SANTA ISABEL","CLIN DE FISIOTERAPIA SANTA IZABEL S/C LTDA","-","X","X","X","X","X","X","X"]
[null,629,"LABORATÓRIOS","SAO PAULO ABC / SANTO ANDRE","SANTO ANDRE","INSTITUTO VIDA DE FISIOTERAPIA","X","X","X","X","X","X","X","X"]
[null,630,"LABORATÓRIOS","SAO PAULO ABC / SANTO ANDRE","SANTO ANDRE","MULTINI FISIOTERAPIA","X","X","X","X","X","X","X","X"]
[null,631,"LABORATÓRIOS","SAO PAULO ABC / SANTO ANDRE","SANTO ANDRE","CLINICE CENTRO DE DIAG LTDA","X","X","X","X","X","X","X","X"]
[null,632,"LABORATÓRIOS","SAO PAULO ABC / SANTO ANDRE","SANTO ANDRE","LAB PADRAO DE ANAL CLINS SC LTDA","X","X","X","X","X","X","X","X"]
[null,633,"LABORATÓRIOS","SAO PAULO ABC / SANTO ANDRE","SANTO ANDRE","LAVOISIER MEDICINA DIAGNOSTICA","-","-","X","X","X","X","X","X"]
[null,634,"LABORATÓRIOS","SAO PAULO ABC / SANTO ANDRE","SANTO ANDRE","LABORATORIO FLEMING","-","-","X","X","X","X","X","X"]
[null,635,"LABORATÓRIOS","SAO PAULO ABC / SANTO ANDRE","SANTO ANDRE","LABORATORIO HORMON","-","-","-","X","X","X","X","X"]
[null,636,"LABORATÓRIOS","SAO PAULO ABC / SANTO ANDRE","SANTO ANDRE","LABORATORIO LABOR CLIN LTDA","-","-","-","X","X","X","X","X"]
[null,637,"LABORATÓRIOS","SAO PAULO ABC / SANTO ANDRE","SANTO ANDRE","TECNOLAB","-","-","-","X","X","X","X","X"]
[null,638,"LABORATÓRIOS","SAO PAULO ABC / SANTO ANDRE","SANTO ANDRE","A + MEDICINA DIAGNOSTICA","-","-","-","X","X","X","X","X"]
[null,639,"LABORATÓRIOS","SAO PAULO ABC / SANTO ANDRE","SANTO ANDRE","DELBONI AURIEMO MED DIAG","-","-","-","-","-","X","X","X"]
[null,640,"LABORATÓRIOS","SAO PAULO ABC / SANTO ANDRE","SANTO ANDRE","CLUB D A","-","-","-","-","-","X","X","X"]
[null,641,"LABORATÓRIOS","SAO PAULO ABC / SANTO ANDRE","SANTO ANDRE","FLEURY","-","-","-","-","-","-","-","X"]
[null,642,"LABORATÓRIOS","BAIXADA SANTISTA","SANTOS","ANALISES CLINICAS CELLULA MATER","X","X","X","X","X","X","X","X"]
[null,643,"LABORATÓRIOS","BAIXADA SANTISTA","SANTOS","CLIN RADIOL.DR.MOURA GOGLIANO","X","X","X","X","X","X","X","X"]
[null,644,"LABORATÓRIOS","BAIXADA SANTISTA","SANTOS","LAB DE ANAL CLINICAS GONZAGA","X","X","X","X","X","X","X","X"]
[null,645,"LABORATÓRIOS","BAIXADA SANTISTA","SANTOS","ANAL CLINS CELLULA MATER LTDA","X","X","X","X","X","X","X","X"]
[null,646,"LABORATÓRIOS","BAIXADA SANTISTA","SANTOS","BIOLAB LABORATORIO DE ANALISES CLINICAS","-","-","X","X","X","X","X","X"]
[null,647,"LABORATÓRIOS","BAIXADA SANTISTA","SANTOS","HEMOCLINICA DE SANTOS","-","-","X","X","X","X","X","X"]
[null,648,"LABORATÓRIOS","BAIXADA SANTISTA","SANTOS","INSTITUTO DE METODOS EM CARDIOLOGIA","-","-","X","X","X","X","X","X"]
[null,649,"LABORATÓRIOS","BAIXADA SANTISTA","SANTOS","CENTRO DE REAB E HIDRO SAINT RAPHAE ME","-","-","-","X","X","X","X","X"]
[null,650,"LABORATÓRIOS","BAIXADA SANTISTA","SANTOS","INST DE ANALISES CLINICAS DE SANTOS","-","-","-","X","X","X","X","X"]
[null,651,"LABORATÓRIOS","BAIXADA SANTISTA","SANTOS","LAB ANAL CLIN DR.LEAO DE MOURA","-","-","-","X","X","X","X","X"]
[null,652,"LABORATÓRIOS","BAIXADA SANTISTA","SANTOS","LAB CLIN HELIO R BOTURAO","-","-","-","X","X","X","X","X"]
[null,653,"LABORATÓRIOS","BAIXADA SANTISTA","SANTOS","LABORATORIO PASTEUR DE ANALISES CLINICAS","-","-","-","X","X","X","X","X"]
[null,654,"LABORATÓRIOS","BAIXADA SANTISTA","SANTOS","DELBONI AURIEMO MED DIAG","-","-","-","-","-","X","X","X"]
[null,655,"LABORATÓRIOS","BAIXADA SANTISTA","SANTOS","CLUB D A","-","-","-","-","-","X","X","X"]
[null,656,"LABORATÓRIOS","SAO PAULO ABC / SAO BERNARDO DO CAMPO","SAO BERNARDO DO CAMPO","NOTRELABS SAO BERNARDO 6","X","X","X","X","X","X","X","X"]
[null,657,"LABORATÓRIOS","SAO PAULO ABC / SAO BERNARDO DO CAMPO","SAO BERNARDO DO CAMPO","BIOCENTER LAB CLIN LTDA","X","X","X","X","X","X","X","X"]
[null,658,"LABORATÓRIOS","SAO PAULO ABC / SAO BERNARDO DO CAMPO","SAO BERNARDO DO CAMPO","IMAVE INST DE MED AVANC.DA VISAO E EST RUDGE RAMOS","X","X","X","X","X","X","X","X"]
[null,659,"LABORATÓRIOS","SAO PAULO ABC / SAO BERNARDO DO CAMPO","SAO BERNARDO DO CAMPO","LAB HORMON LAB ESP EM DOSAGENS HORMONAIS","X","X","X","X","X","X","X","X"]
[null,660,"LABORATÓRIOS","SAO PAULO ABC / SAO BERNARDO DO CAMPO","SAO BERNARDO DO CAMPO","LUMEN CENTRO DE DIAGNOSTICO","X","X","X","X","X","X","X","X"]
[null,661,"LABORATÓRIOS","SAO PAULO ABC / SAO BERNARDO DO CAMPO","SAO BERNARDO DO CAMPO","ULTRA DIAGNOSTICOS","X","X","X","X","X","X","X","X"]
[null,662,"LABORATÓRIOS","SAO PAULO ABC / SAO BERNARDO DO CAMPO","SAO BERNARDO DO CAMPO","TECNOLAB","-","X","X","X","X","X","X","X"]
[null,663,"LABORATÓRIOS","SAO PAULO ABC / SAO BERNARDO DO CAMPO","SAO BERNARDO DO CAMPO","BIO FEEDBACK CENTRO DE FISIOTERAPIA","-","-","X","X","X","X","X","X"]
[null,664,"LABORATÓRIOS","SAO PAULO ABC / SAO BERNARDO DO CAMPO","SAO BERNARDO DO CAMPO","LAVOISIER MEDICINA DIAGNOSTICA","-","-","X","X","X","X","X","X"]
[null,665,"LABORATÓRIOS","SAO PAULO ABC / SAO BERNARDO DO CAMPO","SAO BERNARDO DO CAMPO","INST DE RADIOLOGIA SAO BERNARDO","-","-","X","X","X","X","X","X"]
[null,666,"LABORATÓRIOS","SAO PAULO ABC / SAO BERNARDO DO CAMPO","SAO BERNARDO DO CAMPO","NEOLABOR LAB MED","-","-","X","X","X","X","X","X"]
[null,667,"LABORATÓRIOS","SAO PAULO ABC / SAO BERNARDO DO CAMPO","SAO BERNARDO DO CAMPO","ENDOSCOP MEDICINA ESPECIALIZADA","-","-","-","X","X","X","X","X"]
[null,668,"LABORATÓRIOS","SAO PAULO ABC / SAO BERNARDO DO CAMPO","SAO BERNARDO DO CAMPO","ECOIMAGEM MEDICINA DIAGNOSTICA","-","-","-","-","X","X","X","X"]
[null,669,"LABORATÓRIOS","SAO PAULO ABC / SAO BERNARDO DO CAMPO","SAO BERNARDO DO CAMPO","DELBONI AURIEMO MED DIAG","-","-","-","-","-","X","X","X"]
[null,670,"LABORATÓRIOS","SAO PAULO ABC / SAO BERNARDO DO CAMPO","SAO BERNARDO DO CAMPO","CLUB D A","-","-","-","-","-","X","X","X"]
[null,671,"LABORATÓRIOS","SAO PAULO ABC / SAO CAETANO DO SUL","SAO CAETANO DO SUL","ANDREAZZA MEDICINA DIAG","X","X","X","X","X","X","X","X"]
[null,672,"LABORATÓRIOS","SAO PAULO ABC / SAO CAETANO DO SUL","SAO CAETANO DO SUL","LAB MODELO DE PAT CLINS SC LTDA","X","X","X","X","X","X","X","X"]
[null,673,"LABORATÓRIOS","SAO PAULO ABC / SAO CAETANO DO SUL","SAO CAETANO DO SUL","LAVOISIER MEDICINA DIAGNOSTICA","-","-","X","X","X","X","X","X"]
[null,674,"LABORATÓRIOS","SAO PAULO ABC / SAO CAETANO DO SUL","SAO CAETANO DO SUL","LABORATORIO FLEMING","-","-","X","X","X","X","X","X"]
[null,675,"LABORATÓRIOS","SAO PAULO ABC / SAO CAETANO DO SUL","SAO CAETANO DO SUL","ULTRASSONOGRAFIA MEDICA","-","-","X","X","X","X","X","X"]
[null,676,"LABORATÓRIOS","SAO PAULO ABC / SAO CAETANO DO SUL","SAO CAETANO DO SUL","CIMED CENTRO INTEGRADO DE MED E DIAG","-","-","-","X","X","X","X","X"]
[null,677,"LABORATÓRIOS","SAO PAULO ABC / SAO CAETANO DO SUL","SAO CAETANO DO SUL","MEDICAL LAB DE ANAL CLIN SC LTDA","-","-","-","X","X","X","X","X"]
[null,678,"LABORATÓRIOS","SAO PAULO ABC / SAO CAETANO DO SUL","SAO CAETANO DO SUL","ROCHA LIMA ANALISES CLINICAS E VACINACOES","-","-","-","-","X","X","X","X"]
[null,679,"LABORATÓRIOS","SAO PAULO ABC / SAO CAETANO DO SUL","SAO CAETANO DO SUL","CLINICA CRIAVIVA","-","-","-","-","-","X","X","X"]
[null,680,"LABORATÓRIOS","SAO PAULO DEMAIS CIDADES","SAO JOAO DA BOA VISTA","LABORATORIO SAO JOAO","-","-","-","-","X","X","X","X"]
[null,681,"LABORATÓRIOS","SAO PAULO DEMAIS CIDADES","SAO JOSE DO RIO PRETO","CAMF","-","-","-","-","X","X","X","X"]
[null,682,"LABORATÓRIOS","SAO PAULO DEMAIS CIDADES","SAO JOSE DO RIO PRETO","INSTITUTO RIO PRETO DE MEDICINA NUCLEAR","-","-","-","-","X","X","X","X"]
[null,683,"LABORATÓRIOS","SAO PAULO DEMAIS CIDADES","SAO JOSE DO RIO PRETO","LABORCLIN LABORATORIO DE ANALISES CLINICAS","-","-","-","-","X","X","X","X"]
[null,684,"LABORATÓRIOS","SAO PAULO DEMAIS CIDADES","SAO JOSE DO RIO PRETO","MAMA IMAGEM","-","-","-","-","X","X","X","X"]
[null,685,"LABORATÓRIOS","SAO PAULO DEMAIS CIDADES","SAO JOSE DO RIO PRETO","RESSONANCIA MAGNETICA RIO PRETO","-","-","-","-","X","X","X","X"]
[null,686,"LABORATÓRIOS","SAO PAULO DEMAIS CIDADES","SAO JOSE DO RIO PRETO","LABORATORIO DR. TAJARA","-","-","-","-","X","X","X","X"]
[null,687,"LABORATÓRIOS","SAO PAULO DEMAIS CIDADES","SAO JOSE DOS CAMPOS","CIPAX MEDICINA DIAGNOSTICA","-","-","X","X","X","X","X","X"]
[null,688,"LABORATÓRIOS","SAO PAULO DEMAIS CIDADES","SAO JOSE DOS CAMPOS","DIGEN IMAGE DIAGNOSTICOS MEDICOS","-","-","X","X","X","X","X","X"]
[null,689,"LABORATÓRIOS","SAO PAULO DEMAIS CIDADES","SAO JOSE DOS CAMPOS","INSTITUTO INEFRO","-","-","X","X","X","X","X","X"]
[null,690,"LABORATÓRIOS","SAO PAULO DEMAIS CIDADES","SAO JOSE DOS CAMPOS","INTEGRA ACAO CLINICA DE TERAPIAS INTEGRADAS","-","-","X","X","X","X","X","X"]
[null,691,"LABORATÓRIOS","SAO PAULO DEMAIS CIDADES","SAO JOSE DOS CAMPOS","L G ROMEIRO & MIRANDA SERVICOS MEDICOS","-","-","X","X","X","X","X","X"]
[null,692,"LABORATÓRIOS","SAO PAULO DEMAIS CIDADES","SAO JOSE DOS CAMPOS","MEDSEL CLINICA MEDICA","-","-","X","X","X","X","X","X"]
[null,693,"LABORATÓRIOS","SAO PAULO DEMAIS CIDADES","SAO JOSE DOS CAMPOS","PLANI DIAGNOSTICOS MEDICOS","-","-","X","X","X","X","X","X"]
[null,694,"LABORATÓRIOS","SAO PAULO DEMAIS CIDADES","SAO JOSE DOS CAMPOS","QUAGLIA LABOTORIO DE ANALISES CLINICAS SC","-","-","X","X","X","X","X","X"]
[null,695,"LABORATÓRIOS","SAO PAULO DEMAIS CIDADES","SAO JOSE DOS CAMPOS","TOMOVALE CENTRO DE DIAGNOSTICO POR IMAGEM","-","-","X","X","X","X","X","X"]
[null,696,"LABORATÓRIOS","SAO PAULO DEMAIS CIDADES","SAO JOSE DOS CAMPOS","VALECLIN LABORATORIO DE ANALISES CLINICAS","-","-","X","X","X","X","X","X"]
[null,697,"LABORATÓRIOS","SAO PAULO DEMAIS CIDADES","SAO JOSE DOS CAMPOS","CENTRO OCUP DE TREINAMENTO EDOUARD SEGUIN","-","-","-","X","X","X","X","X"]
[null,698,"LABORATÓRIOS","SAO PAULO DEMAIS CIDADES","SAO JOSE DOS CAMPOS","JANAINA BORGES DIOGENES","-","-","-","X","X","X","X","X"]
[null,699,"LABORATÓRIOS","SAO PAULO DEMAIS CIDADES","SAO JOSE DOS CAMPOS","LABORATORIO DE ANAL CLIN OSWALDO CRUZ","-","-","-","X","X","X","X","X"]
[null,700,"LABORATÓRIOS","SAO PAULO DEMAIS CIDADES","SAO JOSE DOS CAMPOS","FISIOCLIN","-","-","-","-","X","X","X","X"]
[null,701,"LABORATÓRIOS","SAO PAULO DEMAIS CIDADES","SAO JOSE DOS CAMPOS","UTR LAB ANALISES CLINICAS","-","-","-","-","X","X","X","X"]
[null,702,"LABORATÓRIOS","SAO PAULO DEMAIS CIDADES","SAO PEDRO","LABORATORIO DE ANALISES CLINICAS PREVILAB","-","-","-","-","X","X","X","X"]
[null,703,"LABORATÓRIOS","SAO PAULO DEMAIS CIDADES","SAO ROQUE","INSTITUTO SAO LUCAS SR","-","X","X","X","X","X","X","X"]
[null,704,"LABORATÓRIOS","SAO PAULO DEMAIS CIDADES","SAO ROQUE","PRECISION CENTRO DE DIAGNOSTICOS SC","-","X","X","X","X","X","X","X"]
[null,705,"LABORATÓRIOS","SAO PAULO DEMAIS CIDADES","SAO SEBASTIAO","ITAPEMA LABORATORIO DE ANALISES CLINICAS","-","-","X","X","X","X","X","X"]
[null,706,"LABORATÓRIOS","BAIXADA SANTISTA","SAO VICENTE","CLIN DE ORT E FISIOT PADRE ANCHIETA S C","-","-","X","X","X","X","X","X"]
[null,707,"LABORATÓRIOS","BAIXADA SANTISTA","SAO VICENTE","INSTITUTO DE ANALISES CLINICAS DE SANTOS","-","-","-","X","X","X","X","X"]
[null,708,"LABORATÓRIOS","BAIXADA SANTISTA","SAO VICENTE","LABORATORIO DE ANALISES CLINICAS DR LEAO DE MOURA","-","-","-","X","X","X","X","X"]
[null,709,"LABORATÓRIOS","BAIXADA SANTISTA","SAO VICENTE","LABORATORIO PASTEUR DE ANALISES CLINICAS","-","-","-","X","X","X","X","X"]
[null,710,"LABORATÓRIOS","SOROCABA E REGIAO","SOROCABA","IDS ALPHAMED DIAGS","X","X","X","X","X","X","X","X"]
[null,711,"LABORATÓRIOS","SOROCABA E REGIAO","SOROCABA","DIAGSOM ULTRASSONOGRAFIA SC","X","X","X","X","X","X","X","X"]
[null,712,"LABORATÓRIOS","SOROCABA E REGIAO","SOROCABA","VIDA DIAG LAB CLIN","X","X","X","X","X","X","X","X"]
[null,713,"LABORATÓRIOS","SOROCABA E REGIAO","SOROCABA","CENTRO DE DIAGNOSTICO SOROCABA SC","X","X","X","X","X","X","X","X"]
[null,714,"LABORATÓRIOS","SOROCABA E REGIAO","SOROCABA","CENTRO MED IMAGEM","X","X","X","X","X","X","X","X"]
[null,715,"LABORATÓRIOS","SOROCABA E REGIAO","SOROCABA","CLINICOR","-","X","X","X","X","X","X","X"]
[null,716,"LABORATÓRIOS","SOROCABA E REGIAO","SOROCABA","SERVLAB","-","-","-","X","X","X","X","X"]
[null,717,"LABORATÓRIOS","SOROCABA E REGIAO","SOROCABA","GASTROCLINICA SOROCABA","-","-","-","-","X","X","X","X"]
[null,718,"LABORATÓRIOS","CAMPINAS E REGIAO","SUMARE","LABORATORIO ALPHA DE ANALISES CLINICAS","X","X","X","X","X","X","X","X"]
[null,719,"LABORATÓRIOS","CAMPINAS E REGIAO","SUMARE","LABORATORIO SAO PAULO","X","X","X","X","X","X","X","X"]
[null,720,"LABORATÓRIOS","CAMPINAS E REGIAO","SUMARE","LAB DE ANAL CLIN LABCLIN SC","-","-","X","X","X","X","X","X"]
[null,721,"LABORATÓRIOS","CAMPINAS E REGIAO","SUMARE","PRO COR EXAMES DO CORACAO","-","-","X","X","X","X","X","X"]
[null,722,"LABORATÓRIOS","CAMPINAS E REGIAO","SUMARE","CLINICA ESPECIALIZADA SUMARE","-","-","-","-","X","X","X","X"]
[null,723,"LABORATÓRIOS","GRANDE SAO PAULO","SUZANO","ANALISES CLINICAS SAO FRANCISCO","X","X","X","X","X","X","X","X"]
[null,724,"LABORATÓRIOS","GRANDE SAO PAULO","SUZANO","MEDCARE SUZANO SERVICOS MEDICOS","X","X","X","X","X","X","X","X"]
[null,725,"LABORATÓRIOS","GRANDE SAO PAULO","SUZANO","OFTALMOCLINICA","X","X","X","X","X","X","X","X"]
[null,726,"LABORATÓRIOS","GRANDE SAO PAULO","SUZANO","CEDECO CENTRO DE ESPEC. EM DIAGNOSTICO","-","X","X","X","X","X","X","X"]
[null,727,"LABORATÓRIOS","GRANDE SAO PAULO","SUZANO","GARDIENCOR CLINICA MEDICA","-","-","X","X","X","X","X","X"]
[null,728,"LABORATÓRIOS","GRANDE SAO PAULO","SUZANO","CLINICA DE ESPECIALIDADE SALZGEBER & SANTOS MOGI","-","-","-","X","X","X","X","X"]
[null,729,"LABORATÓRIOS","GRANDE SAO PAULO","SUZANO","CLINICA SANTA CATARINA","-","-","-","X","X","X","X","X"]
[null,730,"LABORATÓRIOS","GRANDE SAO PAULO","SUZANO","UNIDADE MOGIANA DE DIAGNOSTICO POR IMAGEM","-","-","-","X","X","X","X","X"]
[null,731,"LABORATÓRIOS","GRANDE SAO PAULO","SUZANO","LAB DE ANAL CLINS DR PEDRO BONELLI S A","-","-","-","-","X","X","X","X"]
[null,732,"LABORATÓRIOS","GRANDE SAO PAULO","TABOAO DA SERRA","CENTERCLIN LABORATORIO DE ANAL CLIN","-","X","X","X","X","X","X","X"]
[null,733,"LABORATÓRIOS","GRANDE SAO PAULO","TABOAO DA SERRA","LABORATORIO DE ANALISES SAO VICENTE","-","-","-","X","X","X","X","X"]
[null,734,"LABORATÓRIOS","SOROCABA E REGIAO","TATUI","LABORATORIO DE ANALISES CLINICAS CRUZEIRO","X","X","X","X","X","X","X","X"]
[null,735,"LABORATÓRIOS","SOROCABA E REGIAO","TATUI","TATUI IMAGEM MEDICINA E DIAGNOSTICO","X","X","X","X","X","X","X","X"]
[null,736,"LABORATÓRIOS","SAO PAULO DEMAIS CIDADES","TAUBATE","AMARAL & HAGA BRINQUEDOTECA E PREESCOLA","-","-","X","X","X","X","X","X"]
[null,737,"LABORATÓRIOS","SAO PAULO DEMAIS CIDADES","TAUBATE","CENTRO MEDICO NG SS","-","-","X","X","X","X","X","X"]
[null,738,"LABORATÓRIOS","SAO PAULO DEMAIS CIDADES","TAUBATE","CLINICA CENDOR","-","-","X","X","X","X","X","X"]
[null,739,"LABORATÓRIOS","SAO PAULO DEMAIS CIDADES","TAUBATE","CLINICA DIA ABRACE VIDA","-","-","X","X","X","X","X","X"]
[null,740,"LABORATÓRIOS","SAO PAULO DEMAIS CIDADES","TAUBATE","DUCORDIS ASSISTENCIA MEDICA SC","-","-","X","X","X","X","X","X"]
[null,741,"LABORATÓRIOS","SAO PAULO DEMAIS CIDADES","TAUBATE","INSTITUTO DE NEFROLOGIA DE TAUBATE","-","-","X","X","X","X","X","X"]
[null,742,"LABORATÓRIOS","SAO PAULO DEMAIS CIDADES","TAUBATE","LAB DE ANALISES CLINICAS SAO LUCAS SS","-","-","X","X","X","X","X","X"]
[null,743,"LABORATÓRIOS","SAO PAULO DEMAIS CIDADES","TAUBATE","MAISNOVE MEDICINA DIAGNOSTICA","-","-","X","X","X","X","X","X"]
[null,744,"LABORATÓRIOS","SAO PAULO DEMAIS CIDADES","TAUBATE","PERSONALCLIN PRESTACAO DE SERVICOS DE SAUDE","-","-","X","X","X","X","X","X"]
[null,745,"LABORATÓRIOS","SAO PAULO DEMAIS CIDADES","TAUBATE","PRO IMAGEM EXAMES COMPLEMENTARES","-","-","X","X","X","X","X","X"]
[null,746,"LABORATÓRIOS","SAO PAULO DEMAIS CIDADES","TAUBATE","BIOCENTER LAB CLIN LTDA","-","-","-","X","X","X","X","X"]
[null,747,"LABORATÓRIOS","SAO PAULO DEMAIS CIDADES","TAUBATE","LABORATORIO DE ANAL CLIN OSWALDO CRUZ","-","-","-","X","X","X","X","X"]
[null,748,"LABORATÓRIOS","SAO PAULO DEMAIS CIDADES","TAUBATE","PREVENCOR CENTRO DE AVAL CARD","-","-","-","-","X","X","X","X"]
[null,749,"LABORATÓRIOS","SAO PAULO DEMAIS CIDADES","TIETE","LABORATORIO DE ANALISES CLINICAS PREVILAB","-","-","-","-","X","X","X","X"]
[null,750,"LABORATÓRIOS","SAO PAULO DEMAIS CIDADES","UBATUBA","FAT LAB LABORATORIO DE ANALISES CLINICAS","-","-","X","X","X","X","X","X"]
[null,751,"LABORATÓRIOS","CAMPINAS E REGIAO","VALINHOS","CENTRO RADIOLOGICO VALINHOS","X","X","X","X","X","X","X","X"]
[null,752,"LABORATÓRIOS","CAMPINAS E REGIAO","VALINHOS","CLINICA CONCON","X","X","X","X","X","X","X","X"]
[null,753,"LABORATÓRIOS","CAMPINAS E REGIAO","VALINHOS","FENIX LABORATORIO DE ANALISES CLINICAS","-","-","-","-","X","X","X","X"]
[null,754,"LABORATÓRIOS","GRANDE SAO PAULO","VARGEM GRANDE PAULISTA","SANTA CLARA CENTRO DE DIAGNOSTICOS","-","-","-","-","X","X","X","X"]
[null,755,"LABORATÓRIOS","JUNDIAI E REGIAO","VARZEA PAULISTA","CLINICA DE REABILITACAO VARZEA PAULISTA","-","-","-","-","X","X","X","X"]
[null,756,"LABORATÓRIOS","JUNDIAI E REGIAO","VINHEDO","C.M.L.CENTRO MEDICO LABORATORIAL","X","X","X","X","X","X","X","X"]
[null,757,"LABORATÓRIOS","JUNDIAI E REGIAO","VINHEDO","CLINICA DE FISIOTERAPIA FISIO ACAO","X","X","X","X","X","X","X","X"]
[null,758,"LABORATÓRIOS","JUNDIAI E REGIAO","VINHEDO","FISIOCLINICA VINHEDO","-","-","-","X","X","X","X","X"]
[null,759,"LABORATÓRIOS","JUNDIAI E REGIAO","VINHEDO","BIOLABOR DE ANALISES CLINICAS","-","-","-","-","X","X","X","X"]
[null,"","","","","","","","","","","","",""]
[null,"","","","","","","","","","","","",""]

{"sheet":"Apoio_Rel02","index":7,"n_rows":760,"n_cols":9,"rows_kept":760,"cut":false,"hidden":true,"merged":[[10,8,15,12],[1,8,6,13]]}
["ID","REDE","REGIÃO","CIDADE","NOME FANTASIA",null,null,null,"MENSAGENS"]
[1,"HOSPITAIS","SAO PAULO - CAPITAL","SAO PAULO / CENTRO","CRUZ AZUL DE SAO PAULO",null,null,null,"A Rede é disponibilizada de acordo com o plano contratado e pode ser alterada a qualquer momento, seguindo as diretrizes normativas da ANS. Para consultar a rede completa e atualizada, acesse o site: "]
[2,"HOSPITAIS","SAO PAULO - CAPITAL","SAO PAULO / CENTRO","HOSPITAL INGLES"]
[3,"HOSPITAIS","SAO PAULO - CAPITAL","SAO PAULO / CENTRO","CC ANGELICA"]
[4,"HOSPITAIS","SAO PAULO - CAPITAL","SAO PAULO / CENTRO","HOSP E MAT SACRECOEUR"]
[5,"HOSPITAIS","SAO PAULO - CAPITAL","SAO PAULO / CENTRO","HOSP SANTA CECILIA"]
[6,"HOSPITAIS","SAO PAULO - CAPITAL","SAO PAULO / CENTRO","IGESP CT/MED CIR INST GASTRO DE SAO PAULO"]
[7,"HOSPITAIS","SAO PAULO - CAPITAL","SAO PAULO / CENTRO","CERTA CENTRO DE REF EM TRAT AVANCADOS-HOSP DIA",null,null,null,"*Horário de atendimento diferenciado. "]
[8,"HOSPITAIS","SAO PAULO - CAPITAL","SAO PAULO / CENTRO","HOSPITAL BANDEIRANTES S.A"]
[9,"HOSPITAIS","SAO PAULO - CAPITAL","SAO PAULO / CENTRO","REAL E BEN SOC PORT BENF-HOSP SAO JOAQUIM",null,null,null,"LEGENDA"]
[10,"HOSPITAIS","SAO PAULO - CAPITAL","SAO PAULO / CENTRO","CENTRAL TOWERS HOSPITAL",null,null,null,"H - HOSPITAL \nM - MATERNIDADE \nPS - PRONTO-SOCORRO \nPA - PRONTO ATENDIMENTO"]
[11,"HOSPITAIS","SAO PAULO - CAPITAL","SAO PAULO / CENTRO","HOSP SANTA CATARINA"]
[12,"HOSPITAIS","SAO PAULO - CAPITAL","SAO PAULO / CENTRO","FUND ANTONIO PRUDENTE -HOSP A C CAMARGO"]
[13,"HOSPITAIS","SAO PAULO - CAPITAL","SAO PAULO / CENTRO","HOSP INFANTIL SABARA S A"]
[14,"HOSPITAIS","SAO PAULO - CAPITAL","SAO PAULO / CENTRO","HOSPITAL SAMARITANO DE SAO PAULO"]
[15,"HOSPITAIS","SAO PAULO - CAPITAL","SAO PAULO / CENTRO","HOSP NOVE DE JULHO"]
[16,"HOSPITAIS","SAO PAULO - CAPITAL","SAO PAULO / CENTRO","IRM STA CASA DE MISER DE S PAULO- HOSP STA ISABEL"]
[17,"HOSPITAIS","SAO PAULO - CAPITAL","SAO PAULO / CENTRO","HOSP ALEMAO OSWALDO CRUZ"]
[18,"HOSPITAIS","SAO PAULO - CAPITAL","SAO PAULO / CENTRO","PRO MATRE PAULISTA"]
[19,"HOSPITAIS","SAO PAULO - CAPITAL","SAO PAULO / CENTRO","HOSPITAL SAO JOSE"]
[20,"HOSPITAIS","SAO PAULO - CAPITAL","SAO PAULO / CENTRO","SOC BENF SRAS-HOSP SIRIO LIBANES"]
[21,"HOSPITAIS","SAO PAULO - CAPITAL","SAO PAULO / LESTE","HOSP SANTA VIRGINIA"]
[22,"HOSPITAIS","SAO PAULO - CAPITAL","SAO PAULO / LESTE","CASA DE SAUDE SANTA MARCELINA"]
[23,"HOSPITAIS","SAO PAULO - CAPITAL","SAO PAULO / LESTE","DAY HOSP ERMELINO MATARAZZO"]
[24,"HOSPITAIS","SAO PAULO - CAPITAL","SAO PAULO / LESTE","HOSPITAL SANTA CLARA"]
[25,"HOSPITAIS","SAO PAULO - CAPITAL","SAO PAULO / LESTE","HOSP E MAT 8 DE MAIO"]
[26,"HOSPITAIS","SAO PAULO - CAPITAL","SAO PAULO / LESTE","HOSP E MAT SAO MIGUEL"]
[27,"HOSPITAIS","SAO PAULO - CAPITAL","SAO PAULO / LESTE","HOSP CENTRAL DE GUAIANAZES"]
[28,"HOSPITAIS","SAO PAULO - CAPITAL","SAO PAULO / LESTE","HOSP E MAT MASTER CLIN"]
[29,"HOSPITAIS","SAO PAULO - CAPITAL","SAO PAULO / LESTE","IBCC- INST BRASILEIRO DE CONTROLE DO CANCER - (MEDULA OSSEA ADULTO)"]
[30,"HOSPITAIS","SAO PAULO - CAPITAL","SAO PAULO / LESTE","MATERNIDADE DO BRAZ"]
[31,"HOSPITAIS","SAO PAULO - CAPITAL","SAO PAULO / LESTE","CC ITAQUERA"]
[32,"HOSPITAIS","SAO PAULO - CAPITAL","SAO PAULO / LESTE","CC SAO MIGUEL"]
[33,"HOSPITAIS","SAO PAULO - CAPITAL","SAO PAULO / LESTE","CC TATUAPE I"]
[34,"HOSPITAIS","SAO PAULO - CAPITAL","SAO PAULO / LESTE","HOSP MONTEMAGNO"]
[35,"HOSPITAIS","SAO PAULO - CAPITAL","SAO PAULO / LESTE","CEMA HOSP ESPEC EM OFTALMO E OTORRINO"]
[36,"HOSPITAIS","SAO PAULO - CAPITAL","SAO PAULO / LESTE","NOVO SANTO EXPEDITO SERVICOS MEDICOS"]
[37,"HOSPITAIS","SAO PAULO - CAPITAL","SAO PAULO / LESTE","HOSP E MAT PARANAGUA"]
[38,"HOSPITAIS","SAO PAULO - CAPITAL","SAO PAULO / LESTE","HOSPITAL DE CLINICAS JARDIM HELENA"]
[39,"HOSPITAIS","SAO PAULO - CAPITAL","SAO PAULO / LESTE","HOSPITAL E MATERNIDADE VITORIA"]
[40,"HOSPITAIS","SAO PAULO - CAPITAL","SAO PAULO / LESTE","HOSP E MAT SAO LUIZ UNID ANALIA FRANCO"]
[41,"HOSPITAIS","SAO PAULO - CAPITAL","SAO PAULO / NORTE","IPASS - HOSP PRESIDENTE"]
[42,"HOSPITAIS","SAO PAULO - CAPITAL","SAO PAULO / NORTE","CC ZONA NORTE"]
[43,"HOSPITAIS","SAO PAULO - CAPITAL","SAO PAULO / NORTE","HOSP E MAT N S ROSARIO"]
[44,"HOSPITAIS","SAO PAULO - CAPITAL","SAO PAULO / NORTE","HOSPITAL CANTAREIRA"]
[45,"HOSPITAIS","SAO PAULO - CAPITAL","SAO PAULO / NORTE","HOSP SAN PAOLO"]
[46,"HOSPITAIS","SAO PAULO - CAPITAL","SAO PAULO / NORTE","BENF NIPO BRASIL SAO PAULO-HOSP NIPO BRASILEIRO"]
[47,"HOSPITAIS","SAO PAULO - CAPITAL","SAO PAULO / NORTE","HOSP SAO CAMILO - SANTANA"]
[48,"HOSPITAIS","SAO PAULO - CAPITAL","SAO PAULO / OESTE","FUNDACAO FACULDADE DE MEDICINA - INST DE PSIQUIATR"]
[49,"HOSPITAIS","SAO PAULO - CAPITAL","SAO PAULO / OESTE","HOSPITAL E PRONTO SOCORRO PORTINARI"]
[50,"HOSPITAIS","SAO PAULO - CAPITAL","SAO PAULO / OESTE","CENTRO MEDICO ADVENTISTA - UNIDADE SUL"]
[51,"HOSPITAIS","SAO PAULO - CAPITAL","SAO PAULO / OESTE","HOSP ALBERT SABIN"]
[52,"HOSPITAIS","SAO PAULO - CAPITAL","SAO PAULO / OESTE","CC LAPA"]
[53,"HOSPITAIS","SAO PAULO - CAPITAL","SAO PAULO / OESTE","PREVINA DIAG MEDICOS S/S"]
[54,"HOSPITAIS","SAO PAULO - CAPITAL","SAO PAULO / OESTE","FUNDACAO FACULDADE DE MEDICINA - INST DA CRIANCA"]
[55,"HOSPITAIS","SAO PAULO - CAPITAL","SAO PAULO / OESTE","HOSPITAL METROPOLITANO - BUTANTA"]
[56,"HOSPITAIS","SAO PAULO - CAPITAL","SAO PAULO / OESTE","PRONTO SOCORRO ITAMARATY"]
[57,"HOSPITAIS","SAO PAULO - CAPITAL","SAO PAULO / OESTE","SERRA MAYOR"]
[58,"HOSPITAIS","SAO PAULO - CAPITAL","SAO PAULO / OESTE","FUNDACAO FACULDADE DE MEDICINA (IOT)"]
[59,"HOSPITAIS","SAO PAULO - CAPITAL","SAO PAULO / OESTE","HOSPITAL METROPOLITANO"]
[60,"HOSPITAIS","SAO PAULO - CAPITAL","SAO PAULO / OESTE","HOSPITAL DAS CLINICAS"]
[61,"HOSPITAIS","SAO PAULO - CAPITAL","SAO PAULO / OESTE","HOSPITAL LEFORTE S.A"]
[62,"HOSPITAIS","SAO PAULO - CAPITAL","SAO PAULO / OESTE","FUNDACAO ZERBINI - INCOR"]
[63,"HOSPITAIS","SAO PAULO - CAPITAL","SAO PAULO / OESTE","HOSP SAO CAMILO - POMPEIA"]
[64,"HOSPITAIS","SAO PAULO - CAPITAL","SAO PAULO / OESTE","SAO LUIZ - UNIDADE MORUMBI"]
[65,"HOSPITAIS","SAO PAULO - CAPITAL","SAO PAULO / OESTE","HOSPITAL ISRAELITA ALBERT EINSTEIN (PERDIZES)"]
[66,"HOSPITAIS","SAO PAULO - CAPITAL","SAO PAULO / OESTE","SOC BENF ISRAELITA BRASILEIRA-HOSP ALBERT EINSTEIN (ALTO DE PINHEIROS)"]
[67,"HOSPITAIS","SAO PAULO - CAPITAL","SAO PAULO / SUL","HOSPITAL ISRAELITA ALBERT EINSTEIN (MORUMBI)"]
[68,"HOSPITAIS","SAO PAULO - CAPITAL","SAO PAULO / SUL","ALBERT EINSTEIN UNIDADE CHACARA KLABIN (IPIRANGA)"]
[69,"HOSPITAIS","SAO PAULO - CAPITAL","SAO PAULO / SUL","API-ASSIST.PSIQUIAT.INTEGRADA"]
[70,"HOSPITAIS","SAO PAULO - CAPITAL","SAO PAULO / SUL","HOSPITAL DOM ANTONIO DE ALVARENGA"]
[71,"HOSPITAIS","SAO PAULO - CAPITAL","SAO PAULO / SUL","HOSPITAL DE OLHOS PAULISTA"]
[72,"HOSPITAIS","SAO PAULO - CAPITAL","SAO PAULO / SUL","HOSP DEFEITOS DA FACE"]
[73,"HOSPITAIS","SAO PAULO - CAPITAL","SAO PAULO / SUL","HOSPITAL DO RIM E HIPERTENSAO (TRANSPLANTE RENAL)"]
[74,"HOSPITAIS","SAO PAULO - CAPITAL","SAO PAULO / SUL","GRAACC"]
[75,"HOSPITAIS","SAO PAULO - CAPITAL","SAO PAULO / SUL","HOSP E MATERNIDADE VIDAS"]
[76,"HOSPITAIS","SAO PAULO - CAPITAL","SAO PAULO / SUL","CC ZONA SUL"]
[77,"HOSPITAIS","SAO PAULO - CAPITAL","SAO PAULO / SUL","HOSP BOSQUE DA SAUDE"]
[78,"HOSPITAIS","SAO PAULO - CAPITAL","SAO PAULO / SUL","OPHTHAL HOSPITAL ESPECIALIZADO"]
[79,"HOSPITAIS","SAO PAULO - CAPITAL","SAO PAULO / SUL","HOSPITAL SEPACO"]
[80,"HOSPITAIS","SAO PAULO - CAPITAL","SAO PAULO / SUL","CASA DE SAUDE SANTA RITA"]
[81,"HOSPITAIS","SAO PAULO - CAPITAL","SAO PAULO / SUL","HOSP SANTA PAULA"]
[82,"HOSPITAIS","SAO PAULO - CAPITAL","SAO PAULO / SUL","HOSP SANTA CRUZ"]
[83,"HOSPITAIS","SAO PAULO - CAPITAL","SAO PAULO / SUL","HOSPITAL RUBEM BERTA"]
[84,"HOSPITAIS","SAO PAULO - CAPITAL","SAO PAULO / SUL","CLINICA NUCLEO"]
[85,"HOSPITAIS","SAO PAULO - CAPITAL","SAO PAULO / SUL","HOSP SAO PAULO"]
[86,"HOSPITAIS","SAO PAULO - CAPITAL","SAO PAULO / SUL","CENTRO MED ESP / HOSPITAL E MATERNIDADE SAO RAFAEL"]
[87,"HOSPITAIS","SAO PAULO - CAPITAL","SAO PAULO / SUL","HOSP PAULISTA"]
[88,"HOSPITAIS","SAO PAULO - CAPITAL","SAO PAULO / SUL","HOSPITAL ALVORADA MOEMA"]
[89,"HOSPITAIS","SAO PAULO - CAPITAL","SAO PAULO / SUL","AACD IBIRAPUERA"]
[90,"HOSPITAIS","SAO PAULO - CAPITAL","SAO PAULO / SUL","CLINICA INFANTIL SANTA ISABELLA"]
[91,"HOSPITAIS","SAO PAULO - CAPITAL","SAO PAULO / SUL","INST DANTE PAZZANESE DE CARDIOLOGIA IDPC SAO PAULO"]
[92,"HOSPITAIS","SAO PAULO - CAPITAL","SAO PAULO / SUL","HOSP SAO CAMILO - IPIRANGA"]
[93,"HOSPITAIS","SAO PAULO - CAPITAL","SAO PAULO / SUL","COMPLEXO HOSPITALAR EDMUNDO VASCONCELOS"]
[94,"HOSPITAIS","SAO PAULO - CAPITAL","SAO PAULO / SUL","HOSP E MAT SANTA JOANA"]
[95,"HOSPITAIS","SAO PAULO - CAPITAL","SAO PAULO / SUL","HOSPITAL SAO LUIZ JABAQUARA"]
[96,"HOSPITAIS","SAO PAULO - CAPITAL","SAO PAULO / SUL","HOSP DO CORACAO ASSOC.SANATORIO SIRIO"]
[97,"HOSPITAIS","SAO PAULO - CAPITAL","SAO PAULO / SUL","HOSP MAT SAO LUIZ - UNIDADE ITAIM"]
[98,"HOSPITAIS","SAO PAULO - CAPITAL","SAO PAULO / SUL","HOSPITAL SIRIO LIBANES - ITAIM"]
[99,"HOSPITAIS","SAO PAULO - CAPITAL","SAO PAULO / SUL","HOSPITAL E MATERNIDADE SANTA MARIA (UNIDADE SANTA JOANA)"]
[100,"HOSPITAIS","SAO PAULO - CAPITAL","SAO PAULO / SUL","UNIDADE AVANCADA EINSTEIN IBIRAPUERA"]
[101,"HOSPITAIS","BAIXADA SANTISTA","CUBATAO","HOSP ANA COSTA S A"]
[102,"HOSPITAIS","BAIXADA SANTISTA","CUBATAO","HOSP DR LUIZ CAMARGO DA FONSECA E SILVA"]
[103,"HOSPITAIS","BAIXADA SANTISTA","GUARUJA","HOSPITAL DOM DOMENICO"]
[104,"HOSPITAIS","BAIXADA SANTISTA","GUARUJA","CC FREI GALVAO GUARUJA"]
[105,"HOSPITAIS","BAIXADA SANTISTA","GUARUJA","HOSPITAL ANA COSTA"]
[106,"HOSPITAIS","BAIXADA SANTISTA","GUARUJA","HOSPITAL GUARUJA"]
[107,"HOSPITAIS","BAIXADA SANTISTA","PRAIA GRANDE","ASSOCIACAO HOSP CASA DE SAUDE DE SANTOS"]
[108,"HOSPITAIS","BAIXADA SANTISTA","PRAIA GRANDE","HOSPITAL CANTO DO FORTE S/S"]
[109,"HOSPITAIS","BAIXADA SANTISTA","PRAIA GRANDE","HOSP ANA COSTA S A"]
[110,"HOSPITAIS","BAIXADA SANTISTA","SANTOS","HOSP SAO LUCAS DE SANTOS"]
[111,"HOSPITAIS","BAIXADA SANTISTA","SANTOS","HOSP FREI GALVAO"]
[112,"HOSPITAIS","BAIXADA SANTISTA","SANTOS","CASA DE SAUDE DE SANTOS"]
[113,"HOSPITAIS","BAIXADA SANTISTA","SANTOS","HOSPITAL E PS INFANTIL GONZAGA"]
[114,"HOSPITAIS","BAIXADA SANTISTA","SANTOS","SOC.PORT.BENEF-HOSP.STO.ANTONIO"]
[115,"HOSPITAIS","BAIXADA SANTISTA","SANTOS","HOSP ANA COSTA S A"]
[116,"HOSPITAIS","BAIXADA SANTISTA","SAO VICENTE","CC FREI GALVAO SAO VICENTE"]
[117,"HOSPITAIS","BAIXADA SANTISTA","SAO VICENTE","HOSP ANA COSTA S A"]
[118,"HOSPITAIS","CAMPINAS E REGIAO","ARTUR NOGUEIRA","HOSP BOM SAMARITANO SC"]
[119,"HOSPITAIS","CAMPINAS E REGIAO","CAMPINAS","CENTRO MEDICO DE SOUSAS"]
[120,"HOSPITAIS","CAMPINAS E REGIAO","CAMPINAS","SAN FRANCISCO DAY HOSPITAL"]
[121,"HOSPITAIS","CAMPINAS E REGIAO","CAMPINAS","CAMPINAS DAY HOSPITAL"]
[122,"HOSPITAIS","CAMPINAS E REGIAO","CAMPINAS","INST NOVA CAMPINAS DE MEDICINA E CIRUG"]
[123,"HOSPITAIS","CAMPINAS E REGIAO","CAMPINAS","HOSPITAL GERAL E MATERNIDADE MADRE MARIA THEODORA"]
[124,"HOSPITAIS","CAMPINAS E REGIAO","CAMPINAS","FUNDACAO CENTRO MED DE CAMPINAS"]
[125,"HOSPITAIS","CAMPINAS E REGIAO","CAMPINAS","HOSP RENASCENCA CAMPINAS"]
[126,"HOSPITAIS","CAMPINAS E REGIAO","CAMPINAS","HOSP VERA CRUZ S A"]
[127,"HOSPITAIS","CAMPINAS E REGIAO","CAMPINAS","HOSPITAL SANTA SOFIA"]
[128,"HOSPITAIS","CAMPINAS E REGIAO","CAMPINAS","HOSPITAL E MATERNIDADE CELSO PIERRO"]
[129,"HOSPITAIS","CAMPINAS E REGIAO","CAMPINAS","INSTITUTO PENIDO BURNIER DE OFTALMOLOGIA"]
[130,"HOSPITAIS","CAMPINAS E REGIAO","CAMPINAS","REAL SOCIEDADE PORTUGUESA DE BENEFICENCIA"]
[131,"HOSPITAIS","CAMPINAS E REGIAO","CAMPINAS","MATERNIDADE DE CAMPINAS"]
[132,"HOSPITAIS","CAMPINAS E REGIAO","CAMPINAS","HOSPITAL IRMAOS PENTEADO"]
[133,"HOSPITAIS","CAMPINAS E REGIAO","CAMPINAS","CT INFANTIL DE INVESTIGACOES HEMATOL DR DOMINGOS"]
[134,"HOSPITAIS","CAMPINAS E REGIAO","CAMPINAS","HOSPITAL SANTA TEREZA"]
[135,"HOSPITAIS","CAMPINAS E REGIAO","COSMOPOLIS","HOSP BENEFICENTE SANTA GERTRUDES"]
[136,"HOSPITAIS","CAMPINAS E REGIAO","MOGI MIRIM","CLINICA GYORGY LASZLO"]
[137,"HOSPITAIS","CAMPINAS E REGIAO","MOGI MIRIM","IRM DA STA CASA DE MIS DE MOGI MIRIM"]
[138,"HOSPITAIS","CAMPINAS E REGIAO","MONTE MOR","ASSOCIACAO HOSP BENEF SAGRADO CORACAO DE EJSUS"]
[139,"HOSPITAIS","CAMPINAS E REGIAO","PAULINIA","CENTRO DE TRATAMENTO BEZERRA DE MENEZES"]
[140,"HOSPITAIS","CAMPINAS E REGIAO","PEDREIRA","FUNDACAO BENEFICENTE DE PEDREIRA - FUNBEPE"]
[141,"HOSPITAIS","CAMPINAS E REGIAO","SUMARE","DAY HOSPITAL SUMARE"]
[142,"HOSPITAIS","CAMPINAS E REGIAO","VALINHOS","HOSPITAL E MATERNIDADE GALILEO"]
[143,"HOSPITAIS","CAMPINAS E REGIAO","VALINHOS","SANTA CASA DE VALINHOS"]
[144,"HOSPITAIS","GRANDE SAO PAULO","ARUJA","HOSPITAL E MATERNIDADE IPIRANGA ARUJA"]
[145,"HOSPITAIS","GRANDE SAO PAULO","ARUJA","CC ARUJA"]
[146,"HOSPITAIS","GRANDE SAO PAULO","BARUERI","CC ALPHAVILLE"]
[147,"HOSPITAIS","GRANDE SAO PAULO","BARUERI","PS BARUERI"]
[148,"HOSPITAIS","GRANDE SAO PAULO","BARUERI","HOSPITALIS NUCLEO HOSPITALAR DE BARUERI"]
[149,"HOSPITAIS","GRANDE SAO PAULO","BARUERI","HOSPITAL ISRAELITA ALBERT EINSTEIN"]
[150,"HOSPITAIS","GRANDE SAO PAULO","CAIEIRAS","CC CAIEIRAS"]
[151,"HOSPITAIS","GRANDE SAO PAULO","CAIEIRAS","HOSP DE CLIN CAIEIRAS (ANTIGO EMED)"]
[152,"HOSPITAIS","GRANDE SAO PAULO","CARAPICUIBA","CC CARAPICUIBA"]
[153,"HOSPITAIS","GRANDE SAO PAULO","COTIA","HOSPITAL E MATERNIDADE NOVA VIDA"]
[154,"HOSPITAIS","GRANDE SAO PAULO","COTIA","CC COTIA"]
[155,"HOSPITAIS","GRANDE SAO PAULO","EMBU DAS ARTES","GRUPO CPR"]
[156,"HOSPITAIS","GRANDE SAO PAULO","FERRAZ DE VASCONCELOS","CLIN SANTO ANTONIO DE PREST DE SERV MED E ODONT"]
[157,"HOSPITAIS","GRANDE SAO PAULO","GUARAREMA","SANTA CASA DE MISERICORDIA DE GUARAREMA"]
[158,"HOSPITAIS","GRANDE SAO PAULO ","GUARULHOS","CC GUARULHOS I"]
[159,"HOSPITAIS","GRANDE SAO PAULO ","GUARULHOS","CC GUARULHOS II"]
[160,"HOSPITAIS","GRANDE SAO PAULO ","GUARULHOS","HOSP E MAT GUARULHOS"]
[161,"HOSPITAIS","GRANDE SAO PAULO ","GUARULHOS","CONGREG DAS FILHAS DE NOSSA SENHORA STELLA MARIS"]
[162,"HOSPITAIS","GRANDE SAO PAULO ","GUARULHOS","HOSPITAL CARLOS CHAGAS S.A"]
[163,"HOSPITAIS","GRANDE SAO PAULO ","ITAPECERICA DA SERRA","HOSPITAL SANTA MONICA SC"]
[164,"HOSPITAIS","GRANDE SAO PAULO ","ITAPECERICA DA SERRA","CLINICA MAIA PRIME"]
[165,"HOSPITAIS","GRANDE SAO PAULO ","ITAPEVI","CC ITAPEVI"]
[166,"HOSPITAIS","GRANDE SAO PAULO ","ITAPEVI","HOSPITAL CRUZEIRO DO SUL ITAPEVI"]
[167,"HOSPITAIS","GRANDE SAO PAULO ","ITAPEVI","HOSPITAL E MATERNIDADE NOVA VIDA"]
[168,"HOSPITAIS","GRANDE SAO PAULO ","ITAQUAQUECETUBA","UNIDADE AVANCADA ITAQUA"]
[169,"HOSPITAIS","GRANDE SAO PAULO ","JANDIRA","HOSP E MATERNIDADE NOVA VIDA"]
[170,"HOSPITAIS","GRANDE SAO PAULO ","MOGI DAS CRUZES","CASA DE SAUDE E MAT SANTANA"]
[171,"HOSPITAIS","GRANDE SAO PAULO ","MOGI DAS CRUZES","CLINICA INFANTIL SAO NICOLAU S/S"]
[172,"HOSPITAIS","GRANDE SAO PAULO ","MOGI DAS CRUZES","MOGI MATER HOSPITAL E MATERNIDADE"]
[173,"HOSPITAIS","GRANDE SAO PAULO ","MOGI DAS CRUZES","SAMED SERVS DE ASSIST MED ODONT E HOSPAR"]
[174,"HOSPITAIS","GRANDE SAO PAULO ","MOGI DAS CRUZES","HOSPITAL E MATERNIDADE IPIRANGA"]
[175,"HOSPITAIS","GRANDE SAO PAULO ","OSASCO","UNIDADE AVANCADA CRUZEIRO DO SUL"]
[176,"HOSPITAIS","GRANDE SAO PAULO ","OSASCO","GTO-GRUPO DE TRAUMAT.E ORTOPEDIA"]
[177,"HOSPITAIS","GRANDE SAO PAULO ","OSASCO","HOSPITAL E MATERNIDADE NOSSA SENHORA DE FATIMA"]
[178,"HOSPITAIS","GRANDE SAO PAULO ","OSASCO","HOSPITAL CRUZEIRO DO SUL"]
[179,"HOSPITAIS","GRANDE SAO PAULO ","OSASCO","HOSPITAL SINO BRASILEIRO"]
[180,"HOSPITAIS","GRANDE SAO PAULO ","SANTA ISABEL","IRMANDADE DA SANTA CASA DE MISER DE SANTA ISABEL"]
[181,"HOSPITAIS","GRANDE SAO PAULO ","SUZANO","MEDCARE SUZANO SERVICOS MEDICOS -EPP"]
[182,"HOSPITAIS","GRANDE SAO PAULO ","TABOAO DA SERRA","CC TABOAO DA SERRA"]
[183,"HOSPITAIS","GRANDE SAO PAULO ","TABOAO DA SERRA","FAMILY HOSP SS"]
[184,"HOSPITAIS","GRANDE SAO PAULO ","TABOAO DA SERRA","CLINICA MAIA"]
[185,"HOSPITAIS","JUNDIAI E REGIAO","AMPARO","BENEFICENCIA PORTUGUESA DE AMPARO"]
[186,"HOSPITAIS","JUNDIAI E REGIAO","AMPARO","STA CASA ANNA CINTRA"]
[187,"HOSPITAIS","JUNDIAI E REGIAO","ATIBAIA","ALBERT SABIN HOSP E MAT"]
[188,"HOSPITAIS","JUNDIAI E REGIAO","ATIBAIA","HOSPITAL NOVO ATIBAIA"]
[189,"HOSPITAIS","JUNDIAI E REGIAO","BRAGANCA PAULISTA","HOSP UNIVERSITARIO SAO FRANCISCO NA PROV DE DEUS"]
[190,"HOSPITAIS","JUNDIAI E REGIAO","BRAGANCA PAULISTA","HOSPITAL BRAGANTINO"]
[191,"HOSPITAIS","JUNDIAI E REGIAO","BRAGANCA PAULISTA","SANTA CASA DE BRAGANCA PAULISTA"]
[192,"HOSPITAIS","JUNDIAI E REGIAO ","CABREUVA","API PRIME LTDA EPP"]
[193,"HOSPITAIS","JUNDIAI E REGIAO ","CAJAMAR","CC POLVILHO"]
[194,"HOSPITAIS","JUNDIAI E REGIAO ","CAMPO LIMPO PAULISTA","CC CAMPO LIMPO PAULISTA"]
[195,"HOSPITAIS","JUNDIAI E REGIAO ","IBIUINA","INSTITUTO LEONARDO RUSSO CENTRO REAB PSICOSSOCIAL"]
[196,"HOSPITAIS","JUNDIAI E REGIAO ","ITAPIRA","FUNDACAO ESPIRITA AMERICO BAIRRAL"]
[197,"HOSPITAIS","JUNDIAI E REGIAO ","ITAPIRA","CLINICA DE REPOUSO SANTA FE - EPP"]
[198,"HOSPITAIS","JUNDIAI E REGIAO ","ITATIBA","HOSPITAL ITATIBA"]
[199,"HOSPITAIS","JUNDIAI E REGIAO ","ITATIBA","SANTA CASA DE MISERICORDIA DE ITATIBA"]
[200,"HOSPITAIS","JUNDIAI E REGIAO ","ITUPEVA","HOSPITAL PSIQUIATRICO ITUPEVA - EPP"]
[201,"HOSPITAIS","JUNDIAI E REGIAO ","JUNDIAI","HOSP PAULO SACRAMENTO"]
[202,"HOSPITAIS","JUNDIAI E REGIAO ","JUNDIAI","HOSPITAL SANTA ELISA"]
[203,"HOSPITAIS","JUNDIAI E REGIAO ","LOUVEIRA","IRMANDADE SANTA CASA DE LOUVEIRA"]
[204,"HOSPITAIS","JUNDIAI E REGIAO ","VARZEA PAULISTA","CC VARZEA PAULISTA"]
[205,"HOSPITAIS","JUNDIAI E REGIAO ","VINHEDO","IRMANDADE DA SANTA CASA DE VINHEDO"]
[206,"HOSPITAIS","SAO PAULO ABC / DIADEMA","DIADEMA","INNOVA HOSPITAIS ASSOCIADOS"]
[207,"HOSPITAIS","SAO PAULO ABC / DIADEMA","DIADEMA","CC DIADEMA"]
[208,"HOSPITAIS","SAO PAULO ABC / MAUA","MAUA","IRM DA STA CASA MISER DE MAUA- HOSP IMAC CONCEICAO"]
[209,"HOSPITAIS","SAO PAULO ABC / MAUA","MAUA","CC MAUA 1 (ANTIGO CC MAUA)"]
[210,"HOSPITAIS","SAO PAULO ABC / MAUA","MAUA","HOSPITAL VITAL"]
[211,"HOSPITAIS","SAO PAULO ABC / MAUA","MAUA","HOSP AMERICA"]
[212,"HOSPITAIS","SAO PAULO ABC / RIBEIRAO PIRES","RIBEIRAO PIRES","HOSP RIBEIRAO PIRES"]
[213,"HOSPITAIS","SAO PAULO ABC / RIBEIRAO PIRES","RIBEIRAO PIRES","CC RIBEIRAO PIRES"]
[214,"HOSPITAIS","SAO PAULO ABC / SANTO ANDRE","SANTO ANDRE","HOSPITAL CORACAO DE JESUS"]
[215,"HOSPITAIS","SAO PAULO ABC / SANTO ANDRE","SANTO ANDRE","CC SANTO ANDRE 1 (ANTIGO CC SANTO ANDRE I )"]
[216,"HOSPITAIS","SAO PAULO ABC / SANTO ANDRE","SANTO ANDRE","CC SANTO ANDRE 4 (ANTIGO PA SANTO ANDRE )"]
[217,"HOSPITAIS","SAO PAULO ABC / SANTO ANDRE","SANTO ANDRE","SOC PORT BENF DE SANTTO ANDRE- HOSP SAO PEDRO"]
[218,"HOSPITAIS","SAO PAULO ABC / SANTO ANDRE","SANTO ANDRE","HOSPITAL E MATERNIDADE SAO JOSE DO ABC"]
[219,"HOSPITAIS","SAO PAULO ABC / SANTO ANDRE","SANTO ANDRE","HOSP E MAT DOUTOR CHRISTOVAO DA GAMA"]
[220,"HOSPITAIS","SAO PAULO ABC / SANTO ANDRE","SANTO ANDRE","HOSPITAL BARTIRA"]
[221,"HOSPITAIS","SAO PAULO ABC / SANTO ANDRE","SANTO ANDRE","HOSPITAL E MATERNIDADE BRASIL"]
[222,"HOSPITAIS","SAO PAULO ABC / SAO CAETANO DO SUL","SAO CAETANO DO SUL","HOSP E MAT CENTRAL"]
[223,"HOSPITAIS","SAO PAULO ABC / SAO CAETANO DO SUL","SAO CAETANO DO SUL","CC SAO CAETANO 1(ANTIGO CC SAO CAETANO I)"]
[224,"HOSPITAIS","SAO PAULO ABC / SAO CAETANO DO SUL","SAO CAETANO DO SUL","SOC PORTUGUESA DE BENEF DE SAO CAETANO DO SUL"]
[225,"HOSPITAIS","SAO PAULO ABC/ SAO BERNARDO DO CAMPO","SAO BERNARDO DO CAMPO","HOSP SAO BERNARDO - UNIDADE INFANTIL BAETA NEVES"]
[226,"HOSPITAIS","SAO PAULO ABC/ SAO BERNARDO DO CAMPO","SAO BERNARDO DO CAMPO","HOSP SAO BERNARDO"]
[227,"HOSPITAIS","SAO PAULO ABC/ SAO BERNARDO DO CAMPO","SAO BERNARDO DO CAMPO","CENTRO DE TRATAMENTO BEZERRA DE MENEZES"]
[228,"HOSPITAIS","SAO PAULO ABC/ SAO BERNARDO DO CAMPO","SAO BERNARDO DO CAMPO","HOSP E MAT NOTRE CARE ABC"]
[229,"HOSPITAIS","SAO PAULO ABC/ SAO BERNARDO DO CAMPO","SAO BERNARDO DO CAMPO","P S INTERMEDICA ABC"]
[230,"HOSPITAIS","SAO PAULO ABC/ SAO BERNARDO DO CAMPO","SAO BERNARDO DO CAMPO","HOSPITAL IFOR"]
[231,"HOSPITAIS","SAO PAULO ABC/ SAO BERNARDO DO CAMPO","SAO BERNARDO DO CAMPO","HOSPITAL DE OLHOS ABC-CERPO"]
[232,"HOSPITAIS","SAO PAULO ABC/ SAO BERNARDO DO CAMPO","SAO BERNARDO DO CAMPO","HOSPITAL E MATERNIDADE ASSUNCAO"]
[233,"HOSPITAIS","SAO PAULO ABC/ SAO BERNARDO DO CAMPO","SAO BERNARDO DO CAMPO","ESPACO ABERTO- HOSP DIA S/C LTDA"]
[234,"HOSPITAIS","SAO PAULO ABC/ SAO BERNARDO DO CAMPO","SAO BERNARDO DO CAMPO","API ASSISTENCIA PSIQUIATRICA INTEGRADA ABC LTDA"]
[235,"HOSPITAIS","SAO PAULO DEMAIS CIDADES","ADAMANTINA","IRMANDADE DA SANTA CASA DE MISERICORDIA DE ADAMANT"]
[236,"HOSPITAIS","SAO PAULO DEMAIS CIDADES","AMERICANA","CLINICA SAO LUCAS"]
[237,"HOSPITAIS","SAO PAULO DEMAIS CIDADES","AMERICANA","INSTITUTO PRO VISAO AMERICANA"]
[238,"HOSPITAIS","SAO PAULO DEMAIS CIDADES","APARECIDA","SANTA CASA DE MISERICORDIA DE APARECIDA"]
[239,"HOSPITAIS","SAO PAULO DEMAIS CIDADES","ARACATUBA","ASSOCIACAO SANTA CASA SAUDE DE ARACATUBA"]
[240,"HOSPITAIS","SAO PAULO DEMAIS CIDADES","ARARAQUARA","SOC PORTUGUESA BENEF DE ARARAQUARA"]
[241,"HOSPITAIS","SAO PAULO DEMAIS CIDADES","ARARAS","ASSOCIACAO PRO SAUDE"]
[242,"HOSPITAIS","SAO PAULO DEMAIS CIDADES","ASSIS","SANTA CASA DE MISERICORDIA DE ASSIS"]
[243,"HOSPITAIS","SAO PAULO DEMAIS CIDADES","ASSIS","IAM ATENDIMENTO MEDICO HOSP"]
[244,"HOSPITAIS","SAO PAULO DEMAIS CIDADES","BARIRI","IRMANDADE DA SANTA CASA DE MISERICORDIA DE BARIRI"]
[245,"HOSPITAIS","SAO PAULO DEMAIS CIDADES","BARRETOS","SANTA CASA DE BARRETOS"]
[246,"HOSPITAIS","SAO PAULO DEMAIS CIDADES","BAURU","ASSISTENCIA MEDICO HOSPITALAR SAO LUCAS SA"]
[247,"HOSPITAIS","SAO PAULO DEMAIS CIDADES","BAURU","HOSPITAL E MATERNIDADE MARIA JOSE"]
[248,"HOSPITAIS","SAO PAULO DEMAIS CIDADES","BEBEDOURO","UNIMED BEBEDOURO COOPERATIVA DE TRABALHO MEDICO"]
[249,"HOSPITAIS","SAO PAULO DEMAIS CIDADES","BOTUCATU","UNESP"]
[250,"HOSPITAIS","SAO PAULO DEMAIS CIDADES","BROTAS","HOSPITAL SANTA TEREZINHA"]
[251,"HOSPITAIS","SAO PAULO DEMAIS CIDADES","CACAPAVA","FUSAM-FUND DE SAUDE E ASSIS DO MUNIC DE CACAPAVA"]
[252,"HOSPITAIS","SAO PAULO DEMAIS CIDADES","CACAPAVA","POLICLIN -SERV. MEDICO HOSPITALARES"]
[253,"HOSPITAIS","SAO PAULO DEMAIS CIDADES","CACHOEIRA PAULISTA","ASSOC BENEF SAO JOSE E SANTA CASA DE MIS SAO JOSE"]
[254,"HOSPITAIS","SAO PAULO DEMAIS CIDADES","CARAGUATATUBA","CENTRO MED SAO CAMILO"]
[255,"HOSPITAIS","SAO PAULO DEMAIS CIDADES","CARAGUATATUBA","CASA DE SAUDE STELLA MARIS"]
[256,"HOSPITAIS","SAO PAULO DEMAIS CIDADES","CRAVINHOS","SANTA CASA DE CRAVINHOS"]
[257,"HOSPITAIS","SAO PAULO DEMAIS CIDADES","CRUZEIRO","SANTA CASA DE MISERICORDIA DE CRUZEIRO"]
[258,"HOSPITAIS","SAO PAULO DEMAIS CIDADES","FARTURA","SANTA CASA DE MISERICORDIA DE FARTURA"]
[259,"HOSPITAIS","SAO PAULO DEMAIS CIDADES","FRANCA","HOSPITAL E MATERNIDADE SAO JOAQUIM"]
[260,"HOSPITAIS","SAO PAULO DEMAIS CIDADES","FRANCA","HOSPITAL REGIONAL DE FRANCA"]
[261,"HOSPITAIS","SAO PAULO DEMAIS CIDADES","GUARATINGUETA","CEPOG-CENTRO PED E ORTOPEDICO GUARATINGUETA SC L"]
[262,"HOSPITAIS","SAO PAULO DEMAIS CIDADES","GUARATINGUETA","SANTA CASA DE GUARATINGUETA"]
[263,"HOSPITAIS","SAO PAULO DEMAIS CIDADES","JABOTICABAL","HOSPITAL SAO MARCOS"]
[264,"HOSPITAIS","SAO PAULO DEMAIS CIDADES","JACAREI","HOSPITAL ALVORADA"]
[265,"HOSPITAIS","SAO PAULO DEMAIS CIDADES","JACAREI","ASS CASA FONTE DA VIDA-HOSP SAO FRANCISCO DE ASSIS"]
[266,"HOSPITAIS","SAO PAULO DEMAIS CIDADES","JACAREI","POLICLIN SERVICOS MEDICO - HOSPITALARES"]
[267,"HOSPITAIS","SAO PAULO DEMAIS CIDADES","JAU","HOSP AMARAL CARVALHO"]
[268,"HOSPITAIS","SAO PAULO DEMAIS CIDADES","LIMEIRA","SOCIEDADE OPERARIA HUMANITARIA"]
[269,"HOSPITAIS","SAO PAULO DEMAIS CIDADES","LIMEIRA","SANTA CASA DE LIMEIRA"]
[270,"HOSPITAIS","SAO PAULO DEMAIS CIDADES","LIMEIRA","MEDICAL MED COOP ASSIST.DE LIMEIRA"]
[271,"HOSPITAIS","SAO PAULO DEMAIS CIDADES","LORENA","SANTA CASA DE MISERICORDIA DE LORENA"]
[272,"HOSPITAIS","SAO PAULO DEMAIS CIDADES","LUCELIA","SANTA CASA DE MISERICORDIA DE LUCELIA"]
[273,"HOSPITAIS","SAO PAULO DEMAIS CIDADES","MATAO","HOSPITAL CARLOS FERNANDO MALZONI MATAO"]
[274,"HOSPITAIS","SAO PAULO DEMAIS CIDADES","MIRASSOL","HOSPITAL DR FERNANDO"]
[275,"HOSPITAIS","SAO PAULO DEMAIS CIDADES","OURINHOS","SOCIEDADE SANTA CASA DE MISERICORDIA DE OURINHOS"]
[276,"HOSPITAIS","SAO PAULO DEMAIS CIDADES","PENAPOLIS","IRMANDADE DA SANTA CASA DE MISERIC DE PENAPOLIS"]
[277,"HOSPITAIS","SAO PAULO DEMAIS CIDADES","PIRACICABA","SAO FRANCISCO SISTEMAS DE SAUDE SC"]
[278,"HOSPITAIS","SAO PAULO DEMAIS CIDADES","PIRASSUNUNGA","IRMANDADE STA CASA DE MIS DE PIRASSUNUNGA"]
[279,"HOSPITAIS","SAO PAULO DEMAIS CIDADES","PRESIDENTE EPITACIO","IRM DA STA CASA DE MIS DE PRES EPITACIO"]
[280,"HOSPITAIS","SAO PAULO DEMAIS CIDADES","PRESIDENTE PRUDENTE","HOSPITAL E MATERNIDADE PRESIDENTE PRUDENTE SC"]
[281,"HOSPITAIS","SAO PAULO DEMAIS CIDADES","PRESIDENTE PRUDENTE","CENTRO DE FRATURAS E ORTOPEDIA SAO LUCAS S/S"]
[282,"HOSPITAIS","SAO PAULO DEMAIS CIDADES","PRESIDENTE VENCESLAU","IRMANDADE DA SANTA CASA DE PRESIDENTE VENCESLAU"]
[283,"HOSPITAIS","SAO PAULO DEMAIS CIDADES","REGISTRO","HOSP E P S E MAT SAO JOSE"]
[284,"HOSPITAIS","SAO PAULO DEMAIS CIDADES","RIBEIRAO PRETO","HOSPITAL E MATERNIDADE SINHA JUNQUEIRA"]
[285,"HOSPITAIS","SAO PAULO DEMAIS CIDADES","RIBEIRAO PRETO","SAO FRANCISCO SISTEMAS DE SAUDE SC"]
[286,"HOSPITAIS","SAO PAULO DEMAIS CIDADES","RIBEIRAO PRETO","HOSPITAL SANTA LYDIA"]
[287,"HOSPITAIS","SAO PAULO DEMAIS CIDADES","RIBEIRAO PRETO","HOSPITAL DAS CLINICAS - FAEPA"]
[288,"HOSPITAIS","SAO PAULO DEMAIS CIDADES","RIO CLARO","STA CASA DE MISERICORDIA DE RIO CLARO"]
[289,"HOSPITAIS","SAO PAULO DEMAIS CIDADES","SANTA BARBARA DOESTE","HOSPITAL SANTA BARBARA"]
[290,"HOSPITAIS","SAO PAULO DEMAIS CIDADES","SAO JOAO DA BOA VISTA","STA CASA MIS CAROLINA MALHEIROS"]
[291,"HOSPITAIS","SAO PAULO DEMAIS CIDADES","SAO JOSE DO RIO PRETO","IRM DA SANT CASA DE MISER DE SAO JOSE DO RIO PRETO"]
[292,"HOSPITAIS","SAO PAULO DEMAIS CIDADES","SAO JOSE DO RIO PRETO","CLIN PSIQ SIQUEIRA CAMPOS LTDA"]
[293,"HOSPITAIS","SAO PAULO DEMAIS CIDADES","SAO JOSE DO RIO PRETO","CASA DE SAUDE SANTA HELENA"]
[294,"HOSPITAIS","SAO PAULO DEMAIS CIDADES","SAO JOSE DO RIO PRETO","CENTRO MEDICO RIO PRETO"]
[295,"HOSPITAIS","SAO PAULO DEMAIS CIDADES","SAO JOSE DO RIO PRETO","HOSPITAL DO CORACAO RIO PRETO SC"]
[296,"HOSPITAIS","SAO PAULO DEMAIS CIDADES","SAO JOSE DO RIO PRETO","SOC PORT DE BENEF HOSP INFANTE D. HENRIQUE"]
[297,"HOSPITAIS","SAO PAULO DEMAIS CIDADES","SAO JOSE DO RIO PRETO","FUND FACULDADE REGIONAL MED S JOSE DO R PRETO"]
[298,"HOSPITAIS","SAO PAULO DEMAIS CIDADES","SAO JOSE DOS CAMPOS","PROVISAO"]
[299,"HOSPITAIS","SAO PAULO DEMAIS CIDADES","SAO JOSE DOS CAMPOS","GACC GRUPO DE ASSISTENCIA A CRIANCA COM CANCER"]
[300,"HOSPITAIS","SAO PAULO DEMAIS CIDADES","SAO JOSE DOS CAMPOS","IRM DA SANTA CASA DE MIS DE SAO JOSE DOS CAMPOS"]
[301,"HOSPITAIS","SAO PAULO DEMAIS CIDADES","SAO JOSE DOS CAMPOS","FRANCISCA JULIA SAUDE MENTAL E DEPENDENCIA QUIMICA"]
[302,"HOSPITAIS","SAO PAULO DEMAIS CIDADES","SAO JOSE DOS CAMPOS","IPMMI OBRA DE ACAO SOCIAL PIO XII HOSP PIO XII"]
[303,"HOSPITAIS","SAO PAULO DEMAIS CIDADES","SAO JOSE DOS CAMPOS","HOSPITAL E MATERNIDADE POLICLIN"]
[304,"HOSPITAIS","SAO PAULO DEMAIS CIDADES","SAO JOSE DOS CAMPOS","POLICLIN -SERV. MEDICO - HOSPITALARES"]
[305,"HOSPITAIS","SAO PAULO DEMAIS CIDADES","SAO JOSE DOS CAMPOS","PRO-INFANCIA SJC HOSP E PS PEDIATRICO"]
[306,"HOSPITAIS","SAO PAULO DEMAIS CIDADES","SAO JOSE DOS CAMPOS","PRONTIL HOSPITAL INFANTIL"]
[307,"HOSPITAIS","SAO PAULO DEMAIS CIDADES","SAO JOSE DOS CAMPOS","HOSPITAL VIVALLE"]
[308,"HOSPITAIS","SAO PAULO DEMAIS CIDADES","SAO SEBASTIAO","IRMANDADE DA SANTA CASA CORACAO DE JESUS"]
[309,"HOSPITAIS","SAO PAULO DEMAIS CIDADES","SERRANA","SANTA CASA DE MISERICORDIA DE SERRANA"]
[310,"HOSPITAIS","SAO PAULO DEMAIS CIDADES","TAUBATE","HOSP SAO CAMILO - HOSPITAL REGIONAL DO VALE"]
[311,"HOSPITAIS","SAO PAULO DEMAIS CIDADES","TAUBATE","CLINICA SAINT GERMAIN"]
[312,"HOSPITAIS","SAO PAULO DEMAIS CIDADES","TAUBATE","POLICLIN SERVICOS MEDICO - HOSPITALARES"]
[313,"HOSPITAIS","SAO PAULO DEMAIS CIDADES","TAUBATE","HOSP SAO LUCAS DE TAUBATE"]
[314,"HOSPITAIS","SAO PAULO DEMAIS CIDADES","TREMEMBE","IRM FILANTROPICA HOSP B JESUS STA CS MIS TREMEMBE"]
[315,"HOSPITAIS","SAO PAULO DEMAIS CIDADES","TUPA","HOSPITAL SAO FRANCISCO DE ASSIS DE TUPA"]
[316,"HOSPITAIS","SAO PAULO DEMAIS CIDADES","UBATUBA","STA CASA MIS IRM SR DOS PASSOS DE UBATUBA"]
[317,"HOSPITAIS","SOROCABA E REGIAO","BOITUVA","HOSPITAL SAO LUIZ"]
[318,"HOSPITAIS","SOROCABA E REGIAO","INDAIATUBA","HOSPITAL AUGUSTO DE OLIVEIRA CAMARGO - HAOC"]
[319,"HOSPITAIS","SOROCABA E REGIAO","ITU","CC ITU"]
[320,"HOSPITAIS","SOROCABA E REGIAO","ITU","SOCIEDADE BENEFICENTE SAO CAMILO"]
[321,"HOSPITAIS","SOROCABA E REGIAO","PIEDADE","SANTA CASA DE MISERICORDIA DE PIEDADE"]
[322,"HOSPITAIS","SOROCABA E REGIAO","PORTO FELIZ","IRM DA STA CASA DE MIS DE PORTO FELIZ"]
[323,"HOSPITAIS","SOROCABA E REGIAO","PILAR DO SUL","IRMANDADE STA CASA MISERICORDIA PILAR DO SUL"]
[324,"HOSPITAIS","SOROCABA E REGIAO","SALTO","HOSP E MAT MUNIC N SRA MONTE SERRAT"]
[325,"HOSPITAIS","SOROCABA E REGIAO","SALTO DE PIRAPORA","HOSP IRM DA SANTA CASA DE MIS DE SALTO DE PIRAPORA"]
[326,"HOSPITAIS","SOROCABA E REGIAO","SAO ROQUE","IRMANDADE DA SANTA CASA DE MISER DE SAO ROQUE"]
[327,"HOSPITAIS","SOROCABA E REGIAO","SOROCABA","HOSP MODELO"]
[328,"HOSPITAIS","SOROCABA E REGIAO","SOROCABA","BANCO DE OLHOS DE SOROCABA S C"]
[329,"HOSPITAIS","SOROCABA E REGIAO","SOROCABA","GPACI GRUPO DE PESQ E ASSIST AO CANCER INFANTIL"]
[330,"HOSPITAIS","SOROCABA E REGIAO","SOROCABA","FUNDACAO SAO PAULO HOSP SANTA LUCINDA"]
[331,"HOSPITAIS","SOROCABA E REGIAO","SOROCABA","AEB ASSOC EVANG BENEF HOSP EVANGELICO DE SOROCABA"]
[332,"HOSPITAIS","SOROCABA E REGIAO","TATUI","SANTA CASA DE MISERICORDIA DE TATUI"]
[333,"HOSPITAIS","SOROCABA E REGIAO","VOTORANTIM","HOSPMED SERV MEDS ME"]
[334,"HOSPITAIS","SOROCABA E REGIAO","VOTUPORANGA","SANTA CASA DE MISERICORDIA DE VOTUPORANGA"]
[335,"LABORATÓRIOS","SAO PAULO CAPITAL","SAO PAULO","BENVISTA OFTALMOLOGIA"]
[336,"LABORATÓRIOS","SAO PAULO CAPITAL","SAO PAULO","BIOTOX CT LAB ANAL CLI E TOXICOLOGICAS"]
[337,"LABORATÓRIOS","SAO PAULO CAPITAL","SAO PAULO","CARDIOLOGICA MED DIAG SERVS"]
[338,"LABORATÓRIOS","SAO PAULO CAPITAL","SAO PAULO","CLIN DE DIAGS DR LUIZ SCOPPETTA"]
[339,"LABORATÓRIOS","SAO PAULO CAPITAL","SAO PAULO","CC DOM PEDRO (ANTIGO CC DA MULHER)"]
[340,"LABORATÓRIOS","SAO PAULO CAPITAL","SAO PAULO","CLIN DE ULTRASS A A DIAG POR IMAGEM ."]
[341,"LABORATÓRIOS","SAO PAULO CAPITAL","SAO PAULO","CRYA MEDICINA DIAGNOSTICA"]
[342,"LABORATÓRIOS","SAO PAULO CAPITAL","SAO PAULO","DR.GHELFOND DIAGNOSTICO MEDICO"]
[343,"LABORATÓRIOS","SAO PAULO CAPITAL","SAO PAULO","INST DE CARDIOLOGIA DA ZONA LESTE SS"]
[344,"LABORATÓRIOS","SAO PAULO CAPITAL","SAO PAULO","INSTITUTO VIDA DE FISIOTERAPIA"]
[345,"LABORATÓRIOS","SAO PAULO CAPITAL","SAO PAULO","LAB DE ANAL CLINICAS SANITAS"]
[346,"LABORATÓRIOS","SAO PAULO CAPITAL","SAO PAULO","LABORATORIO DE ANALISES SAO VICENTE"]
[347,"LABORATÓRIOS","SAO PAULO CAPITAL","SAO PAULO","MAXIMO CENTRO DE DIAGNOSTICO"]
[348,"LABORATÓRIOS","SAO PAULO CAPITAL","SAO PAULO","G2 LAB DE ANAL CLINS LTDA"]
[349,"LABORATÓRIOS","SAO PAULO CAPITAL","SAO PAULO","MELLO LABORATORIO MEDICO DE ANAL CLIN"]
[350,"LABORATÓRIOS","SAO PAULO CAPITAL","SAO PAULO","NASA LAB BIO CLINICO"]
[351,"LABORATÓRIOS","SAO PAULO CAPITAL","SAO PAULO","NOTRELABS HERMINIO LEMOS"]
[352,"LABORATÓRIOS","SAO PAULO CAPITAL","SAO PAULO","OFTALMOCARE MEDICAL"]
[353,"LABORATÓRIOS","SAO PAULO CAPITAL","SAO PAULO","PATHOS ANATOMOPATOLOGIA"]
[354,"LABORATÓRIOS","SAO PAULO CAPITAL","SAO PAULO","PRESECOR DIAGNOSTICOS EM MEDICINA"]
[355,"LABORATÓRIOS","SAO PAULO CAPITAL","SAO PAULO","NOTRELABS BELEM"]
[356,"LABORATÓRIOS","SAO PAULO CAPITAL","SAO PAULO","CDB CTO DE DIAG BRASIL TKS"]
[357,"LABORATÓRIOS","SAO PAULO CAPITAL","SAO PAULO","CIDS CLIN INTEGRADA DE DIAG.SONOGR."]
[358,"LABORATÓRIOS","SAO PAULO CAPITAL","SAO PAULO","IMED CENTRO DE DIAG POR IMAGEM"]
[359,"LABORATÓRIOS","SAO PAULO CAPITAL","SAO PAULO","CENTRO ULTRASSONOGRAFICO"]
[360,"LABORATÓRIOS","SAO PAULO CAPITAL","SAO PAULO","CLIN SCHMILLEVITCH DIAGNOSTICO POR IMAGEM"]
[361,"LABORATÓRIOS","SAO PAULO CAPITAL","SAO PAULO","DIAGNOSTIKA"]
[362,"LABORATÓRIOS","SAO PAULO CAPITAL","SAO PAULO","AVANTE MEDICINA DIAG EIRELI"]
[363,"LABORATÓRIOS","SAO PAULO CAPITAL","SAO PAULO","LAVOISIER MEDICINA DIAGNOSTICA"]
[364,"LABORATÓRIOS","SAO PAULO CAPITAL","SAO PAULO","RENACOR SERVICOS MEDICOS"]
[365,"LABORATÓRIOS","SAO PAULO CAPITAL","SAO PAULO","FEMME LABORATORIO DA MULHER"]
[366,"LABORATÓRIOS","SAO PAULO CAPITAL","SAO PAULO","A + MEDICINA DIAGNOSTICA"]
[367,"LABORATÓRIOS","SAO PAULO CAPITAL","SAO PAULO","CDB PENHA"]
[368,"LABORATÓRIOS","SAO PAULO CAPITAL","SAO PAULO","CEDAC CENTRO DE DIAGNOSTICO E ANALISES CLINICAS"]
[369,"LABORATÓRIOS","SAO PAULO CAPITAL","SAO PAULO","CENTRO DIAGNOSTICO UCD"]
[370,"LABORATÓRIOS","SAO PAULO CAPITAL","SAO PAULO","CIMERMAN ANALISES CLINICAS"]
[371,"LABORATÓRIOS","SAO PAULO CAPITAL","SAO PAULO","CIUTAT CENTRO DE DIAGNOSTICO"]
[372,"LABORATÓRIOS","SAO PAULO CAPITAL","SAO PAULO","IMUVI INSTITUTO MEDICO HUMANA E VITAE"]
[373,"LABORATÓRIOS","SAO PAULO CAPITAL","SAO PAULO","INSTITUTO DE MEDICINA DIGITAL DIMED"]
[374,"LABORATÓRIOS","SAO PAULO CAPITAL","SAO PAULO","LABOR LABIS"]
[375,"LABORATÓRIOS","SAO PAULO CAPITAL","SAO PAULO","LABORATORIO PLINIO SANTOS"]
[376,"LABORATÓRIOS","SAO PAULO CAPITAL","SAO PAULO","NAKANO E TORATA MEDICINA DIAGNOSTICA"]
[377,"LABORATÓRIOS","SAO PAULO CAPITAL","SAO PAULO","UDDO UND DE DIAGNOSTICO E DENSIT OSSEA"]
[378,"LABORATÓRIOS","SAO PAULO CAPITAL","SAO PAULO","CLINICA NORTH WHITE"]
[379,"LABORATÓRIOS","SAO PAULO CAPITAL","SAO PAULO","LBM LAB BIO-MEDICO"]
[380,"LABORATÓRIOS","SAO PAULO CAPITAL","SAO PAULO","FISIOART"]
[381,"LABORATÓRIOS","SAO PAULO CAPITAL","SAO PAULO","INST DE RAD DR GIOVANNI GUERRINI"]
[382,"LABORATÓRIOS","SAO PAULO CAPITAL","SAO PAULO","JABLONKA CENTRO DE DIAG"]
[383,"LABORATÓRIOS","SAO PAULO CAPITAL","SAO PAULO","LAB CLIN RAUL DIAS DOS SANTOS"]
[384,"LABORATÓRIOS","SAO PAULO CAPITAL","SAO PAULO","LABORATORIO NEURODIAGNOSTICO"]
[385,"LABORATÓRIOS","SAO PAULO CAPITAL","SAO PAULO","MILITELLO"]
[386,"LABORATÓRIOS","SAO PAULO CAPITAL","SAO PAULO","SONIMED"]
[387,"LABORATÓRIOS","SAO PAULO CAPITAL","SAO PAULO","CDB PREMIUM"]
[388,"LABORATÓRIOS","SAO PAULO CAPITAL","SAO PAULO","CENTRO DE DIAGNÓSTICO HOSPITAL SÍRIO LIBANÊS UNIDADE ITAIM"]
[389,"LABORATÓRIOS","SAO PAULO CAPITAL","SAO PAULO","CLUB D A"]
[390,"LABORATÓRIOS","SAO PAULO CAPITAL","SAO PAULO","CTO PAULISTA DE ENDOSCOPIA"]
[391,"LABORATÓRIOS","SAO PAULO CAPITAL","SAO PAULO","CURA CENTRO DE ULTRASSONOGRAFIA E RADIOLOGIA"]
[392,"LABORATÓRIOS","SAO PAULO CAPITAL","SAO PAULO","DELBONI AURIEMO MED DIAG"]
[393,"LABORATÓRIOS","SAO PAULO CAPITAL","SAO PAULO","SALOMAO E ZOPPI MED DIAGNOSTICA"]
[394,"LABORATÓRIOS","SAO PAULO CAPITAL","SAO PAULO","FLEURY"]
[395,"LABORATÓRIOS","SAO PAULO CAPITAL","SAO PAULO","ALTA EXCELENCIA DIAGNOSTICA"]
[396,"LABORATÓRIOS","SAO PAULO CAPITAL","SAO PAULO","CENTRO MEDICO SAO CAMILO"]
[397,"LABORATÓRIOS","SAO PAULO DEMAIS CIDADES","AGUDOS","LABORATORIO SOBRINHO"]
[398,"LABORATÓRIOS","SAO PAULO DEMAIS CIDADES","AMERICANA","LABCLIN"]
[399,"LABORATÓRIOS","SAO PAULO DEMAIS CIDADES","AMERICANA","PRO COR EXAMES DO CORACAO"]
[400,"LABORATÓRIOS","SAO PAULO DEMAIS CIDADES","AMERICANA","CETAM"]
[401,"LABORATÓRIOS","SAO PAULO DEMAIS CIDADES","AMERICANA","LABORATORIO DE ANALISES CLINICAS PREVILAB"]
[402,"LABORATÓRIOS","SAO PAULO DEMAIS CIDADES","AMERICANA","ROSSETTI DIAGNOSTICO POR IMAGEM"]
[403,"LABORATÓRIOS","SAO PAULO DEMAIS CIDADES","AMERICANA","UNIFISIO"]
[404,"LABORATÓRIOS","SOROCABA E REGIAO","ARACOIABA DA SERRA","CEDIAR CENTRO DE DIAGN DE ARACOIABA SC"]
[405,"LABORATÓRIOS","SOROCABA E REGIAO","ARACOIABA DA SERRA","IDS INSTITUTO DE DIAGNOSTICO DE SOROCABA SC"]
[406,"LABORATÓRIOS","SOROCABA E REGIAO","ARACOIABA DA SERRA","TRIADE LAB DE ANAL CLINICAS E CITOLOGIA ME"]
[407,"LABORATÓRIOS","CAMPINAS E REGIAO","ARTUR NOGUEIRA","CLINESP DE ARTUR NOGUEIRA"]
[408,"LABORATÓRIOS","CAMPINAS E REGIAO","ARTUR NOGUEIRA","LABORATORIO SAO PAULO"]
[409,"LABORATÓRIOS","GRANDE SAO PAULO","ARUJA","LAB DELIBERATO DE ANAL CLIN"]
[410,"LABORATÓRIOS","GRANDE SAO PAULO","ASSIS","IAM LAB DIAGNOSTICO ME"]
[411,"LABORATÓRIOS","GRANDE SAO PAULO","ASSIS","TOMOESTE CENTRO DE TOMO COMPUTADORIZADA DE ASSIS"]
[412,"LABORATÓRIOS","JUNDIAI E REGIAO","ATIBAIA","SOCIEDADE MEDICA NOVO MILLENIUM SC"]
[413,"LABORATÓRIOS","JUNDIAI E REGIAO","ATIBAIA","UNILAB LABORATORIO CLINICO"]
[414,"LABORATÓRIOS","JUNDIAI E REGIAO","ATIBAIA","CENTRO RADIOLOGICO ATIBAIA"]
[415,"LABORATÓRIOS","JUNDIAI E REGIAO","ATIBAIA","LABORATORIO CLIMA"]
[416,"LABORATÓRIOS","SAO PAULO DEMAIS CIDADES","BARRETOS","LABORATORIO DR SUZUKI"]
[417,"LABORATÓRIOS","GRANDE SAO PAULO","BARUERI","CLIN ARAGUAIA"]
[418,"LABORATÓRIOS","GRANDE SAO PAULO","BARUERI","LAVOISIER MEDICINA DIAGNOSTICA"]
[419,"LABORATÓRIOS","GRANDE SAO PAULO","BARUERI","FISIOTERAPIA SANTANNA"]
[420,"LABORATÓRIOS","GRANDE SAO PAULO","BARUERI","DELBONI AURIEMO MED DIAG"]
[421,"LABORATÓRIOS","GRANDE SAO PAULO","BARUERI","CLUB D A"]
[422,"LABORATÓRIOS","GRANDE SAO PAULO","BARUERI","FLEURY S.A"]
[423,"LABORATÓRIOS","SAO PAULO DEMAIS CIDADES","BATATAIS","UNIMAGEM RP SERVS MEDS S S"]
[424,"LABORATÓRIOS","SAO PAULO DEMAIS CIDADES","BAURU","CDI CENTRO DE DIAGNOSTICO POR IMAGEM DE BAURU"]
[425,"LABORATÓRIOS","SAO PAULO DEMAIS CIDADES","BAURU","CLIN DE MEDICINA NUCLEAR DE BAURU SC"]
[426,"LABORATÓRIOS","SAO PAULO DEMAIS CIDADES","BAURU","CR MEDICINA DIAGNOSTICA E PATOLOGIA CLINICA"]
[427,"LABORATÓRIOS","SAO PAULO DEMAIS CIDADES","BAURU","INSTITUTO BAURUENSE RESSONANCIA MAGNETICA"]
[428,"LABORATÓRIOS","SAO PAULO DEMAIS CIDADES","BAURU","LABORATORIO DE BAURU DE PATOLOGIA CLINICA SC"]
[429,"LABORATÓRIOS","SAO PAULO DEMAIS CIDADES","BAURU","TECNOLAB PATOLOGIA CLINICA"]
[430,"LABORATÓRIOS","BAIXADA SANTISTA","BERTIOGA","ITAPEMA LABORATORIO DE ANALISES CLINICAS"]
[431,"LABORATÓRIOS","SOROCABA E REGIAO","BOITUVA","C & M DIAGNOSTICOS MEDICOS BOITUVA"]
[432,"LABORATÓRIOS","SOROCABA E REGIAO","BOITUVA","COR TOTALIS CLINICA MEDICA BOITUVA"]
[433,"LABORATÓRIOS","SOROCABA E REGIAO","BOITUVA","LAB DE ANAL CLINS FOIZER"]
[434,"LABORATÓRIOS","JUNDIAI E REGIAO","BRAGANCA PAULISTA","CLIN SANTO ANTONIO S C LIMITADA"]
[435,"LABORATÓRIOS","SAO PAULO DEMAIS CIDADES","CACAPAVA","INSTITUTO TOMOVALE DE RADIOLOGIA"]
[436,"LABORATÓRIOS","SAO PAULO DEMAIS CIDADES","CACAPAVA","LABORATORIO SAO JOSE"]
[437,"LABORATÓRIOS","SAO PAULO DEMAIS CIDADES","CACAPAVA","LABORATORIO DE ANAL CLIN OSWALDO CRUZ"]
[438,"LABORATÓRIOS","GRANDE SAO PAULO","CAIEIRAS","CLINICANALISES CLINICAS"]
[439,"LABORATÓRIOS","CAMPINAS E REGIAO","CAMPINAS","CLINICA SANTA CRUZ"]
[440,"LABORATÓRIOS","CAMPINAS E REGIAO","CAMPINAS","LABORATORIOS FREEMAN DE ANALISES CLINICAS"]
[441,"LABORATÓRIOS","CAMPINAS E REGIAO","CAMPINAS","LAB DE PAT CLIN A FREALDO S C LTD"]
[442,"LABORATÓRIOS","CAMPINAS E REGIAO","CAMPINAS","CENTRO DE CARDIOLOGIA E DIAG CAMPINAS"]
[443,"LABORATÓRIOS","CAMPINAS E REGIAO","CAMPINAS","LABORATORIO EMILIO RIBAS"]
[444,"LABORATÓRIOS","CAMPINAS E REGIAO","CAMPINAS","CAMP IMAGEM IMAGENS MEDICAS DE CAMPINAS"]
[445,"LABORATÓRIOS","CAMPINAS E REGIAO","CAMPINAS","CENDICAMP CENTRAL DIAGNOSTICA CAMPINAS SC"]
[446,"LABORATÓRIOS","CAMPINAS E REGIAO","CAMPINAS","ECO CLINICA"]
[447,"LABORATÓRIOS","CAMPINAS E REGIAO","CAMPINAS","LABORATORIO VOZZA"]
[448,"LABORATÓRIOS","CAMPINAS E REGIAO","CAMPINAS","LABORATORIO DR ROBERTO FRANCO DO AMARAL"]
[449,"LABORATÓRIOS","CAMPINAS E REGIAO","CAMPINAS","LABORATORIO CONFIANCE"]
[450,"LABORATÓRIOS","CAMPINAS E REGIAO","CAMPINAS","ANDREA DA GRACA LIMA ZUCCOLOTTO"]
[451,"LABORATÓRIOS","CAMPINAS E REGIAO","CAMPINAS","CDE CLIN MED LIMITADA"]
[452,"LABORATÓRIOS","CAMPINAS E REGIAO","CAMPINAS","LABORATORIO BACCILI"]
[453,"LABORATÓRIOS","CAMPINAS E REGIAO","CAMPINAS","FENIX LABORATORIO DE ANALISES CLINICAS"]
[454,"LABORATÓRIOS","CAMPINAS E REGIAO","CAMPINAS","LAB DE ANAL CLINS SAMUEL PESSOA LTD"]
[455,"LABORATÓRIOS","CAMPINAS E REGIAO","CAMPINAS","LABORATORIO DE ANALISES E PESQUISAS CLINICAS HENRI"]
[456,"LABORATÓRIOS","CAMPINAS E REGIAO","CAMPINAS","LABORTEST LABORATORIO DE ANALISES CLINICAS"]
[457,"LABORATÓRIOS","CAMPINAS E REGIAO","CAMPINAS","SANCHES E KOEHLER MEDICOS ASSOCIADOS"]
[458,"LABORATÓRIOS","CAMPINAS E REGIAO","CAMPINAS","CENTRO RADIOLOGICO DE CAMPINAS"]
[459,"LABORATÓRIOS","JUNDIAI E REGIAO","CAMPO LIMPO PAULISTA","CC CAMPO LIMPO PAULISTA"]
[460,"LABORATÓRIOS","SAO PAULO DEMAIS CIDADES","CAMPOS DO JORDAO","LAB DE ANALISES CLINICAS SAO LUCAS SS"]
[461,"LABORATÓRIOS","SAO PAULO DEMAIS CIDADES","CAMPOS DO JORDAO","LABORATORIO DE ANAL CLIN OSWALDO CRUZ"]
[462,"LABORATÓRIOS","SAO PAULO DEMAIS CIDADES","CAPIVARI","LABORATORIO DE ANALISES CLINICAS PREVILAB"]
[463,"LABORATÓRIOS","SAO PAULO DEMAIS CIDADES","CARAGUATATUBA","CENTRO OFTALMOLOGICO DO LITORAL NORTE"]
[464,"LABORATÓRIOS","SAO PAULO DEMAIS CIDADES","CARAGUATATUBA","CENTRO MED SAO CAMILO"]
[465,"LABORATÓRIOS","GRANDE SAO PAULO","CARAPICUIBA","R F OFTALMOLOGIA"]
[466,"LABORATÓRIOS","SAO PAULO DEMAIS CIDADES","CATANDUVA","SAO LUCAS LAB DE ANAL CLIN"]
[467,"LABORATÓRIOS","CAMPINAS E REGIAO","COSMOPOLIS","LABORATORIO SAO PAULO"]
[468,"LABORATÓRIOS","GRANDE SAO PAULO","COTIA","CEDIME"]
[469,"LABORATÓRIOS","GRANDE SAO PAULO","COTIA","LAVOISIER MEDICINA DIAGNOSTICA"]
[470,"LABORATÓRIOS","GRANDE SAO PAULO","COTIA","DELBONI AURIEMO MED DIAG"]
[471,"LABORATÓRIOS","GRANDE SAO PAULO","COTIA","CLUB D A"]
[472,"LABORATÓRIOS","BAIXADA SANTISTA","CUBATAO","INST DE ANAL CLINS DE SANTOS SC LTDA"]
[473,"LABORATÓRIOS","BAIXADA SANTISTA","CUBATAO","MULT IMAGEM"]
[474,"LABORATÓRIOS","SAO PAULO ABC / DIADEMA","DIADEMA","NOTRELABS"]
[475,"LABORATÓRIOS","SAO PAULO ABC / DIADEMA","DIADEMA","LABOR UNIAO"]
[476,"LABORATÓRIOS","SAO PAULO ABC / DIADEMA","DIADEMA","SOMEC SOC.DE MEDICINA E CIRURGIA LTDA"]
[477,"LABORATÓRIOS","SAO PAULO ABC / DIADEMA","DIADEMA","TECNOLAB"]
[478,"LABORATÓRIOS","SAO PAULO DEMAIS CIDADES","ELIAS FAUSTO","LAB LABORATORIO DE ANALISES CLINICAS"]
[479,"LABORATÓRIOS","GRANDE SAO PAULO","FRANCO DA ROCHA","CTACT DE APOIO DIAGNOSTICO"]
[480,"LABORATÓRIOS","SAO PAULO DEMAIS CIDADES","GUARATINGUETA","AMM RAIO X ME"]
[481,"LABORATÓRIOS","SAO PAULO DEMAIS CIDADES","GUARATINGUETA","CTO DIAG CARDIO DE GUARATINGUETA SC CARDIOCENTER"]
[482,"LABORATÓRIOS","SAO PAULO DEMAIS CIDADES","GUARATINGUETA","CEPAC CENTRO DE PATOL. E DIAG. CLINICO"]
[483,"LABORATÓRIOS","SAO PAULO DEMAIS CIDADES","GUARATINGUETA","FG LABORATORIO"]
[484,"LABORATÓRIOS","SAO PAULO DEMAIS CIDADES","GUARATINGUETA","LABORATORIO MEDICO VITAL BRASIL"]
[485,"LABORATÓRIOS","SAO PAULO DEMAIS CIDADES","GUARATINGUETA","LABORATORIO SANTA PAULA ANALISES CLINICAS"]
[486,"LABORATÓRIOS","SAO PAULO DEMAIS CIDADES","GUARATINGUETA","SANTA CASA DE GUARATINGUETA"]
[487,"LABORATÓRIOS","BAIXADA SANTISTA","GUARUJA","P A MEDICAL CARE ASSIST MEDICA"]
[488,"LABORATÓRIOS","BAIXADA SANTISTA","GUARUJA","INSTITUTO DE ANALISES CLINICAS DE SANTOS"]
[489,"LABORATÓRIOS","GRANDE SAO PAULO","GUARULHOS","LAB DE ANAL CLINICAS SANITAS"]
[490,"LABORATÓRIOS","GRANDE SAO PAULO","GUARULHOS","LAVOISIER MEDICINA DIAGNOSTICA"]
[491,"LABORATÓRIOS","GRANDE SAO PAULO","GUARULHOS","LOPESFISIO CLIN DE REABILITACAO FISICA"]
[492,"LABORATÓRIOS","GRANDE SAO PAULO","GUARULHOS","DIMAGEM"]
[493,"LABORATÓRIOS","GRANDE SAO PAULO","GUARULHOS","DELBONI AURIEMO MED DIAG"]
[494,"LABORATÓRIOS","CAMPINAS E REGIAO","HORTOLANDIA","PAIVA MOTA ANAL CLINS E SERV MEDS LTDA"]
[495,"LABORATÓRIOS","CAMPINAS E REGIAO","HORTOLANDIA","LABORATORIO ALPHA DE ANALISES CLINICAS"]
[496,"LABORATÓRIOS","GRANDE SAO PAULO","IBIUNA","VITALABOR LABORATORIO DE ANALISES CLINICAS"]
[497,"LABORATÓRIOS","SAO PAULO DEMAIS CIDADES","ILHABELA","DUCLIN LABORATORIOS"]
[498,"LABORATÓRIOS","CAMPINAS E REGIAO","INDAIATUBA","MRI METODOS RADIOLOGICOS E IMAGENS"]
[499,"LABORATÓRIOS","CAMPINAS E REGIAO","INDAIATUBA","LABORATORIO CONFIANCE"]
[500,"LABORATÓRIOS","CAMPINAS E REGIAO","INDAIATUBA","LAB LABORATORIO DE ANALISES CLINICAS"]
[501,"LABORATÓRIOS","CAMPINAS E REGIAO","INDAIATUBA","UNILABOR"]
[502,"LABORATÓRIOS","SAO PAULO DEMAIS CIDADES","IPERO","BIOCENTER"]
[503,"LABORATÓRIOS","BAIXADA SANTISTA","ITANHAEM","ANALISES CLINICAS CELLULA MATER"]
[504,"LABORATÓRIOS","BAIXADA SANTISTA","ITANHAEM","CLINICA ITAMED"]
[505,"LABORATÓRIOS","BAIXADA SANTISTA","ITANHAEM","CT DIAG DE ITANHAEM"]
[506,"LABORATÓRIOS","GRANDE SAO PAULO","ITAPECERICA DA SERRA","COTISCLIN ORT E TRAUMAT DE ITAPEC DA SERRA SC LT"]
[507,"LABORATÓRIOS","GRANDE SAO PAULO","ITAPECERICA DA SERRA","CENTERCLIN LABORATORIO DE ANAL CLIN"]
[508,"LABORATÓRIOS","GRANDE SAO PAULO","ITAPECERICA DA SERRA","DIAGLAB DIAGNOSTICOS LABORATORIAL "]
[509,"LABORATÓRIOS","SOROCABA E REGIAO","ITAPETININGA","IDS INST DE DIAG DE SOROCABA ITAPETININGA"]
[510,"LABORATÓRIOS","GRANDE SAO PAULO","ITAPEVI","INSTITUTO VIDA DE FISIOTERAPIA"]
[511,"LABORATÓRIOS","GRANDE SAO PAULO","ITAPEVI","NOVA IMAGEM CTO AVANCADO DE DIAG"]
[512,"LABORATÓRIOS","GRANDE SAO PAULO","ITAQUAQUECETUBA","LAB DELIBERATO DE ANAL CLIN"]
[513,"LABORATÓRIOS","JUNDIAI E REGIAO","ITATIBA","CLIMAGEM CLINICA DE DIAGNOSTICO POR IMAGEM"]
[514,"LABORATÓRIOS","JUNDIAI E REGIAO","ITATIBA","EXAME LABORATORIO DE ANAL CLIN ."]
[515,"LABORATÓRIOS","JUNDIAI E REGIAO","ITATIBA","INST DE SAUDE DA MULHER"]
[516,"LABORATÓRIOS","JUNDIAI E REGIAO","ITATIBA","UNILAB LABORATORIO CLINICO"]
[517,"LABORATÓRIOS","JUNDIAI E REGIAO","ITATIBA","BIOCLINICA ANALISES CLINICAS SC"]
[518,"LABORATÓRIOS","SOROCABA E REGIAO","ITU","DIAPREV DIAGNOSTICOS MEDICOS"]
[519,"LABORATÓRIOS","SOROCABA E REGIAO","ITU","FISIOMED CLINICA DE FISIOTERAPIA E REAB"]
[520,"LABORATÓRIOS","SOROCABA E REGIAO","ITU","UNIDADE DE ECOGRAFIA E RADIOLOGIA PINHEIROS"]
[521,"LABORATÓRIOS","SAO PAULO DEMAIS CIDADES","JACAREI","CIPAX MEDICINA DIAGNOSTICA"]
[522,"LABORATÓRIOS","SAO PAULO DEMAIS CIDADES","JACAREI","CLIMED ASSISTENCIA MEDICA"]
[523,"LABORATÓRIOS","SAO PAULO DEMAIS CIDADES","JACAREI","PLANI DIAGNOSTICOS MEDICOS"]
[524,"LABORATÓRIOS","SAO PAULO DEMAIS CIDADES","JACAREI","UNIDADE DE DIAGNOSTICO POR IMAGEM"]
[525,"LABORATÓRIOS","SAO PAULO DEMAIS CIDADES","JACAREI","VALECLIN LABORATORIO DE ANALISES CLINICAS"]
[526,"LABORATÓRIOS","SAO PAULO DEMAIS CIDADES","JACAREI","LABORATORIO DE ANAL CLIN OSWALDO CRUZ"]
[527,"LABORATÓRIOS","SAO PAULO DEMAIS CIDADES","JACAREI","LAB DE ANALISE CLINS SAO JOSE SOC SIMPLES"]
[528,"LABORATÓRIOS","SAO PAULO DEMAIS CIDADES","JACAREI","LABORATORIO UNIDADE MEDICA"]
[529,"LABORATÓRIOS","CAMPINAS E REGIAO","JAGUARIUNA","ANACLIN LAB ANALISES CLINICAS"]
[530,"LABORATÓRIOS","CAMPINAS E REGIAO","JAGUARIUNA","LABORATORIO SAO PAULO"]
[531,"LABORATÓRIOS","GRANDE SAO PAULO","JANDIRA","INSTITUTO VIDA DE FISIOTERAPIA"]
[532,"LABORATÓRIOS","GRANDE SAO PAULO","JANDIRA","CLIN SAO JOAO"]
[533,"LABORATÓRIOS","JUNDIAI E REGIAO","JUNDIAI","BIOCLINICA LABORATORIO - LAB ANAL CLIN SANTA ELISA"]
[534,"LABORATÓRIOS","JUNDIAI E REGIAO","JUNDIAI","STIMULY NUCLEO TERAPIAS INTEGRADAS SC"]
[535,"LABORATÓRIOS","JUNDIAI E REGIAO","JUNDIAI","CARDIOIMAGEM CTO DIAG TERAP CARDIOVASCULAR SC"]
[536,"LABORATÓRIOS","JUNDIAI E REGIAO","JUNDIAI","FISIOCLIN PAOLIELO"]
[537,"LABORATÓRIOS","JUNDIAI E REGIAO","JUNDIAI","A + MEDICINA DIAGNOSTICA"]
[538,"LABORATÓRIOS","JUNDIAI E REGIAO","JUNDIAI","LABORATORIO JORGE EID"]
[539,"LABORATÓRIOS","JUNDIAI E REGIAO","JUNDIAI","UNIDADE DE ECOGRAFIA E RADIOLOGIA PINHEIROS"]
[540,"LABORATÓRIOS","JUNDIAI E REGIAO","JUNDIAI","ANGIOSCAN CTO INTEG DE DIAG E TRAT DE D CIRCULA"]
[541,"LABORATÓRIOS","SAO PAULO DEMAIS CIDADES","LIMEIRA","LABORATORIO DE ANALISES CLINICAS PREVILAB"]
[542,"LABORATÓRIOS","SAO PAULO DEMAIS CIDADES","LIMEIRA","BIO LAB ANALISES CLINICAS"]
[543,"LABORATÓRIOS","SAO PAULO DEMAIS CIDADES","LIMEIRA","IMAGEM CENTRO DE DIAGNOSTICOS"]
[544,"LABORATÓRIOS","SAO PAULO DEMAIS CIDADES","LIMEIRA","LABCLIN LIMEIRA"]
[545,"LABORATÓRIOS","SAO PAULO DEMAIS CIDADES","LIMEIRA","LABCENTER"]
[546,"LABORATÓRIOS","SAO PAULO DEMAIS CIDADES","LORENA","CEPAC CENTRO DE PATOL. E DIAG. CLINICO"]
[547,"LABORATÓRIOS","SAO PAULO DEMAIS CIDADES","LORENA","LABORATORIO MEDICO VITAL BRASIL"]
[548,"LABORATÓRIOS","SAO PAULO DEMAIS CIDADES","LORENA","UEU UNIDADE ESPECIALIZADA EM ULTRASSONOGRAFIA"]
[549,"LABORATÓRIOS","SAO PAULO DEMAIS CIDADES","MATAO","LABORATORIO SAO FRANCISCO DE ANALISES CLINICAS"]
[550,"LABORATÓRIOS","SAO PAULO ABC / MAUA","MAUA","BIOCENTER DIAGNOSTICOS LABORATORIAIS"]
[551,"LABORATÓRIOS","SAO PAULO ABC / MAUA","MAUA","MEDIMAGEM"]
[552,"LABORATÓRIOS","SAO PAULO ABC / MAUA","MAUA","LAB PADRAO DE ANAL CLINICAS"]
[553,"LABORATÓRIOS","SAO PAULO ABC / MAUA","MAUA","TECNOLAB"]
[554,"LABORATÓRIOS","GRANDE SAO PAULO","MOGI DAS CRUZES","CLIN DE MOLESTIA DO AP DIG E VASC CADIVA"]
[555,"LABORATÓRIOS","GRANDE SAO PAULO","MOGI DAS CRUZES","CYTOLAB"]
[556,"LABORATÓRIOS","GRANDE SAO PAULO","MOGI DAS CRUZES","NASA LAB BIO CLINICO"]
[557,"LABORATÓRIOS","GRANDE SAO PAULO","MOGI DAS CRUZES","GARDIENCOR CLINICA MEDICA"]
[558,"LABORATÓRIOS","GRANDE SAO PAULO","MOGI DAS CRUZES","CEDECO"]
[559,"LABORATÓRIOS","GRANDE SAO PAULO","MOGI DAS CRUZES","CDC LABORATORIO"]
[560,"LABORATÓRIOS","GRANDE SAO PAULO","MOGI DAS CRUZES","LAB DE ANAL CLINS DR PEDRO BONELLI S A"]
[561,"LABORATÓRIOS","GRANDE SAO PAULO","MOGI GUACU","CLINMED CLIN ESP EM MED EMB DE MOGI GUACU"]
[562,"LABORATÓRIOS","GRANDE SAO PAULO","MOGI GUACU","LABORATORIO SAO JUDAS TADEU SC"]
[563,"LABORATÓRIOS","GRANDE SAO PAULO","MOGI MIRIM","CITOLAB LABORATORIO DE ANALISES CLINICAS SC"]
[564,"LABORATÓRIOS","BAIXADA SANTISTA","MONGAGUA","CLIN. DE FRATURAS DE MONGAGUA"]
[565,"LABORATÓRIOS","BAIXADA SANTISTA","MONGAGUA","LAB DE ANAL CLINICAS GONZAGA"]
[566,"LABORATÓRIOS","CAMPINAS E REGIAO","MONTE MOR","BIOMEDKA LABORATORIO CLINICO UNIDADE II"]
[567,"LABORATÓRIOS","CAMPINAS E REGIAO","MONTE MOR","MED CENTRO PRESTADORA DE SERVICO MEDICOS"]
[568,"LABORATÓRIOS","GRANDE SAO PAULO","OSASCO","DR.GHELFOND DIAGNOSTICO MEDICO"]
[569,"LABORATÓRIOS","GRANDE SAO PAULO","OSASCO","GS IMAGEM DIAGNOSTICO MEDICO"]
[570,"LABORATÓRIOS","GRANDE SAO PAULO","OSASCO","INSTITUTO VIDA DE FISIOTERAPIA"]
[571,"LABORATÓRIOS","GRANDE SAO PAULO","OSASCO","SION DIAGNOSTICOS"]
[572,"LABORATÓRIOS","GRANDE SAO PAULO","OSASCO","MEDCOR CTO MED CARD DE OSASCO"]
[573,"LABORATÓRIOS","GRANDE SAO PAULO","OSASCO","UNIDADE DE DIAGNOSTICO OSASCO"]
[574,"LABORATÓRIOS","GRANDE SAO PAULO","OSASCO","LAVOISIER MEDICINA DIAGNOSTICA"]
[575,"LABORATÓRIOS","GRANDE SAO PAULO","OSASCO","ENDOPLUS DIAGNOSTICOS"]
[576,"LABORATÓRIOS","GRANDE SAO PAULO","OSASCO","FRIDA DATYSGELD"]
[577,"LABORATÓRIOS","GRANDE SAO PAULO","OSASCO","DELBONI AURIEMO MED DIAG"]
[578,"LABORATÓRIOS","SAO PAULO DEMAIS CIDADES","OURINHOS","LABORATORIO SANTA PAULA OURINHOS"]
[579,"LABORATÓRIOS","CAMPINAS E REGIAO","PEDREIRA","QUALILAB JUNQUEIRA LABORATORIO"]
[580,"LABORATÓRIOS","CAMPINAS E REGIAO","PEDREIRA","PRECISION LABORATORIO DE ANALISES"]
[581,"LABORATÓRIOS","SAO PAULO DEMAIS CIDADES","PENAPOLIS","LABORATORIO DOMINGUES CRUZ"]
[582,"LABORATÓRIOS","BAIXADA SANTISTA","PERUIBE","CLINICA SAO PEDRO"]
[583,"LABORATÓRIOS","BAIXADA SANTISTA","PERUIBE","RUIZ E MILARE"]
[584,"LABORATÓRIOS","SOROCABA E REGIAO","PIEDADE","IDS INSTITUTO DE DIAGNOSTICO SOROCABA SS"]
[585,"LABORATÓRIOS","SAO PAULO DEMAIS CIDADES","PINDAMONHANGABA","LABORATORIO DE ANAL CLIN OSWALDO CRUZ"]
[586,"LABORATÓRIOS","SAO PAULO DEMAIS CIDADES","PINDAMONHANGABA","PRO IMAGEM"]
[587,"LABORATÓRIOS","SAO PAULO DEMAIS CIDADES","PINDAMONHANGABA","WK DIAGNOSE"]
[588,"LABORATÓRIOS","SAO PAULO DEMAIS CIDADES","PIRACICABA","LABORATORIO DE ANALISES CLINICAS PREVILAB"]
[589,"LABORATÓRIOS","SAO PAULO DEMAIS CIDADES","PIRACICABA","LABORATORIO SAO LUCAS"]
[590,"LABORATÓRIOS","GRANDE SAO PAULO","POA","LAB DELIBERATO DE ANAL CLIN"]
[591,"LABORATÓRIOS","GRANDE SAO PAULO","POA","GARDIENCOR CLINICA MEDICA"]
[592,"LABORATÓRIOS","SOROCABA E REGIAO","PORTO FELIZ","DIAGSOM ULTRASSONOGRAFIA SC"]
[593,"LABORATÓRIOS","SOROCABA E REGIAO","PORTO FELIZ","ITULAB LAB DE ANAL CLINS DE ITU S C"]
[594,"LABORATÓRIOS","SOROCABA E REGIAO","PORTO FELIZ","ORTOMED DE SOROCABA"]
[595,"LABORATÓRIOS","BAIXADA SANTISTA","PRAIA GRANDE","CEDIAL CENTRO DE DIAG MEDICOS DO LITORAL"]
[596,"LABORATÓRIOS","BAIXADA SANTISTA","PRAIA GRANDE","LAB DE ANAL CLINICAS GONZAGA"]
[597,"LABORATÓRIOS","BAIXADA SANTISTA","PRAIA GRANDE","INSTITUTO DE ANALISES CLINICAS DE SANTOS"]
[598,"LABORATÓRIOS","BAIXADA SANTISTA","PRAIA GRANDE","LABORATORIO PASTEUR DE ANALISES CLINICAS"]
[599,"LABORATÓRIOS","SAO PAULO DEMAIS CIDADES","PRESIDENTE PRUDENTE","SERVS DE RADIOL E ULTRASSONOGRAFIA DE PRESI"]
[600,"LABORATÓRIOS","SAO PAULO DEMAIS CIDADES","PRESIDENTE PRUDENTE","CENTRO DE ANALISES CLINICAS UNILAB"]
[601,"LABORATÓRIOS","SAO PAULO DEMAIS CIDADES","PRESIDENTE PRUDENTE","IMAGEM MEDICINA DIAGNOSTICA"]
[602,"LABORATÓRIOS","SAO PAULO DEMAIS CIDADES","PRESIDENTE PRUDENTE","INSTITUTO DE RADIOLOGIA PRESIDENTE PRUDENTE"]
[603,"LABORATÓRIOS","SAO PAULO DEMAIS CIDADES","PRESIDENTE PRUDENTE","LABORATORIO DE ANALISES CLINICAS MARLENE SPIR"]
[604,"LABORATÓRIOS","SAO PAULO DEMAIS CIDADES","PRESIDENTE VENCESLAU","LABORATORIO DIAGNOSE"]
[605,"LABORATÓRIOS","SAO PAULO DEMAIS CIDADES","REGISTRO","INST RADIODIAG VALE DO RIBEIRA SC LTD"]
[606,"LABORATÓRIOS","SAO PAULO DEMAIS CIDADES","REGISTRO","CENTRO DE TOMOG. COMP. DO VALE DO RIBEIRA"]
[607,"LABORATÓRIOS","SAO PAULO ABC / RIBEIRAO PIRES","RIBEIRAO PIRES","ELGRA CLIN DE FISIOT E ACUPUNTURA S S"]
[608,"LABORATÓRIOS","SAO PAULO ABC / RIBEIRAO PIRES","RIBEIRAO PIRES","IPAC INST PAULISTA DE ANAL CLINICAS"]
[609,"LABORATÓRIOS","SAO PAULO ABC / RIBEIRAO PIRES","RIBEIRAO PIRES","LAB HORMON LAB ESP EM DOSAGENS HORMONAIS"]
[610,"LABORATÓRIOS","SAO PAULO ABC / RIBEIRAO PIRES","RIBEIRAO PIRES","VITAL LAB LABORATORIO ANALISES CLINICAS"]
[611,"LABORATÓRIOS","SAO PAULO ABC / RIBEIRAO PIRES","RIBEIRAO PIRES","TECNOLAB"]
[612,"LABORATÓRIOS","SAO PAULO ABC / RIBEIRAO PIRES","RIBEIRAO PIRES","INSTITUTO DE RADIOLOGIA E ULTR RIBEIRAO PIRES"]
[613,"LABORATÓRIOS","SAO PAULO ABC / RIBEIRAO PIRES","RIBEIRAO PIRES","MED SONIC DIAG POR IMAGEM SC"]
[614,"LABORATÓRIOS","SAO PAULO DEMAIS CIDADES","RIBEIRAO PRETO","DOCUMENTA CLINICA RADIOLOGICA"]
[615,"LABORATÓRIOS","SAO PAULO DEMAIS CIDADES","RIBEIRAO PRETO","INSTITUTO DE RADIO IMAGEM"]
[616,"LABORATÓRIOS","SAO PAULO DEMAIS CIDADES","RIBEIRAO PRETO","UNID DE ANATOMIA PATOLOGICA E CITOPAT"]
[617,"LABORATÓRIOS","SAO PAULO DEMAIS CIDADES","RIBEIRAO PRETO","CEDIRP RIBEIRAO PRETO"]
[618,"LABORATÓRIOS","SAO PAULO DEMAIS CIDADES","RIBEIRAO PRETO","CENTRO DE DIAGNOSTICOS CONTROLE"]
[619,"LABORATÓRIOS","SAO PAULO DEMAIS CIDADES","RIBEIRAO PRETO","DIMEN MEDICINA NUCLEAR"]
[620,"LABORATÓRIOS","SAO PAULO DEMAIS CIDADES","RIBEIRAO PRETO","INSTITUTO VICTORIO VALERI DE DIAGNOSTICOS MEDICOS"]
[621,"LABORATÓRIOS","SAO PAULO DEMAIS CIDADES","RIBEIRAO PRETO","LABORATORIO DE ANALISES BARACCHINI"]
[622,"LABORATÓRIOS","SAO PAULO DEMAIS CIDADES","RIBEIRAO PRETO","UNIMAGEM SERVICOS MEDICOS"]
[623,"LABORATÓRIOS","GRANDE SAO PAULO","RIO GRANDE DA SERRA","BIOLAB LABORATORIOS DE ANALISES CLINICAS"]
[624,"LABORATÓRIOS","SOROCABA E REGIAO","SALTO","CENTRO MEDICO PIO XII"]
[625,"LABORATÓRIOS","SOROCABA E REGIAO","SALTO","LABORATORIO CLINICO TRIANALISES"]
[626,"LABORATÓRIOS","SOROCABA E REGIAO","SALTO DE PIRAPORA","CLINICA MEDICA ANTUNES & MARCHETTI SC"]
[627,"LABORATÓRIOS","SAO PAULO DEMAIS CIDADES","SANTA BARBARA D'OESTE","LABCLIN"]
[628,"LABORATÓRIOS","GRANDE SAO PAULO","SANTA ISABEL","CLIN DE FISIOTERAPIA SANTA IZABEL S/C LTDA"]
[629,"LABORATÓRIOS","SAO PAULO ABC / SANTO ANDRE","SANTO ANDRE","INSTITUTO VIDA DE FISIOTERAPIA"]
[630,"LABORATÓRIOS","SAO PAULO ABC / SANTO ANDRE","SANTO ANDRE","MULTINI FISIOTERAPIA"]
[631,"LABORATÓRIOS","SAO PAULO ABC / SANTO ANDRE","SANTO ANDRE","CLINICE CENTRO DE DIAG LTDA"]
[632,"LABORATÓRIOS","SAO PAULO ABC / SANTO ANDRE","SANTO ANDRE","LAB PADRAO DE ANAL CLINS SC LTDA"]
[633,"LABORATÓRIOS","SAO PAULO ABC / SANTO ANDRE","SANTO ANDRE","LAVOISIER MEDICINA DIAGNOSTICA"]
[634,"LABORATÓRIOS","SAO PAULO ABC / SANTO ANDRE","SANTO ANDRE","LABORATORIO FLEMING"]
[635,"LABORATÓRIOS","SAO PAULO ABC / SANTO ANDRE","SANTO ANDRE","LABORATORIO HORMON"]
[636,"LABORATÓRIOS","SAO PAULO ABC / SANTO ANDRE","SANTO ANDRE","LABORATORIO LABOR CLIN LTDA"]
[637,"LABORATÓRIOS","SAO PAULO ABC / SANTO ANDRE","SANTO ANDRE","TECNOLAB"]
[638,"LABORATÓRIOS","SAO PAULO ABC / SANTO ANDRE","SANTO ANDRE","A + MEDICINA DIAGNOSTICA"]
[639,"LABORATÓRIOS","SAO PAULO ABC / SANTO ANDRE","SANTO ANDRE","DELBONI AURIEMO MED DIAG"]
[640,"LABORATÓRIOS","SAO PAULO ABC / SANTO ANDRE","SANTO ANDRE","CLUB D A"]
[641,"LABORATÓRIOS","SAO PAULO ABC / SANTO ANDRE","SANTO ANDRE","FLEURY"]
[642,"LABORATÓRIOS","BAIXADA SANTISTA","SANTOS","ANALISES CLINICAS CELLULA MATER"]
[643,"LABORATÓRIOS","BAIXADA SANTISTA","SANTOS","CLIN RADIOL.DR.MOURA GOGLIANO"]
[644,"LABORATÓRIOS","BAIXADA SANTISTA","SANTOS","LAB DE ANAL CLINICAS GONZAGA"]
[645,"LABORATÓRIOS","BAIXADA SANTISTA","SANTOS","ANAL CLINS CELLULA MATER LTDA"]
[646,"LABORATÓRIOS","BAIXADA SANTISTA","SANTOS","BIOLAB LABORATORIO DE ANALISES CLINICAS"]
[647,"LABORATÓRIOS","BAIXADA SANTISTA","SANTOS","HEMOCLINICA DE SANTOS"]
[648,"LABORATÓRIOS","BAIXADA SANTISTA","SANTOS","INSTITUTO DE METODOS EM CARDIOLOGIA"]
[649,"LABORATÓRIOS","BAIXADA SANTISTA","SANTOS","CENTRO DE REAB E HIDRO SAINT RAPHAE ME"]
[650,"LABORATÓRIOS","BAIXADA SANTISTA","SANTOS","INST DE ANALISES CLINICAS DE SANTOS"]
[651,"LABORATÓRIOS","BAIXADA SANTISTA","SANTOS","LAB ANAL CLIN DR.LEAO DE MOURA"]
[652,"LABORATÓRIOS","BAIXADA SANTISTA","SANTOS","LAB CLIN HELIO R BOTURAO"]
[653,"LABORATÓRIOS","BAIXADA SANTISTA","SANTOS","LABORATORIO PASTEUR DE ANALISES CLINICAS"]
[654,"LABORATÓRIOS","BAIXADA SANTISTA","SANTOS","DELBONI AURIEMO MED DIAG"]
[655,"LABORATÓRIOS","BAIXADA SANTISTA","SANTOS","CLUB D A"]
[656,"LABORATÓRIOS","SAO PAULO ABC / SAO BERNARDO DO CAMPO","SAO BERNARDO DO CAMPO","NOTRELABS SAO BERNARDO 6"]
[657,"LABORATÓRIOS","SAO PAULO ABC / SAO BERNARDO DO CAMPO","SAO BERNARDO DO CAMPO","BIOCENTER LAB CLIN LTDA"]
[658,"LABORATÓRIOS","SAO PAULO ABC / SAO BERNARDO DO CAMPO","SAO BERNARDO DO CAMPO","IMAVE INST DE MED AVANC.DA VISAO E EST RUDGE RAMOS"]
[659,"LABORATÓRIOS","SAO PAULO ABC / SAO BERNARDO DO CAMPO","SAO BERNARDO DO CAMPO","LAB HORMON LAB ESP EM DOSAGENS HORMONAIS"]
[660,"LABORATÓRIOS","SAO PAULO ABC / SAO BERNARDO DO CAMPO","SAO BERNARDO DO CAMPO","LUMEN CENTRO DE DIAGNOSTICO"]
[661,"LABORATÓRIOS","SAO PAULO ABC / SAO BERNARDO DO CAMPO","SAO BERNARDO DO CAMPO","ULTRA DIAGNOSTICOS"]
[662,"LABORATÓRIOS","SAO PAULO ABC / SAO BERNARDO DO CAMPO","SAO BERNARDO DO CAMPO","TECNOLAB"]
[663,"LABORATÓRIOS","SAO PAULO ABC / SAO BERNARDO DO CAMPO","SAO BERNARDO DO CAMPO","BIO FEEDBACK CENTRO DE FISIOTERAPIA"]
[664,"LABORATÓRIOS","SAO PAULO ABC / SAO BERNARDO DO CAMPO","SAO BERNARDO DO CAMPO","LAVOISIER MEDICINA DIAGNOSTICA"]
[665,"LABORATÓRIOS","SAO PAULO ABC / SAO BERNARDO DO CAMPO","SAO BERNARDO DO CAMPO","INST DE RADIOLOGIA SAO BERNARDO"]
[666,"LABORATÓRIOS","SAO PAULO ABC / SAO BERNARDO DO CAMPO","SAO BERNARDO DO CAMPO","NEOLABOR LAB MED"]
[667,"LABORATÓRIOS","SAO PAULO ABC / SAO BERNARDO DO CAMPO","SAO BERNARDO DO CAMPO","ENDOSCOP MEDICINA ESPECIALIZADA"]
[668,"LABORATÓRIOS","SAO PAULO ABC / SAO BERNARDO DO CAMPO","SAO BERNARDO DO CAMPO","ECOIMAGEM MEDICINA DIAGNOSTICA"]
[669,"LABORATÓRIOS","SAO PAULO ABC / SAO BERNARDO DO CAMPO","SAO BERNARDO DO CAMPO","DELBONI AURIEMO MED DIAG"]
[670,"LABORATÓRIOS","SAO PAULO ABC / SAO BERNARDO DO CAMPO","SAO BERNARDO DO CAMPO","CLUB D A"]
[671,"LABORATÓRIOS","SAO PAULO ABC / SAO CAETANO DO SUL","SAO CAETANO DO SUL","ANDREAZZA MEDICINA DIAG"]
[672,"LABORATÓRIOS","SAO PAULO ABC / SAO CAETANO DO SUL","SAO CAETANO DO SUL","LAB MODELO DE PAT CLINS SC LTDA"]
[673,"LABORATÓRIOS","SAO PAULO ABC / SAO CAETANO DO SUL","SAO CAETANO DO SUL","LAVOISIER MEDICINA DIAGNOSTICA"]
[674,"LABORATÓRIOS","SAO PAULO ABC / SAO CAETANO DO SUL","SAO CAETANO DO SUL","LABORATORIO FLEMING"]
[675,"LABORATÓRIOS","SAO PAULO ABC / SAO CAETANO DO SUL","SAO CAETANO DO SUL","ULTRASSONOGRAFIA MEDICA"]
[676,"LABORATÓRIOS","SAO PAULO ABC / SAO CAETANO DO SUL","SAO CAETANO DO SUL","CIMED CENTRO INTEGRADO DE MED E DIAG"]
[677,"LABORATÓRIOS","SAO PAULO ABC / SAO CAETANO DO SUL","SAO CAETANO DO SUL","MEDICAL LAB DE ANAL CLIN SC LTDA"]
[678,"LABORATÓRIOS","SAO PAULO ABC / SAO CAETANO DO SUL","SAO CAETANO DO SUL","ROCHA LIMA ANALISES CLINICAS E VACINACOES"]
[679,"LABORATÓRIOS","SAO PAULO ABC / SAO CAETANO DO SUL","SAO CAETANO DO SUL","CLINICA CRIAVIVA"]
[680,"LABORATÓRIOS","SAO PAULO DEMAIS CIDADES","SAO JOAO DA BOA VISTA","LABORATORIO SAO JOAO"]
[681,"LABORATÓRIOS","SAO PAULO DEMAIS CIDADES","SAO JOSE DO RIO PRETO","CAMF"]
[682,"LABORATÓRIOS","SAO PAULO DEMAIS CIDADES","SAO JOSE DO RIO PRETO","INSTITUTO RIO PRETO DE MEDICINA NUCLEAR"]
[683,"LABORATÓRIOS","SAO PAULO DEMAIS CIDADES","SAO JOSE DO RIO PRETO","LABORCLIN LABORATORIO DE ANALISES CLINICAS"]
[684,"LABORATÓRIOS","SAO PAULO DEMAIS CIDADES","SAO JOSE DO RIO PRETO","MAMA IMAGEM"]
[685,"LABORATÓRIOS","SAO PAULO DEMAIS CIDADES","SAO JOSE DO RIO PRETO","RESSONANCIA MAGNETICA RIO PRETO"]
[686,"LABORATÓRIOS","SAO PAULO DEMAIS CIDADES","SAO JOSE DO RIO PRETO","LABORATORIO DR. TAJARA"]
[687,"LABORATÓRIOS","SAO PAULO DEMAIS CIDADES","SAO JOSE DOS CAMPOS","CIPAX MEDICINA DIAGNOSTICA"]
[688,"LABORATÓRIOS","SAO PAULO DEMAIS CIDADES","SAO JOSE DOS CAMPOS","DIGEN IMAGE DIAGNOSTICOS MEDICOS"]
[689,"LABORATÓRIOS","SAO PAULO DEMAIS CIDADES","SAO JOSE DOS CAMPOS","INSTITUTO INEFRO"]
[690,"LABORATÓRIOS","SAO PAULO DEMAIS CIDADES","SAO JOSE DOS CAMPOS","INTEGRA ACAO CLINICA DE TERAPIAS INTEGRADAS"]
[691,"LABORATÓRIOS","SAO PAULO DEMAIS CIDADES","SAO JOSE DOS CAMPOS","L G ROMEIRO & MIRANDA SERVICOS MEDICOS"]
[692,"LABORATÓRIOS","SAO PAULO DEMAIS CIDADES","SAO JOSE DOS CAMPOS","MEDSEL CLINICA MEDICA"]
[693,"LABORATÓRIOS","SAO PAULO DEMAIS CIDADES","SAO JOSE DOS CAMPOS","PLANI DIAGNOSTICOS MEDICOS"]
[694,"LABORATÓRIOS","SAO PAULO DEMAIS CIDADES","SAO JOSE DOS CAMPOS","QUAGLIA LABOTORIO DE ANALISES CLINICAS SC"]
[695,"LABORATÓRIOS","SAO PAULO DEMAIS CIDADES","SAO JOSE DOS CAMPOS","TOMOVALE CENTRO DE DIAGNOSTICO POR IMAGEM"]
[696,"LABORATÓRIOS","SAO PAULO DEMAIS CIDADES","SAO JOSE DOS CAMPOS","VALECLIN LABORATORIO DE ANALISES CLINICAS"]
[697,"LABORATÓRIOS","SAO PAULO DEMAIS CIDADES","SAO JOSE DOS CAMPOS","CENTRO OCUP DE TREINAMENTO EDOUARD SEGUIN"]
[698,"LABORATÓRIOS","SAO PAULO DEMAIS CIDADES","SAO JOSE DOS CAMPOS","JANAINA BORGES DIOGENES"]
[699,"LABORATÓRIOS","SAO PAULO DEMAIS CIDADES","SAO JOSE DOS CAMPOS","LABORATORIO DE ANAL CLIN OSWALDO CRUZ"]
[700,"LABORATÓRIOS","SAO PAULO DEMAIS CIDADES","SAO JOSE DOS CAMPOS","FISIOCLIN"]
[701,"LABORATÓRIOS","SAO PAULO DEMAIS CIDADES","SAO JOSE DOS CAMPOS","UTR LAB ANALISES CLINICAS"]
[702,"LABORATÓRIOS","SAO PAULO DEMAIS CIDADES","SAO PEDRO","LABORATORIO DE ANALISES CLINICAS PREVILAB"]
[703,"LABORATÓRIOS","SAO PAULO DEMAIS CIDADES","SAO ROQUE","INSTITUTO SAO LUCAS SR"]
[704,"LABORATÓRIOS","SAO PAULO DEMAIS CIDADES","SAO ROQUE","PRECISION CENTRO DE DIAGNOSTICOS SC"]
[705,"LABORATÓRIOS","SAO PAULO DEMAIS CIDADES","SAO SEBASTIAO","ITAPEMA LABORATORIO DE ANALISES CLINICAS"]
[706,"LABORATÓRIOS","BAIXADA SANTISTA","SAO VICENTE","CLIN DE ORT E FISIOT PADRE ANCHIETA S C"]
[707,"LABORATÓRIOS","BAIXADA SANTISTA","SAO VICENTE","INSTITUTO DE ANALISES CLINICAS DE SANTOS"]
[708,"LABORATÓRIOS","BAIXADA SANTISTA","SAO VICENTE","LABORATORIO DE ANALISES CLINICAS DR LEAO DE MOURA"]
[709,"LABORATÓRIOS","BAIXADA SANTISTA","SAO VICENTE","LABORATORIO PASTEUR DE ANALISES CLINICAS"]
[710,"LABORATÓRIOS","SOROCABA E REGIAO","SOROCABA","IDS ALPHAMED DIAGS"]
[711,"LABORATÓRIOS","SOROCABA E REGIAO","SOROCABA","DIAGSOM ULTRASSONOGRAFIA SC"]
[712,"LABORATÓRIOS","SOROCABA E REGIAO","SOROCABA","VIDA DIAG LAB CLIN"]
[713,"LABORATÓRIOS","SOROCABA E REGIAO","SOROCABA","CENTRO DE DIAGNOSTICO SOROCABA SC"]
[714,"LABORATÓRIOS","SOROCABA E REGIAO","SOROCABA","CENTRO MED IMAGEM"]
[715,"LABORATÓRIOS","SOROCABA E REGIAO","SOROCABA","CLINICOR"]
[716,"LABORATÓRIOS","SOROCABA E REGIAO","SOROCABA","SERVLAB"]
[717,"LABORATÓRIOS","SOROCABA E REGIAO","SOROCABA","GASTROCLINICA SOROCABA"]
[718,"LABORATÓRIOS","CAMPINAS E REGIAO","SUMARE","LABORATORIO ALPHA DE ANALISES CLINICAS"]
[719,"LABORATÓRIOS","CAMPINAS E REGIAO","SUMARE","LABORATORIO SAO PAULO"]
[720,"LABORATÓRIOS","CAMPINAS E REGIAO","SUMARE","LAB DE ANAL CLIN LABCLIN SC"]
[721,"LABORATÓRIOS","CAMPINAS E REGIAO","SUMARE","PRO COR EXAMES DO CORACAO"]
[722,"LABORATÓRIOS","CAMPINAS E REGIAO","SUMARE","CLINICA ESPECIALIZADA SUMARE"]
[723,"LABORATÓRIOS","GRANDE SAO PAULO","SUZANO","ANALISES CLINICAS SAO FRANCISCO"]
[724,"LABORATÓRIOS","GRANDE SAO PAULO","SUZANO","MEDCARE SUZANO SERVICOS MEDICOS"]
[725,"LABORATÓRIOS","GRANDE SAO PAULO","SUZANO","OFTALMOCLINICA"]
[726,"LABORATÓRIOS","GRANDE SAO PAULO","SUZANO","CEDECO CENTRO DE ESPEC. EM DIAGNOSTICO"]
[727,"LABORATÓRIOS","GRANDE SAO PAULO","SUZANO","GARDIENCOR CLINICA MEDICA"]
[728,"LABORATÓRIOS","GRANDE SAO PAULO","SUZANO","CLINICA DE ESPECIALIDADE SALZGEBER & SANTOS MOGI"]
[729,"LABORATÓRIOS","GRANDE SAO PAULO","SUZANO","CLINICA SANTA CATARINA"]
[730,"LABORATÓRIOS","GRANDE SAO PAULO","SUZANO","UNIDADE MOGIANA DE DIAGNOSTICO POR IMAGEM"]
[731,"LABORATÓRIOS","GRANDE SAO PAULO","SUZANO","LAB DE ANAL CLINS DR PEDRO BONELLI S A"]
[732,"LABORATÓRIOS","GRANDE SAO PAULO","TABOAO DA SERRA","CENTERCLIN LABORATORIO DE ANAL CLIN"]
[733,"LABORATÓRIOS","GRANDE SAO PAULO","TABOAO DA SERRA","LABORATORIO DE ANALISES SAO VICENTE"]
[734,"LABORATÓRIOS","SOROCABA E REGIAO","TATUI","LABORATORIO DE ANALISES CLINICAS CRUZEIRO"]
[735,"LABORATÓRIOS","SOROCABA E REGIAO","TATUI","TATUI IMAGEM MEDICINA E DIAGNOSTICO"]
[736,"LABORATÓRIOS","SAO PAULO DEMAIS CIDADES","TAUBATE","AMARAL & HAGA BRINQUEDOTECA E PREESCOLA"]
[737,"LABORATÓRIOS","SAO PAULO DEMAIS CIDADES","TAUBATE","CENTRO MEDICO NG SS"]
[738,"LABORATÓRIOS","SAO PAULO DEMAIS CIDADES","TAUBATE","CLINICA CENDOR"]
[739,"LABORATÓRIOS","SAO PAULO DEMAIS CIDADES","TAUBATE","CLINICA DIA ABRACE VIDA"]
[740,"LABORATÓRIOS","SAO PAULO DEMAIS CIDADES","TAUBATE","DUCORDIS ASSISTENCIA MEDICA SC"]
[741,"LABORATÓRIOS","SAO PAULO DEMAIS CIDADES","TAUBATE","INSTITUTO DE NEFROLOGIA DE TAUBATE"]
[742,"LABORATÓRIOS","SAO PAULO DEMAIS CIDADES","TAUBATE","LAB DE ANALISES CLINICAS SAO LUCAS SS"]
[743,"LABORATÓRIOS","SAO PAULO DEMAIS CIDADES","TAUBATE","MAISNOVE MEDICINA DIAGNOSTICA"]
[744,"LABORATÓRIOS","SAO PAULO DEMAIS CIDADES","TAUBATE","PERSONALCLIN PRESTACAO DE SERVICOS DE SAUDE"]
[745,"LABORATÓRIOS","SAO PAULO DEMAIS CIDADES","TAUBATE","PRO IMAGEM EXAMES COMPLEMENTARES"]
[746,"LABORATÓRIOS","SAO PAULO DEMAIS CIDADES","TAUBATE","BIOCENTER LAB CLIN LTDA"]
[747,"LABORATÓRIOS","SAO PAULO DEMAIS CIDADES","TAUBATE","LABORATORIO DE ANAL CLIN OSWALDO CRUZ"]
[748,"LABORATÓRIOS","SAO PAULO DEMAIS CIDADES","TAUBATE","PREVENCOR CENTRO DE AVAL CARD"]
[749,"LABORATÓRIOS","SAO PAULO DEMAIS CIDADES","TIETE","LABORATORIO DE ANALISES CLINICAS PREVILAB"]
[750,"LABORATÓRIOS","SAO PAULO DEMAIS CIDADES","UBATUBA","FAT LAB LABORATORIO DE ANALISES CLINICAS"]
[751,"LABORATÓRIOS","CAMPINAS E REGIAO","VALINHOS","CENTRO RADIOLOGICO VALINHOS"]
[752,"LABORATÓRIOS","CAMPINAS E REGIAO","VALINHOS","CLINICA CONCON"]
[753,"LABORATÓRIOS","CAMPINAS E REGIAO","VALINHOS","FENIX LABORATORIO DE ANALISES CLINICAS"]
[754,"LABORATÓRIOS","GRANDE SAO PAULO","VARGEM GRANDE PAULISTA","SANTA CLARA CENTRO DE DIAGNOSTICOS"]
[755,"LABORATÓRIOS","JUNDIAI E REGIAO","VARZEA PAULISTA","CLINICA DE REABILITACAO VARZEA PAULISTA"]
[756,"LABORATÓRIOS","JUNDIAI E REGIAO","VINHEDO","C.M.L.CENTRO MEDICO LABORATORIAL"]
[757,"LABORATÓRIOS","JUNDIAI E REGIAO","VINHEDO","CLINICA DE FISIOTERAPIA FISIO ACAO"]
[758,"LABORATÓRIOS","JUNDIAI E REGIAO","VINHEDO","FISIOCLINICA VINHEDO"]
[759,"LABORATÓRIOS","JUNDIAI E REGIAO","VINHEDO","BIOLABOR DE ANALISES CLINICAS"]

{"sheet":"Base_SP","index":8,"n_rows":760,"n_cols":14,"rows_kept":760,"cut":false,"hidden":true,"merged":[]}
["ID","ARQUIVO","REDE","REGIÃO","CIDADE","NOME FANTASIA","SMART 300","SMART 400","SMART 500","ADVANCE 600","ADVANCE 700","PREMIUM 900","PREMIUM 900 CARE","INFINITY"]
[{"$f":"ROW()-1","v":1},"SAO PAULO","HOSPITAIS","SAO PAULO - CAPITAL","SAO PAULO / CENTRO","CRUZ AZUL DE SAO PAULO","H/M","H/M","H/M","H/M","H/M/PS","H/M/PS","H/M/PS","H/M/PS"]
[{"$f":"ROW()-1","v":2},"SAO PAULO","HOSPITAIS","SAO PAULO - CAPITAL","SAO PAULO / CENTRO","HOSPITAL INGLES","H","H","H","H","H","H","H","H"]
[3,"SAO PAULO","HOSPITAIS","SAO PAULO - CAPITAL","SAO PAULO / CENTRO","CC ANGELICA","PA*","PA*","PA*","PA*","PA*","PA*","PA*","PA*"]
[4,"SAO PAULO","HOSPITAIS","SAO PAULO - CAPITAL","SAO PAULO / CENTRO","HOSP E MAT SACRECOEUR","H/M","H/M","H/M","H/M","H/M","H/M","H/M","H/M"]
[5,"SAO PAULO","HOSPITAIS","SAO PAULO - CAPITAL","SAO PAULO / CENTRO","HOSP SANTA CECILIA","H/PS","H/PS","H/PS","H/PS","H/PS","H/PS","H/PS","H/PS"]
[6,"SAO PAULO","HOSPITAIS","SAO PAULO - CAPITAL","SAO PAULO / CENTRO","IGESP CT/MED CIR INST GASTRO DE SAO PAULO",null,"H/PS","H/PS","H/PS","H/PS","H/PS","H/PS","H/PS"]
[7,"SAO PAULO","HOSPITAIS","SAO PAULO - CAPITAL","SAO PAULO / CENTRO","CERTA CENTRO DE REF EM TRAT AVANCADOS-HOSP DIA",null,null,null,"H","H","H","H","H"]
[8,"SAO PAULO","HOSPITAIS","SAO PAULO - CAPITAL","SAO PAULO / CENTRO","HOSPITAL BANDEIRANTES S.A",null,null,null,"H/PS","H/PS","H/PS","H/PS","H/PS"]
[9,"SAO PAULO","HOSPITAIS","SAO PAULO - CAPITAL","SAO PAULO / CENTRO","REAL E BEN SOC PORT BENF-HOSP SAO JOAQUIM",null,null,null,null,"H/PS","H/PS","H/PS","H/PS"]
[10,"SAO PAULO","HOSPITAIS","SAO PAULO - CAPITAL","SAO PAULO / CENTRO","CENTRAL TOWERS HOSPITAL",null,null,null,null,"H","H","H","H"]
[11,"SAO PAULO","HOSPITAIS","SAO PAULO - CAPITAL","SAO PAULO / CENTRO","HOSP SANTA CATARINA",null,null,null,null,null,"H/PS","H/PS","H/PS"]
[12,"SAO PAULO","HOSPITAIS","SAO PAULO - CAPITAL","SAO PAULO / CENTRO","FUND ANTONIO PRUDENTE -HOSP A C CAMARGO",null,null,null,null,null,"H/PS","H/PS","H/PS"]
[13,"SAO PAULO","HOSPITAIS","SAO PAULO - CAPITAL","SAO PAULO / CENTRO","HOSP INFANTIL SABARA S A",null,null,null,null,null,"H/PS","H/PS","H/PS"]
[14,"SAO PAULO","HOSPITAIS","SAO PAULO - CAPITAL","SAO PAULO / CENTRO","HOSPITAL SAMARITANO DE SAO PAULO",null,null,null,null,null,"H/M/PS","H/M/PS","H/M/PS"]
[15,"SAO PAULO","HOSPITAIS","SAO PAULO - CAPITAL","SAO PAULO / CENTRO","HOSP NOVE DE JULHO",null,null,null,null,null,"H/PS","H/PS","H/PS"]
[16,"SAO PAULO","HOSPITAIS","SAO PAULO - CAPITAL","SAO PAULO / CENTRO","IRM STA CASA DE MISER DE S PAULO- HOSP STA ISABEL",null,null,null,null,null,"H/PS","H/PS","H/PS"]
[17,"SAO PAULO","HOSPITAIS","SAO PAULO - CAPITAL","SAO PAULO / CENTRO","HOSP ALEMAO OSWALDO CRUZ",null,null,null,null,null,"H/PS","H/PS","H/PS"]
[18,"SAO PAULO","HOSPITAIS","SAO PAULO - CAPITAL","SAO PAULO / CENTRO","PRO MATRE PAULISTA",null,null,null,null,null,"M/PS (OBST)","M/PS (OBST)","M/PS (OBST)"]
[19,"SAO PAULO","HOSPITAIS","SAO PAULO - CAPITAL","SAO PAULO / CENTRO","HOSPITAL SAO JOSE",null,null,null,null,null,"H/PS","H/PS","H/PS"]
[20,"SAO PAULO","HOSPITAIS","SAO PAULO - CAPITAL","SAO PAULO / CENTRO","SOC BENF SRAS-HOSP SIRIO LIBANES",null,null,null,null,null,null,null,"H/PS"]
[21,"SAO PAULO","HOSPITAIS","SAO PAULO - CAPITAL","SAO PAULO / LESTE","HOSP SANTA VIRGINIA","H","H/PS","H/PS","H/PS","H/PS","H/PS","H/PS","H/PS"]
[22,"SAO PAULO","HOSPITAIS","SAO PAULO - CAPITAL","SAO PAULO / LESTE","CASA DE SAUDE SANTA MARCELINA","H","H","H","H/PS","H/PS","H/PS","H/PS","H/PS"]
[23,"SAO PAULO","HOSPITAIS","SAO PAULO - CAPITAL","SAO PAULO / LESTE","DAY HOSP ERMELINO MATARAZZO","H","H","H","H/PS","H/PS","H/PS","H/PS","H/PS"]
[24,"SAO PAULO","HOSPITAIS","SAO PAULO - CAPITAL","SAO PAULO / LESTE","HOSPITAL SANTA CLARA","H","H/PS","H/PS","H/M/PS","H/M/PS","H/M/PS","H/M/PS","H/M/PS"]
[25,"SAO PAULO","HOSPITAIS","SAO PAULO - CAPITAL","SAO PAULO / LESTE","HOSP E MAT 8 DE MAIO","H/M/PS*","H/M/PS","H/M/PS","H/M/PS","H/M/PS","H/M/PS","H/M/PS","H/M/PS"]
[26,"SAO PAULO","HOSPITAIS","SAO PAULO - CAPITAL","SAO PAULO / LESTE","HOSP E MAT SAO MIGUEL","H/PS*","H/PS","H/PS","H/PS","H/PS","H/PS","H/PS","H/PS"]
[27,"SAO PAULO","HOSPITAIS","SAO PAULO - CAPITAL","SAO PAULO / LESTE","HOSP CENTRAL DE GUAIANAZES","H","H","H","H/M/PS","H/M/PS","H/M/PS","H/M/PS","H/M/PS"]
[28,"SAO PAULO","HOSPITAIS","SAO PAULO - CAPITAL","SAO PAULO / LESTE","HOSP E MAT MASTER CLIN","H/M/PS*","H/M/PS","H/M/PS","H/M/PS","H/M/PS","H/M/PS","H/M/PS","H/M/PS"]
[29,"SAO PAULO","HOSPITAIS","SAO PAULO - CAPITAL","SAO PAULO / LESTE","IBCC- INST BRASILEIRO DE CONTROLE DO CANCER - (MEDULA OSSEA ADULTO)","H","H/PS","H/PS","H/PS","H/PS","H/PS","H/PS","H/PS"]
[30,"SAO PAULO","HOSPITAIS","SAO PAULO - CAPITAL","SAO PAULO / LESTE","MATERNIDADE DO BRAZ","H/M/PS*","H/M/PS","H/M/PS","H/M/PS","H/M/PS","H/M/PS","H/M/PS","H/M/PS"]
[31,"SAO PAULO","HOSPITAIS","SAO PAULO - CAPITAL","SAO PAULO / LESTE","CC ITAQUERA","PA","PA","PA","PA","PA","PA","PA","PA"]
[32,"SAO PAULO","HOSPITAIS","SAO PAULO - CAPITAL","SAO PAULO / LESTE","CC SAO MIGUEL","PA*","PA*","PA*","PA*","PA*","PA*","PA*","PA*"]
[33,"SAO PAULO","HOSPITAIS","SAO PAULO - CAPITAL","SAO PAULO / LESTE","CC TATUAPE I","PA*","PA*","PA*","PA*","PA*","PA*","PA*","PA*"]
[34,"SAO PAULO","HOSPITAIS","SAO PAULO - CAPITAL","SAO PAULO / LESTE","HOSP MONTEMAGNO","PS","PS","PS","PS","PS","PS","PS","PS"]
[35,"SAO PAULO","HOSPITAIS","SAO PAULO - CAPITAL","SAO PAULO / LESTE","CEMA HOSP ESPEC EM OFTALMO E OTORRINO",null,"H/PS","H/PS","H/PS","H/PS","H/PS","H/PS","H/PS"]
[36,"SAO PAULO","HOSPITAIS","SAO PAULO - CAPITAL","SAO PAULO / LESTE","NOVO SANTO EXPEDITO SERVICOS MEDICOS",null,"H/M/PS","H/M/PS","H/M/PS","H/M/PS","H/M/PS","H/M/PS","H/M/PS"]
[37,"SAO PAULO","HOSPITAIS","SAO PAULO - CAPITAL","SAO PAULO / LESTE","HOSP E MAT PARANAGUA",null,null,"H/PS","H/PS","H/PS","H/PS","H/PS","H/PS"]
[38,"SAO PAULO","HOSPITAIS","SAO PAULO - CAPITAL","SAO PAULO / LESTE","HOSPITAL DE CLINICAS JARDIM HELENA",null,null,null,"PS","PS","PS","PS","PS"]
[39,"SAO PAULO","HOSPITAIS","SAO PAULO - CAPITAL","SAO PAULO / LESTE","HOSPITAL E MATERNIDADE VITORIA",null,null,null,"H/M/PS","H/M/PS","H/M/PS","H/M/PS","H/M/PS"]
[40,"SAO PAULO","HOSPITAIS","SAO PAULO - CAPITAL","SAO PAULO / LESTE","HOSP E MAT SAO LUIZ UNID ANALIA FRANCO",null,null,null,null,null,"H/M/PS",null,"H/M/PS"]
[41,"SAO PAULO","HOSPITAIS","SAO PAULO - CAPITAL","SAO PAULO / NORTE","IPASS - HOSP PRESIDENTE","H/PS*","H/PS","H/PS","H/PS","H/PS","H/PS","H/PS","H/PS"]
[42,"SAO PAULO","HOSPITAIS","SAO PAULO - CAPITAL","SAO PAULO / NORTE","CC ZONA NORTE","PA*","PA*","PA*","PA*","PA*","PA*","PA*","PA*"]
[43,"SAO PAULO","HOSPITAIS","SAO PAULO - CAPITAL","SAO PAULO / NORTE","HOSP E MAT N S ROSARIO","H/M/PS","H/M/PS","H/M/PS","H/M/PS","H/M/PS","H/M/PS","H/M/PS","H/M/PS"]
[44,"SAO PAULO","HOSPITAIS","SAO PAULO - CAPITAL","SAO PAULO / NORTE","HOSPITAL CANTAREIRA","H","H","H","H","H","H","H","H"]
[45,"SAO PAULO","HOSPITAIS","SAO PAULO - CAPITAL","SAO PAULO / NORTE","HOSP SAN PAOLO",null,null,"H/M/PS","H/M/PS","H/M/PS","H/M/PS","H/M/PS","H/M/PS"]
[46,"SAO PAULO","HOSPITAIS","SAO PAULO - CAPITAL","SAO PAULO / NORTE","BENF NIPO BRASIL SAO PAULO-HOSP NIPO BRASILEIRO",null,null,"H","H/M/PS","H/M/PS","H/M/PS","H/M/PS","H/M/PS"]
[47,"SAO PAULO","HOSPITAIS","SAO PAULO - CAPITAL","SAO PAULO / NORTE","HOSP SAO CAMILO - SANTANA",null,null,null,null,"H/PS","H/PS","H/PS","H/PS"]
[48,"SAO PAULO","HOSPITAIS","SAO PAULO - CAPITAL","SAO PAULO / OESTE","FUNDACAO FACULDADE DE MEDICINA - INST DE PSIQUIATR","H","H","H","H","H","H","H","H"]
[49,"SAO PAULO","HOSPITAIS","SAO PAULO - CAPITAL","SAO PAULO / OESTE","HOSPITAL E PRONTO SOCORRO PORTINARI","H/M/PS*","H/M/PS","H/M/PS","H/M/PS","H/M/PS","H/M/PS","H/M/PS","H/M/PS"]
[50,"SAO PAULO","HOSPITAIS","SAO PAULO - CAPITAL","SAO PAULO / OESTE","CENTRO MEDICO ADVENTISTA - UNIDADE SUL","PA*","PA","PA","PA","PA","PA","PA","PA"]
[51,"SAO PAULO","HOSPITAIS","SAO PAULO - CAPITAL","SAO PAULO / OESTE","HOSP ALBERT SABIN","H/PS*","H/PS","H/PS","H/PS","H/PS","H/PS","H/PS","H/PS"]
[52,"SAO PAULO","HOSPITAIS","SAO PAULO - CAPITAL","SAO PAULO / OESTE","CC LAPA","PA*","PA*","PA*","PA*","PA*","PA*","PA*","PA*"]
[53,"SAO PAULO","HOSPITAIS","SAO PAULO - CAPITAL","SAO PAULO / OESTE","PREVINA DIAG MEDICOS S/S","PS","PS","PS","PS","PS","PS","PS","PS"]
[54,"SAO PAULO","HOSPITAIS","SAO PAULO - CAPITAL","SAO PAULO / OESTE","FUNDACAO FACULDADE DE MEDICINA - INST DA CRIANCA",null,null,"H","H/PS","H/PS","H/PS","H/PS","H/PS"]
[55,"SAO PAULO","HOSPITAIS","SAO PAULO - CAPITAL","SAO PAULO / OESTE","HOSPITAL METROPOLITANO - BUTANTA",null,null,"H/PS","H/PS","H/PS","H/PS","H/PS","H/PS"]
[56,"SAO PAULO","HOSPITAIS","SAO PAULO - CAPITAL","SAO PAULO / OESTE","PRONTO SOCORRO ITAMARATY",null,null,"H/PS","H/PS","H/PS","H/PS","H/PS","H/PS"]
[57,"SAO PAULO","HOSPITAIS","SAO PAULO - CAPITAL","SAO PAULO / OESTE","SERRA MAYOR",null,null,"H/PS","H/PS","H/PS","H/PS","H/PS","H/PS"]
[58,"SAO PAULO","HOSPITAIS","SAO PAULO - CAPITAL","SAO PAULO / OESTE","FUNDACAO FACULDADE DE MEDICINA (IOT)",null,null,null,"H/PS","H/PS","H/PS","H/PS","H/PS"]
[59,"SAO PAULO","HOSPITAIS","SAO PAULO - CAPITAL","SAO PAULO / OESTE","HOSPITAL METROPOLITANO",null,null,null,"H/M/PS","H/M/PS","H/M/PS","H/M/PS","H/M/PS"]
[60,"SAO PAULO","HOSPITAIS","SAO PAULO - CAPITAL","SAO PAULO / OESTE","HOSPITAL DAS CLINICAS",null,null,null,"H/PS","H/PS","H/PS","H/PS","H/PS"]
[61,"SAO PAULO","HOSPITAIS","SAO PAULO - CAPITAL","SAO PAULO / OESTE","HOSPITAL LEFORTE S.A",null,null,null,null,"H/PS","H/PS","H/PS","H/PS"]
[62,"SAO PAULO","HOSPITAIS","SAO PAULO - CAPITAL","SAO PAULO / OESTE","FUNDACAO ZERBINI - INCOR",null,null,null,null,null,"H/PS","H/PS","H/PS"]
[63,"SAO PAULO","HOSPITAIS","SAO PAULO - CAPITAL","SAO PAULO / OESTE","HOSP SAO CAMILO - POMPEIA",null,null,null,null,"H/PS","H/PS","H/PS","H/PS"]
[64,"SAO PAULO","HOSPITAIS","SAO PAULO - CAPITAL","SAO PAULO / OESTE","SAO LUIZ - UNIDADE MORUMBI",null,null,null,null,null,"H/PS",null,"H/PS"]
[65,"SAO PAULO","HOSPITAIS","SAO PAULO - CAPITAL","SAO PAULO / OESTE","HOSPITAL ISRAELITA ALBERT EINSTEIN (PERDIZES)",null,null,null,null,null,null,null,"H/PS"]
[{"$f":"ROW()-1","v":66},"SAO PAULO","HOSPITAIS","SAO PAULO - CAPITAL","SAO PAULO / OESTE","SOC BENF ISRAELITA BRASILEIRA-HOSP ALBERT EINSTEIN (ALTO DE PINHEIROS)",null,null,null,null,null,null,null,"PA*"]
[67,"SAO PAULO","HOSPITAIS","SAO PAULO - CAPITAL","SAO PAULO / SUL","HOSPITAL ISRAELITA ALBERT EINSTEIN (MORUMBI)",null,null,null,null,null,null,null,"H/M/PS"]
[68,"SAO PAULO","HOSPITAIS","SAO PAULO - CAPITAL","SAO PAULO / SUL","ALBERT EINSTEIN UNIDADE CHACARA KLABIN (IPIRANGA)",null,null,null,null,null,null,null,"PS"]
[69,"SAO PAULO","HOSPITAIS","SAO PAULO - CAPITAL","SAO PAULO / SUL","API-ASSIST.PSIQUIAT.INTEGRADA","H","H","H","H","H","H","H","H"]
[70,"SAO PAULO","HOSPITAIS","SAO PAULO - CAPITAL","SAO PAULO / SUL","HOSPITAL DOM ANTONIO DE ALVARENGA","H/PS*","H/PS","H/PS","H/PS","H/PS","H/PS","H/PS","H/PS"]
[71,"SAO PAULO","HOSPITAIS","SAO PAULO - CAPITAL","SAO PAULO / SUL","HOSPITAL DE OLHOS PAULISTA","H","H","H/PS","H/PS","H/PS","H/PS","H/PS","H/PS"]
[72,"SAO PAULO","HOSPITAIS","SAO PAULO - CAPITAL","SAO PAULO / SUL","HOSP DEFEITOS DA FACE","H","H/PS","H/PS","H/PS","H/PS","H/PS","H/PS","H/PS"]
[73,"SAO PAULO","HOSPITAIS","SAO PAULO - CAPITAL","SAO PAULO / SUL","HOSPITAL DO RIM E HIPERTENSAO (TRANSPLANTE RENAL)","H/PS","H/PS","H/PS","H/PS","H/PS","H/PS","H/PS","H/PS"]
[74,"SAO PAULO","HOSPITAIS","SAO PAULO - CAPITAL","SAO PAULO / SUL","GRAACC","H","H/PS","H/PS","H/PS","H/PS","H/PS","H/PS","H/PS"]
[75,"SAO PAULO","HOSPITAIS","SAO PAULO - CAPITAL","SAO PAULO / SUL","HOSP E MATERNIDADE VIDAS","H/M/PS*","H/M/PS","H/M/PS","H/M/PS","H/M/PS","H/M/PS","H/M/PS","H/M/PS"]
[76,"SAO PAULO","HOSPITAIS","SAO PAULO - CAPITAL","SAO PAULO / SUL","CC ZONA SUL","PA","PA","PA","PA","PA","PA","PA","PA"]
[77,"SAO PAULO","HOSPITAIS","SAO PAULO - CAPITAL","SAO PAULO / SUL","HOSP BOSQUE DA SAUDE","H/M/PS","H/M/PS","H/M/PS","H/M/PS","H/M/PS","H/M/PS","H/M/PS","H/M/PS"]
[78,"SAO PAULO","HOSPITAIS","SAO PAULO - CAPITAL","SAO PAULO / SUL","OPHTHAL HOSPITAL ESPECIALIZADO","PS","PS","PS","PS","PS","PS","PS","PS"]
[79,"SAO PAULO","HOSPITAIS","SAO PAULO - CAPITAL","SAO PAULO / SUL","HOSPITAL SEPACO","H/M/PS*","H/M/PS","H/M/PS","H/M/PS","H/M/PS","H/M/PS","H/M/PS","H/M/PS"]
[80,"SAO PAULO","HOSPITAIS","SAO PAULO - CAPITAL","SAO PAULO / SUL","CASA DE SAUDE SANTA RITA",null,"H/PS","H/PS","H/PS","H/PS","H/PS","H/PS","H/PS"]
[81,"SAO PAULO","HOSPITAIS","SAO PAULO - CAPITAL","SAO PAULO / SUL","HOSP SANTA PAULA",null,"H/PS","H/PS","H/PS","H/PS","H/PS","H/PS","H/PS"]
[82,"SAO PAULO","HOSPITAIS","SAO PAULO - CAPITAL","SAO PAULO / SUL","HOSP SANTA CRUZ",null,"H/PS","H/PS","H/PS","H/PS","H/PS","H/PS","H/PS"]
[83,"SAO PAULO","HOSPITAIS","SAO PAULO - CAPITAL","SAO PAULO / SUL","HOSPITAL RUBEM BERTA",null,null,"H/PS","H/PS","H/PS","H/PS","H/PS","H/PS"]
[84,"SAO PAULO","HOSPITAIS","SAO PAULO - CAPITAL","SAO PAULO / SUL","CLINICA NUCLEO",null,null,"H","H","H","H","H","H"]
[85,"SAO PAULO","HOSPITAIS","SAO PAULO - CAPITAL","SAO PAULO / SUL","HOSP SAO PAULO",null,null,null,"H/PS","H/PS","H/PS","H/PS","H/PS"]
[86,"SAO PAULO","HOSPITAIS","SAO PAULO - CAPITAL","SAO PAULO / SUL","CENTRO MED ESP / HOSPITAL E MATERNIDADE SAO RAFAEL",null,null,null,"H","H","H","H","H"]
[87,"SAO PAULO","HOSPITAIS","SAO PAULO - CAPITAL","SAO PAULO / SUL","HOSP PAULISTA",null,null,null,"H/PS","H/PS","H/PS","H/PS","H/PS"]
[88,"SAO PAULO","HOSPITAIS","SAO PAULO - CAPITAL","SAO PAULO / SUL","HOSPITAL ALVORADA MOEMA",null,null,null,"H/PS","H/PS","H/PS","H/PS","H/PS"]
[89,"SAO PAULO","HOSPITAIS","SAO PAULO - CAPITAL","SAO PAULO / SUL","AACD IBIRAPUERA",null,null,null,null,"H","H","H","H"]
[90,"SAO PAULO","HOSPITAIS","SAO PAULO - CAPITAL","SAO PAULO / SUL","CLINICA INFANTIL SANTA ISABELLA",null,null,null,null,"PS","PS","PS","PS"]
[91,"SAO PAULO","HOSPITAIS","SAO PAULO - CAPITAL","SAO PAULO / SUL","INST DANTE PAZZANESE DE CARDIOLOGIA IDPC SAO PAULO",null,null,null,null,"H/PS","H/PS","H/PS","H/PS"]
[92,"SAO PAULO","HOSPITAIS","SAO PAULO - CAPITAL","SAO PAULO / SUL","HOSP SAO CAMILO - IPIRANGA",null,null,null,null,"H/PS","H/PS","H/PS","H/PS"]
[93,"SAO PAULO","HOSPITAIS","SAO PAULO - CAPITAL","SAO PAULO / SUL","COMPLEXO HOSPITALAR EDMUNDO VASCONCELOS",null,null,null,null,null,"H/PS","H/PS","H/PS"]
[94,"SAO PAULO","HOSPITAIS","SAO PAULO - CAPITAL","SAO PAULO / SUL","HOSP E MAT SANTA JOANA",null,null,null,null,null,"M/PS (OBST)","M/PS (OBST)","M/PS (OBST)"]
[95,"SAO PAULO","HOSPITAIS","SAO PAULO - CAPITAL","SAO PAULO / SUL","HOSPITAL SAO LUIZ JABAQUARA",null,null,null,null,null,"H/PS",null,"H/PS"]
[96,"SAO PAULO","HOSPITAIS","SAO PAULO - CAPITAL","SAO PAULO / SUL","HOSP DO CORACAO ASSOC.SANATORIO SIRIO",null,null,null,null,null,"H/PS","H/PS","H/PS"]
[97,"SAO PAULO","HOSPITAIS","SAO PAULO - CAPITAL","SAO PAULO / SUL","HOSP MAT SAO LUIZ - UNIDADE ITAIM",null,null,null,null,null,"H/M/PS",null,"H/M/PS"]
[98,"SAO PAULO","HOSPITAIS","SAO PAULO - CAPITAL","SAO PAULO / SUL","HOSPITAL SIRIO LIBANES - ITAIM",null,null,null,null,null,"H","H","H"]
[99,"SAO PAULO","HOSPITAIS","SAO PAULO - CAPITAL","SAO PAULO / SUL","HOSPITAL E MATERNIDADE SANTA MARIA (UNIDADE SANTA JOANA)",null,null,null,null,null,"H/M/PS","H/M/PS","H/M/PS"]
[100,"SAO PAULO","HOSPITAIS","SAO PAULO - CAPITAL","SAO PAULO / SUL","UNIDADE AVANCADA EINSTEIN IBIRAPUERA",null,null,null,null,null,null,null,"PS"]
[101,"SAO PAULO","HOSPITAIS","BAIXADA SANTISTA","CUBATAO","HOSP ANA COSTA S A",null,null,null,null,"PS","PS","PS","PS"]
[102,"SAO PAULO","HOSPITAIS","BAIXADA SANTISTA","CUBATAO","HOSP DR LUIZ CAMARGO DA FONSECA E SILVA","H/M/PS","H/M/PS","H/M/PS","H/M/PS","H/M/PS","H/M/PS","H/M/PS","H/M/PS"]
[103,"SAO PAULO","HOSPITAIS","BAIXADA SANTISTA","GUARUJA","HOSPITAL DOM DOMENICO","H/M/PS","H/M/PS","H/M/PS","H/M/PS","H/M/PS","H/M/PS","H/M/PS","H/M/PS"]
[104,"SAO PAULO","HOSPITAIS","BAIXADA SANTISTA","GUARUJA","CC FREI GALVAO GUARUJA","PA*","PA*","PA*","PA*","PA*","PA*","PA*","PA*"]
[105,"SAO PAULO","HOSPITAIS","BAIXADA SANTISTA","GUARUJA","HOSPITAL ANA COSTA",null,null,null,null,"PS","PS","PS","PS"]
[106,"SAO PAULO","HOSPITAIS","BAIXADA SANTISTA","GUARUJA","HOSPITAL GUARUJA",null,"H/M/PS","H/M/PS","H/M/PS","H/M/PS","H/M/PS","H/M/PS","H/M/PS"]
[107,"SAO PAULO","HOSPITAIS","BAIXADA SANTISTA","PRAIA GRANDE","ASSOCIACAO HOSP CASA DE SAUDE DE SANTOS",null,"PS","PS","PS","PS","PS","PS","PS"]
[108,"SAO PAULO","HOSPITAIS","BAIXADA SANTISTA","PRAIA GRANDE","HOSPITAL CANTO DO FORTE S/S",null,null,"H","H","H","H","H","H"]
[109,"SAO PAULO","HOSPITAIS","BAIXADA SANTISTA","PRAIA GRANDE","HOSP ANA COSTA S A",null,null,null,null,"PS","PS","PS","PS"]
[110,"SAO PAULO","HOSPITAIS","BAIXADA SANTISTA","SANTOS","HOSP SAO LUCAS DE SANTOS","M","H/M/PS","H/M/PS","H/M/PS","H/M/PS","H/M/PS","H/M/PS","H/M/PS"]
[111,"SAO PAULO","HOSPITAIS","BAIXADA SANTISTA","SANTOS","HOSP FREI GALVAO","H/PS","H/PS","H/PS","H/PS","H/PS","H/PS","H/PS","H/PS"]
[112,"SAO PAULO","HOSPITAIS","BAIXADA SANTISTA","SANTOS","CASA DE SAUDE DE SANTOS",null,"H/M/PS","H/M/PS","H/M/PS","H/M/PS","H/M/PS","H/M/PS","H/M/PS"]
[113,"SAO PAULO","HOSPITAIS","BAIXADA SANTISTA","SANTOS","HOSPITAL E PS INFANTIL GONZAGA",null,null,"H/PS","H/PS","H/PS","H/PS","H/PS","H/PS"]
[114,"SAO PAULO","HOSPITAIS","BAIXADA SANTISTA","SANTOS","SOC.PORT.BENEF-HOSP.STO.ANTONIO",null,null,"H/PS","H/M/PS","H/M/PS","H/M/PS","H/M/PS","H/M/PS"]
[115,"SAO PAULO","HOSPITAIS","BAIXADA SANTISTA","SANTOS","HOSP ANA COSTA S A",null,null,null,null,"H/M/PS","H/M/PS","H/M/PS","H/M/PS"]
[116,"SAO PAULO","HOSPITAIS","BAIXADA SANTISTA","SAO VICENTE","CC FREI GALVAO SAO VICENTE","PA*","PA*","PA*","PA*","PA*","PA*","PA*","PA*"]
[117,"SAO PAULO","HOSPITAIS","BAIXADA SANTISTA","SAO VICENTE","HOSP ANA COSTA S A",null,null,null,null,"PS","PS","PS","PS"]
[118,"SAO PAULO","HOSPITAIS","CAMPINAS E REGIAO","ARTUR NOGUEIRA","HOSP BOM SAMARITANO SC",null,null,"H/M/PS","H/M/PS","H/M/PS","H/M/PS","H/M/PS","H/M/PS"]
[119,"SAO PAULO","HOSPITAIS","CAMPINAS E REGIAO","CAMPINAS","CENTRO MEDICO DE SOUSAS",null,null,null,null,"H","H","H","H"]
[120,"SAO PAULO","HOSPITAIS","CAMPINAS E REGIAO","CAMPINAS","SAN FRANCISCO DAY HOSPITAL",null,null,null,null,"H","H","H","H"]
[121,"SAO PAULO","HOSPITAIS","CAMPINAS E REGIAO","CAMPINAS","CAMPINAS DAY HOSPITAL",null,null,"H","H","H","H","H","H"]
[122,"SAO PAULO","HOSPITAIS","CAMPINAS E REGIAO","CAMPINAS","INST NOVA CAMPINAS DE MEDICINA E CIRUG",null,null,"H","H","H","H","H","H"]
[123,"SAO PAULO","HOSPITAIS","CAMPINAS E REGIAO","CAMPINAS","HOSPITAL GERAL E MATERNIDADE MADRE MARIA THEODORA",null,null,"H/PS","H/M/PS","H/M/PS","H/M/PS","H/M/PS","H/M/PS"]
[124,"SAO PAULO","HOSPITAIS","CAMPINAS E REGIAO","CAMPINAS","FUNDACAO CENTRO MED DE CAMPINAS",null,null,null,null,null,"H/PS","H/PS","H/PS"]
[125,"SAO PAULO","HOSPITAIS","CAMPINAS E REGIAO","CAMPINAS","HOSP RENASCENCA CAMPINAS","H/M/PS","H/M/PS","H/M/PS","H/M/PS","H/M/PS","H/M/PS","H/M/PS","H/M/PS"]
[126,"SAO PAULO","HOSPITAIS","CAMPINAS E REGIAO","CAMPINAS","HOSP VERA CRUZ S A",null,null,null,null,null,"H/M/PS","H/M/PS","H/M/PS"]
[127,"SAO PAULO","HOSPITAIS","CAMPINAS E REGIAO","CAMPINAS","HOSPITAL SANTA SOFIA",null,null,null,"H","H","H","H","H"]
[128,"SAO PAULO","HOSPITAIS","CAMPINAS E REGIAO","CAMPINAS","HOSPITAL E MATERNIDADE CELSO PIERRO",null,null,"H/M/PS","H/M/PS","H/M/PS","H/M/PS","H/M/PS","H/M/PS"]
[129,"SAO PAULO","HOSPITAIS","CAMPINAS E REGIAO","CAMPINAS","INSTITUTO PENIDO BURNIER DE OFTALMOLOGIA",null,null,null,null,"H/PS","H/PS","H/PS","H/PS"]
[{"$f":"ROW()-1","v":130},"SAO PAULO","HOSPITAIS","CAMPINAS E REGIAO","CAMPINAS","REAL SOCIEDADE PORTUGUESA DE BENEFICENCIA",null,null,"H/PS","H/PS","H/PS","H/PS","H/PS","H/PS"]
[131,"SAO PAULO","HOSPITAIS","CAMPINAS E REGIAO","CAMPINAS","MATERNIDADE DE CAMPINAS",null,"H/PS","H/PS","H/M/PS","H/M/PS","H/M/PS","H/M/PS","H/M/PS"]
[132,"SAO PAULO","HOSPITAIS","CAMPINAS E REGIAO","CAMPINAS","HOSPITAL IRMAOS PENTEADO",null,"H","H","H/PS","H/PS","H/PS","H/PS","H/PS"]
[133,"SAO PAULO","HOSPITAIS","CAMPINAS E REGIAO","CAMPINAS","CT INFANTIL DE INVESTIGACOES HEMATOL DR DOMINGOS",null,null,null,null,null,"H","H","H"]
[134,"SAO PAULO","HOSPITAIS","CAMPINAS E REGIAO","CAMPINAS","HOSPITAL SANTA TEREZA",null,"H/M/PS","H/M/PS","H/M/PS","H/M/PS","H/M/PS","H/M/PS","H/M/PS"]
[135,"SAO PAULO","HOSPITAIS","CAMPINAS E REGIAO","COSMOPOLIS","HOSP BENEFICENTE SANTA GERTRUDES",null,"H/M/PS","H/M/PS","H/M/PS","H/M/PS","H/M/PS","H/M/PS","H/M/PS"]
[136,"SAO PAULO","HOSPITAIS","CAMPINAS E REGIAO","MOGI MIRIM","CLINICA GYORGY LASZLO",null,null,null,"H","H","H","H","H"]
[137,"SAO PAULO","HOSPITAIS","CAMPINAS E REGIAO","MOGI MIRIM","IRM DA STA CASA DE MIS DE MOGI MIRIM",null,null,"H/M/PS","H/M/PS","H/M/PS","H/M/PS","H/M/PS","H/M/PS"]
[138,"SAO PAULO","HOSPITAIS","CAMPINAS E REGIAO","MONTE MOR","ASSOCIACAO HOSP BENEF SAGRADO CORACAO DE EJSUS",null,null,"H/M/PS","H/M/PS","H/M/PS","H/M/PS","H/M/PS","H/M/PS"]
[139,"SAO PAULO","HOSPITAIS","CAMPINAS E REGIAO","PAULINIA","CENTRO DE TRATAMENTO BEZERRA DE MENEZES",null,null,null,"H","H","H","H","H"]
[140,"SAO PAULO","HOSPITAIS","CAMPINAS E REGIAO","PEDREIRA","FUNDACAO BENEFICENTE DE PEDREIRA - FUNBEPE",null,null,"PS","PS","PS","PS","PS","PS"]
[141,"SAO PAULO","HOSPITAIS","CAMPINAS E REGIAO","SUMARE","DAY HOSPITAL SUMARE","H","H","H","H","H","H","H","H"]
[142,"SAO PAULO","HOSPITAIS","CAMPINAS E REGIAO","VALINHOS","HOSPITAL E MATERNIDADE GALILEO",null,null,null,null,"H/PS","H/PS","H/PS","H/PS"]
[143,"SAO PAULO","HOSPITAIS","CAMPINAS E REGIAO","VALINHOS","SANTA CASA DE VALINHOS",null,"H/M/PS","H/M/PS","H/M/PS","H/M/PS","H/M/PS","H/M/PS","H/M/PS"]
[144,"SAO PAULO","HOSPITAIS","GRANDE SAO PAULO","ARUJA","HOSPITAL E MATERNIDADE IPIRANGA ARUJA","H/M/PS OBST","H/M/PS OBST","H/M/PS OBST","H/M/PS","H/M/PS","H/M/PS","H/M/PS","H/M/PS"]
[145,"SAO PAULO","HOSPITAIS","GRANDE SAO PAULO","ARUJA","CC ARUJA","PA","PA","PA","PA","PA","PA","PA","PA"]
[146,"SAO PAULO","HOSPITAIS","GRANDE SAO PAULO","BARUERI","CC ALPHAVILLE","PA*","PA*","PA*","PA*","PA*","PA*","PA*","PA*"]
[147,"SAO PAULO","HOSPITAIS","GRANDE SAO PAULO","BARUERI","PS BARUERI","PS","PS","PS","PS","PS","PS","PS","PS"]
[148,"SAO PAULO","HOSPITAIS","GRANDE SAO PAULO","BARUERI","HOSPITALIS NUCLEO HOSPITALAR DE BARUERI",null,null,"H/M","H/M/PS","H/M/PS","H/M/PS","H/M/PS","H/M/PS"]
[149,"SAO PAULO","HOSPITAIS","GRANDE SAO PAULO","BARUERI","HOSPITAL ISRAELITA ALBERT EINSTEIN",null,null,null,null,null,null,null,"PS"]
[150,"SAO PAULO","HOSPITAIS","GRANDE SAO PAULO","CAIEIRAS","CC CAIEIRAS","PA*","PA*","PA*","PA*","PA*","PA*","PA*","PA*"]
[151,"SAO PAULO","HOSPITAIS","GRANDE SAO PAULO","CAIEIRAS","HOSP DE CLIN CAIEIRAS (ANTIGO EMED)",null,null,"H/M/PS","H/M/PS","H/M/PS","H/M/PS","H/M/PS","H/M/PS"]
[152,"SAO PAULO","HOSPITAIS","GRANDE SAO PAULO","CARAPICUIBA","CC CARAPICUIBA","PA*","PA*","PA*","PA*","PA*","PA*","PA*","PA*"]
[153,"SAO PAULO","HOSPITAIS","GRANDE SAO PAULO","COTIA","HOSPITAL E MATERNIDADE NOVA VIDA","PA*","PA*","PA*","PA*","PA*","PA*","PA*","PA*"]
[154,"SAO PAULO","HOSPITAIS","GRANDE SAO PAULO","COTIA","CC COTIA","PA","PA","PA","PA","PA","PA","PA","PA"]
[155,"SAO PAULO","HOSPITAIS","GRANDE SAO PAULO","EMBU DAS ARTES","GRUPO CPR","H","H","H","H","H","H","H","H"]
[156,"SAO PAULO","HOSPITAIS","GRANDE SAO PAULO","FERRAZ DE VASCONCELOS","CLIN SANTO ANTONIO DE PREST DE SERV MED E ODONT","PA*","PA*","PA*","PA*","PA*","PA*","PA*","PA*"]
[157,"SAO PAULO","HOSPITAIS","GRANDE SAO PAULO","GUARAREMA","SANTA CASA DE MISERICORDIA DE GUARAREMA","H/M/PS","H/M/PS","H/M/PS","H/M/PS","H/M/PS","H/M/PS","H/M/PS","H/M/PS"]
[158,"SAO PAULO","HOSPITAIS","GRANDE SAO PAULO ","GUARULHOS","CC GUARULHOS I","PA*","PA*","PA*","PA*","PA*","PA*","PA*","PA*"]
[159,"SAO PAULO","HOSPITAIS","GRANDE SAO PAULO ","GUARULHOS","CC GUARULHOS II","PA*","PA*","PA*","PA*","PA*","PA*","PA*","PA*"]
[160,"SAO PAULO","HOSPITAIS","GRANDE SAO PAULO ","GUARULHOS","HOSP E MAT GUARULHOS","H/M/PS","H/M/PS","H/M/PS","H/M/PS","H/M/PS","H/M/PS","H/M/PS","H/M/PS"]
[161,"SAO PAULO","HOSPITAIS","GRANDE SAO PAULO ","GUARULHOS","CONGREG DAS FILHAS DE NOSSA SENHORA STELLA MARIS",null,"H","H","H","H","H","H","H"]
[162,"SAO PAULO","HOSPITAIS","GRANDE SAO PAULO ","GUARULHOS","HOSPITAL CARLOS CHAGAS S.A",null,null,null,"H/M/PS","H/M/PS","H/M/PS","H/M/PS","H/M/PS"]
[163,"SAO PAULO","HOSPITAIS","GRANDE SAO PAULO ","ITAPECERICA DA SERRA","HOSPITAL SANTA MONICA SC",null,null,"H","H/PS","H/PS","H/PS","H/PS","H/PS"]
[164,"SAO PAULO","HOSPITAIS","GRANDE SAO PAULO ","ITAPECERICA DA SERRA","CLINICA MAIA PRIME","H","H","H","H","H","H","H","H"]
[165,"SAO PAULO","HOSPITAIS","GRANDE SAO PAULO ","ITAPEVI","CC ITAPEVI","PA*","PA*","PA*","PA*","PA*","PA*","PA*","PA*"]
[166,"SAO PAULO","HOSPITAIS","GRANDE SAO PAULO ","ITAPEVI","HOSPITAL CRUZEIRO DO SUL ITAPEVI","H/PS","H/PS","H/PS","H/PS","H/PS","H/PS","H/PS","H/PS"]
[167,"SAO PAULO","HOSPITAIS","GRANDE SAO PAULO ","ITAPEVI","HOSPITAL E MATERNIDADE NOVA VIDA","H/M/PS","H/M/PS","H/M/PS","H/M/PS","H/M/PS","H/M/PS","H/M/PS","H/M/PS"]
[168,"SAO PAULO","HOSPITAIS","GRANDE SAO PAULO ","ITAQUAQUECETUBA","UNIDADE AVANCADA ITAQUA",null,null,null,"PA","PA","PA","PA","PA"]
[169,"SAO PAULO","HOSPITAIS","GRANDE SAO PAULO ","JANDIRA","HOSP E MATERNIDADE NOVA VIDA","PA*","PA*","PA*","PA*","PA*","PA*","PA*","PA*"]
[170,"SAO PAULO","HOSPITAIS","GRANDE SAO PAULO ","MOGI DAS CRUZES","CASA DE SAUDE E MAT SANTANA","H/PS*","H/PS","H/PS","H/PS","H/PS","H/PS","H/PS","H/PS"]
[171,"SAO PAULO","HOSPITAIS","GRANDE SAO PAULO ","MOGI DAS CRUZES","CLINICA INFANTIL SAO NICOLAU S/S","PA","PA","PA","PA","PA","PA","PA","PA"]
[172,"SAO PAULO","HOSPITAIS","GRANDE SAO PAULO ","MOGI DAS CRUZES","MOGI MATER HOSPITAL E MATERNIDADE","H/M","H/M","H/M","H/M/PS","H/M/PS","H/M/PS","H/M/PS","H/M/PS"]
[173,"SAO PAULO","HOSPITAIS","GRANDE SAO PAULO ","MOGI DAS CRUZES","SAMED SERVS DE ASSIST MED ODONT E HOSPAR","PA*","PA*","PA*","PA*","PA*","PA*","PA*","PA*"]
[174,"SAO PAULO","HOSPITAIS","GRANDE SAO PAULO ","MOGI DAS CRUZES","HOSPITAL E MATERNIDADE IPIRANGA",null,null,null,"H/PS","H/PS","H/PS","H/PS","H/PS"]
[175,"SAO PAULO","HOSPITAIS","GRANDE SAO PAULO ","OSASCO","UNIDADE AVANCADA CRUZEIRO DO SUL","PA*","PA*","PA*","PA*","PA*","PA*","PA*","PA*"]
[176,"SAO PAULO","HOSPITAIS","GRANDE SAO PAULO ","OSASCO","GTO-GRUPO DE TRAUMAT.E ORTOPEDIA",null,null,null,"PS","PS","PS","PS","PS"]
[177,"SAO PAULO","HOSPITAIS","GRANDE SAO PAULO ","OSASCO","HOSPITAL E MATERNIDADE NOSSA SENHORA DE FATIMA",null,null,null,"H","H","H","H","H"]
[178,"SAO PAULO","HOSPITAIS","GRANDE SAO PAULO ","OSASCO","HOSPITAL CRUZEIRO DO SUL","H/M/PS","H/M/PS","H/M/PS","H/M/PS","H/M/PS","H/M/PS","H/M/PS","H/M/PS"]
[179,"SAO PAULO","HOSPITAIS","GRANDE SAO PAULO ","OSASCO","HOSPITAL SINO BRASILEIRO",null,null,null,null,"H/M/PS","H/M/PS",null,"H/M/PS"]
[180,"SAO PAULO","HOSPITAIS","GRANDE SAO PAULO ","SANTA ISABEL","IRMANDADE DA SANTA CASA DE MISER DE SANTA ISABEL","H/M/PS","H/M/PS","H/M/PS","H/M/PS","H/M/PS","H/M/PS","H/M/PS","H/M/PS"]
[181,"SAO PAULO","HOSPITAIS","GRANDE SAO PAULO ","SUZANO","MEDCARE SUZANO SERVICOS MEDICOS -EPP","PA*","PA*","PA*","PA*","PA*","PA*","PA*","PA*"]
[182,"SAO PAULO","HOSPITAIS","GRANDE SAO PAULO ","TABOAO DA SERRA","CC TABOAO DA SERRA","PA*","PA*","PA*","PA*","PA*","PA*","PA*","PA*"]
[183,"SAO PAULO","HOSPITAIS","GRANDE SAO PAULO ","TABOAO DA SERRA","FAMILY HOSP SS","H/M/PS","H/M/PS","H/M/PS","H/M/PS","H/M/PS","H/M/PS","H/M/PS","H/M/PS"]
[184,"SAO PAULO","HOSPITAIS","GRANDE SAO PAULO ","TABOAO DA SERRA","CLINICA MAIA",null,"H","H","H","H","H","H","H"]
[185,"SAO PAULO","HOSPITAIS","JUNDIAI E REGIAO","AMPARO","BENEFICENCIA PORTUGUESA DE AMPARO",null,"H/M/PS","H/M/PS","H/M/PS","H/M/PS","H/M/PS","H/M/PS","H/M/PS"]
[186,"SAO PAULO","HOSPITAIS","JUNDIAI E REGIAO","AMPARO","STA CASA ANNA CINTRA",null,null,"H/PS","H/PS","H/PS","H/PS","H/PS","H/PS"]
[187,"SAO PAULO","HOSPITAIS","JUNDIAI E REGIAO","ATIBAIA","ALBERT SABIN HOSP E MAT",null,"H/M/PS","H/M/PS","H/M/PS","H/M/PS","H/M/PS","H/M/PS","H/M/PS"]
[188,"SAO PAULO","HOSPITAIS","JUNDIAI E REGIAO","ATIBAIA","HOSPITAL NOVO ATIBAIA",null,null,"H/M/PS","H/M/PS","H/M/PS","H/M/PS","H/M/PS","H/M/PS"]
[189,"SAO PAULO","HOSPITAIS","JUNDIAI E REGIAO","BRAGANCA PAULISTA","HOSP UNIVERSITARIO SAO FRANCISCO NA PROV DE DEUS",null,"H/M/PS","H/M/PS","H/M/PS","H/M/PS","H/M/PS","H/M/PS","H/M/PS"]
[190,"SAO PAULO","HOSPITAIS","JUNDIAI E REGIAO","BRAGANCA PAULISTA","HOSPITAL BRAGANTINO",null,"H/PS","H/PS","H/PS","H/PS","H/PS","H/PS","H/PS"]
[191,"SAO PAULO","HOSPITAIS","JUNDIAI E REGIAO","BRAGANCA PAULISTA","SANTA CASA DE BRAGANCA PAULISTA",null,null,"H/M/PS","H/M/PS","H/M/PS","H/M/PS","H/M/PS","H/M/PS"]
[192,"SAO PAULO","HOSPITAIS","JUNDIAI E REGIAO ","CABREUVA","API PRIME LTDA EPP","H","H","H","H","H","H","H","H"]
[193,"SAO PAULO","HOSPITAIS","JUNDIAI E REGIAO ","CAJAMAR","CC POLVILHO","PA*","PA*","PA*","PA*","PA*","PA*","PA*","PA*"]
[{"$f":"ROW()-1","v":194},"SAO PAULO","HOSPITAIS","JUNDIAI E REGIAO ","CAMPO LIMPO PAULISTA","CC CAMPO LIMPO PAULISTA","PA*","PA*","PA*","PA*","PA*","PA*","PA*","PA*"]
[195,"SAO PAULO","HOSPITAIS","JUNDIAI E REGIAO ","IBIUINA","INSTITUTO LEONARDO RUSSO CENTRO REAB PSICOSSOCIAL",null,"H/PS","H/PS","H/PS","H/PS","H/PS","H/PS","H/PS"]
[196,"SAO PAULO","HOSPITAIS","JUNDIAI E REGIAO ","ITAPIRA","FUNDACAO ESPIRITA AMERICO BAIRRAL",null,"H","H","H","H","H","H","H"]
[197,"SAO PAULO","HOSPITAIS","JUNDIAI E REGIAO ","ITAPIRA","CLINICA DE REPOUSO SANTA FE - EPP",null,null,null,null,"H","H","H","H"]
[198,"SAO PAULO","HOSPITAIS","JUNDIAI E REGIAO ","ITATIBA","HOSPITAL ITATIBA","H/M/PS","H/M/PS","H/M/PS","H/M/PS","H/M/PS","H/M/PS","H/M/PS","H/M/PS"]
[199,"SAO PAULO","HOSPITAIS","JUNDIAI E REGIAO ","ITATIBA","SANTA CASA DE MISERICORDIA DE ITATIBA","H/M/PS","H/M/PS","H/M/PS","H/M/PS","H/M/PS","H/M/PS","H/M/PS","H/M/PS"]
[200,"SAO PAULO","HOSPITAIS","JUNDIAI E REGIAO ","ITUPEVA","HOSPITAL PSIQUIATRICO ITUPEVA - EPP","H","H/PS","H/PS","H/PS","H/PS","H/PS","H/PS","H/PS"]
[201,"SAO PAULO","HOSPITAIS","JUNDIAI E REGIAO ","JUNDIAI","HOSP PAULO SACRAMENTO","H/M/PS","H/M/PS","H/M/PS","H/M/PS","H/M/PS","H/M/PS","H/M/PS","H/M/PS"]
[202,"SAO PAULO","HOSPITAIS","JUNDIAI E REGIAO ","JUNDIAI","HOSPITAL SANTA ELISA",null,null,"H/M/PS","H/M/PS","H/M/PS","H/M/PS","H/M/PS","H/M/PS"]
[203,"SAO PAULO","HOSPITAIS","JUNDIAI E REGIAO ","LOUVEIRA","IRMANDADE SANTA CASA DE LOUVEIRA","H/M/PS","H/M/PS","H/M/PS","H/M/PS","H/M/PS","H/M/PS","H/M/PS","H/M/PS"]
[204,"SAO PAULO","HOSPITAIS","JUNDIAI E REGIAO ","VARZEA PAULISTA","CC VARZEA PAULISTA","PA*","PA*","PA*","PA*","PA*","PA*","PA*","PA*"]
[205,"SAO PAULO","HOSPITAIS","JUNDIAI E REGIAO ","VINHEDO","IRMANDADE DA SANTA CASA DE VINHEDO","H/M/PS","H/M/PS","H/M/PS","H/M/PS","H/M/PS","H/M/PS","H/M/PS","H/M/PS"]
[206,"SAO PAULO","HOSPITAIS","SAO PAULO ABC / DIADEMA","DIADEMA","INNOVA HOSPITAIS ASSOCIADOS","H","H","H","H","H","H/PS","H/PS","H/PS"]
[207,"SAO PAULO","HOSPITAIS","SAO PAULO ABC / DIADEMA","DIADEMA","CC DIADEMA","PA","PA","PA","PA","PA","PA","PA","PA"]
[208,"SAO PAULO","HOSPITAIS","SAO PAULO ABC / MAUA","MAUA","IRM DA STA CASA MISER DE MAUA- HOSP IMAC CONCEICAO","H/PS","H/PS","H/PS","H/M/PS","H/M/PS","H/M/PS","H/M/PS","H/M/PS"]
[209,"SAO PAULO","HOSPITAIS","SAO PAULO ABC / MAUA","MAUA","CC MAUA 1 (ANTIGO CC MAUA)","PA*","PA*","PA*","PA*","PA*","PA*","PA*","PA*"]
[210,"SAO PAULO","HOSPITAIS","SAO PAULO ABC / MAUA","MAUA","HOSPITAL VITAL",null,"H/PS","H/PS","H/PS","H/PS","H/PS","H/PS","H/PS"]
[211,"SAO PAULO","HOSPITAIS","SAO PAULO ABC / MAUA","MAUA","HOSP AMERICA",null,null,null,null,"H/M/PS","H/M/PS","H/M/PS","H/M/PS"]
[212,"SAO PAULO","HOSPITAIS","SAO PAULO ABC / RIBEIRAO PIRES","RIBEIRAO PIRES","HOSP RIBEIRAO PIRES","H/M","H/M","H/M","H/M","H/M","H/M",null,"H/M"]
[213,"SAO PAULO","HOSPITAIS","SAO PAULO ABC / RIBEIRAO PIRES","RIBEIRAO PIRES","CC RIBEIRAO PIRES","PA","PA","PA","PA","PA","PA","PA","PA"]
[214,"SAO PAULO","HOSPITAIS","SAO PAULO ABC / SANTO ANDRE","SANTO ANDRE","HOSPITAL CORACAO DE JESUS","H","H","H","H/PS","H/PS","H/PS","H/PS","H/PS"]
[215,"SAO PAULO","HOSPITAIS","SAO PAULO ABC / SANTO ANDRE","SANTO ANDRE","CC SANTO ANDRE 1 (ANTIGO CC SANTO ANDRE I )","PA","PA","PA","PA","PA","PA","PA","PA"]
[216,"SAO PAULO","HOSPITAIS","SAO PAULO ABC / SANTO ANDRE","SANTO ANDRE","CC SANTO ANDRE 4 (ANTIGO PA SANTO ANDRE )","PA*","PA*","PA*","PA*","PA*","PA*","PA*","PA*"]
[217,"SAO PAULO","HOSPITAIS","SAO PAULO ABC / SANTO ANDRE","SANTO ANDRE","SOC PORT BENF DE SANTTO ANDRE- HOSP SAO PEDRO","H","H","H","H/M/PS","H/M/PS","H/M/PS","H/M/PS","H/M/PS"]
[218,"SAO PAULO","HOSPITAIS","SAO PAULO ABC / SANTO ANDRE","SANTO ANDRE","HOSPITAL E MATERNIDADE SAO JOSE DO ABC",null,"H/PS","H/PS","H/PS","H/PS","H/PS","H/PS","H/PS"]
[219,"SAO PAULO","HOSPITAIS","SAO PAULO ABC / SANTO ANDRE","SANTO ANDRE","HOSP E MAT DOUTOR CHRISTOVAO DA GAMA",null,null,"H","H/PS","H/PS","H/M/PS","H/M/PS","H/M/PS"]
[220,"SAO PAULO","HOSPITAIS","SAO PAULO ABC / SANTO ANDRE","SANTO ANDRE","HOSPITAL BARTIRA",null,null,null,null,null,"H/M/PS",null,"H/M/PS"]
[221,"SAO PAULO","HOSPITAIS","SAO PAULO ABC / SANTO ANDRE","SANTO ANDRE","HOSPITAL E MATERNIDADE BRASIL",null,null,null,null,null,"H/M/PS",null,"H/M/PS"]
[222,"SAO PAULO","HOSPITAIS","SAO PAULO ABC / SAO CAETANO DO SUL","SAO CAETANO DO SUL","HOSP E MAT CENTRAL","H/PS*","H/PS","H/PS","H/PS","H/PS","H/PS","H/PS","H/PS"]
[223,"SAO PAULO","HOSPITAIS","SAO PAULO ABC / SAO CAETANO DO SUL","SAO CAETANO DO SUL","CC SAO CAETANO 1(ANTIGO CC SAO CAETANO I)","PA*","PA*","PA*","PA*","PA*","PA*","PA*","PA*"]
[224,"SAO PAULO","HOSPITAIS","SAO PAULO ABC / SAO CAETANO DO SUL","SAO CAETANO DO SUL","SOC PORTUGUESA DE BENEF DE SAO CAETANO DO SUL",null,null,"H/PS","H/M/PS","H/M/PS","H/M/PS","H/M/PS","H/M/PS"]
[225,"SAO PAULO","HOSPITAIS","SAO PAULO ABC/ SAO BERNARDO DO CAMPO","SAO BERNARDO DO CAMPO","HOSP SAO BERNARDO - UNIDADE INFANTIL BAETA NEVES","H/PS","H/PS","H/PS","H/PS","H/PS","H/PS","H/PS","H/PS"]
[226,"SAO PAULO","HOSPITAIS","SAO PAULO ABC/ SAO BERNARDO DO CAMPO","SAO BERNARDO DO CAMPO","HOSP SAO BERNARDO","H","H","H","H","H","H","H","H"]
[227,"SAO PAULO","HOSPITAIS","SAO PAULO ABC/ SAO BERNARDO DO CAMPO","SAO BERNARDO DO CAMPO","CENTRO DE TRATAMENTO BEZERRA DE MENEZES","H/PS","H/PS","H/PS","H/PS","H/PS","H/PS","H/PS","H/PS"]
[228,"SAO PAULO","HOSPITAIS","SAO PAULO ABC/ SAO BERNARDO DO CAMPO","SAO BERNARDO DO CAMPO","HOSP E MAT NOTRE CARE ABC","H/M/PS","H/M/PS","H/M/PS","H/M/PS","H/M/PS","H/M/PS","H/M/PS","H/M/PS"]
[229,"SAO PAULO","HOSPITAIS","SAO PAULO ABC/ SAO BERNARDO DO CAMPO","SAO BERNARDO DO CAMPO","P S INTERMEDICA ABC","PS","PS","PS","PS","PS","PS","PS","PS"]
[230,"SAO PAULO","HOSPITAIS","SAO PAULO ABC/ SAO BERNARDO DO CAMPO","SAO BERNARDO DO CAMPO","HOSPITAL IFOR",null,null,"H","H/PS","H/PS","H/PS",null,"H/PS"]
[231,"SAO PAULO","HOSPITAIS","SAO PAULO ABC/ SAO BERNARDO DO CAMPO","SAO BERNARDO DO CAMPO","HOSPITAL DE OLHOS ABC-CERPO",null,null,"H","H","H","H","H","H"]
[232,"SAO PAULO","HOSPITAIS","SAO PAULO ABC/ SAO BERNARDO DO CAMPO","SAO BERNARDO DO CAMPO","HOSPITAL E MATERNIDADE ASSUNCAO",null,null,null,"H/PS","H/PS","H/PS",null,"H/PS"]
[233,"SAO PAULO","HOSPITAIS","SAO PAULO ABC/ SAO BERNARDO DO CAMPO","SAO BERNARDO DO CAMPO","ESPACO ABERTO- HOSP DIA S/C LTDA",null,null,null,"H","H","H","H","H"]
[234,"SAO PAULO","HOSPITAIS","SAO PAULO ABC/ SAO BERNARDO DO CAMPO","SAO BERNARDO DO CAMPO","API ASSISTENCIA PSIQUIATRICA INTEGRADA ABC LTDA","H/PS","H/PS","H/PS","H/PS","H/PS","H/PS","H/PS","H/PS"]
[235,"SAO PAULO","HOSPITAIS","SAO PAULO DEMAIS CIDADES","ADAMANTINA","IRMANDADE DA SANTA CASA DE MISERICORDIA DE ADAMANT",null,null,null,null,"H/M/PS","H/M/PS","H/M/PS","H/M/PS"]
[236,"SAO PAULO","HOSPITAIS","SAO PAULO DEMAIS CIDADES","AMERICANA","CLINICA SAO LUCAS",null,null,null,null,"H/M/PS","H/M/PS","H/M/PS","H/M/PS"]
[237,"SAO PAULO","HOSPITAIS","SAO PAULO DEMAIS CIDADES","AMERICANA","INSTITUTO PRO VISAO AMERICANA",null,null,null,null,"H","H","H","H"]
[238,"SAO PAULO","HOSPITAIS","SAO PAULO DEMAIS CIDADES","APARECIDA","SANTA CASA DE MISERICORDIA DE APARECIDA",null,null,null,null,"H/PS","H/PS","H/PS","H/PS"]
[239,"SAO PAULO","HOSPITAIS","SAO PAULO DEMAIS CIDADES","ARACATUBA","ASSOCIACAO SANTA CASA SAUDE DE ARACATUBA",null,null,null,null,"H/M/PS","H/M/PS","H/M/PS","H/M/PS"]
[240,"SAO PAULO","HOSPITAIS","SAO PAULO DEMAIS CIDADES","ARARAQUARA","SOC PORTUGUESA BENEF DE ARARAQUARA",null,null,"H/M/PS","H/M/PS","H/M/PS","H/M/PS","H/M/PS","H/M/PS"]
[241,"SAO PAULO","HOSPITAIS","SAO PAULO DEMAIS CIDADES","ARARAS","ASSOCIACAO PRO SAUDE",null,null,null,"H/M/PS","H/M/PS","H/M/PS","H/M/PS","H/M/PS"]
[242,"SAO PAULO","HOSPITAIS","SAO PAULO DEMAIS CIDADES","ASSIS","SANTA CASA DE MISERICORDIA DE ASSIS",null,null,"H/M/PS","H/M/PS","H/M/PS","H/M/PS","H/M/PS","H/M/PS"]
[243,"SAO PAULO","HOSPITAIS","SAO PAULO DEMAIS CIDADES","ASSIS","IAM ATENDIMENTO MEDICO HOSP",null,null,null,null,"H/M","H/M","H/M","H/M"]
[244,"SAO PAULO","HOSPITAIS","SAO PAULO DEMAIS CIDADES","BARIRI","IRMANDADE DA SANTA CASA DE MISERICORDIA DE BARIRI",null,null,"H/M/PS","H/M/PS","H/M/PS","H/M/PS","H/M/PS","H/M/PS"]
[245,"SAO PAULO","HOSPITAIS","SAO PAULO DEMAIS CIDADES","BARRETOS","SANTA CASA DE BARRETOS",null,null,null,null,"H/M/PS","H/M/PS","H/M/PS","H/M/PS"]
[246,"SAO PAULO","HOSPITAIS","SAO PAULO DEMAIS CIDADES","BAURU","ASSISTENCIA MEDICO HOSPITALAR SAO LUCAS SA",null,null,null,null,"H/PS","H/PS","H/PS","H/PS"]
[247,"SAO PAULO","HOSPITAIS","SAO PAULO DEMAIS CIDADES","BAURU","HOSPITAL E MATERNIDADE MARIA JOSE",null,null,null,null,"H/M/PS","H/M/PS","H/M/PS","H/M/PS"]
[248,"SAO PAULO","HOSPITAIS","SAO PAULO DEMAIS CIDADES","BEBEDOURO","UNIMED BEBEDOURO COOPERATIVA DE TRABALHO MEDICO",null,null,null,null,"H/M/PS","H/M/PS","H/M/PS","H/M/PS"]
[249,"SAO PAULO","HOSPITAIS","SAO PAULO DEMAIS CIDADES","BOTUCATU","UNESP",null,null,"H/PS","H/PS","H/PS","H/PS","H/PS","H/PS"]
[250,"SAO PAULO","HOSPITAIS","SAO PAULO DEMAIS CIDADES","BROTAS","HOSPITAL SANTA TEREZINHA",null,null,null,null,"H/M/PS","H/M/PS","H/M/PS","H/M/PS"]
[251,"SAO PAULO","HOSPITAIS","SAO PAULO DEMAIS CIDADES","CACAPAVA","FUSAM-FUND DE SAUDE E ASSIS DO MUNIC DE CACAPAVA",null,null,"H/M/PS","H/M/PS","H/M/PS","H/M/PS","H/M/PS","H/M/PS"]
[252,"SAO PAULO","HOSPITAIS","SAO PAULO DEMAIS CIDADES","CACAPAVA","POLICLIN -SERV. MEDICO HOSPITALARES",null,null,null,null,"H/M/PS","H/M/PS","H/M/PS","H/M/PS"]
[253,"SAO PAULO","HOSPITAIS","SAO PAULO DEMAIS CIDADES","CACHOEIRA PAULISTA","ASSOC BENEF SAO JOSE E SANTA CASA DE MIS SAO JOSE",null,null,null,null,"H/M/PS","H/M/PS","H/M/PS","H/M/PS"]
[254,"SAO PAULO","HOSPITAIS","SAO PAULO DEMAIS CIDADES","CARAGUATATUBA","CENTRO MED SAO CAMILO",null,null,"PA*","PA*","PA*","PA*","PA*","PA*"]
[255,"SAO PAULO","HOSPITAIS","SAO PAULO DEMAIS CIDADES","CARAGUATATUBA","CASA DE SAUDE STELLA MARIS",null,null,"H/M/PS","H/M/PS","H/M/PS","H/M/PS","H/M/PS","H/M/PS"]
[256,"SAO PAULO","HOSPITAIS","SAO PAULO DEMAIS CIDADES","CRAVINHOS","SANTA CASA DE CRAVINHOS",null,null,null,null,"H/M/PS","H/M/PS","H/M/PS","H/M/PS"]
[257,"SAO PAULO","HOSPITAIS","SAO PAULO DEMAIS CIDADES","CRUZEIRO","SANTA CASA DE MISERICORDIA DE CRUZEIRO",null,null,"H/M/PS","H/M/PS","H/M/PS","H/M/PS","H/M/PS","H/M/PS"]
[{"$f":"ROW()-1","v":258},"SAO PAULO","HOSPITAIS","SAO PAULO DEMAIS CIDADES","FARTURA","SANTA CASA DE MISERICORDIA DE FARTURA",null,null,null,null,null,"H/M/PS","H/M/PS","H/M/PS"]
[259,"SAO PAULO","HOSPITAIS","SAO PAULO DEMAIS CIDADES","FRANCA","HOSPITAL E MATERNIDADE SAO JOAQUIM",null,null,"H/M/PS","H/M/PS","H/M/PS","H/M/PS","H/M/PS","H/M/PS"]
[260,"SAO PAULO","HOSPITAIS","SAO PAULO DEMAIS CIDADES","FRANCA","HOSPITAL REGIONAL DE FRANCA",null,null,null,null,null,"H/M/PS","H/M/PS","H/M/PS"]
[261,"SAO PAULO","HOSPITAIS","SAO PAULO DEMAIS CIDADES","GUARATINGUETA","CEPOG-CENTRO PED E ORTOPEDICO GUARATINGUETA SC L",null,null,"PS","PS","PS","PS","PS","PS"]
[262,"SAO PAULO","HOSPITAIS","SAO PAULO DEMAIS CIDADES","GUARATINGUETA","SANTA CASA DE GUARATINGUETA",null,null,"H/M/PS","H/M/PS","H/M/PS","H/M/PS","H/M/PS","H/M/PS"]
[263,"SAO PAULO","HOSPITAIS","SAO PAULO DEMAIS CIDADES","JABOTICABAL","HOSPITAL SAO MARCOS",null,null,null,null,"H/M/PS","H/M/PS","H/M/PS","H/M/PS"]
[264,"SAO PAULO","HOSPITAIS","SAO PAULO DEMAIS CIDADES","JACAREI","HOSPITAL ALVORADA",null,null,"H/M/PS","H/M/PS","H/M/PS","H/M/PS","H/M/PS","H/M/PS"]
[265,"SAO PAULO","HOSPITAIS","SAO PAULO DEMAIS CIDADES","JACAREI","ASS CASA FONTE DA VIDA-HOSP SAO FRANCISCO DE ASSIS",null,null,null,"H/M/PS","H/M/PS","H/M/PS","H/M/PS","H/M/PS"]
[266,"SAO PAULO","HOSPITAIS","SAO PAULO DEMAIS CIDADES","JACAREI","POLICLIN SERVICOS MEDICO - HOSPITALARES",null,null,null,null,"H/M/PS","H/M/PS","H/M/PS","H/M/PS"]
[267,"SAO PAULO","HOSPITAIS","SAO PAULO DEMAIS CIDADES","JAU","HOSP AMARAL CARVALHO",null,null,null,null,"H","H","H","H"]
[268,"SAO PAULO","HOSPITAIS","SAO PAULO DEMAIS CIDADES","LIMEIRA","SOCIEDADE OPERARIA HUMANITARIA",null,null,null,null,"H/M/PS","H/M/PS","H/M/PS","H/M/PS"]
[269,"SAO PAULO","HOSPITAIS","SAO PAULO DEMAIS CIDADES","LIMEIRA","SANTA CASA DE LIMEIRA",null,null,null,null,null,"H/M/PS","H/M/PS","H/M/PS"]
[270,"SAO PAULO","HOSPITAIS","SAO PAULO DEMAIS CIDADES","LIMEIRA","MEDICAL MED COOP ASSIST.DE LIMEIRA",null,null,null,null,null,"H/M/PS","H/M/PS","H/M/PS"]
[271,"SAO PAULO","HOSPITAIS","SAO PAULO DEMAIS CIDADES","LORENA","SANTA CASA DE MISERICORDIA DE LORENA",null,null,"H/M/PS","H/M/PS","H/M/PS","H/M/PS","H/M/PS","H/M/PS"]
[272,"SAO PAULO","HOSPITAIS","SAO PAULO DEMAIS CIDADES","LUCELIA","SANTA CASA DE MISERICORDIA DE LUCELIA",null,null,null,null,"H/M/PS","H/M/PS","H/M/PS","H/M/PS"]
[273,"SAO PAULO","HOSPITAIS","SAO PAULO DEMAIS CIDADES","MATAO","HOSPITAL CARLOS FERNANDO MALZONI MATAO",null,null,null,null,"H/M/PS","H/M/PS","H/M/PS","H/M/PS"]
[274,"SAO PAULO","HOSPITAIS","SAO PAULO DEMAIS CIDADES","MIRASSOL","HOSPITAL DR FERNANDO",null,null,null,null,"H/M/PS","H/M/PS","H/M/PS","H/M/PS"]
[275,"SAO PAULO","HOSPITAIS","SAO PAULO DEMAIS CIDADES","OURINHOS","SOCIEDADE SANTA CASA DE MISERICORDIA DE OURINHOS",null,null,null,"H/M/PS","H/M/PS","H/M/PS","H/M/PS","H/M/PS"]
[276,"SAO PAULO","HOSPITAIS","SAO PAULO DEMAIS CIDADES","PENAPOLIS","IRMANDADE DA SANTA CASA DE MISERIC DE PENAPOLIS",null,null,null,null,"H/M","H/M","H/M","H/M"]
[277,"SAO PAULO","HOSPITAIS","SAO PAULO DEMAIS CIDADES","PIRACICABA","SAO FRANCISCO SISTEMAS DE SAUDE SC",null,null,"H/M/PS","H/M/PS","H/M/PS","H/M/PS","H/M/PS","H/M/PS"]
[278,"SAO PAULO","HOSPITAIS","SAO PAULO DEMAIS CIDADES","PIRASSUNUNGA","IRMANDADE STA CASA DE MIS DE PIRASSUNUNGA",null,null,null,null,"H/M/PS","H/M/PS","H/M/PS","H/M/PS"]
[279,"SAO PAULO","HOSPITAIS","SAO PAULO DEMAIS CIDADES","PRESIDENTE EPITACIO","IRM DA STA CASA DE MIS DE PRES EPITACIO",null,null,"H/M/PS","H/M/PS","H/M/PS","H/M/PS","H/M/PS","H/M/PS"]
[280,"SAO PAULO","HOSPITAIS","SAO PAULO DEMAIS CIDADES","PRESIDENTE PRUDENTE","HOSPITAL E MATERNIDADE PRESIDENTE PRUDENTE SC",null,null,"H/M/PS","H/M/PS","H/M/PS","H/M/PS","H/M/PS","H/M/PS"]
[281,"SAO PAULO","HOSPITAIS","SAO PAULO DEMAIS CIDADES","PRESIDENTE PRUDENTE","CENTRO DE FRATURAS E ORTOPEDIA SAO LUCAS S/S",null,null,null,null,"H","H","H","H"]
[282,"SAO PAULO","HOSPITAIS","SAO PAULO DEMAIS CIDADES","PRESIDENTE VENCESLAU","IRMANDADE DA SANTA CASA DE PRESIDENTE VENCESLAU",null,null,null,null,"H/M/PS","H/M/PS","H/M/PS","H/M/PS"]
[283,"SAO PAULO","HOSPITAIS","SAO PAULO DEMAIS CIDADES","REGISTRO","HOSP E P S E MAT SAO JOSE",null,null,"H/M/PS","H/M/PS","H/M/PS","H/M/PS","H/M/PS","H/M/PS"]
[284,"SAO PAULO","HOSPITAIS","SAO PAULO DEMAIS CIDADES","RIBEIRAO PRETO","HOSPITAL E MATERNIDADE SINHA JUNQUEIRA",null,null,"H/M/PS","H/M/PS","H/M/PS","H/M/PS","H/M/PS","H/M/PS"]
[285,"SAO PAULO","HOSPITAIS","SAO PAULO DEMAIS CIDADES","RIBEIRAO PRETO","SAO FRANCISCO SISTEMAS DE SAUDE SC",null,null,"H/PS","H/M/PS","H/M/PS","H/M/PS","H/M/PS","H/M/PS"]
[286,"SAO PAULO","HOSPITAIS","SAO PAULO DEMAIS CIDADES","RIBEIRAO PRETO","HOSPITAL SANTA LYDIA",null,null,null,null,"H/M/PS","H/M/PS","H/M/PS","H/M/PS"]
[287,"SAO PAULO","HOSPITAIS","SAO PAULO DEMAIS CIDADES","RIBEIRAO PRETO","HOSPITAL DAS CLINICAS - FAEPA",null,null,null,null,null,null,null,"H/M"]
[288,"SAO PAULO","HOSPITAIS","SAO PAULO DEMAIS CIDADES","RIO CLARO","STA CASA DE MISERICORDIA DE RIO CLARO",null,null,"H/M/PS","H/M/PS","H/M/PS","H/M/PS","H/M/PS","H/M/PS"]
[289,"SAO PAULO","HOSPITAIS","SAO PAULO DEMAIS CIDADES","SANTA BARBARA DOESTE","HOSPITAL SANTA BARBARA",null,null,"H/M/PS","H/M/PS","H/M/PS","H/M/PS","H/M/PS","H/M/PS"]
[290,"SAO PAULO","HOSPITAIS","SAO PAULO DEMAIS CIDADES","SAO JOAO DA BOA VISTA","STA CASA MIS CAROLINA MALHEIROS",null,null,null,null,"H/M/PS","H/M/PS","H/M/PS","H/M/PS"]
[291,"SAO PAULO","HOSPITAIS","SAO PAULO DEMAIS CIDADES","SAO JOSE DO RIO PRETO","IRM DA SANT CASA DE MISER DE SAO JOSE DO RIO PRETO",null,null,"H/M/PS","H/M/PS","H/M/PS","H/M/PS","H/M/PS","H/M/PS"]
[292,"SAO PAULO","HOSPITAIS","SAO PAULO DEMAIS CIDADES","SAO JOSE DO RIO PRETO","CLIN PSIQ SIQUEIRA CAMPOS LTDA",null,null,null,"H","H","H","H","H"]
[293,"SAO PAULO","HOSPITAIS","SAO PAULO DEMAIS CIDADES","SAO JOSE DO RIO PRETO","CASA DE SAUDE SANTA HELENA",null,null,null,null,"H/M/PS","H/M/PS","H/M/PS","H/M/PS"]
[294,"SAO PAULO","HOSPITAIS","SAO PAULO DEMAIS CIDADES","SAO JOSE DO RIO PRETO","CENTRO MEDICO RIO PRETO",null,null,null,null,"H/M/PS","H/M/PS","H/M/PS","H/M/PS"]
[295,"SAO PAULO","HOSPITAIS","SAO PAULO DEMAIS CIDADES","SAO JOSE DO RIO PRETO","HOSPITAL DO CORACAO RIO PRETO SC",null,null,null,null,"H/PS","H/PS","H/PS","H/PS"]
[296,"SAO PAULO","HOSPITAIS","SAO PAULO DEMAIS CIDADES","SAO JOSE DO RIO PRETO","SOC PORT DE BENEF HOSP INFANTE D. HENRIQUE",null,null,null,null,"H/M/PS","H/M/PS","H/M/PS","H/M/PS"]
[297,"SAO PAULO","HOSPITAIS","SAO PAULO DEMAIS CIDADES","SAO JOSE DO RIO PRETO","FUND FACULDADE REGIONAL MED S JOSE DO R PRETO",null,null,null,null,null,"H/M/PS","H/M/PS","H/M/PS"]
[298,"SAO PAULO","HOSPITAIS","SAO PAULO DEMAIS CIDADES","SAO JOSE DOS CAMPOS","PROVISAO",null,null,"H","H","H","H","H","H"]
[299,"SAO PAULO","HOSPITAIS","SAO PAULO DEMAIS CIDADES","SAO JOSE DOS CAMPOS","GACC GRUPO DE ASSISTENCIA A CRIANCA COM CANCER",null,null,"H/PS","H/PS","H/PS","H/PS","H/PS","H/PS"]
[300,"SAO PAULO","HOSPITAIS","SAO PAULO DEMAIS CIDADES","SAO JOSE DOS CAMPOS","IRM DA SANTA CASA DE MIS DE SAO JOSE DOS CAMPOS",null,null,"H/M/PS","H/M/PS","H/M/PS","H/M/PS","H/M/PS","H/M/PS"]
[301,"SAO PAULO","HOSPITAIS","SAO PAULO DEMAIS CIDADES","SAO JOSE DOS CAMPOS","FRANCISCA JULIA SAUDE MENTAL E DEPENDENCIA QUIMICA",null,null,"H/PS","H/PS","H/PS","H/PS","H/PS","H/PS"]
[302,"SAO PAULO","HOSPITAIS","SAO PAULO DEMAIS CIDADES","SAO JOSE DOS CAMPOS","IPMMI OBRA DE ACAO SOCIAL PIO XII HOSP PIO XII",null,null,null,null,"H/PS","H/PS","H/PS","H/PS"]
[303,"SAO PAULO","HOSPITAIS","SAO PAULO DEMAIS CIDADES","SAO JOSE DOS CAMPOS","HOSPITAL E MATERNIDADE POLICLIN",null,null,null,null,"H/M/PS","H/M/PS","H/M/PS","H/M/PS"]
[304,"SAO PAULO","HOSPITAIS","SAO PAULO DEMAIS CIDADES","SAO JOSE DOS CAMPOS","POLICLIN -SERV. MEDICO - HOSPITALARES",null,null,null,null,"H/PS","H/PS","H/PS","H/PS"]
[305,"SAO PAULO","HOSPITAIS","SAO PAULO DEMAIS CIDADES","SAO JOSE DOS CAMPOS","PRO-INFANCIA SJC HOSP E PS PEDIATRICO",null,null,null,null,"H/PS","H/PS","H/PS","H/PS"]
[306,"SAO PAULO","HOSPITAIS","SAO PAULO DEMAIS CIDADES","SAO JOSE DOS CAMPOS","PRONTIL HOSPITAL INFANTIL",null,null,"H/PS","H/PS","H/PS","H/PS","H/PS","H/PS"]
[307,"SAO PAULO","HOSPITAIS","SAO PAULO DEMAIS CIDADES","SAO JOSE DOS CAMPOS","HOSPITAL VIVALLE",null,null,null,null,"H/PS","H/PS",null,"H/PS"]
[308,"SAO PAULO","HOSPITAIS","SAO PAULO DEMAIS CIDADES","SAO SEBASTIAO","IRMANDADE DA SANTA CASA CORACAO DE JESUS",null,null,"H/M/PS","H/M/PS","H/M/PS","H/M/PS","H/M/PS","H/M/PS"]
[309,"SAO PAULO","HOSPITAIS","SAO PAULO DEMAIS CIDADES","SERRANA","SANTA CASA DE MISERICORDIA DE SERRANA",null,null,"H/M/PS","H/M/PS","H/M/PS","H/M/PS","H/M/PS","H/M/PS"]
[310,"SAO PAULO","HOSPITAIS","SAO PAULO DEMAIS CIDADES","TAUBATE","HOSP SAO CAMILO - HOSPITAL REGIONAL DO VALE",null,null,"H/PS","H/PS","H/PS","H/PS","H/PS","H/PS"]
[311,"SAO PAULO","HOSPITAIS","SAO PAULO DEMAIS CIDADES","TAUBATE","CLINICA SAINT GERMAIN",null,null,null,null,"H","H","H","H"]
[312,"SAO PAULO","HOSPITAIS","SAO PAULO DEMAIS CIDADES","TAUBATE","POLICLIN SERVICOS MEDICO - HOSPITALARES",null,null,null,null,"H/M/PS","H/M/PS","H/M/PS","H/M/PS"]
[313,"SAO PAULO","HOSPITAIS","SAO PAULO DEMAIS CIDADES","TAUBATE","HOSP SAO LUCAS DE TAUBATE",null,null,"H/M/PS","H/M/PS","H/M/PS","H/M/PS","H/M/PS","H/M/PS"]
[314,"SAO PAULO","HOSPITAIS","SAO PAULO DEMAIS CIDADES","TREMEMBE","IRM FILANTROPICA HOSP B JESUS STA CS MIS TREMEMBE",null,null,null,null,"M","M","M","M"]
[315,"SAO PAULO","HOSPITAIS","SAO PAULO DEMAIS CIDADES","TUPA","HOSPITAL SAO FRANCISCO DE ASSIS DE TUPA",null,null,null,null,"H/M/PS","H/M/PS","H/M/PS","H/M/PS"]
[316,"SAO PAULO","HOSPITAIS","SAO PAULO DEMAIS CIDADES","UBATUBA","STA CASA MIS IRM SR DOS PASSOS DE UBATUBA",null,null,"H/M/PS","H/M/PS","H/M/PS","H/M/PS","H/M/PS","H/M/PS"]
[317,"SAO PAULO","HOSPITAIS","SOROCABA E REGIAO","BOITUVA","HOSPITAL SAO LUIZ",null,"H/M/PS","H/M/PS","H/M/PS","H/M/PS","H/M/PS","H/M/PS","H/M/PS"]
[318,"SAO PAULO","HOSPITAIS","SOROCABA E REGIAO","INDAIATUBA","HOSPITAL AUGUSTO DE OLIVEIRA CAMARGO - HAOC",null,null,"H/M/PS","H/M/PS","H/M/PS","H/M/PS","H/M/PS","H/M/PS"]
[319,"SAO PAULO","HOSPITAIS","SOROCABA E REGIAO","ITU","CC ITU","PA*","PA*","PA*","PA*","PA*","PA*","PA*","PA*"]
[320,"SAO PAULO","HOSPITAIS","SOROCABA E REGIAO","ITU","SOCIEDADE BENEFICENTE SAO CAMILO","H/M/PS","H/M/PS","H/M/PS","H/M/PS","H/M/PS","H/M/PS","H/M/PS","H/M/PS"]
[321,"SAO PAULO","HOSPITAIS","SOROCABA E REGIAO","PIEDADE","SANTA CASA DE MISERICORDIA DE PIEDADE",null,"H/M/PS","H/M/PS","H/M/PS","H/M/PS","H/M/PS","H/M/PS","H/M/PS"]
[{"$f":"ROW()-1","v":322},"SAO PAULO","HOSPITAIS","SOROCABA E REGIAO","PORTO FELIZ","IRM DA STA CASA DE MIS DE PORTO FELIZ",null,"H/M/PS","H/M/PS","H/M/PS","H/M/PS","H/M/PS","H/M/PS","H/M/PS"]
[323,"SAO PAULO","HOSPITAIS","SOROCABA E REGIAO","PILAR DO SUL","IRMANDADE STA CASA MISERICORDIA PILAR DO SUL",null,null,null,null,null,"H/M/PS","H/M/PS","H/M/PS"]
[324,"SAO PAULO","HOSPITAIS","SOROCABA E REGIAO","SALTO","HOSP E MAT MUNIC N SRA MONTE SERRAT",null,"H/M/PS","H/M/PS","H/M/PS","H/M/PS","H/M/PS","H/M/PS","H/M/PS"]
[325,"SAO PAULO","HOSPITAIS","SOROCABA E REGIAO","SALTO DE PIRAPORA","HOSP IRM DA SANTA CASA DE MIS DE SALTO DE PIRAPORA","H/M/PS","H/M/PS","H/M/PS","H/M/PS","H/M/PS","H/M/PS","H/M/PS","H/M/PS"]
[326,"SAO PAULO","HOSPITAIS","SOROCABA E REGIAO","SAO ROQUE","IRMANDADE DA SANTA CASA DE MISER DE SAO ROQUE",null,"H/M/PS","H/M/PS","H/M/PS","H/M/PS","H/M/PS","H/M/PS","H/M/PS"]
[327,"SAO PAULO","HOSPITAIS","SOROCABA E REGIAO","SOROCABA","HOSP MODELO","H/M/PS","H/M/PS","H/M/PS","H/M/PS","H/M/PS","H/M/PS","H/M/PS","H/M/PS"]
[328,"SAO PAULO","HOSPITAIS","SOROCABA E REGIAO","SOROCABA","BANCO DE OLHOS DE SOROCABA S C","H/PS","H/PS","H/PS","H/PS","H/PS","H/PS","H/PS","H/PS"]
[329,"SAO PAULO","HOSPITAIS","SOROCABA E REGIAO","SOROCABA","GPACI GRUPO DE PESQ E ASSIST AO CANCER INFANTIL",null,null,"H","H/PS","H/PS","H/PS","H/PS","H/PS"]
[330,"SAO PAULO","HOSPITAIS","SOROCABA E REGIAO","SOROCABA","FUNDACAO SAO PAULO HOSP SANTA LUCINDA",null,"H/M","H/M","H/M","H/M","H/M","H/M","H/M"]
[331,"SAO PAULO","HOSPITAIS","SOROCABA E REGIAO","SOROCABA","AEB ASSOC EVANG BENEF HOSP EVANGELICO DE SOROCABA",null,null,"H","H","H","H","H","H"]
[332,"SAO PAULO","HOSPITAIS","SOROCABA E REGIAO","TATUI","SANTA CASA DE MISERICORDIA DE TATUI","H/M","H/M","H/M","H/M","H/M","H/M","H/M","H/M"]
[333,"SAO PAULO","HOSPITAIS","SOROCABA E REGIAO","VOTORANTIM","HOSPMED SERV MEDS ME",null,null,"H/PS","H/PS","H/PS","H/PS","H/PS","H/PS"]
[334,"SAO PAULO","HOSPITAIS","SOROCABA E REGIAO","VOTUPORANGA","SANTA CASA DE MISERICORDIA DE VOTUPORANGA",null,null,"H/M/PS","H/M/PS","H/M/PS","H/M/PS","H/M/PS","H/M/PS"]
[335,"SAO PAULO","LABORATÓRIOS","SAO PAULO CAPITAL","SAO PAULO","BENVISTA OFTALMOLOGIA","X","X","X","X","X","X","X","X"]
[336,"SAO PAULO","LABORATÓRIOS","SAO PAULO CAPITAL","SAO PAULO","BIOTOX CT LAB ANAL CLI E TOXICOLOGICAS","X","X","X","X","X","X","X","X"]
[337,"SAO PAULO","LABORATÓRIOS","SAO PAULO CAPITAL","SAO PAULO","CARDIOLOGICA MED DIAG SERVS","X","X","X","X","X","X","X","X"]
[338,"SAO PAULO","LABORATÓRIOS","SAO PAULO CAPITAL","SAO PAULO","CLIN DE DIAGS DR LUIZ SCOPPETTA","X","X","X","X","X","X","X","X"]
[339,"SAO PAULO","LABORATÓRIOS","SAO PAULO CAPITAL","SAO PAULO","CC DOM PEDRO (ANTIGO CC DA MULHER)","X","X","X","X","X","X","X","X"]
[340,"SAO PAULO","LABORATÓRIOS","SAO PAULO CAPITAL","SAO PAULO","CLIN DE ULTRASS A A DIAG POR IMAGEM .","X","X","X","X","X","X","X","X"]
[341,"SAO PAULO","LABORATÓRIOS","SAO PAULO CAPITAL","SAO PAULO","CRYA MEDICINA DIAGNOSTICA","X","X","X","X","X","X","X","X"]
[342,"SAO PAULO","LABORATÓRIOS","SAO PAULO CAPITAL","SAO PAULO","DR.GHELFOND DIAGNOSTICO MEDICO","X","X","X","X","X","X","X","X"]
[343,"SAO PAULO","LABORATÓRIOS","SAO PAULO CAPITAL","SAO PAULO","INST DE CARDIOLOGIA DA ZONA LESTE SS","X","X","X","X","X","X","X","X"]
[344,"SAO PAULO","LABORATÓRIOS","SAO PAULO CAPITAL","SAO PAULO","INSTITUTO VIDA DE FISIOTERAPIA","X","X","X","X","X","X","X","X"]
[345,"SAO PAULO","LABORATÓRIOS","SAO PAULO CAPITAL","SAO PAULO","LAB DE ANAL CLINICAS SANITAS","X","X","X","X","X","X","X","X"]
[346,"SAO PAULO","LABORATÓRIOS","SAO PAULO CAPITAL","SAO PAULO","LABORATORIO DE ANALISES SAO VICENTE","X","X","X","X","X","X","X","X"]
[347,"SAO PAULO","LABORATÓRIOS","SAO PAULO CAPITAL","SAO PAULO","MAXIMO CENTRO DE DIAGNOSTICO","X","X","X","X","X","X","X","X"]
[348,"SAO PAULO","LABORATÓRIOS","SAO PAULO CAPITAL","SAO PAULO","G2 LAB DE ANAL CLINS LTDA","X","X","X","X","X","X","X","X"]
[349,"SAO PAULO","LABORATÓRIOS","SAO PAULO CAPITAL","SAO PAULO","MELLO LABORATORIO MEDICO DE ANAL CLIN","X","X","X","X","X","X","X","X"]
[350,"SAO PAULO","LABORATÓRIOS","SAO PAULO CAPITAL","SAO PAULO","NASA LAB BIO CLINICO","X","X","X","X","X","X","X","X"]
[351,"SAO PAULO","LABORATÓRIOS","SAO PAULO CAPITAL","SAO PAULO","NOTRELABS HERMINIO LEMOS","X","X","X","X","X","X","X","X"]
[352,"SAO PAULO","LABORATÓRIOS","SAO PAULO CAPITAL","SAO PAULO","OFTALMOCARE MEDICAL","X","X","X","X","X","X","X","X"]
[353,"SAO PAULO","LABORATÓRIOS","SAO PAULO CAPITAL","SAO PAULO","PATHOS ANATOMOPATOLOGIA","X","X","X","X","X","X","X","X"]
[354,"SAO PAULO","LABORATÓRIOS","SAO PAULO CAPITAL","SAO PAULO","PRESECOR DIAGNOSTICOS EM MEDICINA","X","X","X","X","X","X","X","X"]
[355,"SAO PAULO","LABORATÓRIOS","SAO PAULO CAPITAL","SAO PAULO","NOTRELABS BELEM","X","X","X","X","X","X","X","X"]
[356,"SAO PAULO","LABORATÓRIOS","SAO PAULO CAPITAL","SAO PAULO","CDB CTO DE DIAG BRASIL TKS",null,"X","X","X","X","X","X","X"]
[357,"SAO PAULO","LABORATÓRIOS","SAO PAULO CAPITAL","SAO PAULO","CIDS CLIN INTEGRADA DE DIAG.SONOGR.",null,"X","X","X","X","X","X","X"]
[358,"SAO PAULO","LABORATÓRIOS","SAO PAULO CAPITAL","SAO PAULO","IMED CENTRO DE DIAG POR IMAGEM",null,"X","X","X","X","X","X","X"]
[359,"SAO PAULO","LABORATÓRIOS","SAO PAULO CAPITAL","SAO PAULO","CENTRO ULTRASSONOGRAFICO",null,null,"X","X","X","X","X","X"]
[360,"SAO PAULO","LABORATÓRIOS","SAO PAULO CAPITAL","SAO PAULO","CLIN SCHMILLEVITCH DIAGNOSTICO POR IMAGEM",null,null,"X","X","X","X","X","X"]
[361,"SAO PAULO","LABORATÓRIOS","SAO PAULO CAPITAL","SAO PAULO","DIAGNOSTIKA",null,null,"X","X","X","X","X","X"]
[362,"SAO PAULO","LABORATÓRIOS","SAO PAULO CAPITAL","SAO PAULO","AVANTE MEDICINA DIAG EIRELI",null,null,"X","X","X","X","X","X"]
[363,"SAO PAULO","LABORATÓRIOS","SAO PAULO CAPITAL","SAO PAULO","LAVOISIER MEDICINA DIAGNOSTICA",null,null,"X","X","X","X","X","X"]
[364,"SAO PAULO","LABORATÓRIOS","SAO PAULO CAPITAL","SAO PAULO","RENACOR SERVICOS MEDICOS",null,null,"X","X","X","X","X","X"]
[365,"SAO PAULO","LABORATÓRIOS","SAO PAULO CAPITAL","SAO PAULO","FEMME LABORATORIO DA MULHER",null,null,"X","X","X","X","X","X"]
[366,"SAO PAULO","LABORATÓRIOS","SAO PAULO CAPITAL","SAO PAULO","A + MEDICINA DIAGNOSTICA",null,null,null,"X","X","X","X","X"]
[367,"SAO PAULO","LABORATÓRIOS","SAO PAULO CAPITAL","SAO PAULO","CDB PENHA",null,null,null,"X","X","X","X","X"]
[368,"SAO PAULO","LABORATÓRIOS","SAO PAULO CAPITAL","SAO PAULO","CEDAC CENTRO DE DIAGNOSTICO E ANALISES CLINICAS",null,null,null,"X","X","X","X","X"]
[369,"SAO PAULO","LABORATÓRIOS","SAO PAULO CAPITAL","SAO PAULO","CENTRO DIAGNOSTICO UCD",null,null,null,"X","X","X","X","X"]
[370,"SAO PAULO","LABORATÓRIOS","SAO PAULO CAPITAL","SAO PAULO","CIMERMAN ANALISES CLINICAS",null,null,null,"X","X","X","X","X"]
[371,"SAO PAULO","LABORATÓRIOS","SAO PAULO CAPITAL","SAO PAULO","CIUTAT CENTRO DE DIAGNOSTICO",null,null,null,"X","X","X","X","X"]
[372,"SAO PAULO","LABORATÓRIOS","SAO PAULO CAPITAL","SAO PAULO","IMUVI INSTITUTO MEDICO HUMANA E VITAE",null,null,null,"X","X","X","X","X"]
[373,"SAO PAULO","LABORATÓRIOS","SAO PAULO CAPITAL","SAO PAULO","INSTITUTO DE MEDICINA DIGITAL DIMED",null,null,null,"X","X","X","X","X"]
[374,"SAO PAULO","LABORATÓRIOS","SAO PAULO CAPITAL","SAO PAULO","LABOR LABIS",null,null,null,"X","X","X","X","X"]
[375,"SAO PAULO","LABORATÓRIOS","SAO PAULO CAPITAL","SAO PAULO","LABORATORIO PLINIO SANTOS",null,null,null,"X","X","X","X","X"]
[376,"SAO PAULO","LABORATÓRIOS","SAO PAULO CAPITAL","SAO PAULO","NAKANO E TORATA MEDICINA DIAGNOSTICA",null,null,null,"X","X","X","X","X"]
[377,"SAO PAULO","LABORATÓRIOS","SAO PAULO CAPITAL","SAO PAULO","UDDO UND DE DIAGNOSTICO E DENSIT OSSEA",null,null,null,"X","X","X","X","X"]
[378,"SAO PAULO","LABORATÓRIOS","SAO PAULO CAPITAL","SAO PAULO","CLINICA NORTH WHITE",null,null,null,null,"X","X","X","X"]
[379,"SAO PAULO","LABORATÓRIOS","SAO PAULO CAPITAL","SAO PAULO","LBM LAB BIO-MEDICO",null,null,null,null,"X","X","X","X"]
[380,"SAO PAULO","LABORATÓRIOS","SAO PAULO CAPITAL","SAO PAULO","FISIOART",null,null,null,null,"X","X","X","X"]
[381,"SAO PAULO","LABORATÓRIOS","SAO PAULO CAPITAL","SAO PAULO","INST DE RAD DR GIOVANNI GUERRINI",null,null,null,null,"X","X","X","X"]
[382,"SAO PAULO","LABORATÓRIOS","SAO PAULO CAPITAL","SAO PAULO","JABLONKA CENTRO DE DIAG",null,null,null,null,"X","X","X","X"]
[383,"SAO PAULO","LABORATÓRIOS","SAO PAULO CAPITAL","SAO PAULO","LAB CLIN RAUL DIAS DOS SANTOS",null,null,null,null,"X","X","X","X"]
[384,"SAO PAULO","LABORATÓRIOS","SAO PAULO CAPITAL","SAO PAULO","LABORATORIO NEURODIAGNOSTICO",null,null,null,null,"X","X","X","X"]
[385,"SAO PAULO","LABORATÓRIOS","SAO PAULO CAPITAL","SAO PAULO","MILITELLO",null,null,null,null,"X","X","X","X"]
[{"$f":"ROW()-1","v":386},"SAO PAULO","LABORATÓRIOS","SAO PAULO CAPITAL","SAO PAULO","SONIMED",null,null,null,null,"X","X","X","X"]
[387,"SAO PAULO","LABORATÓRIOS","SAO PAULO CAPITAL","SAO PAULO","CDB PREMIUM",null,null,null,null,null,"X","X","X"]
[388,"SAO PAULO","LABORATÓRIOS","SAO PAULO CAPITAL","SAO PAULO","CENTRO DE DIAGNÓSTICO HOSPITAL SÍRIO LIBANÊS UNIDADE ITAIM",null,null,null,null,null,"X","X","X"]
[389,"SAO PAULO","LABORATÓRIOS","SAO PAULO CAPITAL","SAO PAULO","CLUB D A",null,null,null,null,null,"X","X","X"]
[390,"SAO PAULO","LABORATÓRIOS","SAO PAULO CAPITAL","SAO PAULO","CTO PAULISTA DE ENDOSCOPIA",null,null,null,null,null,"X","X","X"]
[391,"SAO PAULO","LABORATÓRIOS","SAO PAULO CAPITAL","SAO PAULO","CURA CENTRO DE ULTRASSONOGRAFIA E RADIOLOGIA",null,null,null,null,null,"X","X","X"]
[392,"SAO PAULO","LABORATÓRIOS","SAO PAULO CAPITAL","SAO PAULO","DELBONI AURIEMO MED DIAG",null,null,null,null,null,"X","X","X"]
[393,"SAO PAULO","LABORATÓRIOS","SAO PAULO CAPITAL","SAO PAULO","SALOMAO E ZOPPI MED DIAGNOSTICA",null,null,null,null,null,"X","X","X"]
[394,"SAO PAULO","LABORATÓRIOS","SAO PAULO CAPITAL","SAO PAULO","FLEURY",null,null,null,null,null,null,null,"X"]
[395,"SAO PAULO","LABORATÓRIOS","SAO PAULO CAPITAL","SAO PAULO","ALTA EXCELENCIA DIAGNOSTICA",null,null,null,null,null,null,null,"X"]
[396,"SAO PAULO","LABORATÓRIOS","SAO PAULO CAPITAL","SAO PAULO","CENTRO MEDICO SAO CAMILO",null,null,null,null,null,null,null,"X"]
[397,"SAO PAULO","LABORATÓRIOS","SAO PAULO DEMAIS CIDADES","AGUDOS","LABORATORIO SOBRINHO",null,null,null,null,"X","X","X","X"]
[398,"SAO PAULO","LABORATÓRIOS","SAO PAULO DEMAIS CIDADES","AMERICANA","LABCLIN",null,null,"X","X","X","X","X","X"]
[399,"SAO PAULO","LABORATÓRIOS","SAO PAULO DEMAIS CIDADES","AMERICANA","PRO COR EXAMES DO CORACAO",null,null,"X","X","X","X","X","X"]
[400,"SAO PAULO","LABORATÓRIOS","SAO PAULO DEMAIS CIDADES","AMERICANA","CETAM",null,null,null,null,"X","X","X","X"]
[401,"SAO PAULO","LABORATÓRIOS","SAO PAULO DEMAIS CIDADES","AMERICANA","LABORATORIO DE ANALISES CLINICAS PREVILAB",null,null,null,null,"X","X","X","X"]
[402,"SAO PAULO","LABORATÓRIOS","SAO PAULO DEMAIS CIDADES","AMERICANA","ROSSETTI DIAGNOSTICO POR IMAGEM",null,null,null,null,"X","X","X","X"]
[403,"SAO PAULO","LABORATÓRIOS","SAO PAULO DEMAIS CIDADES","AMERICANA","UNIFISIO",null,null,null,null,"X","X","X","X"]
[404,"SAO PAULO","LABORATÓRIOS","SOROCABA E REGIAO","ARACOIABA DA SERRA","CEDIAR CENTRO DE DIAGN DE ARACOIABA SC",null,"X","X","X","X","X","X","X"]
[405,"SAO PAULO","LABORATÓRIOS","SOROCABA E REGIAO","ARACOIABA DA SERRA","IDS INSTITUTO DE DIAGNOSTICO DE SOROCABA SC",null,"X","X","X","X","X","X","X"]
[406,"SAO PAULO","LABORATÓRIOS","SOROCABA E REGIAO","ARACOIABA DA SERRA","TRIADE LAB DE ANAL CLINICAS E CITOLOGIA ME",null,"X","X","X","X","X","X","X"]
[407,"SAO PAULO","LABORATÓRIOS","CAMPINAS E REGIAO","ARTUR NOGUEIRA","CLINESP DE ARTUR NOGUEIRA",null,"X","X","X","X","X","X","X"]
[408,"SAO PAULO","LABORATÓRIOS","CAMPINAS E REGIAO","ARTUR NOGUEIRA","LABORATORIO SAO PAULO",null,"X","X","X","X","X","X","X"]
[409,"SAO PAULO","LABORATÓRIOS","GRANDE SAO PAULO","ARUJA","LAB DELIBERATO DE ANAL CLIN","X","X","X","X","X","X","X","X"]
[410,"SAO PAULO","LABORATÓRIOS","GRANDE SAO PAULO","ASSIS","IAM LAB DIAGNOSTICO ME",null,null,"X","X","X","X","X","X"]
[411,"SAO PAULO","LABORATÓRIOS","GRANDE SAO PAULO","ASSIS","TOMOESTE CENTRO DE TOMO COMPUTADORIZADA DE ASSIS",null,null,"X","X","X","X","X","X"]
[412,"SAO PAULO","LABORATÓRIOS","JUNDIAI E REGIAO","ATIBAIA","SOCIEDADE MEDICA NOVO MILLENIUM SC",null,"X","X","X","X","X","X","X"]
[413,"SAO PAULO","LABORATÓRIOS","JUNDIAI E REGIAO","ATIBAIA","UNILAB LABORATORIO CLINICO",null,null,null,"X","X","X","X","X"]
[414,"SAO PAULO","LABORATÓRIOS","JUNDIAI E REGIAO","ATIBAIA","CENTRO RADIOLOGICO ATIBAIA",null,null,null,null,"X","X","X","X"]
[415,"SAO PAULO","LABORATÓRIOS","JUNDIAI E REGIAO","ATIBAIA","LABORATORIO CLIMA",null,null,null,null,"X","X","X","X"]
[416,"SAO PAULO","LABORATÓRIOS","SAO PAULO DEMAIS CIDADES","BARRETOS","LABORATORIO DR SUZUKI",null,null,null,null,"X","X","X","X"]
[417,"SAO PAULO","LABORATÓRIOS","GRANDE SAO PAULO","BARUERI","CLIN ARAGUAIA",null,null,"X","X","X","X","X","X"]
[418,"SAO PAULO","LABORATÓRIOS","GRANDE SAO PAULO","BARUERI","LAVOISIER MEDICINA DIAGNOSTICA",null,null,"X","X","X","X","X","X"]
[419,"SAO PAULO","LABORATÓRIOS","GRANDE SAO PAULO","BARUERI","FISIOTERAPIA SANTANNA",null,null,null,null,"X","X","X","X"]
[420,"SAO PAULO","LABORATÓRIOS","GRANDE SAO PAULO","BARUERI","DELBONI AURIEMO MED DIAG",null,null,null,null,null,"X","X","X"]
[421,"SAO PAULO","LABORATÓRIOS","GRANDE SAO PAULO","BARUERI","CLUB D A",null,null,null,null,null,"X","X","X"]
[422,"SAO PAULO","LABORATÓRIOS","GRANDE SAO PAULO","BARUERI","FLEURY S.A",null,null,null,null,null,null,null,"X"]
[423,"SAO PAULO","LABORATÓRIOS","SAO PAULO DEMAIS CIDADES","BATATAIS","UNIMAGEM RP SERVS MEDS S S",null,null,null,null,"X","X","X","X"]
[424,"SAO PAULO","LABORATÓRIOS","SAO PAULO DEMAIS CIDADES","BAURU","CDI CENTRO DE DIAGNOSTICO POR IMAGEM DE BAURU",null,null,null,null,"X","X","X","X"]
[425,"SAO PAULO","LABORATÓRIOS","SAO PAULO DEMAIS CIDADES","BAURU","CLIN DE MEDICINA NUCLEAR DE BAURU SC",null,null,null,null,"X","X","X","X"]
[426,"SAO PAULO","LABORATÓRIOS","SAO PAULO DEMAIS CIDADES","BAURU","CR MEDICINA DIAGNOSTICA E PATOLOGIA CLINICA",null,null,null,null,"X","X","X","X"]
[427,"SAO PAULO","LABORATÓRIOS","SAO PAULO DEMAIS CIDADES","BAURU","INSTITUTO BAURUENSE RESSONANCIA MAGNETICA",null,null,null,null,"X","X","X","X"]
[428,"SAO PAULO","LABORATÓRIOS","SAO PAULO DEMAIS CIDADES","BAURU","LABORATORIO DE BAURU DE PATOLOGIA CLINICA SC",null,null,null,null,"X","X","X","X"]
[429,"SAO PAULO","LABORATÓRIOS","SAO PAULO DEMAIS CIDADES","BAURU","TECNOLAB PATOLOGIA CLINICA",null,null,null,null,"X","X","X","X"]
[430,"SAO PAULO","LABORATÓRIOS","BAIXADA SANTISTA","BERTIOGA","ITAPEMA LABORATORIO DE ANALISES CLINICAS","X","X","X","X","X","X","X","X"]
[431,"SAO PAULO","LABORATÓRIOS","SOROCABA E REGIAO","BOITUVA","C & M DIAGNOSTICOS MEDICOS BOITUVA",null,"X","X","X","X","X","X","X"]
[432,"SAO PAULO","LABORATÓRIOS","SOROCABA E REGIAO","BOITUVA","COR TOTALIS CLINICA MEDICA BOITUVA",null,"X","X","X","X","X","X","X"]
[433,"SAO PAULO","LABORATÓRIOS","SOROCABA E REGIAO","BOITUVA","LAB DE ANAL CLINS FOIZER",null,"X","X","X","X","X","X","X"]
[434,"SAO PAULO","LABORATÓRIOS","JUNDIAI E REGIAO","BRAGANCA PAULISTA","CLIN SANTO ANTONIO S C LIMITADA",null,null,"X","X","X","X","X","X"]
[435,"SAO PAULO","LABORATÓRIOS","SAO PAULO DEMAIS CIDADES","CACAPAVA","INSTITUTO TOMOVALE DE RADIOLOGIA",null,null,"X","X","X","X","X","X"]
[436,"SAO PAULO","LABORATÓRIOS","SAO PAULO DEMAIS CIDADES","CACAPAVA","LABORATORIO SAO JOSE",null,null,"X","X","X","X","X","X"]
[437,"SAO PAULO","LABORATÓRIOS","SAO PAULO DEMAIS CIDADES","CACAPAVA","LABORATORIO DE ANAL CLIN OSWALDO CRUZ",null,null,null,"X","X","X","X","X"]
[438,"SAO PAULO","LABORATÓRIOS","GRANDE SAO PAULO","CAIEIRAS","CLINICANALISES CLINICAS",null,null,null,"X","X","X","X","X"]
[439,"SAO PAULO","LABORATÓRIOS","CAMPINAS E REGIAO","CAMPINAS","CLINICA SANTA CRUZ","X","X","X","X","X","X","X","X"]
[440,"SAO PAULO","LABORATÓRIOS","CAMPINAS E REGIAO","CAMPINAS","LABORATORIOS FREEMAN DE ANALISES CLINICAS","X","X","X","X","X","X","X","X"]
[441,"SAO PAULO","LABORATÓRIOS","CAMPINAS E REGIAO","CAMPINAS","LAB DE PAT CLIN A FREALDO S C LTD",null,"X","X","X","X","X","X","X"]
[442,"SAO PAULO","LABORATÓRIOS","CAMPINAS E REGIAO","CAMPINAS","CENTRO DE CARDIOLOGIA E DIAG CAMPINAS",null,null,"X","X","X","X","X","X"]
[443,"SAO PAULO","LABORATÓRIOS","CAMPINAS E REGIAO","CAMPINAS","LABORATORIO EMILIO RIBAS",null,null,"X","X","X","X","X","X"]
[444,"SAO PAULO","LABORATÓRIOS","CAMPINAS E REGIAO","CAMPINAS","CAMP IMAGEM IMAGENS MEDICAS DE CAMPINAS",null,null,null,"X","X","X","X","X"]
[445,"SAO PAULO","LABORATÓRIOS","CAMPINAS E REGIAO","CAMPINAS","CENDICAMP CENTRAL DIAGNOSTICA CAMPINAS SC",null,null,null,"X","X","X","X","X"]
[446,"SAO PAULO","LABORATÓRIOS","CAMPINAS E REGIAO","CAMPINAS","ECO CLINICA",null,null,null,"X","X","X","X","X"]
[447,"SAO PAULO","LABORATÓRIOS","CAMPINAS E REGIAO","CAMPINAS","LABORATORIO VOZZA",null,null,null,"X","X","X","X","X"]
[448,"SAO PAULO","LABORATÓRIOS","CAMPINAS E REGIAO","CAMPINAS","LABORATORIO DR ROBERTO FRANCO DO AMARAL",null,null,null,"X","X","X","X","X"]
[449,"SAO PAULO","LABORATÓRIOS","CAMPINAS E REGIAO","CAMPINAS","LABORATORIO CONFIANCE",null,null,null,"X","X","X","X","X"]
[{"$f":"ROW()-1","v":450},"SAO PAULO","LABORATÓRIOS","CAMPINAS E REGIAO","CAMPINAS","ANDREA DA GRACA LIMA ZUCCOLOTTO",null,null,null,null,"X","X","X","X"]
[451,"SAO PAULO","LABORATÓRIOS","CAMPINAS E REGIAO","CAMPINAS","CDE CLIN MED LIMITADA",null,null,null,null,"X","X","X","X"]
[452,"SAO PAULO","LABORATÓRIOS","CAMPINAS E REGIAO","CAMPINAS","LABORATORIO BACCILI",null,null,null,null,"X","X","X","X"]
[453,"SAO PAULO","LABORATÓRIOS","CAMPINAS E REGIAO","CAMPINAS","FENIX LABORATORIO DE ANALISES CLINICAS",null,null,null,null,"X","X","X","X"]
[454,"SAO PAULO","LABORATÓRIOS","CAMPINAS E REGIAO","CAMPINAS","LAB DE ANAL CLINS SAMUEL PESSOA LTD",null,null,null,null,"X","X","X","X"]
[455,"SAO PAULO","LABORATÓRIOS","CAMPINAS E REGIAO","CAMPINAS","LABORATORIO DE ANALISES E PESQUISAS CLINICAS HENRI",null,null,null,null,"X","X","X","X"]
[456,"SAO PAULO","LABORATÓRIOS","CAMPINAS E REGIAO","CAMPINAS","LABORTEST LABORATORIO DE ANALISES CLINICAS",null,null,null,null,"X","X","X","X"]
[457,"SAO PAULO","LABORATÓRIOS","CAMPINAS E REGIAO","CAMPINAS","SANCHES E KOEHLER MEDICOS ASSOCIADOS",null,null,null,null,"X","X","X","X"]
[458,"SAO PAULO","LABORATÓRIOS","CAMPINAS E REGIAO","CAMPINAS","CENTRO RADIOLOGICO DE CAMPINAS",null,null,null,null,null,"X","X","X"]
[459,"SAO PAULO","LABORATÓRIOS","JUNDIAI E REGIAO","CAMPO LIMPO PAULISTA","CC CAMPO LIMPO PAULISTA","X","X","X","X","X","X","X","X"]
[460,"SAO PAULO","LABORATÓRIOS","SAO PAULO DEMAIS CIDADES","CAMPOS DO JORDAO","LAB DE ANALISES CLINICAS SAO LUCAS SS",null,null,"X","X","X","X","X","X"]
[461,"SAO PAULO","LABORATÓRIOS","SAO PAULO DEMAIS CIDADES","CAMPOS DO JORDAO","LABORATORIO DE ANAL CLIN OSWALDO CRUZ",null,null,null,"X","X","X","X","X"]
[462,"SAO PAULO","LABORATÓRIOS","SAO PAULO DEMAIS CIDADES","CAPIVARI","LABORATORIO DE ANALISES CLINICAS PREVILAB",null,null,null,null,"X","X","X","X"]
[463,"SAO PAULO","LABORATÓRIOS","SAO PAULO DEMAIS CIDADES","CARAGUATATUBA","CENTRO OFTALMOLOGICO DO LITORAL NORTE",null,null,"X","X","X","X","X","X"]
[464,"SAO PAULO","LABORATÓRIOS","SAO PAULO DEMAIS CIDADES","CARAGUATATUBA","CENTRO MED SAO CAMILO",null,null,"X","X","X","X","X","X"]
[465,"SAO PAULO","LABORATÓRIOS","GRANDE SAO PAULO","CARAPICUIBA","R F OFTALMOLOGIA",null,null,"X","X","X","X","X","X"]
[466,"SAO PAULO","LABORATÓRIOS","SAO PAULO DEMAIS CIDADES","CATANDUVA","SAO LUCAS LAB DE ANAL CLIN",null,null,null,null,null,"X","X","X"]
[467,"SAO PAULO","LABORATÓRIOS","CAMPINAS E REGIAO","COSMOPOLIS","LABORATORIO SAO PAULO",null,"X","X","X","X","X","X","X"]
[468,"SAO PAULO","LABORATÓRIOS","GRANDE SAO PAULO","COTIA","CEDIME","X","X","X","X","X","X","X","X"]
[469,"SAO PAULO","LABORATÓRIOS","GRANDE SAO PAULO","COTIA","LAVOISIER MEDICINA DIAGNOSTICA",null,null,"X","X","X","X","X","X"]
[470,"SAO PAULO","LABORATÓRIOS","GRANDE SAO PAULO","COTIA","DELBONI AURIEMO MED DIAG",null,null,null,null,null,"X","X","X"]
[471,"SAO PAULO","LABORATÓRIOS","GRANDE SAO PAULO","COTIA","CLUB D A",null,null,null,null,null,"X","X","X"]
[472,"SAO PAULO","LABORATÓRIOS","BAIXADA SANTISTA","CUBATAO","INST DE ANAL CLINS DE SANTOS SC LTDA",null,null,null,"X","X","X","X","X"]
[473,"SAO PAULO","LABORATÓRIOS","BAIXADA SANTISTA","CUBATAO","MULT IMAGEM",null,null,null,"X","X","X","X","X"]
[474,"SAO PAULO","LABORATÓRIOS","SAO PAULO ABC / DIADEMA","DIADEMA","NOTRELABS","X","X","X","X","X","X","X","X"]
[475,"SAO PAULO","LABORATÓRIOS","SAO PAULO ABC / DIADEMA","DIADEMA","LABOR UNIAO",null,"X","X","X","X","X","X","X"]
[476,"SAO PAULO","LABORATÓRIOS","SAO PAULO ABC / DIADEMA","DIADEMA","SOMEC SOC.DE MEDICINA E CIRURGIA LTDA",null,null,"X","X","X","X","X","X"]
[477,"SAO PAULO","LABORATÓRIOS","SAO PAULO ABC / DIADEMA","DIADEMA","TECNOLAB",null,null,null,"X","X","X","X","X"]
[478,"SAO PAULO","LABORATÓRIOS","SAO PAULO DEMAIS CIDADES","ELIAS FAUSTO","LAB LABORATORIO DE ANALISES CLINICAS",null,null,null,null,"X","X","X","X"]
[479,"SAO PAULO","LABORATÓRIOS","GRANDE SAO PAULO","FRANCO DA ROCHA","CTACT DE APOIO DIAGNOSTICO","X","X","X","X","X","X","X","X"]
[480,"SAO PAULO","LABORATÓRIOS","SAO PAULO DEMAIS CIDADES","GUARATINGUETA","AMM RAIO X ME",null,null,"X","X","X","X","X","X"]
[481,"SAO PAULO","LABORATÓRIOS","SAO PAULO DEMAIS CIDADES","GUARATINGUETA","CTO DIAG CARDIO DE GUARATINGUETA SC CARDIOCENTER",null,null,"X","X","X","X","X","X"]
[482,"SAO PAULO","LABORATÓRIOS","SAO PAULO DEMAIS CIDADES","GUARATINGUETA","CEPAC CENTRO DE PATOL. E DIAG. CLINICO",null,null,"X","X","X","X","X","X"]
[483,"SAO PAULO","LABORATÓRIOS","SAO PAULO DEMAIS CIDADES","GUARATINGUETA","FG LABORATORIO",null,null,"X","X","X","X","X","X"]
[484,"SAO PAULO","LABORATÓRIOS","SAO PAULO DEMAIS CIDADES","GUARATINGUETA","LABORATORIO MEDICO VITAL BRASIL",null,null,"X","X","X","X","X","X"]
[485,"SAO PAULO","LABORATÓRIOS","SAO PAULO DEMAIS CIDADES","GUARATINGUETA","LABORATORIO SANTA PAULA ANALISES CLINICAS",null,null,"X","X","X","X","X","X"]
[486,"SAO PAULO","LABORATÓRIOS","SAO PAULO DEMAIS CIDADES","GUARATINGUETA","SANTA CASA DE GUARATINGUETA",null,null,"X","X","X","X","X","X"]
[487,"SAO PAULO","LABORATÓRIOS","BAIXADA SANTISTA","GUARUJA","P A MEDICAL CARE ASSIST MEDICA",null,"X","X","X","X","X","X","X"]
[488,"SAO PAULO","LABORATÓRIOS","BAIXADA SANTISTA","GUARUJA","INSTITUTO DE ANALISES CLINICAS DE SANTOS",null,null,null,"X","X","X","X","X"]
[489,"SAO PAULO","LABORATÓRIOS","GRANDE SAO PAULO","GUARULHOS","LAB DE ANAL CLINICAS SANITAS","X","X","X","X","X","X","X","X"]
[490,"SAO PAULO","LABORATÓRIOS","GRANDE SAO PAULO","GUARULHOS","LAVOISIER MEDICINA DIAGNOSTICA",null,null,"X","X","X","X","X","X"]
[491,"SAO PAULO","LABORATÓRIOS","GRANDE SAO PAULO","GUARULHOS","LOPESFISIO CLIN DE REABILITACAO FISICA",null,null,null,"X","X","X","X","X"]
[492,"SAO PAULO","LABORATÓRIOS","GRANDE SAO PAULO","GUARULHOS","DIMAGEM",null,null,null,null,"X","X","X","X"]
[493,"SAO PAULO","LABORATÓRIOS","GRANDE SAO PAULO","GUARULHOS","DELBONI AURIEMO MED DIAG",null,null,null,null,null,"X","X","X"]
[494,"SAO PAULO","LABORATÓRIOS","CAMPINAS E REGIAO","HORTOLANDIA","PAIVA MOTA ANAL CLINS E SERV MEDS LTDA","X","X","X","X","X","X","X","X"]
[495,"SAO PAULO","LABORATÓRIOS","CAMPINAS E REGIAO","HORTOLANDIA","LABORATORIO ALPHA DE ANALISES CLINICAS","X","X","X","X","X","X","X","X"]
[496,"SAO PAULO","LABORATÓRIOS","GRANDE SAO PAULO","IBIUNA","VITALABOR LABORATORIO DE ANALISES CLINICAS",null,"X","X","X","X","X","X","X"]
[497,"SAO PAULO","LABORATÓRIOS","SAO PAULO DEMAIS CIDADES","ILHABELA","DUCLIN LABORATORIOS",null,null,null,"X","X","X","X","X"]
[498,"SAO PAULO","LABORATÓRIOS","CAMPINAS E REGIAO","INDAIATUBA","MRI METODOS RADIOLOGICOS E IMAGENS",null,null,"X","X","X","X","X","X"]
[499,"SAO PAULO","LABORATÓRIOS","CAMPINAS E REGIAO","INDAIATUBA","LABORATORIO CONFIANCE",null,null,null,"X","X","X","X","X"]
[500,"SAO PAULO","LABORATÓRIOS","CAMPINAS E REGIAO","INDAIATUBA","LAB LABORATORIO DE ANALISES CLINICAS",null,null,null,null,"X","X","X","X"]
[501,"SAO PAULO","LABORATÓRIOS","CAMPINAS E REGIAO","INDAIATUBA","UNILABOR",null,null,null,null,null,"X","X","X"]
[502,"SAO PAULO","LABORATÓRIOS","SAO PAULO DEMAIS CIDADES","IPERO","BIOCENTER",null,"X","X","X","X","X","X","X"]
[503,"SAO PAULO","LABORATÓRIOS","BAIXADA SANTISTA","ITANHAEM","ANALISES CLINICAS CELLULA MATER","X","X","X","X","X","X","X","X"]
[504,"SAO PAULO","LABORATÓRIOS","BAIXADA SANTISTA","ITANHAEM","CLINICA ITAMED",null,"X","X","X","X","X","X","X"]
[505,"SAO PAULO","LABORATÓRIOS","BAIXADA SANTISTA","ITANHAEM","CT DIAG DE ITANHAEM",null,"X","X","X","X","X","X","X"]
[506,"SAO PAULO","LABORATÓRIOS","GRANDE SAO PAULO","ITAPECERICA DA SERRA","COTISCLIN ORT E TRAUMAT DE ITAPEC DA SERRA SC LT","X","X","X","X","X","X","X","X"]
[507,"SAO PAULO","LABORATÓRIOS","GRANDE SAO PAULO","ITAPECERICA DA SERRA","CENTERCLIN LABORATORIO DE ANAL CLIN",null,"X","X","X","X","X","X","X"]
[508,"SAO PAULO","LABORATÓRIOS","GRANDE SAO PAULO","ITAPECERICA DA SERRA","DIAGLAB DIAGNOSTICOS LABORATORIAL ",null,null,null,"X","X","X","X","X"]
[509,"SAO PAULO","LABORATÓRIOS","SOROCABA E REGIAO","ITAPETININGA","IDS INST DE DIAG DE SOROCABA ITAPETININGA",null,null,"X","X","X","X","X","X"]
[510,"SAO PAULO","LABORATÓRIOS","GRANDE SAO PAULO","ITAPEVI","INSTITUTO VIDA DE FISIOTERAPIA","X","X","X","X","X","X","X","X"]
[511,"SAO PAULO","LABORATÓRIOS","GRANDE SAO PAULO","ITAPEVI","NOVA IMAGEM CTO AVANCADO DE DIAG","X","X","X","X","X","X","X","X"]
[512,"SAO PAULO","LABORATÓRIOS","GRANDE SAO PAULO","ITAQUAQUECETUBA","LAB DELIBERATO DE ANAL CLIN","X","X","X","X","X","X","X","X"]
[513,"SAO PAULO","LABORATÓRIOS","JUNDIAI E REGIAO","ITATIBA","CLIMAGEM CLINICA DE DIAGNOSTICO POR IMAGEM","X","X","X","X","X","X","X","X"]
[{"$f":"ROW()-1","v":514},"SAO PAULO","LABORATÓRIOS","JUNDIAI E REGIAO","ITATIBA","EXAME LABORATORIO DE ANAL CLIN .","X","X","X","X","X","X","X","X"]
[515,"SAO PAULO","LABORATÓRIOS","JUNDIAI E REGIAO","ITATIBA","INST DE SAUDE DA MULHER","X","X","X","X","X","X","X","X"]
[516,"SAO PAULO","LABORATÓRIOS","JUNDIAI E REGIAO","ITATIBA","UNILAB LABORATORIO CLINICO",null,null,null,"X","X","X","X","X"]
[517,"SAO PAULO","LABORATÓRIOS","JUNDIAI E REGIAO","ITATIBA","BIOCLINICA ANALISES CLINICAS SC",null,null,null,null,"X","X","X","X"]
[518,"SAO PAULO","LABORATÓRIOS","SOROCABA E REGIAO","ITU","DIAPREV DIAGNOSTICOS MEDICOS","X","X","X","X","X","X","X","X"]
[519,"SAO PAULO","LABORATÓRIOS","SOROCABA E REGIAO","ITU","FISIOMED CLINICA DE FISIOTERAPIA E REAB","X","X","X","X","X","X","X","X"]
[520,"SAO PAULO","LABORATÓRIOS","SOROCABA E REGIAO","ITU","UNIDADE DE ECOGRAFIA E RADIOLOGIA PINHEIROS",null,null,null,"X","X","X","X","X"]
[521,"SAO PAULO","LABORATÓRIOS","SAO PAULO DEMAIS CIDADES","JACAREI","CIPAX MEDICINA DIAGNOSTICA",null,null,"X","X","X","X","X","X"]
[522,"SAO PAULO","LABORATÓRIOS","SAO PAULO DEMAIS CIDADES","JACAREI","CLIMED ASSISTENCIA MEDICA",null,null,"X","X","X","X","X","X"]
[523,"SAO PAULO","LABORATÓRIOS","SAO PAULO DEMAIS CIDADES","JACAREI","PLANI DIAGNOSTICOS MEDICOS",null,null,"X","X","X","X","X","X"]
[524,"SAO PAULO","LABORATÓRIOS","SAO PAULO DEMAIS CIDADES","JACAREI","UNIDADE DE DIAGNOSTICO POR IMAGEM",null,null,"X","X","X","X","X","X"]
[525,"SAO PAULO","LABORATÓRIOS","SAO PAULO DEMAIS CIDADES","JACAREI","VALECLIN LABORATORIO DE ANALISES CLINICAS",null,null,"X","X","X","X","X","X"]
[526,"SAO PAULO","LABORATÓRIOS","SAO PAULO DEMAIS CIDADES","JACAREI","LABORATORIO DE ANAL CLIN OSWALDO CRUZ",null,null,null,"X","X","X","X","X"]
[527,"SAO PAULO","LABORATÓRIOS","SAO PAULO DEMAIS CIDADES","JACAREI","LAB DE ANALISE CLINS SAO JOSE SOC SIMPLES",null,null,null,"X","X","X","X","X"]
[528,"SAO PAULO","LABORATÓRIOS","SAO PAULO DEMAIS CIDADES","JACAREI","LABORATORIO UNIDADE MEDICA",null,null,null,null,"X","X","X","X"]
[529,"SAO PAULO","LABORATÓRIOS","CAMPINAS E REGIAO","JAGUARIUNA","ANACLIN LAB ANALISES CLINICAS",null,"X","X","X","X","X","X","X"]
[530,"SAO PAULO","LABORATÓRIOS","CAMPINAS E REGIAO","JAGUARIUNA","LABORATORIO SAO PAULO",null,"X","X","X","X","X","X","X"]
[531,"SAO PAULO","LABORATÓRIOS","GRANDE SAO PAULO","JANDIRA","INSTITUTO VIDA DE FISIOTERAPIA","X","X","X","X","X","X","X","X"]
[532,"SAO PAULO","LABORATÓRIOS","GRANDE SAO PAULO","JANDIRA","CLIN SAO JOAO",null,"X","X","X","X","X","X","X"]
[533,"SAO PAULO","LABORATÓRIOS","JUNDIAI E REGIAO","JUNDIAI","BIOCLINICA LABORATORIO - LAB ANAL CLIN SANTA ELISA","X","X","X","X","X","X","X","X"]
[534,"SAO PAULO","LABORATÓRIOS","JUNDIAI E REGIAO","JUNDIAI","STIMULY NUCLEO TERAPIAS INTEGRADAS SC","X","X","X","X","X","X","X","X"]
[535,"SAO PAULO","LABORATÓRIOS","JUNDIAI E REGIAO","JUNDIAI","CARDIOIMAGEM CTO DIAG TERAP CARDIOVASCULAR SC",null,null,null,"X","X","X","X","X"]
[536,"SAO PAULO","LABORATÓRIOS","JUNDIAI E REGIAO","JUNDIAI","FISIOCLIN PAOLIELO",null,null,null,"X","X","X","X","X"]
[537,"SAO PAULO","LABORATÓRIOS","JUNDIAI E REGIAO","JUNDIAI","A + MEDICINA DIAGNOSTICA",null,null,null,"X","X","X","X","X"]
[538,"SAO PAULO","LABORATÓRIOS","JUNDIAI E REGIAO","JUNDIAI","LABORATORIO JORGE EID",null,null,null,"X","X","X","X","X"]
[539,"SAO PAULO","LABORATÓRIOS","JUNDIAI E REGIAO","JUNDIAI","UNIDADE DE ECOGRAFIA E RADIOLOGIA PINHEIROS",null,null,null,"X","X","X","X","X"]
[540,"SAO PAULO","LABORATÓRIOS","JUNDIAI E REGIAO","JUNDIAI","ANGIOSCAN CTO INTEG DE DIAG E TRAT DE D CIRCULA",null,null,null,null,"X","X","X","X"]
[541,"SAO PAULO","LABORATÓRIOS","SAO PAULO DEMAIS CIDADES","LIMEIRA","LABORATORIO DE ANALISES CLINICAS PREVILAB",null,null,null,null,"X","X","X","X"]
[542,"SAO PAULO","LABORATÓRIOS","SAO PAULO DEMAIS CIDADES","LIMEIRA","BIO LAB ANALISES CLINICAS",null,null,null,null,null,"X","X","X"]
[543,"SAO PAULO","LABORATÓRIOS","SAO PAULO DEMAIS CIDADES","LIMEIRA","IMAGEM CENTRO DE DIAGNOSTICOS",null,null,null,null,null,"X","X","X"]
[544,"SAO PAULO","LABORATÓRIOS","SAO PAULO DEMAIS CIDADES","LIMEIRA","LABCLIN LIMEIRA",null,null,null,null,null,"X","X","X"]
[545,"SAO PAULO","LABORATÓRIOS","SAO PAULO DEMAIS CIDADES","LIMEIRA","LABCENTER",null,null,null,null,null,"X","X","X"]
[546,"SAO PAULO","LABORATÓRIOS","SAO PAULO DEMAIS CIDADES","LORENA","CEPAC CENTRO DE PATOL. E DIAG. CLINICO",null,null,"X","X","X","X","X","X"]
[547,"SAO PAULO","LABORATÓRIOS","SAO PAULO DEMAIS CIDADES","LORENA","LABORATORIO MEDICO VITAL BRASIL",null,null,"X","X","X","X","X","X"]
[548,"SAO PAULO","LABORATÓRIOS","SAO PAULO DEMAIS CIDADES","LORENA","UEU UNIDADE ESPECIALIZADA EM ULTRASSONOGRAFIA",null,null,"X","X","X","X","X","X"]
[549,"SAO PAULO","LABORATÓRIOS","SAO PAULO DEMAIS CIDADES","MATAO","LABORATORIO SAO FRANCISCO DE ANALISES CLINICAS",null,null,null,null,"X","X","X","X"]
[550,"SAO PAULO","LABORATÓRIOS","SAO PAULO ABC / MAUA","MAUA","BIOCENTER DIAGNOSTICOS LABORATORIAIS","X","X","X","X","X","X","X","X"]
[551,"SAO PAULO","LABORATÓRIOS","SAO PAULO ABC / MAUA","MAUA","MEDIMAGEM","X","X","X","X","X","X","X","X"]
[552,"SAO PAULO","LABORATÓRIOS","SAO PAULO ABC / MAUA","MAUA","LAB PADRAO DE ANAL CLINICAS","X","X","X","X","X","X","X","X"]
[553,"SAO PAULO","LABORATÓRIOS","SAO PAULO ABC / MAUA","MAUA","TECNOLAB",null,null,null,"X","X","X","X","X"]
[554,"SAO PAULO","LABORATÓRIOS","GRANDE SAO PAULO","MOGI DAS CRUZES","CLIN DE MOLESTIA DO AP DIG E VASC CADIVA","X","X","X","X","X","X","X","X"]
[555,"SAO PAULO","LABORATÓRIOS","GRANDE SAO PAULO","MOGI DAS CRUZES","CYTOLAB","X","X","X","X","X","X","X","X"]
[556,"SAO PAULO","LABORATÓRIOS","GRANDE SAO PAULO","MOGI DAS CRUZES","NASA LAB BIO CLINICO","X","X","X","X","X","X","X","X"]
[557,"SAO PAULO","LABORATÓRIOS","GRANDE SAO PAULO","MOGI DAS CRUZES","GARDIENCOR CLINICA MEDICA",null,null,"X","X","X","X","X","X"]
[558,"SAO PAULO","LABORATÓRIOS","GRANDE SAO PAULO","MOGI DAS CRUZES","CEDECO",null,null,null,"X","X","X","X","X"]
[559,"SAO PAULO","LABORATÓRIOS","GRANDE SAO PAULO","MOGI DAS CRUZES","CDC LABORATORIO",null,null,null,null,"X","X","X","X"]
[560,"SAO PAULO","LABORATÓRIOS","GRANDE SAO PAULO","MOGI DAS CRUZES","LAB DE ANAL CLINS DR PEDRO BONELLI S A",null,null,null,null,"X","X","X","X"]
[561,"SAO PAULO","LABORATÓRIOS","GRANDE SAO PAULO","MOGI GUACU","CLINMED CLIN ESP EM MED EMB DE MOGI GUACU",null,null,"X","X","X","X","X","X"]
[562,"SAO PAULO","LABORATÓRIOS","GRANDE SAO PAULO","MOGI GUACU","LABORATORIO SAO JUDAS TADEU SC",null,null,"X","X","X","X","X","X"]
[563,"SAO PAULO","LABORATÓRIOS","GRANDE SAO PAULO","MOGI MIRIM","CITOLAB LABORATORIO DE ANALISES CLINICAS SC",null,null,"X","X","X","X","X","X"]
[564,"SAO PAULO","LABORATÓRIOS","BAIXADA SANTISTA","MONGAGUA","CLIN. DE FRATURAS DE MONGAGUA","X","X","X","X","X","X","X","X"]
[565,"SAO PAULO","LABORATÓRIOS","BAIXADA SANTISTA","MONGAGUA","LAB DE ANAL CLINICAS GONZAGA","X","X","X","X","X","X","X","X"]
[566,"SAO PAULO","LABORATÓRIOS","CAMPINAS E REGIAO","MONTE MOR","BIOMEDKA LABORATORIO CLINICO UNIDADE II",null,"X","X","X","X","X","X","X"]
[567,"SAO PAULO","LABORATÓRIOS","CAMPINAS E REGIAO","MONTE MOR","MED CENTRO PRESTADORA DE SERVICO MEDICOS",null,"X","X","X","X","X","X","X"]
[568,"SAO PAULO","LABORATÓRIOS","GRANDE SAO PAULO","OSASCO","DR.GHELFOND DIAGNOSTICO MEDICO","X","X","X","X","X","X","X","X"]
[569,"SAO PAULO","LABORATÓRIOS","GRANDE SAO PAULO","OSASCO","GS IMAGEM DIAGNOSTICO MEDICO","X","X","X","X","X","X","X","X"]
[570,"SAO PAULO","LABORATÓRIOS","GRANDE SAO PAULO","OSASCO","INSTITUTO VIDA DE FISIOTERAPIA","X","X","X","X","X","X","X","X"]
[571,"SAO PAULO","LABORATÓRIOS","GRANDE SAO PAULO","OSASCO","SION DIAGNOSTICOS","X","X","X","X","X","X","X","X"]
[572,"SAO PAULO","LABORATÓRIOS","GRANDE SAO PAULO","OSASCO","MEDCOR CTO MED CARD DE OSASCO",null,"X","X","X","X","X","X","X"]
[573,"SAO PAULO","LABORATÓRIOS","GRANDE SAO PAULO","OSASCO","UNIDADE DE DIAGNOSTICO OSASCO",null,"X","X","X","X","X","X","X"]
[574,"SAO PAULO","LABORATÓRIOS","GRANDE SAO PAULO","OSASCO","LAVOISIER MEDICINA DIAGNOSTICA",null,null,"X","X","X","X","X","X"]
[575,"SAO PAULO","LABORATÓRIOS","GRANDE SAO PAULO","OSASCO","ENDOPLUS DIAGNOSTICOS",null,null,"X","X","X","X","X","X"]
[576,"SAO PAULO","LABORATÓRIOS","GRANDE SAO PAULO","OSASCO","FRIDA DATYSGELD",null,null,"X","X","X","X","X","X"]
[577,"SAO PAULO","LABORATÓRIOS","GRANDE SAO PAULO","OSASCO","DELBONI AURIEMO MED DIAG",null,null,null,null,null,"X","X","X"]
[{"$f":"ROW()-1","v":578},"SAO PAULO","LABORATÓRIOS","SAO PAULO DEMAIS CIDADES","OURINHOS","LABORATORIO SANTA PAULA OURINHOS",null,null,null,null,"X","X","X","X"]
[579,"SAO PAULO","LABORATÓRIOS","CAMPINAS E REGIAO","PEDREIRA","QUALILAB JUNQUEIRA LABORATORIO",null,"X","X","X","X","X","X","X"]
[580,"SAO PAULO","LABORATÓRIOS","CAMPINAS E REGIAO","PEDREIRA","PRECISION LABORATORIO DE ANALISES",null,null,null,null,"X","X","X","X"]
[581,"SAO PAULO","LABORATÓRIOS","SAO PAULO DEMAIS CIDADES","PENAPOLIS","LABORATORIO DOMINGUES CRUZ",null,null,null,null,"X","X","X","X"]
[582,"SAO PAULO","LABORATÓRIOS","BAIXADA SANTISTA","PERUIBE","CLINICA SAO PEDRO",null,"X","X","X","X","X","X","X"]
[583,"SAO PAULO","LABORATÓRIOS","BAIXADA SANTISTA","PERUIBE","RUIZ E MILARE",null,null,"X","X","X","X","X","X"]
[584,"SAO PAULO","LABORATÓRIOS","SOROCABA E REGIAO","PIEDADE","IDS INSTITUTO DE DIAGNOSTICO SOROCABA SS",null,"X","X","X","X","X","X","X"]
[585,"SAO PAULO","LABORATÓRIOS","SAO PAULO DEMAIS CIDADES","PINDAMONHANGABA","LABORATORIO DE ANAL CLIN OSWALDO CRUZ",null,null,null,"X","X","X","X","X"]
[586,"SAO PAULO","LABORATÓRIOS","SAO PAULO DEMAIS CIDADES","PINDAMONHANGABA","PRO IMAGEM",null,null,null,null,"X","X","X","X"]
[587,"SAO PAULO","LABORATÓRIOS","SAO PAULO DEMAIS CIDADES","PINDAMONHANGABA","WK DIAGNOSE",null,null,null,null,"X","X","X","X"]
[588,"SAO PAULO","LABORATÓRIOS","SAO PAULO DEMAIS CIDADES","PIRACICABA","LABORATORIO DE ANALISES CLINICAS PREVILAB",null,null,null,null,"X","X","X","X"]
[589,"SAO PAULO","LABORATÓRIOS","SAO PAULO DEMAIS CIDADES","PIRACICABA","LABORATORIO SAO LUCAS",null,null,null,null,"X","X","X","X"]
[590,"SAO PAULO","LABORATÓRIOS","GRANDE SAO PAULO","POA","LAB DELIBERATO DE ANAL CLIN","X","X","X","X","X","X","X","X"]
[591,"SAO PAULO","LABORATÓRIOS","GRANDE SAO PAULO","POA","GARDIENCOR CLINICA MEDICA",null,null,"X","X","X","X","X","X"]
[592,"SAO PAULO","LABORATÓRIOS","SOROCABA E REGIAO","PORTO FELIZ","DIAGSOM ULTRASSONOGRAFIA SC",null,"X","X","X","X","X","X","X"]
[593,"SAO PAULO","LABORATÓRIOS","SOROCABA E REGIAO","PORTO FELIZ","ITULAB LAB DE ANAL CLINS DE ITU S C",null,"X","X","X","X","X","X","X"]
[594,"SAO PAULO","LABORATÓRIOS","SOROCABA E REGIAO","PORTO FELIZ","ORTOMED DE SOROCABA",null,"X","X","X","X","X","X","X"]
[595,"SAO PAULO","LABORATÓRIOS","BAIXADA SANTISTA","PRAIA GRANDE","CEDIAL CENTRO DE DIAG MEDICOS DO LITORAL","X","X","X","X","X","X","X","X"]
[596,"SAO PAULO","LABORATÓRIOS","BAIXADA SANTISTA","PRAIA GRANDE","LAB DE ANAL CLINICAS GONZAGA","X","X","X","X","X","X","X","X"]
[597,"SAO PAULO","LABORATÓRIOS","BAIXADA SANTISTA","PRAIA GRANDE","INSTITUTO DE ANALISES CLINICAS DE SANTOS",null,null,null,"X","X","X","X","X"]
[598,"SAO PAULO","LABORATÓRIOS","BAIXADA SANTISTA","PRAIA GRANDE","LABORATORIO PASTEUR DE ANALISES CLINICAS",null,null,null,"X","X","X","X","X"]
[599,"SAO PAULO","LABORATÓRIOS","SAO PAULO DEMAIS CIDADES","PRESIDENTE PRUDENTE","SERVS DE RADIOL E ULTRASSONOGRAFIA DE PRESI",null,null,"X","X","X","X","X","X"]
[600,"SAO PAULO","LABORATÓRIOS","SAO PAULO DEMAIS CIDADES","PRESIDENTE PRUDENTE","CENTRO DE ANALISES CLINICAS UNILAB",null,null,null,null,"X","X","X","X"]
[601,"SAO PAULO","LABORATÓRIOS","SAO PAULO DEMAIS CIDADES","PRESIDENTE PRUDENTE","IMAGEM MEDICINA DIAGNOSTICA",null,null,null,null,"X","X","X","X"]
[602,"SAO PAULO","LABORATÓRIOS","SAO PAULO DEMAIS CIDADES","PRESIDENTE PRUDENTE","INSTITUTO DE RADIOLOGIA PRESIDENTE PRUDENTE",null,null,null,null,"X","X","X","X"]
[603,"SAO PAULO","LABORATÓRIOS","SAO PAULO DEMAIS CIDADES","PRESIDENTE PRUDENTE","LABORATORIO DE ANALISES CLINICAS MARLENE SPIR",null,null,null,null,"X","X","X","X"]
[604,"SAO PAULO","LABORATÓRIOS","SAO PAULO DEMAIS CIDADES","PRESIDENTE VENCESLAU","LABORATORIO DIAGNOSE",null,null,null,null,"X","X","X","X"]
[605,"SAO PAULO","LABORATÓRIOS","SAO PAULO DEMAIS CIDADES","REGISTRO","INST RADIODIAG VALE DO RIBEIRA SC LTD",null,null,"X","X","X","X","X","X"]
[606,"SAO PAULO","LABORATÓRIOS","SAO PAULO DEMAIS CIDADES","REGISTRO","CENTRO DE TOMOG. COMP. DO VALE DO RIBEIRA",null,null,null,null,"X","X","X","X"]
[607,"SAO PAULO","LABORATÓRIOS","SAO PAULO ABC / RIBEIRAO PIRES","RIBEIRAO PIRES","ELGRA CLIN DE FISIOT E ACUPUNTURA S S","X","X","X","X","X","X","X","X"]
[608,"SAO PAULO","LABORATÓRIOS","SAO PAULO ABC / RIBEIRAO PIRES","RIBEIRAO PIRES","IPAC INST PAULISTA DE ANAL CLINICAS","X","X","X","X","X","X","X","X"]
[609,"SAO PAULO","LABORATÓRIOS","SAO PAULO ABC / RIBEIRAO PIRES","RIBEIRAO PIRES","LAB HORMON LAB ESP EM DOSAGENS HORMONAIS","X","X","X","X","X","X","X","X"]
[610,"SAO PAULO","LABORATÓRIOS","SAO PAULO ABC / RIBEIRAO PIRES","RIBEIRAO PIRES","VITAL LAB LABORATORIO ANALISES CLINICAS","X","X","X","X","X","X","X","X"]
[611,"SAO PAULO","LABORATÓRIOS","SAO PAULO ABC / RIBEIRAO PIRES","RIBEIRAO PIRES","TECNOLAB",null,"X","X","X","X","X","X","X"]
[612,"SAO PAULO","LABORATÓRIOS","SAO PAULO ABC / RIBEIRAO PIRES","RIBEIRAO PIRES","INSTITUTO DE RADIOLOGIA E ULTR RIBEIRAO PIRES",null,null,"X","X","X","X","X","X"]
[613,"SAO PAULO","LABORATÓRIOS","SAO PAULO ABC / RIBEIRAO PIRES","RIBEIRAO PIRES","MED SONIC DIAG POR IMAGEM SC",null,null,"X","X","X","X","X","X"]
[614,"SAO PAULO","LABORATÓRIOS","SAO PAULO DEMAIS CIDADES","RIBEIRAO PRETO","DOCUMENTA CLINICA RADIOLOGICA",null,null,"X","X","X","X","X","X"]
[615,"SAO PAULO","LABORATÓRIOS","SAO PAULO DEMAIS CIDADES","RIBEIRAO PRETO","INSTITUTO DE RADIO IMAGEM",null,null,"X","X","X","X","X","X"]
[616,"SAO PAULO","LABORATÓRIOS","SAO PAULO DEMAIS CIDADES","RIBEIRAO PRETO","UNID DE ANATOMIA PATOLOGICA E CITOPAT",null,null,"X","X","X","X","X","X"]
[617,"SAO PAULO","LABORATÓRIOS","SAO PAULO DEMAIS CIDADES","RIBEIRAO PRETO","CEDIRP RIBEIRAO PRETO",null,null,null,null,"X","X","X","X"]
[618,"SAO PAULO","LABORATÓRIOS","SAO PAULO DEMAIS CIDADES","RIBEIRAO PRETO","CENTRO DE DIAGNOSTICOS CONTROLE",null,null,null,null,"X","X","X","X"]
[619,"SAO PAULO","LABORATÓRIOS","SAO PAULO DEMAIS CIDADES","RIBEIRAO PRETO","DIMEN MEDICINA NUCLEAR",null,null,null,null,"X","X","X","X"]
[620,"SAO PAULO","LABORATÓRIOS","SAO PAULO DEMAIS CIDADES","RIBEIRAO PRETO","INSTITUTO VICTORIO VALERI DE DIAGNOSTICOS MEDICOS",null,null,null,null,"X","X","X","X"]
[621,"SAO PAULO","LABORATÓRIOS","SAO PAULO DEMAIS CIDADES","RIBEIRAO PRETO","LABORATORIO DE ANALISES BARACCHINI",null,null,null,null,"X","X","X","X"]
[622,"SAO PAULO","LABORATÓRIOS","SAO PAULO DEMAIS CIDADES","RIBEIRAO PRETO","UNIMAGEM SERVICOS MEDICOS",null,null,null,null,"X","X","X","X"]
[623,"SAO PAULO","LABORATÓRIOS","GRANDE SAO PAULO","RIO GRANDE DA SERRA","BIOLAB LABORATORIOS DE ANALISES CLINICAS","X","X","X","X","X","X","X","X"]
[624,"SAO PAULO","LABORATÓRIOS","SOROCABA E REGIAO","SALTO","CENTRO MEDICO PIO XII",null,"X","X","X","X","X","X","X"]
[625,"SAO PAULO","LABORATÓRIOS","SOROCABA E REGIAO","SALTO","LABORATORIO CLINICO TRIANALISES",null,"X","X","X","X","X","X","X"]
[626,"SAO PAULO","LABORATÓRIOS","SOROCABA E REGIAO","SALTO DE PIRAPORA","CLINICA MEDICA ANTUNES & MARCHETTI SC","X","X","X","X","X","X","X","X"]
[627,"SAO PAULO","LABORATÓRIOS","SAO PAULO DEMAIS CIDADES","SANTA BARBARA D'OESTE","LABCLIN",null,null,"X","X","X","X","X","X"]
[628,"SAO PAULO","LABORATÓRIOS","GRANDE SAO PAULO","SANTA ISABEL","CLIN DE FISIOTERAPIA SANTA IZABEL S/C LTDA",null,"X","X","X","X","X","X","X"]
[629,"SAO PAULO","LABORATÓRIOS","SAO PAULO ABC / SANTO ANDRE","SANTO ANDRE","INSTITUTO VIDA DE FISIOTERAPIA","X","X","X","X","X","X","X","X"]
[630,"SAO PAULO","LABORATÓRIOS","SAO PAULO ABC / SANTO ANDRE","SANTO ANDRE","MULTINI FISIOTERAPIA","X","X","X","X","X","X","X","X"]
[631,"SAO PAULO","LABORATÓRIOS","SAO PAULO ABC / SANTO ANDRE","SANTO ANDRE","CLINICE CENTRO DE DIAG LTDA","X","X","X","X","X","X","X","X"]
[632,"SAO PAULO","LABORATÓRIOS","SAO PAULO ABC / SANTO ANDRE","SANTO ANDRE","LAB PADRAO DE ANAL CLINS SC LTDA","X","X","X","X","X","X","X","X"]
[633,"SAO PAULO","LABORATÓRIOS","SAO PAULO ABC / SANTO ANDRE","SANTO ANDRE","LAVOISIER MEDICINA DIAGNOSTICA",null,null,"X","X","X","X","X","X"]
[634,"SAO PAULO","LABORATÓRIOS","SAO PAULO ABC / SANTO ANDRE","SANTO ANDRE","LABORATORIO FLEMING",null,null,"X","X","X","X","X","X"]
[635,"SAO PAULO","LABORATÓRIOS","SAO PAULO ABC / SANTO ANDRE","SANTO ANDRE","LABORATORIO HORMON",null,null,null,"X","X","X","X","X"]
[636,"SAO PAULO","LABORATÓRIOS","SAO PAULO ABC / SANTO ANDRE","SANTO ANDRE","LABORATORIO LABOR CLIN LTDA",null,null,null,"X","X","X","X","X"]
[637,"SAO PAULO","LABORATÓRIOS","SAO PAULO ABC / SANTO ANDRE","SANTO ANDRE","TECNOLAB",null,null,null,"X","X","X","X","X"]
[638,"SAO PAULO","LABORATÓRIOS","SAO PAULO ABC / SANTO ANDRE","SANTO ANDRE","A + MEDICINA DIAGNOSTICA",null,null,null,"X","X","X","X","X"]
[639,"SAO PAULO","LABORATÓRIOS","SAO PAULO ABC / SANTO ANDRE","SANTO ANDRE","DELBONI AURIEMO MED DIAG",null,null,null,null,null,"X","X","X"]
[640,"SAO PAULO","LABORATÓRIOS","SAO PAULO ABC / SANTO ANDRE","SANTO ANDRE","CLUB D A",null,null,null,null,null,"X","X","X"]
[641,"SAO PAULO","LABORATÓRIOS","SAO PAULO ABC / SANTO ANDRE","SANTO ANDRE","FLEURY",null,null,null,null,null,null,null,"X"]
[{"$f":"ROW()-1","v":642},"SAO PAULO","LABORATÓRIOS","BAIXADA SANTISTA","SANTOS","ANALISES CLINICAS CELLULA MATER","X","X","X","X","X","X","X","X"]
[643,"SAO PAULO","LABORATÓRIOS","BAIXADA SANTISTA","SANTOS","CLIN RADIOL.DR.MOURA GOGLIANO","X","X","X","X","X","X","X","X"]
[644,"SAO PAULO","LABORATÓRIOS","BAIXADA SANTISTA","SANTOS","LAB DE ANAL CLINICAS GONZAGA","X","X","X","X","X","X","X","X"]
[645,"SAO PAULO","LABORATÓRIOS","BAIXADA SANTISTA","SANTOS","ANAL CLINS CELLULA MATER LTDA","X","X","X","X","X","X","X","X"]
[646,"SAO PAULO","LABORATÓRIOS","BAIXADA SANTISTA","SANTOS","BIOLAB LABORATORIO DE ANALISES CLINICAS",null,null,"X","X","X","X","X","X"]
[647,"SAO PAULO","LABORATÓRIOS","BAIXADA SANTISTA","SANTOS","HEMOCLINICA DE SANTOS",null,null,"X","X","X","X","X","X"]
[648,"SAO PAULO","LABORATÓRIOS","BAIXADA SANTISTA","SANTOS","INSTITUTO DE METODOS EM CARDIOLOGIA",null,null,"X","X","X","X","X","X"]
[649,"SAO PAULO","LABORATÓRIOS","BAIXADA SANTISTA","SANTOS","CENTRO DE REAB E HIDRO SAINT RAPHAE ME",null,null,null,"X","X","X","X","X"]
[650,"SAO PAULO","LABORATÓRIOS","BAIXADA SANTISTA","SANTOS","INST DE ANALISES CLINICAS DE SANTOS",null,null,null,"X","X","X","X","X"]
[651,"SAO PAULO","LABORATÓRIOS","BAIXADA SANTISTA","SANTOS","LAB ANAL CLIN DR.LEAO DE MOURA",null,null,null,"X","X","X","X","X"]
[652,"SAO PAULO","LABORATÓRIOS","BAIXADA SANTISTA","SANTOS","LAB CLIN HELIO R BOTURAO",null,null,null,"X","X","X","X","X"]
[653,"SAO PAULO","LABORATÓRIOS","BAIXADA SANTISTA","SANTOS","LABORATORIO PASTEUR DE ANALISES CLINICAS",null,null,null,"X","X","X","X","X"]
[654,"SAO PAULO","LABORATÓRIOS","BAIXADA SANTISTA","SANTOS","DELBONI AURIEMO MED DIAG",null,null,null,null,null,"X","X","X"]
[655,"SAO PAULO","LABORATÓRIOS","BAIXADA SANTISTA","SANTOS","CLUB D A",null,null,null,null,null,"X","X","X"]
[656,"SAO PAULO","LABORATÓRIOS","SAO PAULO ABC / SAO BERNARDO DO CAMPO","SAO BERNARDO DO CAMPO","NOTRELABS SAO BERNARDO 6","X","X","X","X","X","X","X","X"]
[657,"SAO PAULO","LABORATÓRIOS","SAO PAULO ABC / SAO BERNARDO DO CAMPO","SAO BERNARDO DO CAMPO","BIOCENTER LAB CLIN LTDA","X","X","X","X","X","X","X","X"]
[658,"SAO PAULO","LABORATÓRIOS","SAO PAULO ABC / SAO BERNARDO DO CAMPO","SAO BERNARDO DO CAMPO","IMAVE INST DE MED AVANC.DA VISAO E EST RUDGE RAMOS","X","X","X","X","X","X","X","X"]
[659,"SAO PAULO","LABORATÓRIOS","SAO PAULO ABC / SAO BERNARDO DO CAMPO","SAO BERNARDO DO CAMPO","LAB HORMON LAB ESP EM DOSAGENS HORMONAIS","X","X","X","X","X","X","X","X"]
[660,"SAO PAULO","LABORATÓRIOS","SAO PAULO ABC / SAO BERNARDO DO CAMPO","SAO BERNARDO DO CAMPO","LUMEN CENTRO DE DIAGNOSTICO","X","X","X","X","X","X","X","X"]
[661,"SAO PAULO","LABORATÓRIOS","SAO PAULO ABC / SAO BERNARDO DO CAMPO","SAO BERNARDO DO CAMPO","ULTRA DIAGNOSTICOS","X","X","X","X","X","X","X","X"]
[662,"SAO PAULO","LABORATÓRIOS","SAO PAULO ABC / SAO BERNARDO DO CAMPO","SAO BERNARDO DO CAMPO","TECNOLAB",null,"X","X","X","X","X","X","X"]
[663,"SAO PAULO","LABORATÓRIOS","SAO PAULO ABC / SAO BERNARDO DO CAMPO","SAO BERNARDO DO CAMPO","BIO FEEDBACK CENTRO DE FISIOTERAPIA",null,null,"X","X","X","X","X","X"]
[664,"SAO PAULO","LABORATÓRIOS","SAO PAULO ABC / SAO BERNARDO DO CAMPO","SAO BERNARDO DO CAMPO","LAVOISIER MEDICINA DIAGNOSTICA",null,null,"X","X","X","X","X","X"]
[665,"SAO PAULO","LABORATÓRIOS","SAO PAULO ABC / SAO BERNARDO DO CAMPO","SAO BERNARDO DO CAMPO","INST DE RADIOLOGIA SAO BERNARDO",null,null,"X","X","X","X","X","X"]
[666,"SAO PAULO","LABORATÓRIOS","SAO PAULO ABC / SAO BERNARDO DO CAMPO","SAO BERNARDO DO CAMPO","NEOLABOR LAB MED",null,null,"X","X","X","X","X","X"]
[667,"SAO PAULO","LABORATÓRIOS","SAO PAULO ABC / SAO BERNARDO DO CAMPO","SAO BERNARDO DO CAMPO","ENDOSCOP MEDICINA ESPECIALIZADA",null,null,null,"X","X","X","X","X"]
[668,"SAO PAULO","LABORATÓRIOS","SAO PAULO ABC / SAO BERNARDO DO CAMPO","SAO BERNARDO DO CAMPO","ECOIMAGEM MEDICINA DIAGNOSTICA",null,null,null,null,"X","X","X","X"]
[669,"SAO PAULO","LABORATÓRIOS","SAO PAULO ABC / SAO BERNARDO DO CAMPO","SAO BERNARDO DO CAMPO","DELBONI AURIEMO MED DIAG",null,null,null,null,null,"X","X","X"]
[670,"SAO PAULO","LABORATÓRIOS","SAO PAULO ABC / SAO BERNARDO DO CAMPO","SAO BERNARDO DO CAMPO","CLUB D A",null,null,null,null,null,"X","X","X"]
[671,"SAO PAULO","LABORATÓRIOS","SAO PAULO ABC / SAO CAETANO DO SUL","SAO CAETANO DO SUL","ANDREAZZA MEDICINA DIAG","X","X","X","X","X","X","X","X"]
[672,"SAO PAULO","LABORATÓRIOS","SAO PAULO ABC / SAO CAETANO DO SUL","SAO CAETANO DO SUL","LAB MODELO DE PAT CLINS SC LTDA","X","X","X","X","X","X","X","X"]
[673,"SAO PAULO","LABORATÓRIOS","SAO PAULO ABC / SAO CAETANO DO SUL","SAO CAETANO DO SUL","LAVOISIER MEDICINA DIAGNOSTICA",null,null,"X","X","X","X","X","X"]
[674,"SAO PAULO","LABORATÓRIOS","SAO PAULO ABC / SAO CAETANO DO SUL","SAO CAETANO DO SUL","LABORATORIO FLEMING",null,null,"X","X","X","X","X","X"]
[675,"SAO PAULO","LABORATÓRIOS","SAO PAULO ABC / SAO CAETANO DO SUL","SAO CAETANO DO SUL","ULTRASSONOGRAFIA MEDICA",null,null,"X","X","X","X","X","X"]
[676,"SAO PAULO","LABORATÓRIOS","SAO PAULO ABC / SAO CAETANO DO SUL","SAO CAETANO DO SUL","CIMED CENTRO INTEGRADO DE MED E DIAG",null,null,null,"X","X","X","X","X"]
[677,"SAO PAULO","LABORATÓRIOS","SAO PAULO ABC / SAO CAETANO DO SUL","SAO CAETANO DO SUL","MEDICAL LAB DE ANAL CLIN SC LTDA",null,null,null,"X","X","X","X","X"]
[678,"SAO PAULO","LABORATÓRIOS","SAO PAULO ABC / SAO CAETANO DO SUL","SAO CAETANO DO SUL","ROCHA LIMA ANALISES CLINICAS E VACINACOES",null,null,null,null,"X","X","X","X"]
[679,"SAO PAULO","LABORATÓRIOS","SAO PAULO ABC / SAO CAETANO DO SUL","SAO CAETANO DO SUL","CLINICA CRIAVIVA",null,null,null,null,null,"X","X","X"]
[680,"SAO PAULO","LABORATÓRIOS","SAO PAULO DEMAIS CIDADES","SAO JOAO DA BOA VISTA","LABORATORIO SAO JOAO",null,null,null,null,"X","X","X","X"]
[681,"SAO PAULO","LABORATÓRIOS","SAO PAULO DEMAIS CIDADES","SAO JOSE DO RIO PRETO","CAMF",null,null,null,null,"X","X","X","X"]
[682,"SAO PAULO","LABORATÓRIOS","SAO PAULO DEMAIS CIDADES","SAO JOSE DO RIO PRETO","INSTITUTO RIO PRETO DE MEDICINA NUCLEAR",null,null,null,null,"X","X","X","X"]
[683,"SAO PAULO","LABORATÓRIOS","SAO PAULO DEMAIS CIDADES","SAO JOSE DO RIO PRETO","LABORCLIN LABORATORIO DE ANALISES CLINICAS",null,null,null,null,"X","X","X","X"]
[684,"SAO PAULO","LABORATÓRIOS","SAO PAULO DEMAIS CIDADES","SAO JOSE DO RIO PRETO","MAMA IMAGEM",null,null,null,null,"X","X","X","X"]
[685,"SAO PAULO","LABORATÓRIOS","SAO PAULO DEMAIS CIDADES","SAO JOSE DO RIO PRETO","RESSONANCIA MAGNETICA RIO PRETO",null,null,null,null,"X","X","X","X"]
[686,"SAO PAULO","LABORATÓRIOS","SAO PAULO DEMAIS CIDADES","SAO JOSE DO RIO PRETO","LABORATORIO DR. TAJARA",null,null,null,null,"X","X","X","X"]
[687,"SAO PAULO","LABORATÓRIOS","SAO PAULO DEMAIS CIDADES","SAO JOSE DOS CAMPOS","CIPAX MEDICINA DIAGNOSTICA",null,null,"X","X","X","X","X","X"]
[688,"SAO PAULO","LABORATÓRIOS","SAO PAULO DEMAIS CIDADES","SAO JOSE DOS CAMPOS","DIGEN IMAGE DIAGNOSTICOS MEDICOS",null,null,"X","X","X","X","X","X"]
[689,"SAO PAULO","LABORATÓRIOS","SAO PAULO DEMAIS CIDADES","SAO JOSE DOS CAMPOS","INSTITUTO INEFRO",null,null,"X","X","X","X","X","X"]
[690,"SAO PAULO","LABORATÓRIOS","SAO PAULO DEMAIS CIDADES","SAO JOSE DOS CAMPOS","INTEGRA ACAO CLINICA DE TERAPIAS INTEGRADAS",null,null,"X","X","X","X","X","X"]
[691,"SAO PAULO","LABORATÓRIOS","SAO PAULO DEMAIS CIDADES","SAO JOSE DOS CAMPOS","L G ROMEIRO & MIRANDA SERVICOS MEDICOS",null,null,"X","X","X","X","X","X"]
[692,"SAO PAULO","LABORATÓRIOS","SAO PAULO DEMAIS CIDADES","SAO JOSE DOS CAMPOS","MEDSEL CLINICA MEDICA",null,null,"X","X","X","X","X","X"]
[693,"SAO PAULO","LABORATÓRIOS","SAO PAULO DEMAIS CIDADES","SAO JOSE DOS CAMPOS","PLANI DIAGNOSTICOS MEDICOS",null,null,"X","X","X","X","X","X"]
[694,"SAO PAULO","LABORATÓRIOS","SAO PAULO DEMAIS CIDADES","SAO JOSE DOS CAMPOS","QUAGLIA LABOTORIO DE ANALISES CLINICAS SC",null,null,"X","X","X","X","X","X"]
[695,"SAO PAULO","LABORATÓRIOS","SAO PAULO DEMAIS CIDADES","SAO JOSE DOS CAMPOS","TOMOVALE CENTRO DE DIAGNOSTICO POR IMAGEM",null,null,"X","X","X","X","X","X"]
[696,"SAO PAULO","LABORATÓRIOS","SAO PAULO DEMAIS CIDADES","SAO JOSE DOS CAMPOS","VALECLIN LABORATORIO DE ANALISES CLINICAS",null,null,"X","X","X","X","X","X"]
[697,"SAO PAULO","LABORATÓRIOS","SAO PAULO DEMAIS CIDADES","SAO JOSE DOS CAMPOS","CENTRO OCUP DE TREINAMENTO EDOUARD SEGUIN",null,null,null,"X","X","X","X","X"]
[698,"SAO PAULO","LABORATÓRIOS","SAO PAULO DEMAIS CIDADES","SAO JOSE DOS CAMPOS","JANAINA BORGES DIOGENES",null,null,null,"X","X","X","X","X"]
[699,"SAO PAULO","LABORATÓRIOS","SAO PAULO DEMAIS CIDADES","SAO JOSE DOS CAMPOS","LABORATORIO DE ANAL CLIN OSWALDO CRUZ",null,null,null,"X","X","X","X","X"]
[700,"SAO PAULO","LABORATÓRIOS","SAO PAULO DEMAIS CIDADES","SAO JOSE DOS CAMPOS","FISIOCLIN",null,null,null,null,"X","X","X","X"]
[701,"SAO PAULO","LABORATÓRIOS","SAO PAULO DEMAIS CIDADES","SAO JOSE DOS CAMPOS","UTR LAB ANALISES CLINICAS",null,null,null,null,"X","X","X","X"]
[702,"SAO PAULO","LABORATÓRIOS","SAO PAULO DEMAIS CIDADES","SAO PEDRO","LABORATORIO DE ANALISES CLINICAS PREVILAB",null,null,null,null,"X","X","X","X"]
[703,"SAO PAULO","LABORATÓRIOS","SAO PAULO DEMAIS CIDADES","SAO ROQUE","INSTITUTO SAO LUCAS SR",null,"X","X","X","X","X","X","X"]
[704,"SAO PAULO","LABORATÓRIOS","SAO PAULO DEMAIS CIDADES","SAO ROQUE","PRECISION CENTRO DE DIAGNOSTICOS SC",null,"X","X","X","X","X","X","X"]
[705,"SAO PAULO","LABORATÓRIOS","SAO PAULO DEMAIS CIDADES","SAO SEBASTIAO","ITAPEMA LABORATORIO DE ANALISES CLINICAS",null,null,"X","X","X","X","X","X"]
[{"$f":"ROW()-1","v":706},"SAO PAULO","LABORATÓRIOS","BAIXADA SANTISTA","SAO VICENTE","CLIN DE ORT E FISIOT PADRE ANCHIETA S C",null,null,"X","X","X","X","X","X"]
[707,"SAO PAULO","LABORATÓRIOS","BAIXADA SANTISTA","SAO VICENTE","INSTITUTO DE ANALISES CLINICAS DE SANTOS",null,null,null,"X","X","X","X","X"]
[708,"SAO PAULO","LABORATÓRIOS","BAIXADA SANTISTA","SAO VICENTE","LABORATORIO DE ANALISES CLINICAS DR LEAO DE MOURA",null,null,null,"X","X","X","X","X"]
[709,"SAO PAULO","LABORATÓRIOS","BAIXADA SANTISTA","SAO VICENTE","LABORATORIO PASTEUR DE ANALISES CLINICAS",null,null,null,"X","X","X","X","X"]
[710,"SAO PAULO","LABORATÓRIOS","SOROCABA E REGIAO","SOROCABA","IDS ALPHAMED DIAGS","X","X","X","X","X","X","X","X"]
[711,"SAO PAULO","LABORATÓRIOS","SOROCABA E REGIAO","SOROCABA","DIAGSOM ULTRASSONOGRAFIA SC","X","X","X","X","X","X","X","X"]
[712,"SAO PAULO","LABORATÓRIOS","SOROCABA E REGIAO","SOROCABA","VIDA DIAG LAB CLIN","X","X","X","X","X","X","X","X"]
[713,"SAO PAULO","LABORATÓRIOS","SOROCABA E REGIAO","SOROCABA","CENTRO DE DIAGNOSTICO SOROCABA SC","X","X","X","X","X","X","X","X"]
[714,"SAO PAULO","LABORATÓRIOS","SOROCABA E REGIAO","SOROCABA","CENTRO MED IMAGEM","X","X","X","X","X","X","X","X"]
[715,"SAO PAULO","LABORATÓRIOS","SOROCABA E REGIAO","SOROCABA","CLINICOR",null,"X","X","X","X","X","X","X"]
[716,"SAO PAULO","LABORATÓRIOS","SOROCABA E REGIAO","SOROCABA","SERVLAB",null,null,null,"X","X","X","X","X"]
[717,"SAO PAULO","LABORATÓRIOS","SOROCABA E REGIAO","SOROCABA","GASTROCLINICA SOROCABA",null,null,null,null,"X","X","X","X"]
[718,"SAO PAULO","LABORATÓRIOS","CAMPINAS E REGIAO","SUMARE","LABORATORIO ALPHA DE ANALISES CLINICAS","X","X","X","X","X","X","X","X"]
[719,"SAO PAULO","LABORATÓRIOS","CAMPINAS E REGIAO","SUMARE","LABORATORIO SAO PAULO","X","X","X","X","X","X","X","X"]
[720,"SAO PAULO","LABORATÓRIOS","CAMPINAS E REGIAO","SUMARE","LAB DE ANAL CLIN LABCLIN SC",null,null,"X","X","X","X","X","X"]
[721,"SAO PAULO","LABORATÓRIOS","CAMPINAS E REGIAO","SUMARE","PRO COR EXAMES DO CORACAO",null,null,"X","X","X","X","X","X"]
[722,"SAO PAULO","LABORATÓRIOS","CAMPINAS E REGIAO","SUMARE","CLINICA ESPECIALIZADA SUMARE",null,null,null,null,"X","X","X","X"]
[723,"SAO PAULO","LABORATÓRIOS","GRANDE SAO PAULO","SUZANO","ANALISES CLINICAS SAO FRANCISCO","X","X","X","X","X","X","X","X"]
[724,"SAO PAULO","LABORATÓRIOS","GRANDE SAO PAULO","SUZANO","MEDCARE SUZANO SERVICOS MEDICOS","X","X","X","X","X","X","X","X"]
[725,"SAO PAULO","LABORATÓRIOS","GRANDE SAO PAULO","SUZANO","OFTALMOCLINICA","X","X","X","X","X","X","X","X"]
[726,"SAO PAULO","LABORATÓRIOS","GRANDE SAO PAULO","SUZANO","CEDECO CENTRO DE ESPEC. EM DIAGNOSTICO",null,"X","X","X","X","X","X","X"]
[727,"SAO PAULO","LABORATÓRIOS","GRANDE SAO PAULO","SUZANO","GARDIENCOR CLINICA MEDICA",null,null,"X","X","X","X","X","X"]
[728,"SAO PAULO","LABORATÓRIOS","GRANDE SAO PAULO","SUZANO","CLINICA DE ESPECIALIDADE SALZGEBER & SANTOS MOGI",null,null,null,"X","X","X","X","X"]
[729,"SAO PAULO","LABORATÓRIOS","GRANDE SAO PAULO","SUZANO","CLINICA SANTA CATARINA",null,null,null,"X","X","X","X","X"]
[730,"SAO PAULO","LABORATÓRIOS","GRANDE SAO PAULO","SUZANO","UNIDADE MOGIANA DE DIAGNOSTICO POR IMAGEM",null,null,null,"X","X","X","X","X"]
[731,"SAO PAULO","LABORATÓRIOS","GRANDE SAO PAULO","SUZANO","LAB DE ANAL CLINS DR PEDRO BONELLI S A",null,null,null,null,"X","X","X","X"]
[732,"SAO PAULO","LABORATÓRIOS","GRANDE SAO PAULO","TABOAO DA SERRA","CENTERCLIN LABORATORIO DE ANAL CLIN",null,"X","X","X","X","X","X","X"]
[733,"SAO PAULO","LABORATÓRIOS","GRANDE SAO PAULO","TABOAO DA SERRA","LABORATORIO DE ANALISES SAO VICENTE",null,null,null,"X","X","X","X","X"]
[734,"SAO PAULO","LABORATÓRIOS","SOROCABA E REGIAO","TATUI","LABORATORIO DE ANALISES CLINICAS CRUZEIRO","X","X","X","X","X","X","X","X"]
[735,"SAO PAULO","LABORATÓRIOS","SOROCABA E REGIAO","TATUI","TATUI IMAGEM MEDICINA E DIAGNOSTICO","X","X","X","X","X","X","X","X"]
[736,"SAO PAULO","LABORATÓRIOS","SAO PAULO DEMAIS CIDADES","TAUBATE","AMARAL & HAGA BRINQUEDOTECA E PREESCOLA",null,null,"X","X","X","X","X","X"]
[737,"SAO PAULO","LABORATÓRIOS","SAO PAULO DEMAIS CIDADES","TAUBATE","CENTRO MEDICO NG SS",null,null,"X","X","X","X","X","X"]
[738,"SAO PAULO","LABORATÓRIOS","SAO PAULO DEMAIS CIDADES","TAUBATE","CLINICA CENDOR",null,null,"X","X","X","X","X","X"]
[739,"SAO PAULO","LABORATÓRIOS","SAO PAULO DEMAIS CIDADES","TAUBATE","CLINICA DIA ABRACE VIDA",null,null,"X","X","X","X","X","X"]
[740,"SAO PAULO","LABORATÓRIOS","SAO PAULO DEMAIS CIDADES","TAUBATE","DUCORDIS ASSISTENCIA MEDICA SC",null,null,"X","X","X","X","X","X"]
[741,"SAO PAULO","LABORATÓRIOS","SAO PAULO DEMAIS CIDADES","TAUBATE","INSTITUTO DE NEFROLOGIA DE TAUBATE",null,null,"X","X","X","X","X","X"]
[742,"SAO PAULO","LABORATÓRIOS","SAO PAULO DEMAIS CIDADES","TAUBATE","LAB DE ANALISES CLINICAS SAO LUCAS SS",null,null,"X","X","X","X","X","X"]
[743,"SAO PAULO","LABORATÓRIOS","SAO PAULO DEMAIS CIDADES","TAUBATE","MAISNOVE MEDICINA DIAGNOSTICA",null,null,"X","X","X","X","X","X"]
[744,"SAO PAULO","LABORATÓRIOS","SAO PAULO DEMAIS CIDADES","TAUBATE","PERSONALCLIN PRESTACAO DE SERVICOS DE SAUDE",null,null,"X","X","X","X","X","X"]
[745,"SAO PAULO","LABORATÓRIOS","SAO PAULO DEMAIS CIDADES","TAUBATE","PRO IMAGEM EXAMES COMPLEMENTARES",null,null,"X","X","X","X","X","X"]
[746,"SAO PAULO","LABORATÓRIOS","SAO PAULO DEMAIS CIDADES","TAUBATE","BIOCENTER LAB CLIN LTDA",null,null,null,"X","X","X","X","X"]
[747,"SAO PAULO","LABORATÓRIOS","SAO PAULO DEMAIS CIDADES","TAUBATE","LABORATORIO DE ANAL CLIN OSWALDO CRUZ",null,null,null,"X","X","X","X","X"]
[748,"SAO PAULO","LABORATÓRIOS","SAO PAULO DEMAIS CIDADES","TAUBATE","PREVENCOR CENTRO DE AVAL CARD",null,null,null,null,"X","X","X","X"]
[749,"SAO PAULO","LABORATÓRIOS","SAO PAULO DEMAIS CIDADES","TIETE","LABORATORIO DE ANALISES CLINICAS PREVILAB",null,null,null,null,"X","X","X","X"]
[750,"SAO PAULO","LABORATÓRIOS","SAO PAULO DEMAIS CIDADES","UBATUBA","FAT LAB LABORATORIO DE ANALISES CLINICAS",null,null,"X","X","X","X","X","X"]
[751,"SAO PAULO","LABORATÓRIOS","CAMPINAS E REGIAO","VALINHOS","CENTRO RADIOLOGICO VALINHOS","X","X","X","X","X","X","X","X"]
[752,"SAO PAULO","LABORATÓRIOS","CAMPINAS E REGIAO","VALINHOS","CLINICA CONCON","X","X","X","X","X","X","X","X"]
[753,"SAO PAULO","LABORATÓRIOS","CAMPINAS E REGIAO","VALINHOS","FENIX LABORATORIO DE ANALISES CLINICAS",null,null,null,null,"X","X","X","X"]
[754,"SAO PAULO","LABORATÓRIOS","GRANDE SAO PAULO","VARGEM GRANDE PAULISTA","SANTA CLARA CENTRO DE DIAGNOSTICOS",null,null,null,null,"X","X","X","X"]
[755,"SAO PAULO","LABORATÓRIOS","JUNDIAI E REGIAO","VARZEA PAULISTA","CLINICA DE REABILITACAO VARZEA PAULISTA",null,null,null,null,"X","X","X","X"]
[756,"SAO PAULO","LABORATÓRIOS","JUNDIAI E REGIAO","VINHEDO","C.M.L.CENTRO MEDICO LABORATORIAL","X","X","X","X","X","X","X","X"]
[757,"SAO PAULO","LABORATÓRIOS","JUNDIAI E REGIAO","VINHEDO","CLINICA DE FISIOTERAPIA FISIO ACAO","X","X","X","X","X","X","X","X"]
[758,"SAO PAULO","LABORATÓRIOS","JUNDIAI E REGIAO","VINHEDO","FISIOCLINICA VINHEDO",null,null,null,"X","X","X","X","X"]
[759,"SAO PAULO","LABORATÓRIOS","JUNDIAI E REGIAO","VINHEDO","BIOLABOR DE ANALISES CLINICAS",null,null,null,null,"X","X","X","X"]

{"sheet":"Rel_03","index":9,"n_rows":334,"n_cols":15,"rows_kept":334,"cut":false,"hidden":false,"merged":[]}
[]
[]
[]
[]
[]
[]
[null,"ID","REDE","REGIÃO","CIDADE","NOME FANTASIA",{"$f":"Base_RJ!G1","v":"SMART 200"},{"$f":"Base_RJ!H1","v":"SMART 300"},{"$f":"Base_RJ!I1","v":"SMART 400"},{"$f":"Base_RJ!J1","v":"SMART 500"},{"$f":"Base_RJ!K1","v":"ADVANCE 600"},{"$f":"Base_RJ!L1","v":"ADVANCE 700"},{"$f":"Base_RJ!M1","v":"PREMIUM 900"},{"$f":"Base_RJ!N1","v":"PREMIUM 900 CARE"},{"$f":"Base_RJ!O1","v":"INFINITY"}]
[null,1,"HOSPITAIS","RIO DE JANEIRO CAPITAL","RIO DE JANEIRO","CLINICA DA GAVEA S A","H","H","H","H","H","H","H","H","H"]
[null,2,"HOSPITAIS","RIO DE JANEIRO CAPITAL","RIO DE JANEIRO","HOSPITAL SAMCI ANDARAI","H","H","H","H","H","H","H","H","H"]
[null,3,"HOSPITAIS","RIO DE JANEIRO CAPITAL","RIO DE JANEIRO","CLINICA MEDICA AREIA BRANCA","H/M/PS","H/M/PS","H/M/PS","H/M/PS","H/M/PS","H/M/PS","H/M/PS","H/M/PS","H/M/PS"]
[null,4,"HOSPITAIS","RIO DE JANEIRO CAPITAL","RIO DE JANEIRO","CEMERU - AMESC ASSOCIACAO MEDICA ESPIRITA CRISTA","H/M/PS","PA","PA","PA","H/M/PS","H/M/PS","H/M/PS","H/M/PS","H/M/PS"]
[null,5,"HOSPITAIS","RIO DE JANEIRO CAPITAL","RIO DE JANEIRO","ASSISTENCIA MEDICA PEDIATRICA DE URGENCIA - AMIU","H/PS","H/M/PS","H/M/PS","H/M/PS","H/M/PS","H/M/PS","H/M/PS","H/M/PS","H/M/PS"]
[null,6,"HOSPITAIS","RIO DE JANEIRO CAPITAL","RIO DE JANEIRO","HOSPITAL QUALI IPANEMA","H/PS","H/M/PS","H/M/PS","H/M/PS","H/M/PS","H/M/PS","H/M/PS","H/M/PS","H/M/PS"]
[null,7,"HOSPITAIS","RIO DE JANEIRO CAPITAL","RIO DE JANEIRO","C SAUDE SAO BENTO (C SAUDE ROSA BARCA )","H/PS","H/PS","H/PS","H/PS","H/PS","H/PS","H/PS","H/PS","H/PS"]
[null,8,"HOSPITAIS","RIO DE JANEIRO CAPITAL","RIO DE JANEIRO","HOSPITAL RIO MAR","H/PS","H/PS","H/PS","H/PS","H/PS","H/PS","H/PS","H/PS","H/PS"]
[null,9,"HOSPITAIS","RIO DE JANEIRO CAPITAL","RIO DE JANEIRO","CLINICA CRISTO REI","H/PS","H/PS","H/PS","H/PS","H/PS","H/PS","H/PS","H/PS","H/PS"]
[null,10,"HOSPITAIS","RIO DE JANEIRO CAPITAL","RIO DE JANEIRO","INSTITUTO DE OFTALMOLOGIA DO RIO DE JANEIRO","H/PS","H/PS","H/PS","H/PS","H/PS","H/PS","H/PS","H/PS","H/PS"]
[null,11,"HOSPITAIS","RIO DE JANEIRO CAPITAL","RIO DE JANEIRO","HOSPITAL SAMCI TIJUCA","H/PS","PS","PS","PS","PS","PS","PS","PS","PS"]
[null,12,"HOSPITAIS","RIO DE JANEIRO CAPITAL","RIO DE JANEIRO","CLINICA DE REPOUSO SANTA ALICE","-","H","H","H","H","H","H","H","H"]
[null,13,"HOSPITAIS","RIO DE JANEIRO CAPITAL","RIO DE JANEIRO","RIO DAY HOSPITAL","-","H","H","H","H","H","H","H","H"]
[null,14,"HOSPITAIS","RIO DE JANEIRO CAPITAL","RIO DE JANEIRO","CLINICA CIRURGICA SANTA BARBARA","-","H","H","H","H/M/PS","H/M/PS","H/M/PS","H/M/PS","H/M/PS"]
[null,15,"HOSPITAIS","RIO DE JANEIRO CAPITAL","RIO DE JANEIRO","CASA DE SAUDE GRANDE RIO","-","H","H","H","H/PS","H/PS","H/PS","H/PS","H/PS"]
[null,16,"HOSPITAIS","RIO DE JANEIRO CAPITAL","RIO DE JANEIRO","CLINICA SAO CARLOS","-","H","H","H","H/PS","H/PS","H/PS","H/PS","H/PS"]
[null,17,"HOSPITAIS","RIO DE JANEIRO CAPITAL","RIO DE JANEIRO","HOSPITAL ESPANHOL","-","H","H","H","H/PS","H/PS","H/PS","H/PS","H/PS"]
[null,18,"HOSPITAIS","RIO DE JANEIRO CAPITAL","RIO DE JANEIRO","PROCOR PRONTO SOCORRO CLINICO CARDIOLOGICO","-","H","H","H","H/PS","H/PS","H/PS","H/PS","H/PS"]
[null,19,"HOSPITAIS","RIO DE JANEIRO CAPITAL","RIO DE JANEIRO","PRONTOBABY","-","H","H","H","H/PS","H/PS","H/PS","H/PS","H/PS"]
[null,20,"HOSPITAIS","RIO DE JANEIRO CAPITAL","RIO DE JANEIRO","OBRA PORTUGUESA DE ASSISTENCIA","-","H/M/PS","H/M/PS","H/M/PS","H/M/PS","H/M/PS","H/M/PS","H/M/PS","H/M/PS"]
[null,21,"HOSPITAIS","RIO DE JANEIRO CAPITAL","RIO DE JANEIRO","ASSOCIACAO DO HOSP EVANGELICO DO RJ","-","H/PS","H/PS","H/PS","H/PS","H/PS","H/PS","H/PS","H/PS"]
[null,22,"HOSPITAIS","RIO DE JANEIRO CAPITAL","RIO DE JANEIRO","C.T.O. CLINICA TRAUMATO ORTOPEDICA","-","H/PS","H/PS","H/PS","H/PS","H/PS","H/PS","H/PS","H/PS"]
[null,23,"HOSPITAIS","RIO DE JANEIRO CAPITAL","RIO DE JANEIRO","FUND ARY FRAUZINO PARA PESQ E CONTROLE DO CANCER","-","H/PS","H/PS","H/PS","H/PS","H/PS","H/PS","H/PS","H/PS"]
[null,24,"HOSPITAIS","RIO DE JANEIRO CAPITAL","RIO DE JANEIRO","FUNDACAO BELA LOPES DE OLIVEIRA","-","H/PS","H/PS","H/PS","H/PS","H/PS","H/PS","H/PS","H/PS"]
[null,25,"HOSPITAIS","RIO DE JANEIRO CAPITAL","RIO DE JANEIRO","HOSPITAL DE CLINICAS DE JACAREPAGUA","-","H/PS","H/PS","H/PS","H/PS","H/PS","H/PS","H/PS","H/PS"]
[null,26,"HOSPITAIS","RIO DE JANEIRO CAPITAL","RIO DE JANEIRO","HOSPITAL ILHA DO GOVERNADOR","-","H/PS","H/PS","H/PS","H/PS","H/PS","H/PS","H/PS","H/PS"]
[null,27,"HOSPITAIS","RIO DE JANEIRO CAPITAL","RIO DE JANEIRO","HOSPITAL IRAJA - QUATRO AMIGOS","-","H/PS","H/PS","H/PS","H/PS","H/PS","H/PS","H/PS","H/PS"]
[null,28,"HOSPITAIS","RIO DE JANEIRO CAPITAL","RIO DE JANEIRO","HOSPITAL RIO LARANJEIRAS","-","H/PS","H/PS","H/PS","H/PS","H/PS","H/PS","H/PS","H/PS"]
[null,29,"HOSPITAIS","RIO DE JANEIRO CAPITAL","RIO DE JANEIRO","HOSPITAL TIJUTRAUMA","-","H/PS","H/PS","H/PS","H/PS","H/PS","H/PS","H/PS","H/PS"]
[null,30,"HOSPITAIS","RIO DE JANEIRO CAPITAL","RIO DE JANEIRO","HOSPITAL VITAL","-","H/PS","H/PS","H/PS","H/PS","H/PS","H/PS","H/PS","H/PS"]
[null,31,"HOSPITAIS","RIO DE JANEIRO CAPITAL","RIO DE JANEIRO","POLICLINICA DE BOTAFOGO","-","H/PS","H/PS","H/PS","H/PS","H/PS","H/PS","H/PS","H/PS"]
[null,32,"HOSPITAIS","RIO DE JANEIRO CAPITAL","RIO DE JANEIRO","PRONTO SOCORRO CLINICO PRONTOCOR - TIJUCA","-","H/PS","H/PS","H/PS","H/PS","H/PS","H/PS","H/PS","H/PS"]
[null,33,"HOSPITAIS","RIO DE JANEIRO CAPITAL","RIO DE JANEIRO","SEMIU - SERV DE ESPECS MEDS E INTERN DE URGENCIA","-","H/PS","H/PS","H/PS","H/PS","H/PS","H/PS","H/PS","H/PS"]
[null,34,"HOSPITAIS","RIO DE JANEIRO CAPITAL","RIO DE JANEIRO","CC ZONA OESTE","-","PA","PA","PA","PA","PA","PA","PA","PA"]
[null,35,"HOSPITAIS","RIO DE JANEIRO CAPITAL","RIO DE JANEIRO","PRO OFTALMO MICRO CIRURGIA OCULAR","-","-","H","H","H","H","H","H","H"]
[null,36,"HOSPITAIS","RIO DE JANEIRO CAPITAL","RIO DE JANEIRO","CLINICA PEDIATRICA DA BARRA","-","-","H","H","H/PS","H/PS","H/PS","H/PS","H/PS"]
[null,37,"HOSPITAIS","RIO DE JANEIRO CAPITAL","RIO DE JANEIRO","HOSPITAL CLIMEDE","-","-","H","H","H/PS","H/PS","H/PS","H/PS","H/PS"]
[null,38,"HOSPITAIS","RIO DE JANEIRO CAPITAL","RIO DE JANEIRO","CASA DE SAUDE NOSSA SENHORA DO CARMO","-","-","H/M/PS","H/M/PS","H/M/PS","H/M/PS","H/M/PS","H/M/PS","H/M/PS"]
[null,39,"HOSPITAIS","RIO DE JANEIRO CAPITAL","RIO DE JANEIRO","HOSP CASA SAO BERNARDO LTDA","-","-","H/PS","H/PS","H/PS","H/PS","H/PS","H/PS","H/PS"]
[null,40,"HOSPITAIS","RIO DE JANEIRO CAPITAL","RIO DE JANEIRO","CENTRO PEDIATRICO DA LAGOA","-","-","H/PS","H/PS","H/PS","H/PS","H/PS","H/PS","H/PS"]
[null,41,"HOSPITAIS","RIO DE JANEIRO CAPITAL","RIO DE JANEIRO","HOSPITAL DR. BALBINO","-","-","H/PS","H/PS","H/PS","H/PS","H/PS","H/PS","H/PS"]
[null,42,"HOSPITAIS","RIO DE JANEIRO CAPITAL","RIO DE JANEIRO","SOCIEDADE ITALIANA DE BENEFICENCIA E MUTUO SOCORRO","-","-","H/PS","H/PS","H/PS","H/PS","H/PS","H/PS","H/PS"]
[null,43,"HOSPITAIS","RIO DE JANEIRO CAPITAL","RIO DE JANEIRO","CASA DE SAUDE GRAJAU","-","-","-","H","H/PS","H/PS","H/PS","H/PS","H/PS"]
[null,44,"HOSPITAIS","RIO DE JANEIRO CAPITAL","RIO DE JANEIRO","CASA DE SAUDE SANTA LUCIA","-","-","-","H/M/PS","H/M/PS","H/M/PS","H/M/PS","H/M/PS","H/M/PS"]
[null,45,"HOSPITAIS","RIO DE JANEIRO CAPITAL","RIO DE JANEIRO","HOSPITAL BANGU","-","-","-","H/PS","H/M/PS","H/M/PS","H/M/PS","-","H/M/PS"]
[null,46,"HOSPITAIS","RIO DE JANEIRO CAPITAL","RIO DE JANEIRO","CASA DE PORTUGAL","-","-","-","H/PS","H/PS","H/PS","H/PS","H/PS","H/PS"]
[null,47,"HOSPITAIS","RIO DE JANEIRO CAPITAL","RIO DE JANEIRO","HOSPITAL DE CLINICAS SAO MATHEUS","-","-","-","H/PS","H/PS","H/PS","H/PS","H/PS","H/PS"]
[null,48,"HOSPITAIS","RIO DE JANEIRO CAPITAL","RIO DE JANEIRO","HOSPITAL ISRAELITA ALBERT SABIN","-","-","-","H/PS","H/PS","H/PS","H/PS","-","H/PS"]
[null,49,"HOSPITAIS","RIO DE JANEIRO CAPITAL","RIO DE JANEIRO","HOSPITAL SAO FRANCISCO NA PROVIDENCIA DE DEU","-","-","-","H/PS","H/PS","H/PS","H/PS","H/PS","H/PS"]
[null,50,"HOSPITAIS","RIO DE JANEIRO CAPITAL","RIO DE JANEIRO","CRIANCA 24HS ATEND INTEGR A CRIANCA E ADOLESC LTDA","-","-","-","PA","PA","PA","PA","PA","PA"]
[null,51,"HOSPITAIS","RIO DE JANEIRO CAPITAL","RIO DE JANEIRO","IBOL INSTITUTO BRASILEIRO DE OFTALMOLOGIA","-","-","-","PS","PS","PS","PS","PS","PS"]
[null,52,"HOSPITAIS","RIO DE JANEIRO CAPITAL","RIO DE JANEIRO","CALREN HOSPITAL DO CALCULO RENAL","-","-","-","-","H/PS","H/PS","H/PS","H/PS","H/PS"]
[null,53,"HOSPITAIS","RIO DE JANEIRO CAPITAL","RIO DE JANEIRO","CASA DE SAUDE PINHEIRO MACHADO","-","-","-","-","H/PS","H/PS","H/PS","H/PS","H/PS"]
[null,54,"HOSPITAIS","RIO DE JANEIRO CAPITAL","RIO DE JANEIRO","HOSP DE CLINICAS DR ALOAN","-","-","-","-","H/PS","H/PS","H/PS","H/PS","H/PS"]
[null,55,"HOSPITAIS","RIO DE JANEIRO CAPITAL","RIO DE JANEIRO","HOSPITAL MARIO KROEFF","-","-","-","-","H/PS","H/PS","H/PS","H/PS","H/PS"]
[null,56,"HOSPITAIS","RIO DE JANEIRO CAPITAL","RIO DE JANEIRO","HOSPITAL SAO LOURENCO","-","-","-","-","H/PS","H/PS","H/PS","H/PS","H/PS"]
[null,57,"HOSPITAIS","RIO DE JANEIRO CAPITAL","RIO DE JANEIRO","HOSPITAL SAO LUCAS","-","-","-","-","H/PS","H/PS","H/PS","H/PS","H/PS"]
[null,58,"HOSPITAIS","RIO DE JANEIRO CAPITAL","RIO DE JANEIRO","NORTECOR HOSPITAL DE CLINICAS","-","-","-","-","H/PS","H/PS","H/PS","H/PS","H/PS"]
[null,59,"HOSPITAIS","RIO DE JANEIRO CAPITAL","RIO DE JANEIRO","CLINICA BENEFICIENTE GUANABARA","-","-","-","-","PS","PS","PS","PS","PS"]
[null,60,"HOSPITAIS","RIO DE JANEIRO CAPITAL","RIO DE JANEIRO","CLIMES CLINICA MEDICA ESPECIALIZADA","-","-","-","-","-","H","H","H","H"]
[null,61,"HOSPITAIS","RIO DE JANEIRO CAPITAL","RIO DE JANEIRO","CLINS REUNIDAS SAO VICTOR S A","-","-","-","-","-","H","H","H","H"]
[null,62,"HOSPITAIS","RIO DE JANEIRO CAPITAL","RIO DE JANEIRO","DAY CLINIC RIO","-","-","-","-","-","H","H","H","H"]
[null,63,"HOSPITAIS","RIO DE JANEIRO CAPITAL","RIO DE JANEIRO","HOSPITAL DE OLHOS DO MEIER","-","-","-","-","-","H","H","H","H"]
[null,64,"HOSPITAIS","RIO DE JANEIRO CAPITAL","RIO DE JANEIRO","HOSPITAL DI CAMP","-","-","-","-","-","H","H","H","H"]
[null,65,"HOSPITAIS","RIO DE JANEIRO CAPITAL","RIO DE JANEIRO","INST MINNESOTA","-","-","-","-","-","H","H","H","H"]
[null,66,"HOSPITAIS","RIO DE JANEIRO CAPITAL","RIO DE JANEIRO","HOSPITAL PASTEUR","-","-","-","-","-","H/M/PS","H/M/PS","H/M/PS","H/M/PS"]
[null,67,"HOSPITAIS","RIO DE JANEIRO CAPITAL","RIO DE JANEIRO","CASA DE SAUDE SANTA THEREZINHA","-","-","-","-","-","H/PS","H/PS","H/PS","H/PS"]
[null,68,"HOSPITAIS","RIO DE JANEIRO CAPITAL","RIO DE JANEIRO","HOSPITAL ADVENTISTA SILVESTRE","-","-","-","-","-","H/PS","H/PS","H/PS","H/PS"]
[null,69,"HOSPITAIS","RIO DE JANEIRO CAPITAL","RIO DE JANEIRO","HOSPITAL DR BADIM","-","-","-","-","-","H/PS","H/PS","-","H/PS"]
[null,70,"HOSPITAIS","RIO DE JANEIRO CAPITAL","RIO DE JANEIRO","CASA DE SAUDE SAO JOSE","-","-","-","-","-","-","H/M/PS","H/M/PS","H/M/PS"]
[null,71,"HOSPITAIS","RIO DE JANEIRO CAPITAL","RIO DE JANEIRO","CLINICA PERINATAL LARANJEIRAS","-","-","-","-","-","-","H/M/PS","H/M/PS","H/M/PS"]
[null,72,"HOSPITAIS","RIO DE JANEIRO CAPITAL","RIO DE JANEIRO","HOSPITAL OESTE D'OR","-","-","-","-","-","-","H/M/PS","-","H/M/PS"]
[null,73,"HOSPITAIS","RIO DE JANEIRO CAPITAL","RIO DE JANEIRO","HOSPITAL VITORIA - (HOSPITAL ALVORADA TAGUATINGA)","-","-","-","-","-","-","H/PS","H/PS","H/PS"]
[null,74,"HOSPITAIS","RIO DE JANEIRO CAPITAL","RIO DE JANEIRO","CLINICA SAO VICENTE DA GAVEA","-","-","-","-","-","-","H/PS","-","H/PS"]
[null,75,"HOSPITAIS","RIO DE JANEIRO CAPITAL","RIO DE JANEIRO","HOSPITAL BARRA DOR","-","-","-","-","-","-","H/PS","-","H/PS"]
[null,76,"HOSPITAIS","RIO DE JANEIRO CAPITAL","RIO DE JANEIRO","HOSPITAL COPA DOR","-","-","-","-","-","-","H/PS","-","H/PS"]
[null,77,"HOSPITAIS","RIO DE JANEIRO CAPITAL","RIO DE JANEIRO","HOSPITAL NORTE DOR","-","-","-","-","-","-","H/PS","-","H/PS"]
[null,78,"HOSPITAIS","RIO DE JANEIRO CAPITAL","RIO DE JANEIRO","HOSPITAL QUINTA DOR","-","-","-","-","-","-","H/PS","-","H/PS"]
[null,79,"HOSPITAIS","RIO DE JANEIRO CAPITAL","RIO DE JANEIRO","HOSPITAL RIOS DOR","-","-","-","-","-","-","H/PS","-","H/PS"]
[null,80,"HOSPITAIS","RIO DE JANEIRO CAPITAL","RIO DE JANEIRO","HOSPITAL PRO CARDIACO","-","-","-","-","-","-","-","-","H/PS"]
[null,81,"HOSPITAIS","RIO DE JANEIRO CAPITAL","RIO DE JANEIRO","HOSPITAL SAMARITANO (BARRA)","-","-","-","-","-","-","-","-","H/PS"]
[null,82,"HOSPITAIS","RIO DE JANEIRO CAPITAL","RIO DE JANEIRO","HOSPITAL SAMARITANO (BOTAFOGO)","-","-","-","-","-","-","-","-","H/PS"]
[null,83,"HOSPITAIS","RIO DE JANEIRO CAPITAL","RIO DE JANEIRO","HOSP COPA D'DOR STAR","-","-","-","-","-","-","-","-","H/PS"]
[null,84,"HOSPITAIS","RIO DE JANEIRO DEMAIS CIDADES","ANGRA DOS REIS","HOSPITAL DE PRAIA BRAVA","-","-","-","H/M/PS","H/M/PS","H/M/PS","H/M/PS","H/M/PS","H/M/PS"]
[null,85,"HOSPITAIS","RIO DE JANEIRO DEMAIS CIDADES","ARARUAMA","HOSP DAS CLINS DA REGIAO DOS LAGOS S A","-","-","-","H/M/PS","H/M/PS","H/M/PS","H/M/PS","H/M/PS","H/M/PS"]
[null,86,"HOSPITAIS","RIO DE JANEIRO DEMAIS CIDADES","BARRA MANSA","CASA DE SAUDE SANTA MARIA S/A","-","-","-","H/M/PS","H/M/PS","H/M/PS","H/M/PS","H/M/PS","H/M/PS"]
[null,87,"HOSPITAIS","RIO DE JANEIRO DEMAIS CIDADES","CABO FRIO","HOSPITAL SANTA IZABEL","-","-","-","H/M/PS","H/M/PS","H/M/PS","H/M/PS","H/M/PS","H/M/PS"]
[null,88,"HOSPITAIS","RIO DE JANEIRO DEMAIS CIDADES","CABO FRIO","CLINERP CL DE VIDEO ENDOSCOPIA E REPR HUMANA LTDA","-","-","-","H/PS","H/PS","H/PS","H/PS","H/PS","H/PS"]
[null,89,"HOSPITAIS","RIO DE JANEIRO DEMAIS CIDADES","CAMPOS DOS GOYTACAZES","CLINICA CIRURGICA E MATERNIDADE LILIA NEVES LTDA","-","-","-","H/M/PS","H/M/PS","H/M/PS","H/M/PS","H/M/PS","H/M/PS"]
[null,90,"HOSPITAIS","RIO DE JANEIRO DEMAIS CIDADES","CAMPOS DOS GOYTACAZES","CENTROCOR SERVICOS MEDICOS LTDA","-","-","-","H/PS","H/PS","H/PS","H/PS","H/PS","H/PS"]
[null,91,"HOSPITAIS","RIO DE JANEIRO DEMAIS CIDADES","CAMPOS DOS GOYTACAZES","INSTITUTO DE MEDICINA NUCLEAR E ENDOCRINOLOGIA LTD","-","-","-","H/PS","H/PS","H/PS","H/PS","H/PS","H/PS"]
[null,92,"HOSPITAIS","RIO DE JANEIRO DEMAIS CIDADES","CAMPOS DOS GOYTACAZES","PRONTOCARDIO","-","-","-","H/PS","H/PS","H/PS","H/PS","H/PS","H/PS"]
[null,93,"HOSPITAIS","RIO DE JANEIRO DEMAIS CIDADES","DUQUE DE CAXIAS","H.S COR - SERV DE HEMODIN DE DUQUE DE CAXIAS LTDA","H","H/PS","H/PS","H/PS","H/PS","H/PS","H/PS","H/PS","H/PS"]
[null,94,"HOSPITAIS","RIO DE JANEIRO DEMAIS CIDADES","DUQUE DE CAXIAS","HOSPITAL DANIEL LIPP LTDA","H/M/PS","H/M/PS","H/M/PS","H/M/PS","H/M/PS","H/M/PS","H/M/PS","H/M/PS","H/M/PS"]
[null,95,"HOSPITAIS","RIO DE JANEIRO DEMAIS CIDADES","DUQUE DE CAXIAS","CC DUQUE DE CAXIAS","-","PA*","PA*","PA*","PA*","PA*","PA*","PA*","PA*"]
[null,96,"HOSPITAIS","RIO DE JANEIRO DEMAIS CIDADES","DUQUE DE CAXIAS","CLINICA SANTA BRANCA LTDA","-","-","H/M","H/M","H/M/PS","H/M/PS","H/M/PS","H/M/PS","H/M/PS"]
[null,97,"HOSPITAIS","RIO DE JANEIRO DEMAIS CIDADES","DUQUE DE CAXIAS","HOSPITAL DE CLINICAS MARIO LIONI","-","-","-","-","H/M/PS","H/M/PS","H/M/PS","H/M/PS","H/M/PS"]
[null,98,"HOSPITAIS","RIO DE JANEIRO DEMAIS CIDADES","ITAGUAI","GRUPO CEMERU SAUDE","-","-","-","H/M/PS","H/M/PS","H/M/PS","H/M/PS","H/M/PS","H/M/PS"]
[null,99,"HOSPITAIS","RIO DE JANEIRO DEMAIS CIDADES","MACAE","CLINICA SAO LUCAS LTDA","-","-","-","H/M/PS","H/M/PS","H/M/PS","H/M/PS","H/M/PS","H/M/PS"]
[null,100,"HOSPITAIS","RIO DE JANEIRO DEMAIS CIDADES","MESQUITA","HOSP NOVA IGUACU","-","-","H/M/PS","H/M/PS","H/M/PS","H/M/PS","H/M/PS","H/M/PS","H/M/PS"]
[null,101,"HOSPITAIS","RIO DE JANEIRO DEMAIS CIDADES","NILOPOLIS","CLINICA MATERNO INFANTIL DOMINGOS LOURENCO LTDA","-","-","-","H/M","H/M","H/M","H/M","H/M","H/M"]
[null,102,"HOSPITAIS","RIO DE JANEIRO DEMAIS CIDADES","NITEROI","CASA DE SAUDE E MATERNIDADE SANTA MARTHA S/A","H/PS","H/PS","H/PS","H/PS","H/PS","H/PS","H/PS","H/PS","H/PS"]
[null,103,"HOSPITAIS","RIO DE JANEIRO DEMAIS CIDADES","NITEROI","CLINICA LUIZ PIRES DE MELLO LTDA","H/PS","H/PS","H/PS","H/PS","H/PS","H/PS","H/PS","H/PS","H/PS"]
[null,104,"HOSPITAIS","RIO DE JANEIRO DEMAIS CIDADES","NITEROI","MATERNIDADE SAO FRANCISCO","M","M","M","M","M","H/M/PS","H/M/PS","H/M/PS","H/M/PS"]
[null,105,"HOSPITAIS","RIO DE JANEIRO DEMAIS CIDADES","NITEROI","CASA DE SAUDE STA RITA DE CASSIA-ALAMEDA","-","H/PS","H/PS","H/PS","H/PS","H/PS","H/PS","H/PS","H/PS"]
[null,106,"HOSPITAIS","RIO DE JANEIRO DEMAIS CIDADES","NITEROI","SAO SEBASTIAO HOSP DE CLINICAS (SICOR RIO)","-","H/PS","H/PS","H/PS","H/PS","H/PS","H/PS","H/PS","H/PS"]
[null,107,"HOSPITAIS","RIO DE JANEIRO DEMAIS CIDADES","NITEROI","HOSPITAL OFTALMOLOGICO SANTA BEATRIZ LTDA","-","-","-","H","H/PS","H/PS","H/PS","H/PS","H/PS"]
[null,108,"HOSPITAIS","RIO DE JANEIRO DEMAIS CIDADES","NITEROI","HOSPITAL ICARAI","-","-","-","H/M/PS","H/M/PS","H/M/PS","H/M/PS","H/M/PS","H/M/PS"]
[null,109,"HOSPITAIS","RIO DE JANEIRO DEMAIS CIDADES","NITEROI","HOSPITAL GERAL DO INGA","-","-","-","-","H/PS","H/PS","H/PS","H/PS","H/PS"]
[null,110,"HOSPITAIS","RIO DE JANEIRO DEMAIS CIDADES","NITEROI","IMPAR SERVS HOSPARES S A","-","-","-","-","-","H/M/PS","H/M/PS","H/M/PS","H/M/PS"]
[null,111,"HOSPITAIS","RIO DE JANEIRO DEMAIS CIDADES","NITEROI","OFTALMOCLINICA ICARAI","-","-","-","-","-","H/PS","H/PS","H/PS","H/PS"]
[null,112,"HOSPITAIS","RIO DE JANEIRO DEMAIS CIDADES","NITEROI","HOSPITAL NITEROI DOR","-","-","-","-","-","-","H/PS","-","H/PS"]
[null,113,"HOSPITAIS","RIO DE JANEIRO DEMAIS CIDADES","NOVA IGUACU","HOSPITAL GERAL PRONTONIL LTDA ME","H/PS","H/PS","H/PS","H/PS","H/PS","H/PS","H/PS","H/PS","H/PS"]
[null,114,"HOSPITAIS","RIO DE JANEIRO DEMAIS CIDADES","NOVA IGUACU","CASA DE SAUDE NSA SRA FATIMA DE NOVA IGUACU","-","-","-","H/M","H/M/PS","H/M/PS","H/M/PS","H/M/PS","H/M/PS"]
[null,115,"HOSPITAIS","RIO DE JANEIRO DEMAIS CIDADES","PARACAMBI","CASA DE SAUDE N SRA APARECIDA DE PARACAMBI LTDA","-","-","-","H/M/PS","H/M/PS","H/M/PS","H/M/PS","H/M/PS","H/M/PS"]
[null,116,"HOSPITAIS","RIO DE JANEIRO DEMAIS CIDADES","PETROPOLIS","HOSP SANTA TERESA (ASSOC CONG SANTA CATARINA)","-","-","-","H","H/M/PS","H/M/PS","H/M/PS","H/M/PS","H/M/PS"]
[null,117,"HOSPITAIS","RIO DE JANEIRO DEMAIS CIDADES","PETROPOLIS","SMH SOCIEDADE MEDICO HOSPITALAR LTDA","-","-","-","H/M/PS","H/M/PS","H/M/PS","H/M/PS","H/M/PS","H/M/PS"]
[null,118,"HOSPITAIS","RIO DE JANEIRO DEMAIS CIDADES","RESENDE","SAMER SERV DE ASSIST MEDICA DE RESENDE S/C LTDA","-","-","-","H/M/PS","H/M/PS","H/M/PS","H/M/PS","H/M/PS","H/M/PS"]
[null,119,"HOSPITAIS","RIO DE JANEIRO DEMAIS CIDADES","RIO DAS OSTRAS","CLIN MATER DEI","-","-","-","H/M/PS","H/M/PS","H/M/PS","H/M/PS","H/M/PS","H/M/PS"]
[null,120,"HOSPITAIS","RIO DE JANEIRO DEMAIS CIDADES","SAO FIDELIS","ASSOCIACAO HOSPITALAR ARMANDO VIDAL","-","-","-","-","-","H/PS","H/PS","H/PS","H/PS"]
[null,121,"HOSPITAIS","RIO DE JANEIRO DEMAIS CIDADES","SAO GONCALO","C SAUDE SAO JOSE SAO GONCALO (NANCI E CIA LTDA)","H/M/PS","H/M/PS*","H/M/PS*","H/M/PS*","H/M/PS","H/M/PS","H/M/PS","H/M/PS","H/M/PS"]
[null,122,"HOSPITAIS","RIO DE JANEIRO DEMAIS CIDADES","SAO GONCALO","HOSPITAL DO CORACAO SAMCORDIS LTDA","-","H","H","H","H/PS","H/PS","H/PS","H/PS","H/PS"]
[null,123,"HOSPITAIS","RIO DE JANEIRO DEMAIS CIDADES","SAO GONCALO","CC SAO GONCALO","-","PA*","PA*","PA*","PA*","PA*","PA*","PA*","PA*"]
[null,124,"HOSPITAIS","RIO DE JANEIRO DEMAIS CIDADES","SAO GONCALO","CLINICA SAO GONCALO S/A.","-","-","H/PS","H/PS","H/PS","H/PS","H/PS","H/PS","H/PS"]
[null,125,"HOSPITAIS","RIO DE JANEIRO DEMAIS CIDADES","SAO GONCALO","OFTALMOCLINICA SAO GONCALO","-","-","-","-","-","H","H","H","H"]
[null,126,"HOSPITAIS","RIO DE JANEIRO DEMAIS CIDADES","SAO GONCALO","HOSP ATLANTICO","-","-","-","-","-","PS","PS","PS","PS"]
[null,127,"HOSPITAIS","RIO DE JANEIRO DEMAIS CIDADES","SAO JOAO DE MERITI","C SAUDE E MAT TEREZINHA DE JESUS LTDA","-","-","H/M/PS","H/M/PS","H/M/PS","H/M/PS","H/M/PS","H/M/PS","H/M/PS"]
[null,128,"HOSPITAIS","RIO DE JANEIRO DEMAIS CIDADES","TERESOPOLIS","ASSOC CONGR STA CATARINA - HOSP SAO JOSE","-","-","-","H/PS","H/M/PS","H/M/PS","H/M/PS","H/M/PS","H/M/PS"]
[null,129,"HOSPITAIS","RIO DE JANEIRO DEMAIS CIDADES","TRES RIOS","HOSPITAL DE CLINICAS NOSSA SENHORA DA CONCEICAO","-","-","-","H/M/PS","H/M/PS","H/M/PS","H/M/PS","H/M/PS","H/M/PS"]
[null,130,"HOSPITAIS","RIO DE JANEIRO DEMAIS CIDADES","VASSOURAS","HOSPITAL UNIVERSITARIO SUL FLUMINENSE","-","-","-","-","H/PS","H/PS","H/PS","H/PS","H/PS"]
[null,131,"HOSPITAIS","RIO DE JANEIRO DEMAIS CIDADES","VOLTA REDONDA","HOSPITAL JARDIM AMALIA LTDA - HINJA","-","-","-","H/M/PS","H/M/PS","H/M/PS","H/M/PS","H/M/PS","H/M/PS"]
[null,132,"HOSPITAIS","RIO DE JANEIRO DEMAIS CIDADES","VOLTA REDONDA","HOSPITAL VITA VOLTA REDONDA S/A","-","-","-","H/M/PS","H/M/PS","H/M/PS","H/M/PS","H/M/PS","H/M/PS"]
[null,133,"LABORATÓRIOS","RIO DE JANEIRO CAPITAL","RIO DE JANEIRO","CLINICA LAN","X","X","X","X","X","X","X","X","X"]
[null,134,"LABORATÓRIOS","RIO DE JANEIRO CAPITAL","RIO DE JANEIRO","ENDOMAIS SERVS MEDS LTDA ME","X","X","X","X","X","X","X","X","X"]
[null,135,"LABORATÓRIOS","RIO DE JANEIRO CAPITAL","RIO DE JANEIRO","GASTROVIEW","X","X","X","X","X","X","X","X","X"]
[null,136,"LABORATÓRIOS","RIO DE JANEIRO CAPITAL","RIO DE JANEIRO","GASTROMED","X","X","X","X","X","X","X","X","X"]
[null,137,"LABORATÓRIOS","RIO DE JANEIRO CAPITAL","RIO DE JANEIRO","LABORATORIOS MEDICOS DR ELIEL FIGUEIREDO","X","X","X","X","X","X","X","X","X"]
[null,138,"LABORATÓRIOS","RIO DE JANEIRO CAPITAL","RIO DE JANEIRO","UROLABS","X","X","X","X","X","X","X","X","X"]
[null,139,"LABORATÓRIOS","RIO DE JANEIRO CAPITAL","RIO DE JANEIRO","UROLOGIC","X","X","X","X","X","X","X","X","X"]
[null,140,"LABORATÓRIOS","RIO DE JANEIRO CAPITAL","RIO DE JANEIRO","INSTITUTO HERMES PARDINI (MEDICINA GUANABARA)","X","X","X","X","X","X","X","X","X"]
[null,141,"LABORATÓRIOS","RIO DE JANEIRO CAPITAL","RIO DE JANEIRO","D IMAGEM","X","X","X","X","X","X","X","X","X"]
[null,142,"LABORATÓRIOS","RIO DE JANEIRO CAPITAL","RIO DE JANEIRO","CENTRO FONOAUDI ARAUJO CID ","X","X","X","X","X","X","X","X","X"]
[null,143,"LABORATÓRIOS","RIO DE JANEIRO CAPITAL","RIO DE JANEIRO","KINESIUS","X","X","X","X","X","X","X","X","X"]
[null,144,"LABORATÓRIOS","RIO DE JANEIRO CAPITAL","RIO DE JANEIRO","AUD RIO ","X","X","X","X","X","X","X","X","X"]
[null,145,"LABORATÓRIOS","RIO DE JANEIRO CAPITAL","RIO DE JANEIRO","ESPACO FLEX ","X","X","X","X","X","X","X","X","X"]
[null,146,"LABORATÓRIOS","RIO DE JANEIRO CAPITAL","RIO DE JANEIRO","ASSOC. FISIOTERAPIA ","X","X","X","X","X","X","X","X","X"]
[null,147,"LABORATÓRIOS","RIO DE JANEIRO CAPITAL","RIO DE JANEIRO","INTEGRARE","X","X","X","X","X","X","X","X","X"]
[null,148,"LABORATÓRIOS","RIO DE JANEIRO CAPITAL","RIO DE JANEIRO","3 D DIAGNOSE","-","X","X","X","X","X","X","X","X"]
[null,149,"LABORATÓRIOS","RIO DE JANEIRO CAPITAL","RIO DE JANEIRO","CENTRO DE MEDICINA NUCLEAR DA GUANABARA","-","X","X","X","X","X","X","X","X"]
[null,150,"LABORATÓRIOS","RIO DE JANEIRO CAPITAL","RIO DE JANEIRO","CEPEM CENTRO DE PESQUISA DA MULHER","-","X","X","X","X","X","X","X","X"]
[null,151,"LABORATÓRIOS","RIO DE JANEIRO CAPITAL","RIO DE JANEIRO","CLINICA DE ULTRA-SONOGRAFIA DA BARRA","-","X","X","X","X","X","X","X","X"]
[null,152,"LABORATÓRIOS","RIO DE JANEIRO CAPITAL","RIO DE JANEIRO","CLINICA DE ULTRASSONOGRAFIA GALEAO","-","X","X","X","X","X","X","X","X"]
[null,153,"LABORATÓRIOS","RIO DE JANEIRO CAPITAL","RIO DE JANEIRO","DLC DIAGNOSTICOS EPP","-","X","X","X","X","X","X","X","X"]
[null,154,"LABORATÓRIOS","RIO DE JANEIRO CAPITAL","RIO DE JANEIRO","LABORATORIO BIOMEDICO LB","-","X","X","X","X","X","X","X","X"]
[null,155,"LABORATÓRIOS","RIO DE JANEIRO CAPITAL","RIO DE JANEIRO","LAGAM LABORATORIO DE PATOLOGIA","-","X","X","X","X","X","X","X","X"]
[null,156,"LABORATÓRIOS","RIO DE JANEIRO CAPITAL","RIO DE JANEIRO","LIFE IMAGEM - DIAGNOSTICO POR IMAGEM","-","X","X","X","X","X","X","X","X"]
[null,157,"LABORATÓRIOS","RIO DE JANEIRO CAPITAL","RIO DE JANEIRO","PLANETA PHISIO FISIOTERAPIA - EPP","-","X","X","X","X","X","X","X","X"]
[null,158,"LABORATÓRIOS","RIO DE JANEIRO CAPITAL","RIO DE JANEIRO","RX BANDEIRANTES SERVICOS RADIOLOGICOS","-","X","X","X","X","X","X","X","X"]
[null,159,"LABORATÓRIOS","RIO DE JANEIRO CAPITAL","RIO DE JANEIRO","SILVESTRE CLINICA FISIOTERAPIA ME","-","X","X","X","X","X","X","X","X"]
[null,160,"LABORATÓRIOS","RIO DE JANEIRO CAPITAL","RIO DE JANEIRO","SONUS SERVICOS MEDICOS","-","X","X","X","X","X","X","X","X"]
[null,161,"LABORATÓRIOS","RIO DE JANEIRO CAPITAL","RIO DE JANEIRO","ULTRASONOGRAFIA BARRA BANGU","-","X","X","X","X","X","X","X","X"]
[null,162,"LABORATÓRIOS","RIO DE JANEIRO CAPITAL","RIO DE JANEIRO","CARDIODIAGNOSE SERVICOS MEDICOS","-","-","X","X","X","X","X","X","X"]
[null,163,"LABORATÓRIOS","RIO DE JANEIRO CAPITAL","RIO DE JANEIRO","CEDIMAGEM-CENTRO DE DIAGNOSTICO","-","-","X","X","X","X","X","X","X"]
[null,164,"LABORATÓRIOS","RIO DE JANEIRO CAPITAL","RIO DE JANEIRO","ECOR ECOCARDIOGRAFIA","-","-","X","X","X","X","X","X","X"]
[null,165,"LABORATÓRIOS","RIO DE JANEIRO CAPITAL","RIO DE JANEIRO","CLINICA LUIZ FELIPPE MATTOSO","-","-","X","X","X","X","X","X","X"]
[null,166,"LABORATÓRIOS","RIO DE JANEIRO CAPITAL","RIO DE JANEIRO","INSTITUTO DE ANALISES CLINICAS BANGU","-","-","X","X","X","X","X","X","X"]
[null,167,"LABORATÓRIOS","RIO DE JANEIRO CAPITAL","RIO DE JANEIRO","PREVTOTAL LABORATORIO DE IMAGEM","-","-","X","X","X","X","X","X","X"]
[null,168,"LABORATÓRIOS","RIO DE JANEIRO CAPITAL","RIO DE JANEIRO","ULTRA-SONOGRAFIA BOTAFOGO .","-","-","X","X","X","X","X","X","X"]
[null,169,"LABORATÓRIOS","RIO DE JANEIRO CAPITAL","RIO DE JANEIRO","ULTRA-SONOGRAFIA DA BARRA IPANEMA","-","-","X","X","X","X","X","X","X"]
[null,170,"LABORATÓRIOS","RIO DE JANEIRO CAPITAL","RIO DE JANEIRO","CENTRO MEDICO E DIAGNOSTICO DA TIJUCA","-","-","-","X","X","X","X","X","X"]
[null,171,"LABORATÓRIOS","RIO DE JANEIRO CAPITAL","RIO DE JANEIRO","CLINICA COPACABANA","-","-","-","X","X","X","X","X","X"]
[null,172,"LABORATÓRIOS","RIO DE JANEIRO CAPITAL","RIO DE JANEIRO","CLINICA MEDICA E ODONTOLOGICA BERNARDO","-","-","-","X","X","X","X","X","X"]
[null,173,"LABORATÓRIOS","RIO DE JANEIRO CAPITAL","RIO DE JANEIRO","IRM RESSONANCIA MAGNETICA","-","-","-","X","X","X","X","X","X"]
[null,174,"LABORATÓRIOS","RIO DE JANEIRO CAPITAL","RIO DE JANEIRO","PRO ECHO CARDIODATA SERVICOS MEDICOS","-","-","-","X","X","X","X","X","X"]
[null,175,"LABORATÓRIOS","RIO DE JANEIRO CAPITAL","RIO DE JANEIRO","CENTRO MEDICO ROCHA MIRANDA","-","-","-","-","X","X","X","X","X"]
[null,176,"LABORATÓRIOS","RIO DE JANEIRO CAPITAL","RIO DE JANEIRO","CRUZEIRO DO SUL MEDICINA DIAGNOSTICA","-","-","-","-","X","X","X","X","X"]
[null,177,"LABORATÓRIOS","RIO DE JANEIRO CAPITAL","RIO DE JANEIRO","DIAGNOMED EXAMES COMPLEMENTARES","-","-","-","-","X","X","X","X","X"]
[null,178,"LABORATÓRIOS","RIO DE JANEIRO CAPITAL","RIO DE JANEIRO","LABORATORIO BRONSTEIN","-","-","-","-","X","X","X","X","X"]
[null,179,"LABORATÓRIOS","RIO DE JANEIRO CAPITAL","RIO DE JANEIRO","LAFE SERVICOS MEDICOS DIAGNOSTICOS","-","-","-","-","X","X","X","X","X"]
[null,180,"LABORATÓRIOS","RIO DE JANEIRO CAPITAL","RIO DE JANEIRO","MEDICAL DATA SYSTEMS","-","-","-","-","X","X","X","X","X"]
[null,181,"LABORATÓRIOS","RIO DE JANEIRO CAPITAL","RIO DE JANEIRO","AMACOR SERVICOS MEDICOS E EXAMES COMPLEMENTARES","-","-","-","-","-","X","X","X","X"]
[null,182,"LABORATÓRIOS","RIO DE JANEIRO CAPITAL","RIO DE JANEIRO","CENTRO MEDICO PILARES","-","-","-","-","-","X","X","X","X"]
[null,183,"LABORATÓRIOS","RIO DE JANEIRO CAPITAL","RIO DE JANEIRO","CLINICA RADIOLOGICA SAO SEBASTIAO","-","-","-","-","-","X","X","X","X"]
[null,184,"LABORATÓRIOS","RIO DE JANEIRO CAPITAL","RIO DE JANEIRO","DANIELE GUSMAO SERVICOS MEDICOS CARDIOLOGICOS","-","-","-","-","-","X","X","X","X"]
[null,185,"LABORATÓRIOS","RIO DE JANEIRO CAPITAL","RIO DE JANEIRO","MEDCOR SERVICOS CARDIOLOGICOS","-","-","-","-","-","X","X","X","X"]
[null,186,"LABORATÓRIOS","RIO DE JANEIRO CAPITAL","RIO DE JANEIRO","SERGIO ZUSMAN","-","-","-","-","-","X","X","X","X"]
[null,187,"LABORATÓRIOS","RIO DE JANEIRO CAPITAL","RIO DE JANEIRO","CENTRO MEDICO RIO MAR","-","-","-","-","-","-","X","X","X"]
[null,188,"LABORATÓRIOS","RIO DE JANEIRO CAPITAL","RIO DE JANEIRO","CICRC - DR CARLOS ALBERTO SORIA","-","-","-","-","-","-","X","X","X"]
[null,189,"LABORATÓRIOS","RIO DE JANEIRO CAPITAL","RIO DE JANEIRO","CLUB D A","-","-","-","-","-","-","X","X","X"]
[null,190,"LABORATÓRIOS","RIO DE JANEIRO CAPITAL","RIO DE JANEIRO","EXMED RIO CONSULTORIA TECNICA","-","-","-","-","-","-","X","X","X"]
[null,191,"LABORATÓRIOS","RIO DE JANEIRO CAPITAL","RIO DE JANEIRO","SAMPEI CLINICA RADIOLOGICA DR THADEU LUCCHESI","-","-","-","-","-","-","X","X","X"]
[null,192,"LABORATÓRIOS","RIO DE JANEIRO CAPITAL","RIO DE JANEIRO","LABORATORIO LAMINA","-","-","-","-","-","-","X","X","X"]
[null,193,"LABORATÓRIOS","RIO DE JANEIRO CAPITAL","RIO DE JANEIRO","LABORATORIOS MEDICOS DR SERGIO FRANCO","-","-","-","-","-","-","X","X","X"]
[null,194,"LABORATÓRIOS","RIO DE JANEIRO CAPITAL","RIO DE JANEIRO","ABBR - ASSOCIACAO BRASILEIRA BENEFICENTE DE REABIL","-","-","-","-","-","-","-","-","X"]
[null,195,"LABORATÓRIOS","RIO DE JANEIRO DEMAIS CIDADES","ANGRA DOS REIS","ANGRA LAB - LAB DE ANAL CL DE ANGRA DOS REIS","-","-","-","X","X","X","X","X","X"]
[null,196,"LABORATÓRIOS","RIO DE JANEIRO DEMAIS CIDADES","ANGRA DOS REIS","CLIN MED AMBULATORIAL SOJ","-","-","-","X","X","X","X","X","X"]
[null,197,"LABORATÓRIOS","RIO DE JANEIRO DEMAIS CIDADES","ANGRA DOS REIS","CLINICA DE IMAGEM COMPUTADORIZADA","-","-","-","X","X","X","X","X","X"]
[null,198,"LABORATÓRIOS","RIO DE JANEIRO DEMAIS CIDADES","ANGRA DOS REIS","CLINICA SANTA AMELIA","-","-","-","X","X","X","X","X","X"]
[null,199,"LABORATÓRIOS","RIO DE JANEIRO DEMAIS CIDADES","ANGRA DOS REIS","TM & B - LABORATORIO DE ANALISE CLINICAS ME","-","-","-","X","X","X","X","X","X"]
[null,200,"LABORATÓRIOS","RIO DE JANEIRO DEMAIS CIDADES","ANGRA DOS REIS","ULTRA-SONOGRAFIA WINSTON MARQUES DE ANDRADE","-","-","-","X","X","X","X","X","X"]
[null,201,"LABORATÓRIOS","RIO DE JANEIRO DEMAIS CIDADES","ANGRA DOS REIS","CENTRO DE DIAGNOSTICO BIOMEDICO-CDB","-","-","-","-","-","-","X","X","X"]
[null,202,"LABORATÓRIOS","RIO DE JANEIRO DEMAIS CIDADES","ARARUAMA","CLINICA DE FISIOTERAPIA FISIOLAGOS","-","-","-","X","X","X","X","X","X"]
[null,203,"LABORATÓRIOS","RIO DE JANEIRO DEMAIS CIDADES","ARARUAMA","EXATA LABORATORIO DE ANALISES CLINICAS","-","-","-","X","X","X","X","X","X"]
[null,204,"LABORATÓRIOS","RIO DE JANEIRO DEMAIS CIDADES","BARRA DO PIRAI","CLINICA SAO MIGUEL","-","-","-","X","X","X","X","X","X"]
[null,205,"LABORATÓRIOS","RIO DE JANEIRO DEMAIS CIDADES","BARRA DO PIRAI","LABORATORIO MEDICO DR FALCAO B P","-","-","-","X","X","X","X","X","X"]
[null,206,"LABORATÓRIOS","RIO DE JANEIRO DEMAIS CIDADES","BARRA MANSA","C.E.D.A. CL DE ECOGRAFIA DIAGNOSTICA ANDRADE","-","-","-","X","X","X","X","X","X"]
[null,207,"LABORATÓRIOS","RIO DE JANEIRO DEMAIS CIDADES","BARRA MANSA","HEMOLAB LAB DE HEMAT E ANALISES CLINICAS","-","-","-","X","X","X","X","X","X"]
[null,208,"LABORATÓRIOS","RIO DE JANEIRO DEMAIS CIDADES","BARRA MANSA","J C HENRIQUES LAB DE ANALISES CLINICAS","-","-","-","X","X","X","X","X","X"]
[null,209,"LABORATÓRIOS","RIO DE JANEIRO DEMAIS CIDADES","BARRA MANSA","LACLIN LAB. DE ANALISES CLIN DE BARRA MANSA","-","-","-","X","X","X","X","X","X"]
[null,210,"LABORATÓRIOS","RIO DE JANEIRO DEMAIS CIDADES","BARRA MANSA","LABORATORIO MEDICO DIAGNOLAB HSN","-","-","-","-","X","X","X","X","X"]
[null,211,"LABORATÓRIOS","RIO DE JANEIRO DEMAIS CIDADES","BARRA MANSA","LABORATORIO MEDICO DIAGNOLAB","-","-","-","-","X","X","X","X","X"]
[null,212,"LABORATÓRIOS","RIO DE JANEIRO DEMAIS CIDADES","BELFORD ROXO","NEUROFISIOLOGIA CLIN DE IGUACU LTDA","-","X","X","X","X","X","X","X","X"]
[null,213,"LABORATÓRIOS","RIO DE JANEIRO DEMAIS CIDADES","BELFORD ROXO","DIMAGEM DIAG POR IMAGEM LTDA","-","X","X","X","X","X","X","X","X"]
[null,214,"LABORATÓRIOS","RIO DE JANEIRO DEMAIS CIDADES","BELFORD ROXO","LABORATORIOS MEDICOS DR ELIEL FIGUEIREDO","-","X","X","X","X","X","X","X","X"]
[null,215,"LABORATÓRIOS","RIO DE JANEIRO DEMAIS CIDADES","CABO FRIO","CENTRO DE DIAGNOSTICO CITOLOGICO","-","-","-","X","X","X","X","X","X"]
[null,216,"LABORATÓRIOS","RIO DE JANEIRO DEMAIS CIDADES","CABO FRIO","CLINICA DE ACUPUNTURA E TERAPIA COMPLEMENTARES LTD","-","-","-","X","X","X","X","X","X"]
[null,217,"LABORATÓRIOS","RIO DE JANEIRO DEMAIS CIDADES","CABO FRIO","ILAGOS DIAGNOSTICOS POR IMAGEM","-","-","-","X","X","X","X","X","X"]
[null,218,"LABORATÓRIOS","RIO DE JANEIRO DEMAIS CIDADES","CABO FRIO","LABORATORIO O S REZENDE","-","-","-","X","X","X","X","X","X"]
[null,219,"LABORATÓRIOS","RIO DE JANEIRO DEMAIS CIDADES","CAMPOS DOS GOYTACAZES","ANDREA GUEDES CLINICA MEDICA EIRELI","-","-","-","X","X","X","X","X","X"]
[null,220,"LABORATÓRIOS","RIO DE JANEIRO DEMAIS CIDADES","CAMPOS DOS GOYTACAZES","BEDAIMAGEM SERVICOS MEDICOS","-","-","-","X","X","X","X","X","X"]
[null,221,"LABORATÓRIOS","RIO DE JANEIRO DEMAIS CIDADES","CAMPOS DOS GOYTACAZES","CLINICA SANTA MARIA DE CAMPOS","-","-","-","X","X","X","X","X","X"]
[null,222,"LABORATÓRIOS","RIO DE JANEIRO DEMAIS CIDADES","CAMPOS DOS GOYTACAZES","LABORATORIO DE PESQUISAS CLINICAS","-","-","-","X","X","X","X","X","X"]
[null,223,"LABORATÓRIOS","RIO DE JANEIRO DEMAIS CIDADES","CAMPOS DOS GOYTACAZES","RAD MED DIAGNOSTICO POR IMAGEM","-","-","-","X","X","X","X","X","X"]
[null,224,"LABORATÓRIOS","RIO DE JANEIRO DEMAIS CIDADES","CAMPOS DOS GOYTACAZES","BEDALAB LABORATORIO DE ANALISES CLINICAS","-","-","-","-","X","X","X","X","X"]
[null,225,"LABORATÓRIOS","RIO DE JANEIRO DEMAIS CIDADES","CAMPOS DOS GOYTACAZES","CLINICA DE FISIOTERAPIA FISIOVIDA","-","-","-","-","-","X","X","X","X"]
[null,226,"LABORATÓRIOS","RIO DE JANEIRO DEMAIS CIDADES","CAMPOS DOS GOYTACAZES","UNICAMPOS UNIDADE DE IMAGEM DE CAMPOS","-","-","-","-","-","X","X","X","X"]
[null,227,"LABORATÓRIOS","RIO DE JANEIRO DEMAIS CIDADES","DUQUE DE CAXIAS","LABORATORIOS MEDICOS DR ELIEL FIGUEIREDO","X","X","X","X","X","X","X","X","X"]
[null,228,"LABORATÓRIOS","RIO DE JANEIRO DEMAIS CIDADES","DUQUE DE CAXIAS","SKOPIA SERV. MEDICOS ","X","X","X","X","X","X","X","X","X"]
[null,229,"LABORATÓRIOS","RIO DE JANEIRO DEMAIS CIDADES","DUQUE DE CAXIAS","FISIOMED","X","X","X","X","X","X","X","X","X"]
[null,230,"LABORATÓRIOS","RIO DE JANEIRO DEMAIS CIDADES","DUQUE DE CAXIAS","CG EGO CONSULTORIO ","X","X","X","X","X","X","X","X","X"]
[null,231,"LABORATÓRIOS","RIO DE JANEIRO DEMAIS CIDADES","DUQUE DE CAXIAS","CENTRO DE MEDICINA NUCLEAR DA GUANABARA","-","X","X","X","X","X","X","X","X"]
[null,232,"LABORATÓRIOS","RIO DE JANEIRO DEMAIS CIDADES","DUQUE DE CAXIAS","CLINICA DE RADIOLOGIA RIO DE JANEIRO","-","X","X","X","X","X","X","X","X"]
[null,233,"LABORATÓRIOS","RIO DE JANEIRO DEMAIS CIDADES","DUQUE DE CAXIAS","CLINOLHOS CLINICA DE OLHOS ME","-","X","X","X","X","X","X","X","X"]
[null,234,"LABORATÓRIOS","RIO DE JANEIRO DEMAIS CIDADES","DUQUE DE CAXIAS","LIFE IMAGEM - DIAGNOSTICO POR IMAGEM","-","X","X","X","X","X","X","X","X"]
[null,235,"LABORATÓRIOS","RIO DE JANEIRO DEMAIS CIDADES","DUQUE DE CAXIAS","LABORATORIO DE ANAL CLINICAS LIPASE","-","-","X","X","X","X","X","X","X"]
[null,236,"LABORATÓRIOS","RIO DE JANEIRO DEMAIS CIDADES","DUQUE DE CAXIAS","METODOS DIAGNOSTICOS COMPLEMENTARES","-","-","X","X","X","X","X","X","X"]
[null,237,"LABORATÓRIOS","RIO DE JANEIRO DEMAIS CIDADES","DUQUE DE CAXIAS","SMH SOCIEDADE MEDICO HOSPAR (BENEF DE PETROPO","-","-","X","X","X","X","X","X","X"]
[null,238,"LABORATÓRIOS","RIO DE JANEIRO DEMAIS CIDADES","DUQUE DE CAXIAS","CEYC SAUDE SERVICOS MEDICOS","-","-","-","X","X","X","X","X","X"]
[null,239,"LABORATÓRIOS","RIO DE JANEIRO DEMAIS CIDADES","DUQUE DE CAXIAS","LAFE SERVICOS MEDICOS DIAGNOSTICOS","-","-","-","-","X","X","X","X","X"]
[null,240,"LABORATÓRIOS","RIO DE JANEIRO DEMAIS CIDADES","DUQUE DE CAXIAS","FISIOTERAPIA HOME CLIN CARE","-","-","-","-","-","X","X","X","X"]
[null,241,"LABORATÓRIOS","RIO DE JANEIRO DEMAIS CIDADES","DUQUE DE CAXIAS","LABORATORIOS MEDICOS DR SERGIO FRANCO","-","-","-","-","-","-","X","X","X"]
[null,242,"LABORATÓRIOS","RIO DE JANEIRO DEMAIS CIDADES","ITABORAI","BABY CLINICA","-","-","-","-","-","X","X","X","X"]
[null,243,"LABORATÓRIOS","RIO DE JANEIRO DEMAIS CIDADES","ITABORAI","LABORATORIOS MEDICOS DR SERGIO FRANCO","-","-","-","-","-","-","X","X","X"]
[null,244,"LABORATÓRIOS","RIO DE JANEIRO DEMAIS CIDADES","ITAGUAI","LABORATORIOS MEDICOS DR SERGIO FRANCO","-","-","-","-","-","-","X","X","X"]
[null,245,"LABORATÓRIOS","RIO DE JANEIRO DEMAIS CIDADES","MACAE","ALCYR ALVES FERREIRA E CIA","-","-","-","X","X","X","X","X","X"]
[null,246,"LABORATÓRIOS","RIO DE JANEIRO DEMAIS CIDADES","MACAE","Q H Z ANALISES CLINICAS","-","-","-","X","X","X","X","X","X"]
[null,247,"LABORATÓRIOS","RIO DE JANEIRO DEMAIS CIDADES","MACAE","LABORATORIO DE ANALISES CLINICAS PIONNER","-","-","-","-","-","X","X","X","X"]
[null,248,"LABORATÓRIOS","RIO DE JANEIRO DEMAIS CIDADES","MAGE","LACE LABORAT DE ANALISES CLIN ESPECIAL ME","-","X","X","X","X","X","X","X","X"]
[null,249,"LABORATÓRIOS","RIO DE JANEIRO DEMAIS CIDADES","MAGE","CLIMAMP CL MED AMBULATORIAL PIABETA","-","-","-","X","X","X","X","X","X"]
[null,250,"LABORATÓRIOS","RIO DE JANEIRO DEMAIS CIDADES","MAGE","LABOCLIN LABORATORIO DE ANALISES CLINICAS","-","-","-","-","-","X","X","X","X"]
[null,251,"LABORATÓRIOS","RIO DE JANEIRO DEMAIS CIDADES","MARICA","LAB DE PATOL CLINICA GOLONI","-","-","-","-","X","X","X","X","X"]
[null,252,"LABORATÓRIOS","RIO DE JANEIRO DEMAIS CIDADES","MARICA","D IMAGEM DIAGNOSTICOS POR IMAGEM","-","-","-","-","-","X","X","X","X"]
[null,253,"LABORATÓRIOS","RIO DE JANEIRO DEMAIS CIDADES","MARICA","LABORATORIO DOM BOSCO","-","-","-","-","-","X","X","X","X"]
[null,254,"LABORATÓRIOS","RIO DE JANEIRO DEMAIS CIDADES","MARICA","LABORATORIOS MEDICOS DR SERGIO FRANCO","-","-","-","-","-","-","X","X","X"]
[null,255,"LABORATÓRIOS","RIO DE JANEIRO DEMAIS CIDADES","MESQUITA","CENTRO MEDICO MESQUITA","-","X","X","X","X","X","X","X","X"]
[null,256,"LABORATÓRIOS","RIO DE JANEIRO DEMAIS CIDADES","NILOPOLIS","D IMAGEM","X","X","X","X","X","X","X","X","X"]
[null,257,"LABORATÓRIOS","RIO DE JANEIRO DEMAIS CIDADES","NILOPOLIS","LABORATORIOS MEDICOS DR ELIEL FIGUEIREDO","X","X","X","X","X","X","X","X","X"]
[null,258,"LABORATÓRIOS","RIO DE JANEIRO DEMAIS CIDADES","NILOPOLIS","CENTRO MEDICO E IMAGENS PALADINO -ME","-","X","X","X","X","X","X","X","X"]
[null,259,"LABORATÓRIOS","RIO DE JANEIRO DEMAIS CIDADES","NILOPOLIS","LAFE SERVICOS MEDICOS DIAGNOSTICOS","-","-","-","-","X","X","X","X","X"]
[null,260,"LABORATÓRIOS","RIO DE JANEIRO DEMAIS CIDADES","NILOPOLIS","LABORATORIOS MEDICOS DR SERGIO FRANCO","-","-","-","-","-","-","X","X","X"]
[null,261,"LABORATÓRIOS","RIO DE JANEIRO DEMAIS CIDADES","NITEROI","GASTROLIFE GFM SERVS MEDS LTDA","X","X","X","X","X","X","X","X","X"]
[null,262,"LABORATÓRIOS","RIO DE JANEIRO DEMAIS CIDADES","NITEROI","CERPAM CENTRO DE REAB S S LTDA ME","X","X","X","X","X","X","X","X","X"]
[null,263,"LABORATÓRIOS","RIO DE JANEIRO DEMAIS CIDADES","NITEROI","CLIN DE FISIOT E REAB LTDA","X","X","X","X","X","X","X","X","X"]
[null,264,"LABORATÓRIOS","RIO DE JANEIRO DEMAIS CIDADES","NITEROI","INTEGRARE ","X","X","X","X","X","X","X","X","X"]
[null,265,"LABORATÓRIOS","RIO DE JANEIRO DEMAIS CIDADES","NITEROI","LABORATORIO BIOMEDICO LB","-","X","X","X","X","X","X","X","X"]
[null,266,"LABORATÓRIOS","RIO DE JANEIRO DEMAIS CIDADES","NITEROI","LABORATORIO DE ANALISES CLINICAS PASCOTO","-","X","X","X","X","X","X","X","X"]
[null,267,"LABORATÓRIOS","RIO DE JANEIRO DEMAIS CIDADES","NITEROI","LAB DE PATOL CLINICA GOLONI","-","-","-","-","X","X","X","X","X"]
[null,268,"LABORATÓRIOS","RIO DE JANEIRO DEMAIS CIDADES","NITEROI","LAFE SERVICOS MEDICOS DIAGNOSTICOS","-","-","-","-","X","X","X","X","X"]
[null,269,"LABORATÓRIOS","RIO DE JANEIRO DEMAIS CIDADES","NITEROI","LABORATORIO DOM BOSCO","-","-","-","-","-","X","X","X","X"]
[null,270,"LABORATÓRIOS","RIO DE JANEIRO DEMAIS CIDADES","NITEROI","LABORATORIO MORALES","-","-","-","-","-","-","X","X","X"]
[null,271,"LABORATÓRIOS","RIO DE JANEIRO DEMAIS CIDADES","NOVA FRIBURGO","RADIOLOGICA DE FRIBURGO DIAGNOSTICO POR IMAGEM LTD","-","-","-","-","-","X","X","X","X"]
[null,272,"LABORATÓRIOS","RIO DE JANEIRO DEMAIS CIDADES","NOVA IGUACU","LABORATORIOS MEDICOS DR ELIEL FIGUEIREDO","X","X","X","X","X","X","X","X","X"]
[null,273,"LABORATÓRIOS","RIO DE JANEIRO DEMAIS CIDADES","NOVA IGUACU","D IMAGEM","X","X","X","X","X","X","X","X","X"]
[null,274,"LABORATÓRIOS","RIO DE JANEIRO DEMAIS CIDADES","NOVA IGUACU","MEDCLINIC VITA","X","X","X","X","X","X","X","X","X"]
[null,275,"LABORATÓRIOS","RIO DE JANEIRO DEMAIS CIDADES","NOVA IGUACU","FISIOCLIN","X","X","X","X","X","X","X","X","X"]
[null,276,"LABORATÓRIOS","RIO DE JANEIRO DEMAIS CIDADES","NOVA IGUACU","CENTRO DE MEDICINA NUCLEAR DA GUANABARA","-","X","X","X","X","X","X","X","X"]
[null,277,"LABORATÓRIOS","RIO DE JANEIRO DEMAIS CIDADES","NOVA IGUACU","CLINICA RADIOLOGICA NOVA IGUACU","-","-","X","X","X","X","X","X","X"]
[null,278,"LABORATÓRIOS","RIO DE JANEIRO DEMAIS CIDADES","NOVA IGUACU","LAFE SERVICOS MEDICOS DIAGNOSTICOS","-","-","-","-","X","X","X","X","X"]
[null,279,"LABORATÓRIOS","RIO DE JANEIRO DEMAIS CIDADES","NOVA IGUACU","LABORATORIOS MEDICOS DR SERGIO FRANCO","-","-","-","-","-","-","X","X","X"]
[null,280,"LABORATÓRIOS","RIO DE JANEIRO DEMAIS CIDADES","PETROPOLIS","CENTRO MEDICO LOUIS PASTEUR","-","-","-","X","X","X","X","X","X"]
[null,281,"LABORATÓRIOS","RIO DE JANEIRO DEMAIS CIDADES","PETROPOLIS","CLINICA DR FRAGOSO BORGES","-","-","-","X","X","X","X","X","X"]
[null,282,"LABORATÓRIOS","RIO DE JANEIRO DEMAIS CIDADES","PETROPOLIS","CLINICA RADIOLOGICA PEDRO II","-","-","-","X","X","X","X","X","X"]
[null,283,"LABORATÓRIOS","RIO DE JANEIRO DEMAIS CIDADES","PETROPOLIS","ESPACO CLINICO PETROPOLIS","-","-","-","X","X","X","X","X","X"]
[null,284,"LABORATÓRIOS","RIO DE JANEIRO DEMAIS CIDADES","PETROPOLIS","LABORATORIO DR HOMERO SOARES RAMOS","-","-","-","X","X","X","X","X","X"]
[null,285,"LABORATÓRIOS","RIO DE JANEIRO DEMAIS CIDADES","PETROPOLIS","SERVICO DE HEMATOLOGIA ERNESTO BAFFI","-","-","-","X","X","X","X","X","X"]
[null,286,"LABORATÓRIOS","RIO DE JANEIRO DEMAIS CIDADES","PETROPOLIS","LABORATORIOS MEDICOS DR SERGIO FRANCO","-","-","-","-","-","-","X","X","X"]
[null,287,"LABORATÓRIOS","RIO DE JANEIRO DEMAIS CIDADES","QUEIMADOS","CLINICA CONTEMPORANEA","-","X","X","X","X","X","X","X","X"]
[null,288,"LABORATÓRIOS","RIO DE JANEIRO DEMAIS CIDADES","QUEIMADOS","LABORATORIOS MEDICOS DR ELIEL FIGUEIREDO","-","X","X","X","X","X","X","X","X"]
[null,289,"LABORATÓRIOS","RIO DE JANEIRO DEMAIS CIDADES","RESENDE","CENTRO DE DIAGNOSTICO CLAUDIO RAMOS","-","-","-","X","X","X","X","X","X"]
[null,290,"LABORATÓRIOS","RIO DE JANEIRO DEMAIS CIDADES","RESENDE","PROEXAMES SERVICOS MEDICOS","-","-","-","X","X","X","X","X","X"]
[null,291,"LABORATÓRIOS","RIO DE JANEIRO DEMAIS CIDADES","RESENDE","RM DIAGNOSTICO POR IMAGEM","-","-","-","X","X","X","X","X","X"]
[null,292,"LABORATÓRIOS","RIO DE JANEIRO DEMAIS CIDADES","RESENDE","UNICLINICAS","-","-","-","X","X","X","X","X","X"]
[null,293,"LABORATÓRIOS","RIO DE JANEIRO DEMAIS CIDADES","RESENDE","CENTRO DE DIAGNOSTICO CLAUDIO RAMOS -CEDIMAGEM","-","-","-","-","X","X","X","X","X"]
[null,294,"LABORATÓRIOS","RIO DE JANEIRO DEMAIS CIDADES","SAO GONCALO","CLIMEDT ENDOS","X","X","X","X","X","X","X","X","X"]
[null,295,"LABORATÓRIOS","RIO DE JANEIRO DEMAIS CIDADES","SAO GONCALO","FISIO DOR","X","X","X","X","X","X","X","X","X"]
[null,296,"LABORATÓRIOS","RIO DE JANEIRO DEMAIS CIDADES","SAO GONCALO","CARDIOMED S/S","-","X","X","X","X","X","X","X","X"]
[null,297,"LABORATÓRIOS","RIO DE JANEIRO DEMAIS CIDADES","SAO GONCALO","CLINICA DE ULTRASSONOGRAFIA GALEAO","-","X","X","X","X","X","X","X","X"]
[null,298,"LABORATÓRIOS","RIO DE JANEIRO DEMAIS CIDADES","SAO GONCALO","FISIO DOR FISIOTERAPIA E REABILITACAO ME","-","X","X","X","X","X","X","X","X"]
[null,299,"LABORATÓRIOS","RIO DE JANEIRO DEMAIS CIDADES","SAO GONCALO","LABORATORIO DE ANALISES CLINICAS PASCOTO","-","X","X","X","X","X","X","X","X"]
[null,300,"LABORATÓRIOS","RIO DE JANEIRO DEMAIS CIDADES","SAO GONCALO","CC SAO GONCALO (NOVO)","-","X","X","X","X","X","X","X","X"]
[null,301,"LABORATÓRIOS","RIO DE JANEIRO DEMAIS CIDADES","SAO GONCALO","RAFA METODO GRAFICO E IMAGEM DIAGNOSTICA ME","-","X","X","X","X","X","X","X","X"]
[null,302,"LABORATÓRIOS","RIO DE JANEIRO DEMAIS CIDADES","SAO GONCALO","SERVICO DE ULTRASSONOGRAFIA ALCANTARA","-","X","X","X","X","X","X","X","X"]
[null,303,"LABORATÓRIOS","RIO DE JANEIRO DEMAIS CIDADES","SAO GONCALO","CLINICA RADIOLOGICA FELICIANO SODRE","-","-","X","X","X","X","X","X","X"]
[null,304,"LABORATÓRIOS","RIO DE JANEIRO DEMAIS CIDADES","SAO GONCALO","PRO ECHO CARDIODATA SERVICOS MEDICOS","-","-","-","X","X","X","X","X","X"]
[null,305,"LABORATÓRIOS","RIO DE JANEIRO DEMAIS CIDADES","SAO GONCALO","SERVICOS RADIOLOGICOS GONCALENSE","-","-","-","X","X","X","X","X","X"]
[null,306,"LABORATÓRIOS","RIO DE JANEIRO DEMAIS CIDADES","SAO GONCALO","LAB DE PATOL CLINICA GOLONI","-","-","-","-","X","X","X","X","X"]
[null,307,"LABORATÓRIOS","RIO DE JANEIRO DEMAIS CIDADES","SAO GONCALO","LAFE SERVICOS MEDICOS DIAGNOSTICOS","-","-","-","-","X","X","X","X","X"]
[null,308,"LABORATÓRIOS","RIO DE JANEIRO DEMAIS CIDADES","SAO GONCALO","LABORATORIO DOM BOSCO","-","-","-","-","-","X","X","X","X"]
[null,309,"LABORATÓRIOS","RIO DE JANEIRO DEMAIS CIDADES","SAO GONCALO","PROSAUDE SERVICO INTEGRADO EM MEDICINA","-","-","-","-","-","X","X","X","X"]
[null,310,"LABORATÓRIOS","RIO DE JANEIRO DEMAIS CIDADES","SAO GONCALO","LABORATORIOS MEDICOS DR SERGIO FRANCO","-","-","-","-","-","-","X","X","X"]
[null,311,"LABORATÓRIOS","RIO DE JANEIRO DEMAIS CIDADES","SAO JOAO DE MERITI","CENTRO MEDICO OFTALMOLOGICO MATRIZ SS","-","X","X","X","X","X","X","X","X"]
[null,312,"LABORATÓRIOS","RIO DE JANEIRO DEMAIS CIDADES","SAO JOAO DE MERITI","LABORATORIOS MEDICOS DR ELIEL FIGUEIREDO","-","X","X","X","X","X","X","X","X"]
[null,313,"LABORATÓRIOS","RIO DE JANEIRO DEMAIS CIDADES","SAO JOAO DE MERITI","LABORATORIOS MEDICOS DR SERGIO FRANCO","-","-","-","-","-","-","X","X","X"]
[null,314,"LABORATÓRIOS","RIO DE JANEIRO DEMAIS CIDADES","TERESOPOLIS","LABORATORIO SAO LUCAS DE ANALISES CLINICAS","-","-","-","X","X","X","X","X","X"]
[null,315,"LABORATÓRIOS","RIO DE JANEIRO DEMAIS CIDADES","TRES RIOS","FERNANDO MARIZ DIAGNOSTICO POR IMAGEM","-","-","-","-","-","X","X","X","X"]
[null,316,"LABORATÓRIOS","RIO DE JANEIRO DEMAIS CIDADES","VOLTA REDONDA","C.E.D.A. CL DE ECOGRAFIA DIAGNOSTICA ANDRADE","-","-","-","X","X","X","X","X","X"]
[null,317,"LABORATÓRIOS","RIO DE JANEIRO DEMAIS CIDADES","VOLTA REDONDA","CLINICA RADIOLOGIA SAO JOAO BATISTA","-","-","-","X","X","X","X","X","X"]
[null,318,"LABORATÓRIOS","RIO DE JANEIRO DEMAIS CIDADES","VOLTA REDONDA","CT TECNICO DE PATOLOGIA CLINICA DE V REDONDA","-","-","-","X","X","X","X","X","X"]
[null,319,"LABORATÓRIOS","RIO DE JANEIRO DEMAIS CIDADES","VOLTA REDONDA","ELETRONEURODIAGNOSTICO DE VOLTA REDONDA","-","-","-","X","X","X","X","X","X"]
[null,320,"LABORATÓRIOS","RIO DE JANEIRO DEMAIS CIDADES","VOLTA REDONDA","LABES LABORATORIO ESPEALIZADO","-","-","-","X","X","X","X","X","X"]
[null,321,"LABORATÓRIOS","RIO DE JANEIRO DEMAIS CIDADES","VOLTA REDONDA","LABORATORIO FALCAO","-","-","-","X","X","X","X","X","X"]
[null,322,"LABORATÓRIOS","RIO DE JANEIRO DEMAIS CIDADES","VOLTA REDONDA","LABORATORIO MEDICO DIAGNOLAB HSN","-","-","-","X","X","X","X","X","X"]
[null,323,"LABORATÓRIOS","RIO DE JANEIRO DEMAIS CIDADES","VOLTA REDONDA","LABORATORIO REUNIDOS DR TULLIO REZENDE","-","-","-","X","X","X","X","X","X"]
[null,324,"LABORATÓRIOS","RIO DE JANEIRO DEMAIS CIDADES","VOLTA REDONDA","LAPEC - LABORATORIO DE ANALISES E PESQ CLIN","-","-","-","X","X","X","X","X","X"]
[null,325,"LABORATÓRIOS","RIO DE JANEIRO DEMAIS CIDADES","VOLTA REDONDA","S R BIANCO ULTRASSONOGRAFIA E DIAGNOSTICO","-","-","-","X","X","X","X","X","X"]
[null,"","","","","","","","","","","","","",""]
[null,"","","","","","","","","","","","","",""]

{"sheet":"Apoio_Rel03","index":10,"n_rows":326,"n_cols":5,"rows_kept":326,"cut":false,"hidden":true,"merged":[]}
["ID","REDE","REGIÃO","CIDADE","NOME FANTASIA"]
[1,"HOSPITAIS","RIO DE JANEIRO CAPITAL","RIO DE JANEIRO","CLINICA DA GAVEA S A"]
[2,"HOSPITAIS","RIO DE JANEIRO CAPITAL","RIO DE JANEIRO","HOSPITAL SAMCI ANDARAI"]
[3,"HOSPITAIS","RIO DE JANEIRO CAPITAL","RIO DE JANEIRO","CLINICA MEDICA AREIA BRANCA"]
[4,"HOSPITAIS","RIO DE JANEIRO CAPITAL","RIO DE JANEIRO","CEMERU - AMESC ASSOCIACAO MEDICA ESPIRITA CRISTA"]
[5,"HOSPITAIS","RIO DE JANEIRO CAPITAL","RIO DE JANEIRO","ASSISTENCIA MEDICA PEDIATRICA DE URGENCIA - AMIU"]
[6,"HOSPITAIS","RIO DE JANEIRO CAPITAL","RIO DE JANEIRO","HOSPITAL QUALI IPANEMA"]
[7,"HOSPITAIS","RIO DE JANEIRO CAPITAL","RIO DE JANEIRO","C SAUDE SAO BENTO (C SAUDE ROSA BARCA )"]
[8,"HOSPITAIS","RIO DE JANEIRO CAPITAL","RIO DE JANEIRO","HOSPITAL RIO MAR"]
[9,"HOSPITAIS","RIO DE JANEIRO CAPITAL","RIO DE JANEIRO","CLINICA CRISTO REI"]
[10,"HOSPITAIS","RIO DE JANEIRO CAPITAL","RIO DE JANEIRO","INSTITUTO DE OFTALMOLOGIA DO RIO DE JANEIRO"]
[11,"HOSPITAIS","RIO DE JANEIRO CAPITAL","RIO DE JANEIRO","HOSPITAL SAMCI TIJUCA"]
[12,"HOSPITAIS","RIO DE JANEIRO CAPITAL","RIO DE JANEIRO","CLINICA DE REPOUSO SANTA ALICE"]
[13,"HOSPITAIS","RIO DE JANEIRO CAPITAL","RIO DE JANEIRO","RIO DAY HOSPITAL"]
[14,"HOSPITAIS","RIO DE JANEIRO CAPITAL","RIO DE JANEIRO","CLINICA CIRURGICA SANTA BARBARA"]
[15,"HOSPITAIS","RIO DE JANEIRO CAPITAL","RIO DE JANEIRO","CASA DE SAUDE GRANDE RIO"]
[16,"HOSPITAIS","RIO DE JANEIRO CAPITAL","RIO DE JANEIRO","CLINICA SAO CARLOS"]
[17,"HOSPITAIS","RIO DE JANEIRO CAPITAL","RIO DE JANEIRO","HOSPITAL ESPANHOL"]
[18,"HOSPITAIS","RIO DE JANEIRO CAPITAL","RIO DE JANEIRO","PROCOR PRONTO SOCORRO CLINICO CARDIOLOGICO"]
[19,"HOSPITAIS","RIO DE JANEIRO CAPITAL","RIO DE JANEIRO","PRONTOBABY"]
[20,"HOSPITAIS","RIO DE JANEIRO CAPITAL","RIO DE JANEIRO","OBRA PORTUGUESA DE ASSISTENCIA"]
[21,"HOSPITAIS","RIO DE JANEIRO CAPITAL","RIO DE JANEIRO","ASSOCIACAO DO HOSP EVANGELICO DO RJ"]
[22,"HOSPITAIS","RIO DE JANEIRO CAPITAL","RIO DE JANEIRO","C.T.O. CLINICA TRAUMATO ORTOPEDICA"]
[23,"HOSPITAIS","RIO DE JANEIRO CAPITAL","RIO DE JANEIRO","FUND ARY FRAUZINO PARA PESQ E CONTROLE DO CANCER"]
[24,"HOSPITAIS","RIO DE JANEIRO CAPITAL","RIO DE JANEIRO","FUNDACAO BELA LOPES DE OLIVEIRA"]
[25,"HOSPITAIS","RIO DE JANEIRO CAPITAL","RIO DE JANEIRO","HOSPITAL DE CLINICAS DE JACAREPAGUA"]
[26,"HOSPITAIS","RIO DE JANEIRO CAPITAL","RIO DE JANEIRO","HOSPITAL ILHA DO GOVERNADOR"]
[27,"HOSPITAIS","RIO DE JANEIRO CAPITAL","RIO DE JANEIRO","HOSPITAL IRAJA - QUATRO AMIGOS"]
[28,"HOSPITAIS","RIO DE JANEIRO CAPITAL","RIO DE JANEIRO","HOSPITAL RIO LARANJEIRAS"]
[29,"HOSPITAIS","RIO DE JANEIRO CAPITAL","RIO DE JANEIRO","HOSPITAL TIJUTRAUMA"]
[30,"HOSPITAIS","RIO DE JANEIRO CAPITAL","RIO DE JANEIRO","HOSPITAL VITAL"]
[31,"HOSPITAIS","RIO DE JANEIRO CAPITAL","RIO DE JANEIRO","POLICLINICA DE BOTAFOGO"]
[32,"HOSPITAIS","RIO DE JANEIRO CAPITAL","RIO DE JANEIRO","PRONTO SOCORRO CLINICO PRONTOCOR - TIJUCA"]
[33,"HOSPITAIS","RIO DE JANEIRO CAPITAL","RIO DE JANEIRO","SEMIU - SERV DE ESPECS MEDS E INTERN DE URGENCIA"]
[34,"HOSPITAIS","RIO DE JANEIRO CAPITAL","RIO DE JANEIRO","CC ZONA OESTE"]
[35,"HOSPITAIS","RIO DE JANEIRO CAPITAL","RIO DE JANEIRO","PRO OFTALMO MICRO CIRURGIA OCULAR"]
[36,"HOSPITAIS","RIO DE JANEIRO CAPITAL","RIO DE JANEIRO","CLINICA PEDIATRICA DA BARRA"]
[37,"HOSPITAIS","RIO DE JANEIRO CAPITAL","RIO DE JANEIRO","HOSPITAL CLIMEDE"]
[38,"HOSPITAIS","RIO DE JANEIRO CAPITAL","RIO DE JANEIRO","CASA DE SAUDE NOSSA SENHORA DO CARMO"]
[39,"HOSPITAIS","RIO DE JANEIRO CAPITAL","RIO DE JANEIRO","HOSP CASA SAO BERNARDO LTDA"]
[40,"HOSPITAIS","RIO DE JANEIRO CAPITAL","RIO DE JANEIRO","CENTRO PEDIATRICO DA LAGOA"]
[41,"HOSPITAIS","RIO DE JANEIRO CAPITAL","RIO DE JANEIRO","HOSPITAL DR. BALBINO"]
[42,"HOSPITAIS","RIO DE JANEIRO CAPITAL","RIO DE JANEIRO","SOCIEDADE ITALIANA DE BENEFICENCIA E MUTUO SOCORRO"]
[43,"HOSPITAIS","RIO DE JANEIRO CAPITAL","RIO DE JANEIRO","CASA DE SAUDE GRAJAU"]
[44,"HOSPITAIS","RIO DE JANEIRO CAPITAL","RIO DE JANEIRO","CASA DE SAUDE SANTA LUCIA"]
[45,"HOSPITAIS","RIO DE JANEIRO CAPITAL","RIO DE JANEIRO","HOSPITAL BANGU"]
[46,"HOSPITAIS","RIO DE JANEIRO CAPITAL","RIO DE JANEIRO","CASA DE PORTUGAL"]
[47,"HOSPITAIS","RIO DE JANEIRO CAPITAL","RIO DE JANEIRO","HOSPITAL DE CLINICAS SAO MATHEUS"]
[48,"HOSPITAIS","RIO DE JANEIRO CAPITAL","RIO DE JANEIRO","HOSPITAL ISRAELITA ALBERT SABIN"]
[49,"HOSPITAIS","RIO DE JANEIRO CAPITAL","RIO DE JANEIRO","HOSPITAL SAO FRANCISCO NA PROVIDENCIA DE DEU"]
[50,"HOSPITAIS","RIO DE JANEIRO CAPITAL","RIO DE JANEIRO","CRIANCA 24HS ATEND INTEGR A CRIANCA E ADOLESC LTDA"]
[51,"HOSPITAIS","RIO DE JANEIRO CAPITAL","RIO DE JANEIRO","IBOL INSTITUTO BRASILEIRO DE OFTALMOLOGIA"]
[52,"HOSPITAIS","RIO DE JANEIRO CAPITAL","RIO DE JANEIRO","CALREN HOSPITAL DO CALCULO RENAL"]
[53,"HOSPITAIS","RIO DE JANEIRO CAPITAL","RIO DE JANEIRO","CASA DE SAUDE PINHEIRO MACHADO"]
[54,"HOSPITAIS","RIO DE JANEIRO CAPITAL","RIO DE JANEIRO","HOSP DE CLINICAS DR ALOAN"]
[55,"HOSPITAIS","RIO DE JANEIRO CAPITAL","RIO DE JANEIRO","HOSPITAL MARIO KROEFF"]
[56,"HOSPITAIS","RIO DE JANEIRO CAPITAL","RIO DE JANEIRO","HOSPITAL SAO LOURENCO"]
[57,"HOSPITAIS","RIO DE JANEIRO CAPITAL","RIO DE JANEIRO","HOSPITAL SAO LUCAS"]
[58,"HOSPITAIS","RIO DE JANEIRO CAPITAL","RIO DE JANEIRO","NORTECOR HOSPITAL DE CLINICAS"]
[59,"HOSPITAIS","RIO DE JANEIRO CAPITAL","RIO DE JANEIRO","CLINICA BENEFICIENTE GUANABARA"]
[60,"HOSPITAIS","RIO DE JANEIRO CAPITAL","RIO DE JANEIRO","CLIMES CLINICA MEDICA ESPECIALIZADA"]
[61,"HOSPITAIS","RIO DE JANEIRO CAPITAL","RIO DE JANEIRO","CLINS REUNIDAS SAO VICTOR S A"]
[62,"HOSPITAIS","RIO DE JANEIRO CAPITAL","RIO DE JANEIRO","DAY CLINIC RIO"]
[63,"HOSPITAIS","RIO DE JANEIRO CAPITAL","RIO DE JANEIRO","HOSPITAL DE OLHOS DO MEIER"]
[64,"HOSPITAIS","RIO DE JANEIRO CAPITAL","RIO DE JANEIRO","HOSPITAL DI CAMP"]
[65,"HOSPITAIS","RIO DE JANEIRO CAPITAL","RIO DE JANEIRO","INST MINNESOTA"]
[66,"HOSPITAIS","RIO DE JANEIRO CAPITAL","RIO DE JANEIRO","HOSPITAL PASTEUR"]
[67,"HOSPITAIS","RIO DE JANEIRO CAPITAL","RIO DE JANEIRO","CASA DE SAUDE SANTA THEREZINHA"]
[68,"HOSPITAIS","RIO DE JANEIRO CAPITAL","RIO DE JANEIRO","HOSPITAL ADVENTISTA SILVESTRE"]
[69,"HOSPITAIS","RIO DE JANEIRO CAPITAL","RIO DE JANEIRO","HOSPITAL DR BADIM"]
[70,"HOSPITAIS","RIO DE JANEIRO CAPITAL","RIO DE JANEIRO","CASA DE SAUDE SAO JOSE"]
[71,"HOSPITAIS","RIO DE JANEIRO CAPITAL","RIO DE JANEIRO","CLINICA PERINATAL LARANJEIRAS"]
[72,"HOSPITAIS","RIO DE JANEIRO CAPITAL","RIO DE JANEIRO","HOSPITAL OESTE D'OR"]
[73,"HOSPITAIS","RIO DE JANEIRO CAPITAL","RIO DE JANEIRO","HOSPITAL VITORIA - (HOSPITAL ALVORADA TAGUATINGA)"]
[74,"HOSPITAIS","RIO DE JANEIRO CAPITAL","RIO DE JANEIRO","CLINICA SAO VICENTE DA GAVEA"]
[75,"HOSPITAIS","RIO DE JANEIRO CAPITAL","RIO DE JANEIRO","HOSPITAL BARRA DOR"]
[76,"HOSPITAIS","RIO DE JANEIRO CAPITAL","RIO DE JANEIRO","HOSPITAL COPA DOR"]
[77,"HOSPITAIS","RIO DE JANEIRO CAPITAL","RIO DE JANEIRO","HOSPITAL NORTE DOR"]
[78,"HOSPITAIS","RIO DE JANEIRO CAPITAL","RIO DE JANEIRO","HOSPITAL QUINTA DOR"]
[79,"HOSPITAIS","RIO DE JANEIRO CAPITAL","RIO DE JANEIRO","HOSPITAL RIOS DOR"]
[80,"HOSPITAIS","RIO DE JANEIRO CAPITAL","RIO DE JANEIRO","HOSPITAL PRO CARDIACO"]
[81,"HOSPITAIS","RIO DE JANEIRO CAPITAL","RIO DE JANEIRO","HOSPITAL SAMARITANO (BARRA)"]
[82,"HOSPITAIS","RIO DE JANEIRO CAPITAL","RIO DE JANEIRO","HOSPITAL SAMARITANO (BOTAFOGO)"]
[83,"HOSPITAIS","RIO DE JANEIRO CAPITAL","RIO DE JANEIRO","HOSP COPA D'DOR STAR"]
[84,"HOSPITAIS","RIO DE JANEIRO DEMAIS CIDADES","ANGRA DOS REIS","HOSPITAL DE PRAIA BRAVA"]
[85,"HOSPITAIS","RIO DE JANEIRO DEMAIS CIDADES","ARARUAMA","HOSP DAS CLINS DA REGIAO DOS LAGOS S A"]
[86,"HOSPITAIS","RIO DE JANEIRO DEMAIS CIDADES","BARRA MANSA","CASA DE SAUDE SANTA MARIA S/A"]
[87,"HOSPITAIS","RIO DE JANEIRO DEMAIS CIDADES","CABO FRIO","HOSPITAL SANTA IZABEL"]
[88,"HOSPITAIS","RIO DE JANEIRO DEMAIS CIDADES","CABO FRIO","CLINERP CL DE VIDEO ENDOSCOPIA E REPR HUMANA LTDA"]
[89,"HOSPITAIS","RIO DE JANEIRO DEMAIS CIDADES","CAMPOS DOS GOYTACAZES","CLINICA CIRURGICA E MATERNIDADE LILIA NEVES LTDA"]
[90,"HOSPITAIS","RIO DE JANEIRO DEMAIS CIDADES","CAMPOS DOS GOYTACAZES","CENTROCOR SERVICOS MEDICOS LTDA"]
[91,"HOSPITAIS","RIO DE JANEIRO DEMAIS CIDADES","CAMPOS DOS GOYTACAZES","INSTITUTO DE MEDICINA NUCLEAR E ENDOCRINOLOGIA LTD"]
[92,"HOSPITAIS","RIO DE JANEIRO DEMAIS CIDADES","CAMPOS DOS GOYTACAZES","PRONTOCARDIO"]
[93,"HOSPITAIS","RIO DE JANEIRO DEMAIS CIDADES","DUQUE DE CAXIAS","H.S COR - SERV DE HEMODIN DE DUQUE DE CAXIAS LTDA"]
[94,"HOSPITAIS","RIO DE JANEIRO DEMAIS CIDADES","DUQUE DE CAXIAS","HOSPITAL DANIEL LIPP LTDA"]
[95,"HOSPITAIS","RIO DE JANEIRO DEMAIS CIDADES","DUQUE DE CAXIAS","CC DUQUE DE CAXIAS"]
[96,"HOSPITAIS","RIO DE JANEIRO DEMAIS CIDADES","DUQUE DE CAXIAS","CLINICA SANTA BRANCA LTDA"]
[97,"HOSPITAIS","RIO DE JANEIRO DEMAIS CIDADES","DUQUE DE CAXIAS","HOSPITAL DE CLINICAS MARIO LIONI"]
[98,"HOSPITAIS","RIO DE JANEIRO DEMAIS CIDADES","ITAGUAI","GRUPO CEMERU SAUDE"]
[99,"HOSPITAIS","RIO DE JANEIRO DEMAIS CIDADES","MACAE","CLINICA SAO LUCAS LTDA"]
[100,"HOSPITAIS","RIO DE JANEIRO DEMAIS CIDADES","MESQUITA","HOSP NOVA IGUACU"]
[101,"HOSPITAIS","RIO DE JANEIRO DEMAIS CIDADES","NILOPOLIS","CLINICA MATERNO INFANTIL DOMINGOS LOURENCO LTDA"]
[102,"HOSPITAIS","RIO DE JANEIRO DEMAIS CIDADES","NITEROI","CASA DE SAUDE E MATERNIDADE SANTA MARTHA S/A"]
[103,"HOSPITAIS","RIO DE JANEIRO DEMAIS CIDADES","NITEROI","CLINICA LUIZ PIRES DE MELLO LTDA"]
[104,"HOSPITAIS","RIO DE JANEIRO DEMAIS CIDADES","NITEROI","MATERNIDADE SAO FRANCISCO"]
[105,"HOSPITAIS","RIO DE JANEIRO DEMAIS CIDADES","NITEROI","CASA DE SAUDE STA RITA DE CASSIA-ALAMEDA"]
[106,"HOSPITAIS","RIO DE JANEIRO DEMAIS CIDADES","NITEROI","SAO SEBASTIAO HOSP DE CLINICAS (SICOR RIO)"]
[107,"HOSPITAIS","RIO DE JANEIRO DEMAIS CIDADES","NITEROI","HOSPITAL OFTALMOLOGICO SANTA BEATRIZ LTDA"]
[108,"HOSPITAIS","RIO DE JANEIRO DEMAIS CIDADES","NITEROI","HOSPITAL ICARAI"]
[109,"HOSPITAIS","RIO DE JANEIRO DEMAIS CIDADES","NITEROI","HOSPITAL GERAL DO INGA"]
[110,"HOSPITAIS","RIO DE JANEIRO DEMAIS CIDADES","NITEROI","IMPAR SERVS HOSPARES S A"]
[111,"HOSPITAIS","RIO DE JANEIRO DEMAIS CIDADES","NITEROI","OFTALMOCLINICA ICARAI"]
[112,"HOSPITAIS","RIO DE JANEIRO DEMAIS CIDADES","NITEROI","HOSPITAL NITEROI DOR"]
[113,"HOSPITAIS","RIO DE JANEIRO DEMAIS CIDADES","NOVA IGUACU","HOSPITAL GERAL PRONTONIL LTDA ME"]
[114,"HOSPITAIS","RIO DE JANEIRO DEMAIS CIDADES","NOVA IGUACU","CASA DE SAUDE NSA SRA FATIMA DE NOVA IGUACU"]
[115,"HOSPITAIS","RIO DE JANEIRO DEMAIS CIDADES","PARACAMBI","CASA DE SAUDE N SRA APARECIDA DE PARACAMBI LTDA"]
[116,"HOSPITAIS","RIO DE JANEIRO DEMAIS CIDADES","PETROPOLIS","HOSP SANTA TERESA (ASSOC CONG SANTA CATARINA)"]
[117,"HOSPITAIS","RIO DE JANEIRO DEMAIS CIDADES","PETROPOLIS","SMH SOCIEDADE MEDICO HOSPITALAR LTDA"]
[118,"HOSPITAIS","RIO DE JANEIRO DEMAIS CIDADES","RESENDE","SAMER SERV DE ASSIST MEDICA DE RESENDE S/C LTDA"]
[119,"HOSPITAIS","RIO DE JANEIRO DEMAIS CIDADES","RIO DAS OSTRAS","CLIN MATER DEI"]
[120,"HOSPITAIS","RIO DE JANEIRO DEMAIS CIDADES","SAO FIDELIS","ASSOCIACAO HOSPITALAR ARMANDO VIDAL"]
[121,"HOSPITAIS","RIO DE JANEIRO DEMAIS CIDADES","SAO GONCALO","C SAUDE SAO JOSE SAO GONCALO (NANCI E CIA LTDA)"]
[122,"HOSPITAIS","RIO DE JANEIRO DEMAIS CIDADES","SAO GONCALO","HOSPITAL DO CORACAO SAMCORDIS LTDA"]
[123,"HOSPITAIS","RIO DE JANEIRO DEMAIS CIDADES","SAO GONCALO","CC SAO GONCALO"]
[124,"HOSPITAIS","RIO DE JANEIRO DEMAIS CIDADES","SAO GONCALO","CLINICA SAO GONCALO S/A."]
[125,"HOSPITAIS","RIO DE JANEIRO DEMAIS CIDADES","SAO GONCALO","OFTALMOCLINICA SAO GONCALO"]
[126,"HOSPITAIS","RIO DE JANEIRO DEMAIS CIDADES","SAO GONCALO","HOSP ATLANTICO"]
[127,"HOSPITAIS","RIO DE JANEIRO DEMAIS CIDADES","SAO JOAO DE MERITI","C SAUDE E MAT TEREZINHA DE JESUS LTDA"]
[128,"HOSPITAIS","RIO DE JANEIRO DEMAIS CIDADES","TERESOPOLIS","ASSOC CONGR STA CATARINA - HOSP SAO JOSE"]
[129,"HOSPITAIS","RIO DE JANEIRO DEMAIS CIDADES","TRES RIOS","HOSPITAL DE CLINICAS NOSSA SENHORA DA CONCEICAO"]
[130,"HOSPITAIS","RIO DE JANEIRO DEMAIS CIDADES","VASSOURAS","HOSPITAL UNIVERSITARIO SUL FLUMINENSE"]
[131,"HOSPITAIS","RIO DE JANEIRO DEMAIS CIDADES","VOLTA REDONDA","HOSPITAL JARDIM AMALIA LTDA - HINJA"]
[132,"HOSPITAIS","RIO DE JANEIRO DEMAIS CIDADES","VOLTA REDONDA","HOSPITAL VITA VOLTA REDONDA S/A"]
[133,"LABORATÓRIOS","RIO DE JANEIRO CAPITAL","RIO DE JANEIRO","CLINICA LAN"]
[134,"LABORATÓRIOS","RIO DE JANEIRO CAPITAL","RIO DE JANEIRO","ENDOMAIS SERVS MEDS LTDA ME"]
[135,"LABORATÓRIOS","RIO DE JANEIRO CAPITAL","RIO DE JANEIRO","GASTROVIEW"]
[136,"LABORATÓRIOS","RIO DE JANEIRO CAPITAL","RIO DE JANEIRO","GASTROMED"]
[137,"LABORATÓRIOS","RIO DE JANEIRO CAPITAL","RIO DE JANEIRO","LABORATORIOS MEDICOS DR ELIEL FIGUEIREDO"]
[138,"LABORATÓRIOS","RIO DE JANEIRO CAPITAL","RIO DE JANEIRO","UROLABS"]
[139,"LABORATÓRIOS","RIO DE JANEIRO CAPITAL","RIO DE JANEIRO","UROLOGIC"]
[140,"LABORATÓRIOS","RIO DE JANEIRO CAPITAL","RIO DE JANEIRO","INSTITUTO HERMES PARDINI (MEDICINA GUANABARA)"]
[141,"LABORATÓRIOS","RIO DE JANEIRO CAPITAL","RIO DE JANEIRO","D IMAGEM"]
[142,"LABORATÓRIOS","RIO DE JANEIRO CAPITAL","RIO DE JANEIRO","CENTRO FONOAUDI ARAUJO CID "]
[143,"LABORATÓRIOS","RIO DE JANEIRO CAPITAL","RIO DE JANEIRO","KINESIUS"]
[144,"LABORATÓRIOS","RIO DE JANEIRO CAPITAL","RIO DE JANEIRO","AUD RIO "]
[145,"LABORATÓRIOS","RIO DE JANEIRO CAPITAL","RIO DE JANEIRO","ESPACO FLEX "]
[146,"LABORATÓRIOS","RIO DE JANEIRO CAPITAL","RIO DE JANEIRO","ASSOC. FISIOTERAPIA "]
[147,"LABORATÓRIOS","RIO DE JANEIRO CAPITAL","RIO DE JANEIRO","INTEGRARE"]
[148,"LABORATÓRIOS","RIO DE JANEIRO CAPITAL","RIO DE JANEIRO","3 D DIAGNOSE"]
[149,"LABORATÓRIOS","RIO DE JANEIRO CAPITAL","RIO DE JANEIRO","CENTRO DE MEDICINA NUCLEAR DA GUANABARA"]
[150,"LABORATÓRIOS","RIO DE JANEIRO CAPITAL","RIO DE JANEIRO","CEPEM CENTRO DE PESQUISA DA MULHER"]
[151,"LABORATÓRIOS","RIO DE JANEIRO CAPITAL","RIO DE JANEIRO","CLINICA DE ULTRA-SONOGRAFIA DA BARRA"]
[152,"LABORATÓRIOS","RIO DE JANEIRO CAPITAL","RIO DE JANEIRO","CLINICA DE ULTRASSONOGRAFIA GALEAO"]
[153,"LABORATÓRIOS","RIO DE JANEIRO CAPITAL","RIO DE JANEIRO","DLC DIAGNOSTICOS EPP"]
[154,"LABORATÓRIOS","RIO DE JANEIRO CAPITAL","RIO DE JANEIRO","LABORATORIO BIOMEDICO LB"]
[155,"LABORATÓRIOS","RIO DE JANEIRO CAPITAL","RIO DE JANEIRO","LAGAM LABORATORIO DE PATOLOGIA"]
[156,"LABORATÓRIOS","RIO DE JANEIRO CAPITAL","RIO DE JANEIRO","LIFE IMAGEM - DIAGNOSTICO POR IMAGEM"]
[157,"LABORATÓRIOS","RIO DE JANEIRO CAPITAL","RIO DE JANEIRO","PLANETA PHISIO FISIOTERAPIA - EPP"]
[158,"LABORATÓRIOS","RIO DE JANEIRO CAPITAL","RIO DE JANEIRO","RX BANDEIRANTES SERVICOS RADIOLOGICOS"]
[159,"LABORATÓRIOS","RIO DE JANEIRO CAPITAL","RIO DE JANEIRO","SILVESTRE CLINICA FISIOTERAPIA ME"]
[160,"LABORATÓRIOS","RIO DE JANEIRO CAPITAL","RIO DE JANEIRO","SONUS SERVICOS MEDICOS"]
[161,"LABORATÓRIOS","RIO DE JANEIRO CAPITAL","RIO DE JANEIRO","ULTRASONOGRAFIA BARRA BANGU"]
[162,"LABORATÓRIOS","RIO DE JANEIRO CAPITAL","RIO DE JANEIRO","CARDIODIAGNOSE SERVICOS MEDICOS"]
[163,"LABORATÓRIOS","RIO DE JANEIRO CAPITAL","RIO DE JANEIRO","CEDIMAGEM-CENTRO DE DIAGNOSTICO"]
[164,"LABORATÓRIOS","RIO DE JANEIRO CAPITAL","RIO DE JANEIRO","ECOR ECOCARDIOGRAFIA"]
[165,"LABORATÓRIOS","RIO DE JANEIRO CAPITAL","RIO DE JANEIRO","CLINICA LUIZ FELIPPE MATTOSO"]
[166,"LABORATÓRIOS","RIO DE JANEIRO CAPITAL","RIO DE JANEIRO","INSTITUTO DE ANALISES CLINICAS BANGU"]
[167,"LABORATÓRIOS","RIO DE JANEIRO CAPITAL","RIO DE JANEIRO","PREVTOTAL LABORATORIO DE IMAGEM"]
[168,"LABORATÓRIOS","RIO DE JANEIRO CAPITAL","RIO DE JANEIRO","ULTRA-SONOGRAFIA BOTAFOGO ."]
[169,"LABORATÓRIOS","RIO DE JANEIRO CAPITAL","RIO DE JANEIRO","ULTRA-SONOGRAFIA DA BARRA IPANEMA"]
[170,"LABORATÓRIOS","RIO DE JANEIRO CAPITAL","RIO DE JANEIRO","CENTRO MEDICO E DIAGNOSTICO DA TIJUCA"]
[171,"LABORATÓRIOS","RIO DE JANEIRO CAPITAL","RIO DE JANEIRO","CLINICA COPACABANA"]
[172,"LABORATÓRIOS","RIO DE JANEIRO CAPITAL","RIO DE JANEIRO","CLINICA MEDICA E ODONTOLOGICA BERNARDO"]
[173,"LABORATÓRIOS","RIO DE JANEIRO CAPITAL","RIO DE JANEIRO","IRM RESSONANCIA MAGNETICA"]
[174,"LABORATÓRIOS","RIO DE JANEIRO CAPITAL","RIO DE JANEIRO","PRO ECHO CARDIODATA SERVICOS MEDICOS"]
[175,"LABORATÓRIOS","RIO DE JANEIRO CAPITAL","RIO DE JANEIRO","CENTRO MEDICO ROCHA MIRANDA"]
[176,"LABORATÓRIOS","RIO DE JANEIRO CAPITAL","RIO DE JANEIRO","CRUZEIRO DO SUL MEDICINA DIAGNOSTICA"]
[177,"LABORATÓRIOS","RIO DE JANEIRO CAPITAL","RIO DE JANEIRO","DIAGNOMED EXAMES COMPLEMENTARES"]
[178,"LABORATÓRIOS","RIO DE JANEIRO CAPITAL","RIO DE JANEIRO","LABORATORIO BRONSTEIN"]
[179,"LABORATÓRIOS","RIO DE JANEIRO CAPITAL","RIO DE JANEIRO","LAFE SERVICOS MEDICOS DIAGNOSTICOS"]
[180,"LABORATÓRIOS","RIO DE JANEIRO CAPITAL","RIO DE JANEIRO","MEDICAL DATA SYSTEMS"]
[181,"LABORATÓRIOS","RIO DE JANEIRO CAPITAL","RIO DE JANEIRO","AMACOR SERVICOS MEDICOS E EXAMES COMPLEMENTARES"]
[182,"LABORATÓRIOS","RIO DE JANEIRO CAPITAL","RIO DE JANEIRO","CENTRO MEDICO PILARES"]
[183,"LABORATÓRIOS","RIO DE JANEIRO CAPITAL","RIO DE JANEIRO","CLINICA RADIOLOGICA SAO SEBASTIAO"]
[184,"LABORATÓRIOS","RIO DE JANEIRO CAPITAL","RIO DE JANEIRO","DANIELE GUSMAO SERVICOS MEDICOS CARDIOLOGICOS"]
[185,"LABORATÓRIOS","RIO DE JANEIRO CAPITAL","RIO DE JANEIRO","MEDCOR SERVICOS CARDIOLOGICOS"]
[186,"LABORATÓRIOS","RIO DE JANEIRO CAPITAL","RIO DE JANEIRO","SERGIO ZUSMAN"]
[187,"LABORATÓRIOS","RIO DE JANEIRO CAPITAL","RIO DE JANEIRO","CENTRO MEDICO RIO MAR"]
[188,"LABORATÓRIOS","RIO DE JANEIRO CAPITAL","RIO DE JANEIRO","CICRC - DR CARLOS ALBERTO SORIA"]
[189,"LABORATÓRIOS","RIO DE JANEIRO CAPITAL","RIO DE JANEIRO","CLUB D A"]
[190,"LABORATÓRIOS","RIO DE JANEIRO CAPITAL","RIO DE JANEIRO","EXMED RIO CONSULTORIA TECNICA"]
[191,"LABORATÓRIOS","RIO DE JANEIRO CAPITAL","RIO DE JANEIRO","SAMPEI CLINICA RADIOLOGICA DR THADEU LUCCHESI"]
[192,"LABORATÓRIOS","RIO DE JANEIRO CAPITAL","RIO DE JANEIRO","LABORATORIO LAMINA"]
[193,"LABORATÓRIOS","RIO DE JANEIRO CAPITAL","RIO DE JANEIRO","LABORATORIOS MEDICOS DR SERGIO FRANCO"]
[194,"LABORATÓRIOS","RIO DE JANEIRO CAPITAL","RIO DE JANEIRO","ABBR - ASSOCIACAO BRASILEIRA BENEFICENTE DE REABIL"]
[195,"LABORATÓRIOS","RIO DE JANEIRO DEMAIS CIDADES","ANGRA DOS REIS","ANGRA LAB - LAB DE ANAL CL DE ANGRA DOS REIS"]
[196,"LABORATÓRIOS","RIO DE JANEIRO DEMAIS CIDADES","ANGRA DOS REIS","CLIN MED AMBULATORIAL SOJ"]
[197,"LABORATÓRIOS","RIO DE JANEIRO DEMAIS CIDADES","ANGRA DOS REIS","CLINICA DE IMAGEM COMPUTADORIZADA"]
[198,"LABORATÓRIOS","RIO DE JANEIRO DEMAIS CIDADES","ANGRA DOS REIS","CLINICA SANTA AMELIA"]
[199,"LABORATÓRIOS","RIO DE JANEIRO DEMAIS CIDADES","ANGRA DOS REIS","TM & B - LABORATORIO DE ANALISE CLINICAS ME"]
[200,"LABORATÓRIOS","RIO DE JANEIRO DEMAIS CIDADES","ANGRA DOS REIS","ULTRA-SONOGRAFIA WINSTON MARQUES DE ANDRADE"]
[201,"LABORATÓRIOS","RIO DE JANEIRO DEMAIS CIDADES","ANGRA DOS REIS","CENTRO DE DIAGNOSTICO BIOMEDICO-CDB"]
[202,"LABORATÓRIOS","RIO DE JANEIRO DEMAIS CIDADES","ARARUAMA","CLINICA DE FISIOTERAPIA FISIOLAGOS"]
[203,"LABORATÓRIOS","RIO DE JANEIRO DEMAIS CIDADES","ARARUAMA","EXATA LABORATORIO DE ANALISES CLINICAS"]
[204,"LABORATÓRIOS","RIO DE JANEIRO DEMAIS CIDADES","BARRA DO PIRAI","CLINICA SAO MIGUEL"]
[205,"LABORATÓRIOS","RIO DE JANEIRO DEMAIS CIDADES","BARRA DO PIRAI","LABORATORIO MEDICO DR FALCAO B P"]
[206,"LABORATÓRIOS","RIO DE JANEIRO DEMAIS CIDADES","BARRA MANSA","C.E.D.A. CL DE ECOGRAFIA DIAGNOSTICA ANDRADE"]
[207,"LABORATÓRIOS","RIO DE JANEIRO DEMAIS CIDADES","BARRA MANSA","HEMOLAB LAB DE HEMAT E ANALISES CLINICAS"]
[208,"LABORATÓRIOS","RIO DE JANEIRO DEMAIS CIDADES","BARRA MANSA","J C HENRIQUES LAB DE ANALISES CLINICAS"]
[209,"LABORATÓRIOS","RIO DE JANEIRO DEMAIS CIDADES","BARRA MANSA","LACLIN LAB. DE ANALISES CLIN DE BARRA MANSA"]
[210,"LABORATÓRIOS","RIO DE JANEIRO DEMAIS CIDADES","BARRA MANSA","LABORATORIO MEDICO DIAGNOLAB HSN"]
[211,"LABORATÓRIOS","RIO DE JANEIRO DEMAIS CIDADES","BARRA MANSA","LABORATORIO MEDICO DIAGNOLAB"]
[212,"LABORATÓRIOS","RIO DE JANEIRO DEMAIS CIDADES","BELFORD ROXO","NEUROFISIOLOGIA CLIN DE IGUACU LTDA"]
[213,"LABORATÓRIOS","RIO DE JANEIRO DEMAIS CIDADES","BELFORD ROXO","DIMAGEM DIAG POR IMAGEM LTDA"]
[214,"LABORATÓRIOS","RIO DE JANEIRO DEMAIS CIDADES","BELFORD ROXO","LABORATORIOS MEDICOS DR ELIEL FIGUEIREDO"]
[215,"LABORATÓRIOS","RIO DE JANEIRO DEMAIS CIDADES","CABO FRIO","CENTRO DE DIAGNOSTICO CITOLOGICO"]
[216,"LABORATÓRIOS","RIO DE JANEIRO DEMAIS CIDADES","CABO FRIO","CLINICA DE ACUPUNTURA E TERAPIA COMPLEMENTARES LTD"]
[217,"LABORATÓRIOS","RIO DE JANEIRO DEMAIS CIDADES","CABO FRIO","ILAGOS DIAGNOSTICOS POR IMAGEM"]
[218,"LABORATÓRIOS","RIO DE JANEIRO DEMAIS CIDADES","CABO FRIO","LABORATORIO O S REZENDE"]
[219,"LABORATÓRIOS","RIO DE JANEIRO DEMAIS CIDADES","CAMPOS DOS GOYTACAZES","ANDREA GUEDES CLINICA MEDICA EIRELI"]
[220,"LABORATÓRIOS","RIO DE JANEIRO DEMAIS CIDADES","CAMPOS DOS GOYTACAZES","BEDAIMAGEM SERVICOS MEDICOS"]
[221,"LABORATÓRIOS","RIO DE JANEIRO DEMAIS CIDADES","CAMPOS DOS GOYTACAZES","CLINICA SANTA MARIA DE CAMPOS"]
[222,"LABORATÓRIOS","RIO DE JANEIRO DEMAIS CIDADES","CAMPOS DOS GOYTACAZES","LABORATORIO DE PESQUISAS CLINICAS"]
[223,"LABORATÓRIOS","RIO DE JANEIRO DEMAIS CIDADES","CAMPOS DOS GOYTACAZES","RAD MED DIAGNOSTICO POR IMAGEM"]
[224,"LABORATÓRIOS","RIO DE JANEIRO DEMAIS CIDADES","CAMPOS DOS GOYTACAZES","BEDALAB LABORATORIO DE ANALISES CLINICAS"]
[225,"LABORATÓRIOS","RIO DE JANEIRO DEMAIS CIDADES","CAMPOS DOS GOYTACAZES","CLINICA DE FISIOTERAPIA FISIOVIDA"]
[226,"LABORATÓRIOS","RIO DE JANEIRO DEMAIS CIDADES","CAMPOS DOS GOYTACAZES","UNICAMPOS UNIDADE DE IMAGEM DE CAMPOS"]
[227,"LABORATÓRIOS","RIO DE JANEIRO DEMAIS CIDADES","DUQUE DE CAXIAS","LABORATORIOS MEDICOS DR ELIEL FIGUEIREDO"]
[228,"LABORATÓRIOS","RIO DE JANEIRO DEMAIS CIDADES","DUQUE DE CAXIAS","SKOPIA SERV. MEDICOS "]
[229,"LABORATÓRIOS","RIO DE JANEIRO DEMAIS CIDADES","DUQUE DE CAXIAS","FISIOMED"]
[230,"LABORATÓRIOS","RIO DE JANEIRO DEMAIS CIDADES","DUQUE DE CAXIAS","CG EGO CONSULTORIO "]
[231,"LABORATÓRIOS","RIO DE JANEIRO DEMAIS CIDADES","DUQUE DE CAXIAS","CENTRO DE MEDICINA NUCLEAR DA GUANABARA"]
[232,"LABORATÓRIOS","RIO DE JANEIRO DEMAIS CIDADES","DUQUE DE CAXIAS","CLINICA DE RADIOLOGIA RIO DE JANEIRO"]
[233,"LABORATÓRIOS","RIO DE JANEIRO DEMAIS CIDADES","DUQUE DE CAXIAS","CLINOLHOS CLINICA DE OLHOS ME"]
[234,"LABORATÓRIOS","RIO DE JANEIRO DEMAIS CIDADES","DUQUE DE CAXIAS","LIFE IMAGEM - DIAGNOSTICO POR IMAGEM"]
[235,"LABORATÓRIOS","RIO DE JANEIRO DEMAIS CIDADES","DUQUE DE CAXIAS","LABORATORIO DE ANAL CLINICAS LIPASE"]
[236,"LABORATÓRIOS","RIO DE JANEIRO DEMAIS CIDADES","DUQUE DE CAXIAS","METODOS DIAGNOSTICOS COMPLEMENTARES"]
[237,"LABORATÓRIOS","RIO DE JANEIRO DEMAIS CIDADES","DUQUE DE CAXIAS","SMH SOCIEDADE MEDICO HOSPAR (BENEF DE PETROPO"]
[238,"LABORATÓRIOS","RIO DE JANEIRO DEMAIS CIDADES","DUQUE DE CAXIAS","CEYC SAUDE SERVICOS MEDICOS"]
[239,"LABORATÓRIOS","RIO DE JANEIRO DEMAIS CIDADES","DUQUE DE CAXIAS","LAFE SERVICOS MEDICOS DIAGNOSTICOS"]
[240,"LABORATÓRIOS","RIO DE JANEIRO DEMAIS CIDADES","DUQUE DE CAXIAS","FISIOTERAPIA HOME CLIN CARE"]
[241,"LABORATÓRIOS","RIO DE JANEIRO DEMAIS CIDADES","DUQUE DE CAXIAS","LABORATORIOS MEDICOS DR SERGIO FRANCO"]
[242,"LABORATÓRIOS","RIO DE JANEIRO DEMAIS CIDADES","ITABORAI","BABY CLINICA"]
[243,"LABORATÓRIOS","RIO DE JANEIRO DEMAIS CIDADES","ITABORAI","LABORATORIOS MEDICOS DR SERGIO FRANCO"]
[244,"LABORATÓRIOS","RIO DE JANEIRO DEMAIS CIDADES","ITAGUAI","LABORATORIOS MEDICOS DR SERGIO FRANCO"]
[245,"LABORATÓRIOS","RIO DE JANEIRO DEMAIS CIDADES","MACAE","ALCYR ALVES FERREIRA E CIA"]
[246,"LABORATÓRIOS","RIO DE JANEIRO DEMAIS CIDADES","MACAE","Q H Z ANALISES CLINICAS"]
[247,"LABORATÓRIOS","RIO DE JANEIRO DEMAIS CIDADES","MACAE","LABORATORIO DE ANALISES CLINICAS PIONNER"]
[248,"LABORATÓRIOS","RIO DE JANEIRO DEMAIS CIDADES","MAGE","LACE LABORAT DE ANALISES CLIN ESPECIAL ME"]
[249,"LABORATÓRIOS","RIO DE JANEIRO DEMAIS CIDADES","MAGE","CLIMAMP CL MED AMBULATORIAL PIABETA"]
[250,"LABORATÓRIOS","RIO DE JANEIRO DEMAIS CIDADES","MAGE","LABOCLIN LABORATORIO DE ANALISES CLINICAS"]
[251,"LABORATÓRIOS","RIO DE JANEIRO DEMAIS CIDADES","MARICA","LAB DE PATOL CLINICA GOLONI"]
[252,"LABORATÓRIOS","RIO DE JANEIRO DEMAIS CIDADES","MARICA","D IMAGEM DIAGNOSTICOS POR IMAGEM"]
[253,"LABORATÓRIOS","RIO DE JANEIRO DEMAIS CIDADES","MARICA","LABORATORIO DOM BOSCO"]
[254,"LABORATÓRIOS","RIO DE JANEIRO DEMAIS CIDADES","MARICA","LABORATORIOS MEDICOS DR SERGIO FRANCO"]
[255,"LABORATÓRIOS","RIO DE JANEIRO DEMAIS CIDADES","MESQUITA","CENTRO MEDICO MESQUITA"]
[256,"LABORATÓRIOS","RIO DE JANEIRO DEMAIS CIDADES","NILOPOLIS","D IMAGEM"]
[257,"LABORATÓRIOS","RIO DE JANEIRO DEMAIS CIDADES","NILOPOLIS","LABORATORIOS MEDICOS DR ELIEL FIGUEIREDO"]
[258,"LABORATÓRIOS","RIO DE JANEIRO DEMAIS CIDADES","NILOPOLIS","CENTRO MEDICO E IMAGENS PALADINO -ME"]
[259,"LABORATÓRIOS","RIO DE JANEIRO DEMAIS CIDADES","NILOPOLIS","LAFE SERVICOS MEDICOS DIAGNOSTICOS"]
[260,"LABORATÓRIOS","RIO DE JANEIRO DEMAIS CIDADES","NILOPOLIS","LABORATORIOS MEDICOS DR SERGIO FRANCO"]
[261,"LABORATÓRIOS","RIO DE JANEIRO DEMAIS CIDADES","NITEROI","GASTROLIFE GFM SERVS MEDS LTDA"]
[262,"LABORATÓRIOS","RIO DE JANEIRO DEMAIS CIDADES","NITEROI","CERPAM CENTRO DE REAB S S LTDA ME"]
[263,"LABORATÓRIOS","RIO DE JANEIRO DEMAIS CIDADES","NITEROI","CLIN DE FISIOT E REAB LTDA"]
[264,"LABORATÓRIOS","RIO DE JANEIRO DEMAIS CIDADES","NITEROI","INTEGRARE "]
[265,"LABORATÓRIOS","RIO DE JANEIRO DEMAIS CIDADES","NITEROI","LABORATORIO BIOMEDICO LB"]
[266,"LABORATÓRIOS","RIO DE JANEIRO DEMAIS CIDADES","NITEROI","LABORATORIO DE ANALISES CLINICAS PASCOTO"]
[267,"LABORATÓRIOS","RIO DE JANEIRO DEMAIS CIDADES","NITEROI","LAB DE PATOL CLINICA GOLONI"]
[268,"LABORATÓRIOS","RIO DE JANEIRO DEMAIS CIDADES","NITEROI","LAFE SERVICOS MEDICOS DIAGNOSTICOS"]
[269,"LABORATÓRIOS","RIO DE JANEIRO DEMAIS CIDADES","NITEROI","LABORATORIO DOM BOSCO"]
[270,"LABORATÓRIOS","RIO DE JANEIRO DEMAIS CIDADES","NITEROI","LABORATORIO MORALES"]
[271,"LABORATÓRIOS","RIO DE JANEIRO DEMAIS CIDADES","NOVA FRIBURGO","RADIOLOGICA DE FRIBURGO DIAGNOSTICO POR IMAGEM LTD"]
[272,"LABORATÓRIOS","RIO DE JANEIRO DEMAIS CIDADES","NOVA IGUACU","LABORATORIOS MEDICOS DR ELIEL FIGUEIREDO"]
[273,"LABORATÓRIOS","RIO DE JANEIRO DEMAIS CIDADES","NOVA IGUACU","D IMAGEM"]
[274,"LABORATÓRIOS","RIO DE JANEIRO DEMAIS CIDADES","NOVA IGUACU","MEDCLINIC VITA"]
[275,"LABORATÓRIOS","RIO DE JANEIRO DEMAIS CIDADES","NOVA IGUACU","FISIOCLIN"]
[276,"LABORATÓRIOS","RIO DE JANEIRO DEMAIS CIDADES","NOVA IGUACU","CENTRO DE MEDICINA NUCLEAR DA GUANABARA"]
[277,"LABORATÓRIOS","RIO DE JANEIRO DEMAIS CIDADES","NOVA IGUACU","CLINICA RADIOLOGICA NOVA IGUACU"]
[278,"LABORATÓRIOS","RIO DE JANEIRO DEMAIS CIDADES","NOVA IGUACU","LAFE SERVICOS MEDICOS DIAGNOSTICOS"]
[279,"LABORATÓRIOS","RIO DE JANEIRO DEMAIS CIDADES","NOVA IGUACU","LABORATORIOS MEDICOS DR SERGIO FRANCO"]
[280,"LABORATÓRIOS","RIO DE JANEIRO DEMAIS CIDADES","PETROPOLIS","CENTRO MEDICO LOUIS PASTEUR"]
[281,"LABORATÓRIOS","RIO DE JANEIRO DEMAIS CIDADES","PETROPOLIS","CLINICA DR FRAGOSO BORGES"]
[282,"LABORATÓRIOS","RIO DE JANEIRO DEMAIS CIDADES","PETROPOLIS","CLINICA RADIOLOGICA PEDRO II"]
[283,"LABORATÓRIOS","RIO DE JANEIRO DEMAIS CIDADES","PETROPOLIS","ESPACO CLINICO PETROPOLIS"]
[284,"LABORATÓRIOS","RIO DE JANEIRO DEMAIS CIDADES","PETROPOLIS","LABORATORIO DR HOMERO SOARES RAMOS"]
[285,"LABORATÓRIOS","RIO DE JANEIRO DEMAIS CIDADES","PETROPOLIS","SERVICO DE HEMATOLOGIA ERNESTO BAFFI"]
[286,"LABORATÓRIOS","RIO DE JANEIRO DEMAIS CIDADES","PETROPOLIS","LABORATORIOS MEDICOS DR SERGIO FRANCO"]
[287,"LABORATÓRIOS","RIO DE JANEIRO DEMAIS CIDADES","QUEIMADOS","CLINICA CONTEMPORANEA"]
[288,"LABORATÓRIOS","RIO DE JANEIRO DEMAIS CIDADES","QUEIMADOS","LABORATORIOS MEDICOS DR ELIEL FIGUEIREDO"]
[289,"LABORATÓRIOS","RIO DE JANEIRO DEMAIS CIDADES","RESENDE","CENTRO DE DIAGNOSTICO CLAUDIO RAMOS"]
[290,"LABORATÓRIOS","RIO DE JANEIRO DEMAIS CIDADES","RESENDE","PROEXAMES SERVICOS MEDICOS"]
[291,"LABORATÓRIOS","RIO DE JANEIRO DEMAIS CIDADES","RESENDE","RM DIAGNOSTICO POR IMAGEM"]
[292,"LABORATÓRIOS","RIO DE JANEIRO DEMAIS CIDADES","RESENDE","UNICLINICAS"]
[293,"LABORATÓRIOS","RIO DE JANEIRO DEMAIS CIDADES","RESENDE","CENTRO DE DIAGNOSTICO CLAUDIO RAMOS -CEDIMAGEM"]
[294,"LABORATÓRIOS","RIO DE JANEIRO DEMAIS CIDADES","SAO GONCALO","CLIMEDT ENDOS"]
[295,"LABORATÓRIOS","RIO DE JANEIRO DEMAIS CIDADES","SAO GONCALO","FISIO DOR"]
[296,"LABORATÓRIOS","RIO DE JANEIRO DEMAIS CIDADES","SAO GONCALO","CARDIOMED S/S"]
[297,"LABORATÓRIOS","RIO DE JANEIRO DEMAIS CIDADES","SAO GONCALO","CLINICA DE ULTRASSONOGRAFIA GALEAO"]
[298,"LABORATÓRIOS","RIO DE JANEIRO DEMAIS CIDADES","SAO GONCALO","FISIO DOR FISIOTERAPIA E REABILITACAO ME"]
[299,"LABORATÓRIOS","RIO DE JANEIRO DEMAIS CIDADES","SAO GONCALO","LABORATORIO DE ANALISES CLINICAS PASCOTO"]
[300,"LABORATÓRIOS","RIO DE JANEIRO DEMAIS CIDADES","SAO GONCALO","CC SAO GONCALO (NOVO)"]
[301,"LABORATÓRIOS","RIO DE JANEIRO DEMAIS CIDADES","SAO GONCALO","RAFA METODO GRAFICO E IMAGEM DIAGNOSTICA ME"]
[302,"LABORATÓRIOS","RIO DE JANEIRO DEMAIS CIDADES","SAO GONCALO","SERVICO DE ULTRASSONOGRAFIA ALCANTARA"]
[303,"LABORATÓRIOS","RIO DE JANEIRO DEMAIS CIDADES","SAO GONCALO","CLINICA RADIOLOGICA FELICIANO SODRE"]
[304,"LABORATÓRIOS","RIO DE JANEIRO DEMAIS CIDADES","SAO GONCALO","PRO ECHO CARDIODATA SERVICOS MEDICOS"]
[305,"LABORATÓRIOS","RIO DE JANEIRO DEMAIS CIDADES","SAO GONCALO","SERVICOS RADIOLOGICOS GONCALENSE"]
[306,"LABORATÓRIOS","RIO DE JANEIRO DEMAIS CIDADES","SAO GONCALO","LAB DE PATOL CLINICA GOLONI"]
[307,"LABORATÓRIOS","RIO DE JANEIRO DEMAIS CIDADES","SAO GONCALO","LAFE SERVICOS MEDICOS DIAGNOSTICOS"]
[308,"LABORATÓRIOS","RIO DE JANEIRO DEMAIS CIDADES","SAO GONCALO","LABORATORIO DOM BOSCO"]
[309,"LABORATÓRIOS","RIO DE JANEIRO DEMAIS CIDADES","SAO GONCALO","PROSAUDE SERVICO INTEGRADO EM MEDICINA"]
[310,"LABORATÓRIOS","RIO DE JANEIRO DEMAIS CIDADES","SAO GONCALO","LABORATORIOS MEDICOS DR SERGIO FRANCO"]
[311,"LABORATÓRIOS","RIO DE JANEIRO DEMAIS CIDADES","SAO JOAO DE MERITI","CENTRO MEDICO OFTALMOLOGICO MATRIZ SS"]
[312,"LABORATÓRIOS","RIO DE JANEIRO DEMAIS CIDADES","SAO JOAO DE MERITI","LABORATORIOS MEDICOS DR ELIEL FIGUEIREDO"]
[313,"LABORATÓRIOS","RIO DE JANEIRO DEMAIS CIDADES","SAO JOAO DE MERITI","LABORATORIOS MEDICOS DR SERGIO FRANCO"]
[314,"LABORATÓRIOS","RIO DE JANEIRO DEMAIS CIDADES","TERESOPOLIS","LABORATORIO SAO LUCAS DE ANALISES CLINICAS"]
[315,"LABORATÓRIOS","RIO DE JANEIRO DEMAIS CIDADES","TRES RIOS","FERNANDO MARIZ DIAGNOSTICO POR IMAGEM"]
[316,"LABORATÓRIOS","RIO DE JANEIRO DEMAIS CIDADES","VOLTA REDONDA","C.E.D.A. CL DE ECOGRAFIA DIAGNOSTICA ANDRADE"]
[317,"LABORATÓRIOS","RIO DE JANEIRO DEMAIS CIDADES","VOLTA REDONDA","CLINICA RADIOLOGIA SAO JOAO BATISTA"]
[318,"LABORATÓRIOS","RIO DE JANEIRO DEMAIS CIDADES","VOLTA REDONDA","CT TECNICO DE PATOLOGIA CLINICA DE V REDONDA"]
[319,"LABORATÓRIOS","RIO DE JANEIRO DEMAIS CIDADES","VOLTA REDONDA","ELETRONEURODIAGNOSTICO DE VOLTA REDONDA"]
[320,"LABORATÓRIOS","RIO DE JANEIRO DEMAIS CIDADES","VOLTA REDONDA","LABES LABORATORIO ESPEALIZADO"]
[321,"LABORATÓRIOS","RIO DE JANEIRO DEMAIS CIDADES","VOLTA REDONDA","LABORATORIO FALCAO"]
[322,"LABORATÓRIOS","RIO DE JANEIRO DEMAIS CIDADES","VOLTA REDONDA","LABORATORIO MEDICO DIAGNOLAB HSN"]
[323,"LABORATÓRIOS","RIO DE JANEIRO DEMAIS CIDADES","VOLTA REDONDA","LABORATORIO REUNIDOS DR TULLIO REZENDE"]
[324,"LABORATÓRIOS","RIO DE JANEIRO DEMAIS CIDADES","VOLTA REDONDA","LAPEC - LABORATORIO DE ANALISES E PESQ CLIN"]
[325,"LABORATÓRIOS","RIO DE JANEIRO DEMAIS CIDADES","VOLTA REDONDA","S R BIANCO ULTRASSONOGRAFIA E DIAGNOSTICO"]

{"sheet":"Base_RJ","index":11,"n_rows":326,"n_cols":15,"rows_kept":326,"cut":false,"hidden":true,"merged":[]}
["ID","ARQUIVO","REDE","REGIÃO","CIDADE","NOME FANTASIA","SMART 200","SMART 300","SMART 400","SMART 500","ADVANCE 600","ADVANCE 700","PREMIUM 900","PREMIUM 900 CARE","INFINITY"]
[{"$f":"ROW()-1","v":1},"RIO DE JANEIRO","HOSPITAIS","RIO DE JANEIRO CAPITAL","RIO DE JANEIRO","CLINICA DA GAVEA S A","H","H","H","H","H","H","H","H","H"]
[{"$f":"ROW()-1","v":2},"RIO DE JANEIRO","HOSPITAIS","RIO DE JANEIRO CAPITAL","RIO DE JANEIRO","HOSPITAL SAMCI ANDARAI","H","H","H","H","H","H","H","H","H"]
[3,"RIO DE JANEIRO","HOSPITAIS","RIO DE JANEIRO CAPITAL","RIO DE JANEIRO","CLINICA MEDICA AREIA BRANCA","H/M/PS","H/M/PS","H/M/PS","H/M/PS","H/M/PS","H/M/PS","H/M/PS","H/M/PS","H/M/PS"]
[4,"RIO DE JANEIRO","HOSPITAIS","RIO DE JANEIRO CAPITAL","RIO DE JANEIRO","CEMERU - AMESC ASSOCIACAO MEDICA ESPIRITA CRISTA","H/M/PS","PA","PA","PA","H/M/PS","H/M/PS","H/M/PS","H/M/PS","H/M/PS"]
[5,"RIO DE JANEIRO","HOSPITAIS","RIO DE JANEIRO CAPITAL","RIO DE JANEIRO","ASSISTENCIA MEDICA PEDIATRICA DE URGENCIA - AMIU","H/PS","H/M/PS","H/M/PS","H/M/PS","H/M/PS","H/M/PS","H/M/PS","H/M/PS","H/M/PS"]
[6,"RIO DE JANEIRO","HOSPITAIS","RIO DE JANEIRO CAPITAL","RIO DE JANEIRO","HOSPITAL QUALI IPANEMA","H/PS","H/M/PS","H/M/PS","H/M/PS","H/M/PS","H/M/PS","H/M/PS","H/M/PS","H/M/PS"]
[7,"RIO DE JANEIRO","HOSPITAIS","RIO DE JANEIRO CAPITAL","RIO DE JANEIRO","C SAUDE SAO BENTO (C SAUDE ROSA BARCA )","H/PS","H/PS","H/PS","H/PS","H/PS","H/PS","H/PS","H/PS","H/PS"]
[8,"RIO DE JANEIRO","HOSPITAIS","RIO DE JANEIRO CAPITAL","RIO DE JANEIRO","HOSPITAL RIO MAR","H/PS","H/PS","H/PS","H/PS","H/PS","H/PS","H/PS","H/PS","H/PS"]
[9,"RIO DE JANEIRO","HOSPITAIS","RIO DE JANEIRO CAPITAL","RIO DE JANEIRO","CLINICA CRISTO REI","H/PS","H/PS","H/PS","H/PS","H/PS","H/PS","H/PS","H/PS","H/PS"]
[10,"RIO DE JANEIRO","HOSPITAIS","RIO DE JANEIRO CAPITAL","RIO DE JANEIRO","INSTITUTO DE OFTALMOLOGIA DO RIO DE JANEIRO","H/PS","H/PS","H/PS","H/PS","H/PS","H/PS","H/PS","H/PS","H/PS"]
[11,"RIO DE JANEIRO","HOSPITAIS","RIO DE JANEIRO CAPITAL","RIO DE JANEIRO","HOSPITAL SAMCI TIJUCA","H/PS","PS","PS","PS","PS","PS","PS","PS","PS"]
[12,"RIO DE JANEIRO","HOSPITAIS","RIO DE JANEIRO CAPITAL","RIO DE JANEIRO","CLINICA DE REPOUSO SANTA ALICE",null,"H","H","H","H","H","H","H","H"]
[13,"RIO DE JANEIRO","HOSPITAIS","RIO DE JANEIRO CAPITAL","RIO DE JANEIRO","RIO DAY HOSPITAL",null,"H","H","H","H","H","H","H","H"]
[14,"RIO DE JANEIRO","HOSPITAIS","RIO DE JANEIRO CAPITAL","RIO DE JANEIRO","CLINICA CIRURGICA SANTA BARBARA",null,"H","H","H","H/M/PS","H/M/PS","H/M/PS","H/M/PS","H/M/PS"]
[15,"RIO DE JANEIRO","HOSPITAIS","RIO DE JANEIRO CAPITAL","RIO DE JANEIRO","CASA DE SAUDE GRANDE RIO",null,"H","H","H","H/PS","H/PS","H/PS","H/PS","H/PS"]
[16,"RIO DE JANEIRO","HOSPITAIS","RIO DE JANEIRO CAPITAL","RIO DE JANEIRO","CLINICA SAO CARLOS",null,"H","H","H","H/PS","H/PS","H/PS","H/PS","H/PS"]
[17,"RIO DE JANEIRO","HOSPITAIS","RIO DE JANEIRO CAPITAL","RIO DE JANEIRO","HOSPITAL ESPANHOL",null,"H","H","H","H/PS","H/PS","H/PS","H/PS","H/PS"]
[18,"RIO DE JANEIRO","HOSPITAIS","RIO DE JANEIRO CAPITAL","RIO DE JANEIRO","PROCOR PRONTO SOCORRO CLINICO CARDIOLOGICO",null,"H","H","H","H/PS","H/PS","H/PS","H/PS","H/PS"]
[19,"RIO DE JANEIRO","HOSPITAIS","RIO DE JANEIRO CAPITAL","RIO DE JANEIRO","PRONTOBABY",null,"H","H","H","H/PS","H/PS","H/PS","H/PS","H/PS"]
[20,"RIO DE JANEIRO","HOSPITAIS","RIO DE JANEIRO CAPITAL","RIO DE JANEIRO","OBRA PORTUGUESA DE ASSISTENCIA",null,"H/M/PS","H/M/PS","H/M/PS","H/M/PS","H/M/PS","H/M/PS","H/M/PS","H/M/PS"]
[21,"RIO DE JANEIRO","HOSPITAIS","RIO DE JANEIRO CAPITAL","RIO DE JANEIRO","ASSOCIACAO DO HOSP EVANGELICO DO RJ",null,"H/PS","H/PS","H/PS","H/PS","H/PS","H/PS","H/PS","H/PS"]
[22,"RIO DE JANEIRO","HOSPITAIS","RIO DE JANEIRO CAPITAL","RIO DE JANEIRO","C.T.O. CLINICA TRAUMATO ORTOPEDICA",null,"H/PS","H/PS","H/PS","H/PS","H/PS","H/PS","H/PS","H/PS"]
[23,"RIO DE JANEIRO","HOSPITAIS","RIO DE JANEIRO CAPITAL","RIO DE JANEIRO","FUND ARY FRAUZINO PARA PESQ E CONTROLE DO CANCER",null,"H/PS","H/PS","H/PS","H/PS","H/PS","H/PS","H/PS","H/PS"]
[24,"RIO DE JANEIRO","HOSPITAIS","RIO DE JANEIRO CAPITAL","RIO DE JANEIRO","FUNDACAO BELA LOPES DE OLIVEIRA",null,"H/PS","H/PS","H/PS","H/PS","H/PS","H/PS","H/PS","H/PS"]
[25,"RIO DE JANEIRO","HOSPITAIS","RIO DE JANEIRO CAPITAL","RIO DE JANEIRO","HOSPITAL DE CLINICAS DE JACAREPAGUA",null,"H/PS","H/PS","H/PS","H/PS","H/PS","H/PS","H/PS","H/PS"]
[26,"RIO DE JANEIRO","HOSPITAIS","RIO DE JANEIRO CAPITAL","RIO DE JANEIRO","HOSPITAL ILHA DO GOVERNADOR",null,"H/PS","H/PS","H/PS","H/PS","H/PS","H/PS","H/PS","H/PS"]
[27,"RIO DE JANEIRO","HOSPITAIS","RIO DE JANEIRO CAPITAL","RIO DE JANEIRO","HOSPITAL IRAJA - QUATRO AMIGOS",null,"H/PS","H/PS","H/PS","H/PS","H/PS","H/PS","H/PS","H/PS"]
[28,"RIO DE JANEIRO","HOSPITAIS","RIO DE JANEIRO CAPITAL","RIO DE JANEIRO","HOSPITAL RIO LARANJEIRAS",null,"H/PS","H/PS","H/PS","H/PS","H/PS","H/PS","H/PS","H/PS"]
[29,"RIO DE JANEIRO","HOSPITAIS","RIO DE JANEIRO CAPITAL","RIO DE JANEIRO","HOSPITAL TIJUTRAUMA",null,"H/PS","H/PS","H/PS","H/PS","H/PS","H/PS","H/PS","H/PS"]
[30,"RIO DE JANEIRO","HOSPITAIS","RIO DE JANEIRO CAPITAL","RIO DE JANEIRO","HOSPITAL VITAL",null,"H/PS","H/PS","H/PS","H/PS","H/PS","H/PS","H/PS","H/PS"]
[31,"RIO DE JANEIRO","HOSPITAIS","RIO DE JANEIRO CAPITAL","RIO DE JANEIRO","POLICLINICA DE BOTAFOGO",null,"H/PS","H/PS","H/PS","H/PS","H/PS","H/PS","H/PS","H/PS"]
[32,"RIO DE JANEIRO","HOSPITAIS","RIO DE JANEIRO CAPITAL","RIO DE JANEIRO","PRONTO SOCORRO CLINICO PRONTOCOR - TIJUCA",null,"H/PS","H/PS","H/PS","H/PS","H/PS","H/PS","H/PS","H/PS"]
[33,"RIO DE JANEIRO","HOSPITAIS","RIO DE JANEIRO CAPITAL","RIO DE JANEIRO","SEMIU - SERV DE ESPECS MEDS E INTERN DE URGENCIA",null,"H/PS","H/PS","H/PS","H/PS","H/PS","H/PS","H/PS","H/PS"]
[34,"RIO DE JANEIRO","HOSPITAIS","RIO DE JANEIRO CAPITAL","RIO DE JANEIRO","CC ZONA OESTE",null,"PA","PA","PA","PA","PA","PA","PA","PA"]
[35,"RIO DE JANEIRO","HOSPITAIS","RIO DE JANEIRO CAPITAL","RIO DE JANEIRO","PRO OFTALMO MICRO CIRURGIA OCULAR",null,null,"H","H","H","H","H","H","H"]
[36,"RIO DE JANEIRO","HOSPITAIS","RIO DE JANEIRO CAPITAL","RIO DE JANEIRO","CLINICA PEDIATRICA DA BARRA",null,null,"H","H","H/PS","H/PS","H/PS","H/PS","H/PS"]
[37,"RIO DE JANEIRO","HOSPITAIS","RIO DE JANEIRO CAPITAL","RIO DE JANEIRO","HOSPITAL CLIMEDE",null,null,"H","H","H/PS","H/PS","H/PS","H/PS","H/PS"]
[38,"RIO DE JANEIRO","HOSPITAIS","RIO DE JANEIRO CAPITAL","RIO DE JANEIRO","CASA DE SAUDE NOSSA SENHORA DO CARMO",null,null,"H/M/PS","H/M/PS","H/M/PS","H/M/PS","H/M/PS","H/M/PS","H/M/PS"]
[39,"RIO DE JANEIRO","HOSPITAIS","RIO DE JANEIRO CAPITAL","RIO DE JANEIRO","HOSP CASA SAO BERNARDO LTDA",null,null,"H/PS","H/PS","H/PS","H/PS","H/PS","H/PS","H/PS"]
[40,"RIO DE JANEIRO","HOSPITAIS","RIO DE JANEIRO CAPITAL","RIO DE JANEIRO","CENTRO PEDIATRICO DA LAGOA",null,null,"H/PS","H/PS","H/PS","H/PS","H/PS","H/PS","H/PS"]
[41,"RIO DE JANEIRO","HOSPITAIS","RIO DE JANEIRO CAPITAL","RIO DE JANEIRO","HOSPITAL DR. BALBINO",null,null,"H/PS","H/PS","H/PS","H/PS","H/PS","H/PS","H/PS"]
[42,"RIO DE JANEIRO","HOSPITAIS","RIO DE JANEIRO CAPITAL","RIO DE JANEIRO","SOCIEDADE ITALIANA DE BENEFICENCIA E MUTUO SOCORRO",null,null,"H/PS","H/PS","H/PS","H/PS","H/PS","H/PS","H/PS"]
[43,"RIO DE JANEIRO","HOSPITAIS","RIO DE JANEIRO CAPITAL","RIO DE JANEIRO","CASA DE SAUDE GRAJAU",null,null,null,"H","H/PS","H/PS","H/PS","H/PS","H/PS"]
[44,"RIO DE JANEIRO","HOSPITAIS","RIO DE JANEIRO CAPITAL","RIO DE JANEIRO","CASA DE SAUDE SANTA LUCIA",null,null,null,"H/M/PS","H/M/PS","H/M/PS","H/M/PS","H/M/PS","H/M/PS"]
[45,"RIO DE JANEIRO","HOSPITAIS","RIO DE JANEIRO CAPITAL","RIO DE JANEIRO","HOSPITAL BANGU",null,null,null,"H/PS","H/M/PS","H/M/PS","H/M/PS",null,"H/M/PS"]
[46,"RIO DE JANEIRO","HOSPITAIS","RIO DE JANEIRO CAPITAL","RIO DE JANEIRO","CASA DE PORTUGAL",null,null,null,"H/PS","H/PS","H/PS","H/PS","H/PS","H/PS"]
[47,"RIO DE JANEIRO","HOSPITAIS","RIO DE JANEIRO CAPITAL","RIO DE JANEIRO","HOSPITAL DE CLINICAS SAO MATHEUS",null,null,null,"H/PS","H/PS","H/PS","H/PS","H/PS","H/PS"]
[48,"RIO DE JANEIRO","HOSPITAIS","RIO DE JANEIRO CAPITAL","RIO DE JANEIRO","HOSPITAL ISRAELITA ALBERT SABIN",null,null,null,"H/PS","H/PS","H/PS","H/PS",null,"H/PS"]
[49,"RIO DE JANEIRO","HOSPITAIS","RIO DE JANEIRO CAPITAL","RIO DE JANEIRO","HOSPITAL SAO FRANCISCO NA PROVIDENCIA DE DEU",null,null,null,"H/PS","H/PS","H/PS","H/PS","H/PS","H/PS"]
[50,"RIO DE JANEIRO","HOSPITAIS","RIO DE JANEIRO CAPITAL","RIO DE JANEIRO","CRIANCA 24HS ATEND INTEGR A CRIANCA E ADOLESC LTDA",null,null,null,"PA","PA","PA","PA","PA","PA"]
[51,"RIO DE JANEIRO","HOSPITAIS","RIO DE JANEIRO CAPITAL","RIO DE JANEIRO","IBOL INSTITUTO BRASILEIRO DE OFTALMOLOGIA",null,null,null,"PS","PS","PS","PS","PS","PS"]
[52,"RIO DE JANEIRO","HOSPITAIS","RIO DE JANEIRO CAPITAL","RIO DE JANEIRO","CALREN HOSPITAL DO CALCULO RENAL",null,null,null,null,"H/PS","H/PS","H/PS","H/PS","H/PS"]
[53,"RIO DE JANEIRO","HOSPITAIS","RIO DE JANEIRO CAPITAL","RIO DE JANEIRO","CASA DE SAUDE PINHEIRO MACHADO",null,null,null,null,"H/PS","H/PS","H/PS","H/PS","H/PS"]
[54,"RIO DE JANEIRO","HOSPITAIS","RIO DE JANEIRO CAPITAL","RIO DE JANEIRO","HOSP DE CLINICAS DR ALOAN",null,null,null,null,"H/PS","H/PS","H/PS","H/PS","H/PS"]
[55,"RIO DE JANEIRO","HOSPITAIS","RIO DE JANEIRO CAPITAL","RIO DE JANEIRO","HOSPITAL MARIO KROEFF",null,null,null,null,"H/PS","H/PS","H/PS","H/PS","H/PS"]
[56,"RIO DE JANEIRO","HOSPITAIS","RIO DE JANEIRO CAPITAL","RIO DE JANEIRO","HOSPITAL SAO LOURENCO",null,null,null,null,"H/PS","H/PS","H/PS","H/PS","H/PS"]
[57,"RIO DE JANEIRO","HOSPITAIS","RIO DE JANEIRO CAPITAL","RIO DE JANEIRO","HOSPITAL SAO LUCAS",null,null,null,null,"H/PS","H/PS","H/PS","H/PS","H/PS"]
[58,"RIO DE JANEIRO","HOSPITAIS","RIO DE JANEIRO CAPITAL","RIO DE JANEIRO","NORTECOR HOSPITAL DE CLINICAS",null,null,null,null,"H/PS","H/PS","H/PS","H/PS","H/PS"]
[59,"RIO DE JANEIRO","HOSPITAIS","RIO DE JANEIRO CAPITAL","RIO DE JANEIRO","CLINICA BENEFICIENTE GUANABARA",null,null,null,null,"PS","PS","PS","PS","PS"]
[60,"RIO DE JANEIRO","HOSPITAIS","RIO DE JANEIRO CAPITAL","RIO DE JANEIRO","CLIMES CLINICA MEDICA ESPECIALIZADA",null,null,null,null,null,"H","H","H","H"]
[61,"RIO DE JANEIRO","HOSPITAIS","RIO DE JANEIRO CAPITAL","RIO DE JANEIRO","CLINS REUNIDAS SAO VICTOR S A",null,null,null,null,null,"H","H","H","H"]
[62,"RIO DE JANEIRO","HOSPITAIS","RIO DE JANEIRO CAPITAL","RIO DE JANEIRO","DAY CLINIC RIO",null,null,null,null,null,"H","H","H","H"]
[63,"RIO DE JANEIRO","HOSPITAIS","RIO DE JANEIRO CAPITAL","RIO DE JANEIRO","HOSPITAL DE OLHOS DO MEIER",null,null,null,null,null,"H","H","H","H"]
[64,"RIO DE JANEIRO","HOSPITAIS","RIO DE JANEIRO CAPITAL","RIO DE JANEIRO","HOSPITAL DI CAMP",null,null,null,null,null,"H","H","H","H"]
[65,"RIO DE JANEIRO","HOSPITAIS","RIO DE JANEIRO CAPITAL","RIO DE JANEIRO","INST MINNESOTA",null,null,null,null,null,"H","H","H","H"]
[{"$f":"ROW()-1","v":66},"RIO DE JANEIRO","HOSPITAIS","RIO DE JANEIRO CAPITAL","RIO DE JANEIRO","HOSPITAL PASTEUR",null,null,null,null,null,"H/M/PS","H/M/PS","H/M/PS","H/M/PS"]
[67,"RIO DE JANEIRO","HOSPITAIS","RIO DE JANEIRO CAPITAL","RIO DE JANEIRO","CASA DE SAUDE SANTA THEREZINHA",null,null,null,null,null,"H/PS","H/PS","H/PS","H/PS"]
[68,"RIO DE JANEIRO","HOSPITAIS","RIO DE JANEIRO CAPITAL","RIO DE JANEIRO","HOSPITAL ADVENTISTA SILVESTRE",null,null,null,null,null,"H/PS","H/PS","H/PS","H/PS"]
[69,"RIO DE JANEIRO","HOSPITAIS","RIO DE JANEIRO CAPITAL","RIO DE JANEIRO","HOSPITAL DR BADIM",null,null,null,null,null,"H/PS","H/PS",null,"H/PS"]
[70,"RIO DE JANEIRO","HOSPITAIS","RIO DE JANEIRO CAPITAL","RIO DE JANEIRO","CASA DE SAUDE SAO JOSE",null,null,null,null,null,null,"H/M/PS","H/M/PS","H/M/PS"]
[71,"RIO DE JANEIRO","HOSPITAIS","RIO DE JANEIRO CAPITAL","RIO DE JANEIRO","CLINICA PERINATAL LARANJEIRAS",null,null,null,null,null,null,"H/M/PS","H/M/PS","H/M/PS"]
[72,"RIO DE JANEIRO","HOSPITAIS","RIO DE JANEIRO CAPITAL","RIO DE JANEIRO","HOSPITAL OESTE D'OR",null,null,null,null,null,null,"H/M/PS",null,"H/M/PS"]
[73,"RIO DE JANEIRO","HOSPITAIS","RIO DE JANEIRO CAPITAL","RIO DE JANEIRO","HOSPITAL VITORIA - (HOSPITAL ALVORADA TAGUATINGA)",null,null,null,null,null,null,"H/PS","H/PS","H/PS"]
[74,"RIO DE JANEIRO","HOSPITAIS","RIO DE JANEIRO CAPITAL","RIO DE JANEIRO","CLINICA SAO VICENTE DA GAVEA",null,null,null,null,null,null,"H/PS",null,"H/PS"]
[75,"RIO DE JANEIRO","HOSPITAIS","RIO DE JANEIRO CAPITAL","RIO DE JANEIRO","HOSPITAL BARRA DOR",null,null,null,null,null,null,"H/PS",null,"H/PS"]
[76,"RIO DE JANEIRO","HOSPITAIS","RIO DE JANEIRO CAPITAL","RIO DE JANEIRO","HOSPITAL COPA DOR",null,null,null,null,null,null,"H/PS",null,"H/PS"]
[77,"RIO DE JANEIRO","HOSPITAIS","RIO DE JANEIRO CAPITAL","RIO DE JANEIRO","HOSPITAL NORTE DOR",null,null,null,null,null,null,"H/PS",null,"H/PS"]
[78,"RIO DE JANEIRO","HOSPITAIS","RIO DE JANEIRO CAPITAL","RIO DE JANEIRO","HOSPITAL QUINTA DOR",null,null,null,null,null,null,"H/PS",null,"H/PS"]
[79,"RIO DE JANEIRO","HOSPITAIS","RIO DE JANEIRO CAPITAL","RIO DE JANEIRO","HOSPITAL RIOS DOR",null,null,null,null,null,null,"H/PS",null,"H/PS"]
[80,"RIO DE JANEIRO","HOSPITAIS","RIO DE JANEIRO CAPITAL","RIO DE JANEIRO","HOSPITAL PRO CARDIACO",null,null,null,null,null,null,null,null,"H/PS"]
[81,"RIO DE JANEIRO","HOSPITAIS","RIO DE JANEIRO CAPITAL","RIO DE JANEIRO","HOSPITAL SAMARITANO (BARRA)",null,null,null,null,null,null,null,null,"H/PS"]
[82,"RIO DE JANEIRO","HOSPITAIS","RIO DE JANEIRO CAPITAL","RIO DE JANEIRO","HOSPITAL SAMARITANO (BOTAFOGO)",null,null,null,null,null,null,null,null,"H/PS"]
[83,"RIO DE JANEIRO","HOSPITAIS","RIO DE JANEIRO CAPITAL","RIO DE JANEIRO","HOSP COPA D'DOR STAR",null,null,null,null,null,null,null,null,"H/PS"]
[84,"RIO DE JANEIRO","HOSPITAIS","RIO DE JANEIRO DEMAIS CIDADES","ANGRA DOS REIS","HOSPITAL DE PRAIA BRAVA",null,null,null,"H/M/PS","H/M/PS","H/M/PS","H/M/PS","H/M/PS","H/M/PS"]
[85,"RIO DE JANEIRO","HOSPITAIS","RIO DE JANEIRO DEMAIS CIDADES","ARARUAMA","HOSP DAS CLINS DA REGIAO DOS LAGOS S A",null,null,null,"H/M/PS","H/M/PS","H/M/PS","H/M/PS","H/M/PS","H/M/PS"]
[86,"RIO DE JANEIRO","HOSPITAIS","RIO DE JANEIRO DEMAIS CIDADES","BARRA MANSA","CASA DE SAUDE SANTA MARIA S/A",null,null,null,"H/M/PS","H/M/PS","H/M/PS","H/M/PS","H/M/PS","H/M/PS"]
[87,"RIO DE JANEIRO","HOSPITAIS","RIO DE JANEIRO DEMAIS CIDADES","CABO FRIO","HOSPITAL SANTA IZABEL",null,null,null,"H/M/PS","H/M/PS","H/M/PS","H/M/PS","H/M/PS","H/M/PS"]
[88,"RIO DE JANEIRO","HOSPITAIS","RIO DE JANEIRO DEMAIS CIDADES","CABO FRIO","CLINERP CL DE VIDEO ENDOSCOPIA E REPR HUMANA LTDA",null,null,null,"H/PS","H/PS","H/PS","H/PS","H/PS","H/PS"]
[89,"RIO DE JANEIRO","HOSPITAIS","RIO DE JANEIRO DEMAIS CIDADES","CAMPOS DOS GOYTACAZES","CLINICA CIRURGICA E MATERNIDADE LILIA NEVES LTDA",null,null,null,"H/M/PS","H/M/PS","H/M/PS","H/M/PS","H/M/PS","H/M/PS"]
[90,"RIO DE JANEIRO","HOSPITAIS","RIO DE JANEIRO DEMAIS CIDADES","CAMPOS DOS GOYTACAZES","CENTROCOR SERVICOS MEDICOS LTDA",null,null,null,"H/PS","H/PS","H/PS","H/PS","H/PS","H/PS"]
[91,"RIO DE JANEIRO","HOSPITAIS","RIO DE JANEIRO DEMAIS CIDADES","CAMPOS DOS GOYTACAZES","INSTITUTO DE MEDICINA NUCLEAR E ENDOCRINOLOGIA LTD",null,null,null,"H/PS","H/PS","H/PS","H/PS","H/PS","H/PS"]
[92,"RIO DE JANEIRO","HOSPITAIS","RIO DE JANEIRO DEMAIS CIDADES","CAMPOS DOS GOYTACAZES","PRONTOCARDIO",null,null,null,"H/PS","H/PS","H/PS","H/PS","H/PS","H/PS"]
[93,"RIO DE JANEIRO","HOSPITAIS","RIO DE JANEIRO DEMAIS CIDADES","DUQUE DE CAXIAS","H.S COR - SERV DE HEMODIN DE DUQUE DE CAXIAS LTDA","H","H/PS","H/PS","H/PS","H/PS","H/PS","H/PS","H/PS","H/PS"]
[94,"RIO DE JANEIRO","HOSPITAIS","RIO DE JANEIRO DEMAIS CIDADES","DUQUE DE CAXIAS","HOSPITAL DANIEL LIPP LTDA","H/M/PS","H/M/PS","H/M/PS","H/M/PS","H/M/PS","H/M/PS","H/M/PS","H/M/PS","H/M/PS"]
[95,"RIO DE JANEIRO","HOSPITAIS","RIO DE JANEIRO DEMAIS CIDADES","DUQUE DE CAXIAS","CC DUQUE DE CAXIAS",null,"PA*","PA*","PA*","PA*","PA*","PA*","PA*","PA*"]
[96,"RIO DE JANEIRO","HOSPITAIS","RIO DE JANEIRO DEMAIS CIDADES","DUQUE DE CAXIAS","CLINICA SANTA BRANCA LTDA",null,null,"H/M","H/M","H/M/PS","H/M/PS","H/M/PS","H/M/PS","H/M/PS"]
[97,"RIO DE JANEIRO","HOSPITAIS","RIO DE JANEIRO DEMAIS CIDADES","DUQUE DE CAXIAS","HOSPITAL DE CLINICAS MARIO LIONI",null,null,null,null,"H/M/PS","H/M/PS","H/M/PS","H/M/PS","H/M/PS"]
[98,"RIO DE JANEIRO","HOSPITAIS","RIO DE JANEIRO DEMAIS CIDADES","ITAGUAI","GRUPO CEMERU SAUDE",null,null,null,"H/M/PS","H/M/PS","H/M/PS","H/M/PS","H/M/PS","H/M/PS"]
[99,"RIO DE JANEIRO","HOSPITAIS","RIO DE JANEIRO DEMAIS CIDADES","MACAE","CLINICA SAO LUCAS LTDA",null,null,null,"H/M/PS","H/M/PS","H/M/PS","H/M/PS","H/M/PS","H/M/PS"]
[100,"RIO DE JANEIRO","HOSPITAIS","RIO DE JANEIRO DEMAIS CIDADES","MESQUITA","HOSP NOVA IGUACU",null,null,"H/M/PS","H/M/PS","H/M/PS","H/M/PS","H/M/PS","H/M/PS","H/M/PS"]
[101,"RIO DE JANEIRO","HOSPITAIS","RIO DE JANEIRO DEMAIS CIDADES","NILOPOLIS","CLINICA MATERNO INFANTIL DOMINGOS LOURENCO LTDA",null,null,null,"H/M","H/M","H/M","H/M","H/M","H/M"]
[102,"RIO DE JANEIRO","HOSPITAIS","RIO DE JANEIRO DEMAIS CIDADES","NITEROI","CASA DE SAUDE E MATERNIDADE SANTA MARTHA S/A","H/PS","H/PS","H/PS","H/PS","H/PS","H/PS","H/PS","H/PS","H/PS"]
[103,"RIO DE JANEIRO","HOSPITAIS","RIO DE JANEIRO DEMAIS CIDADES","NITEROI","CLINICA LUIZ PIRES DE MELLO LTDA","H/PS","H/PS","H/PS","H/PS","H/PS","H/PS","H/PS","H/PS","H/PS"]
[104,"RIO DE JANEIRO","HOSPITAIS","RIO DE JANEIRO DEMAIS CIDADES","NITEROI","MATERNIDADE SAO FRANCISCO","M","M","M","M","M","H/M/PS","H/M/PS","H/M/PS","H/M/PS"]
[105,"RIO DE JANEIRO","HOSPITAIS","RIO DE JANEIRO DEMAIS CIDADES","NITEROI","CASA DE SAUDE STA RITA DE CASSIA-ALAMEDA",null,"H/PS","H/PS","H/PS","H/PS","H/PS","H/PS","H/PS","H/PS"]
[106,"RIO DE JANEIRO","HOSPITAIS","RIO DE JANEIRO DEMAIS CIDADES","NITEROI","SAO SEBASTIAO HOSP DE CLINICAS (SICOR RIO)",null,"H/PS","H/PS","H/PS","H/PS","H/PS","H/PS","H/PS","H/PS"]
[107,"RIO DE JANEIRO","HOSPITAIS","RIO DE JANEIRO DEMAIS CIDADES","NITEROI","HOSPITAL OFTALMOLOGICO SANTA BEATRIZ LTDA",null,null,null,"H","H/PS","H/PS","H/PS","H/PS","H/PS"]
[108,"RIO DE JANEIRO","HOSPITAIS","RIO DE JANEIRO DEMAIS CIDADES","NITEROI","HOSPITAL ICARAI",null,null,null,"H/M/PS","H/M/PS","H/M/PS","H/M/PS","H/M/PS","H/M/PS"]
[109,"RIO DE JANEIRO","HOSPITAIS","RIO DE JANEIRO DEMAIS CIDADES","NITEROI","HOSPITAL GERAL DO INGA",null,null,null,null,"H/PS","H/PS","H/PS","H/PS","H/PS"]
[110,"RIO DE JANEIRO","HOSPITAIS","RIO DE JANEIRO DEMAIS CIDADES","NITEROI","IMPAR SERVS HOSPARES S A",null,null,null,null,null,"H/M/PS","H/M/PS","H/M/PS","H/M/PS"]
[111,"RIO DE JANEIRO","HOSPITAIS","RIO DE JANEIRO DEMAIS CIDADES","NITEROI","OFTALMOCLINICA ICARAI",null,null,null,null,null,"H/PS","H/PS","H/PS","H/PS"]
[112,"RIO DE JANEIRO","HOSPITAIS","RIO DE JANEIRO DEMAIS CIDADES","NITEROI","HOSPITAL NITEROI DOR",null,null,null,null,null,null,"H/PS",null,"H/PS"]
[113,"RIO DE JANEIRO","HOSPITAIS","RIO DE JANEIRO DEMAIS CIDADES","NOVA IGUACU","HOSPITAL GERAL PRONTONIL LTDA ME","H/PS","H/PS","H/PS","H/PS","H/PS","H/PS","H/PS","H/PS","H/PS"]
[114,"RIO DE JANEIRO","HOSPITAIS","RIO DE JANEIRO DEMAIS CIDADES","NOVA IGUACU","CASA DE SAUDE NSA SRA FATIMA DE NOVA IGUACU",null,null,null,"H/M","H/M/PS","H/M/PS","H/M/PS","H/M/PS","H/M/PS"]
[115,"RIO DE JANEIRO","HOSPITAIS","RIO DE JANEIRO DEMAIS CIDADES","PARACAMBI","CASA DE SAUDE N SRA APARECIDA DE PARACAMBI LTDA",null,null,null,"H/M/PS","H/M/PS","H/M/PS","H/M/PS","H/M/PS","H/M/PS"]
[116,"RIO DE JANEIRO","HOSPITAIS","RIO DE JANEIRO DEMAIS CIDADES","PETROPOLIS","HOSP SANTA TERESA (ASSOC CONG SANTA CATARINA)",null,null,null,"H","H/M/PS","H/M/PS","H/M/PS","H/M/PS","H/M/PS"]
[117,"RIO DE JANEIRO","HOSPITAIS","RIO DE JANEIRO DEMAIS CIDADES","PETROPOLIS","SMH SOCIEDADE MEDICO HOSPITALAR LTDA",null,null,null,"H/M/PS","H/M/PS","H/M/PS","H/M/PS","H/M/PS","H/M/PS"]
[118,"RIO DE JANEIRO","HOSPITAIS","RIO DE JANEIRO DEMAIS CIDADES","RESENDE","SAMER SERV DE ASSIST MEDICA DE RESENDE S/C LTDA",null,null,null,"H/M/PS","H/M/PS","H/M/PS","H/M/PS","H/M/PS","H/M/PS"]
[119,"RIO DE JANEIRO","HOSPITAIS","RIO DE JANEIRO DEMAIS CIDADES","RIO DAS OSTRAS","CLIN MATER DEI",null,null,null,"H/M/PS","H/M/PS","H/M/PS","H/M/PS","H/M/PS","H/M/PS"]
[120,"RIO DE JANEIRO","HOSPITAIS","RIO DE JANEIRO DEMAIS CIDADES","SAO FIDELIS","ASSOCIACAO HOSPITALAR ARMANDO VIDAL",null,null,null,null,null,"H/PS","H/PS","H/PS","H/PS"]
[121,"RIO DE JANEIRO","HOSPITAIS","RIO DE JANEIRO DEMAIS CIDADES","SAO GONCALO","C SAUDE SAO JOSE SAO GONCALO (NANCI E CIA LTDA)","H/M/PS","H/M/PS*","H/M/PS*","H/M/PS*","H/M/PS","H/M/PS","H/M/PS","H/M/PS","H/M/PS"]
[122,"RIO DE JANEIRO","HOSPITAIS","RIO DE JANEIRO DEMAIS CIDADES","SAO GONCALO","HOSPITAL DO CORACAO SAMCORDIS LTDA",null,"H","H","H","H/PS","H/PS","H/PS","H/PS","H/PS"]
[123,"RIO DE JANEIRO","HOSPITAIS","RIO DE JANEIRO DEMAIS CIDADES","SAO GONCALO","CC SAO GONCALO",null,"PA*","PA*","PA*","PA*","PA*","PA*","PA*","PA*"]
[124,"RIO DE JANEIRO","HOSPITAIS","RIO DE JANEIRO DEMAIS CIDADES","SAO GONCALO","CLINICA SAO GONCALO S/A.",null,null,"H/PS","H/PS","H/PS","H/PS","H/PS","H/PS","H/PS"]
[125,"RIO DE JANEIRO","HOSPITAIS","RIO DE JANEIRO DEMAIS CIDADES","SAO GONCALO","OFTALMOCLINICA SAO GONCALO",null,null,null,null,null,"H","H","H","H"]
[126,"RIO DE JANEIRO","HOSPITAIS","RIO DE JANEIRO DEMAIS CIDADES","SAO GONCALO","HOSP ATLANTICO",null,null,null,null,null,"PS","PS","PS","PS"]
[127,"RIO DE JANEIRO","HOSPITAIS","RIO DE JANEIRO DEMAIS CIDADES","SAO JOAO DE MERITI","C SAUDE E MAT TEREZINHA DE JESUS LTDA",null,null,"H/M/PS","H/M/PS","H/M/PS","H/M/PS","H/M/PS","H/M/PS","H/M/PS"]
[128,"RIO DE JANEIRO","HOSPITAIS","RIO DE JANEIRO DEMAIS CIDADES","TERESOPOLIS","ASSOC CONGR STA CATARINA - HOSP SAO JOSE",null,null,null,"H/PS","H/M/PS","H/M/PS","H/M/PS","H/M/PS","H/M/PS"]
[129,"RIO DE JANEIRO","HOSPITAIS","RIO DE JANEIRO DEMAIS CIDADES","TRES RIOS","HOSPITAL DE CLINICAS NOSSA SENHORA DA CONCEICAO",null,null,null,"H/M/PS","H/M/PS","H/M/PS","H/M/PS","H/M/PS","H/M/PS"]
[{"$f":"ROW()-1","v":130},"RIO DE JANEIRO","HOSPITAIS","RIO DE JANEIRO DEMAIS CIDADES","VASSOURAS","HOSPITAL UNIVERSITARIO SUL FLUMINENSE",null,null,null,null,"H/PS","H/PS","H/PS","H/PS","H/PS"]
[131,"RIO DE JANEIRO","HOSPITAIS","RIO DE JANEIRO DEMAIS CIDADES","VOLTA REDONDA","HOSPITAL JARDIM AMALIA LTDA - HINJA",null,null,null,"H/M/PS","H/M/PS","H/M/PS","H/M/PS","H/M/PS","H/M/PS"]
[132,"RIO DE JANEIRO","HOSPITAIS","RIO DE JANEIRO DEMAIS CIDADES","VOLTA REDONDA","HOSPITAL VITA VOLTA REDONDA S/A",null,null,null,"H/M/PS","H/M/PS","H/M/PS","H/M/PS","H/M/PS","H/M/PS"]
[133,"RIO DE JANEIRO","LABORATÓRIOS","RIO DE JANEIRO CAPITAL","RIO DE JANEIRO","CLINICA LAN","X","X","X","X","X","X","X","X","X"]
[134,"RIO DE JANEIRO","LABORATÓRIOS","RIO DE JANEIRO CAPITAL","RIO DE JANEIRO","ENDOMAIS SERVS MEDS LTDA ME","X","X","X","X","X","X","X","X","X"]
[135,"RIO DE JANEIRO","LABORATÓRIOS","RIO DE JANEIRO CAPITAL","RIO DE JANEIRO","GASTROVIEW","X","X","X","X","X","X","X","X","X"]
[136,"RIO DE JANEIRO","LABORATÓRIOS","RIO DE JANEIRO CAPITAL","RIO DE JANEIRO","GASTROMED","X","X","X","X","X","X","X","X","X"]
[137,"RIO DE JANEIRO","LABORATÓRIOS","RIO DE JANEIRO CAPITAL","RIO DE JANEIRO","LABORATORIOS MEDICOS DR ELIEL FIGUEIREDO","X","X","X","X","X","X","X","X","X"]
[138,"RIO DE JANEIRO","LABORATÓRIOS","RIO DE JANEIRO CAPITAL","RIO DE JANEIRO","UROLABS","X","X","X","X","X","X","X","X","X"]
[139,"RIO DE JANEIRO","LABORATÓRIOS","RIO DE JANEIRO CAPITAL","RIO DE JANEIRO","UROLOGIC","X","X","X","X","X","X","X","X","X"]
[140,"RIO DE JANEIRO","LABORATÓRIOS","RIO DE JANEIRO CAPITAL","RIO DE JANEIRO","INSTITUTO HERMES PARDINI (MEDICINA GUANABARA)","X","X","X","X","X","X","X","X","X"]
[141,"RIO DE JANEIRO","LABORATÓRIOS","RIO DE JANEIRO CAPITAL","RIO DE JANEIRO","D IMAGEM","X","X","X","X","X","X","X","X","X"]
[142,"RIO DE JANEIRO","LABORATÓRIOS","RIO DE JANEIRO CAPITAL","RIO DE JANEIRO","CENTRO FONOAUDI ARAUJO CID ","X","X","X","X","X","X","X","X","X"]
[143,"RIO DE JANEIRO","LABORATÓRIOS","RIO DE JANEIRO CAPITAL","RIO DE JANEIRO","KINESIUS","X","X","X","X","X","X","X","X","X"]
[144,"RIO DE JANEIRO","LABORATÓRIOS","RIO DE JANEIRO CAPITAL","RIO DE JANEIRO","AUD RIO ","X","X","X","X","X","X","X","X","X"]
[145,"RIO DE JANEIRO","LABORATÓRIOS","RIO DE JANEIRO CAPITAL","RIO DE JANEIRO","ESPACO FLEX ","X","X","X","X","X","X","X","X","X"]
[146,"RIO DE JANEIRO","LABORATÓRIOS","RIO DE JANEIRO CAPITAL","RIO DE JANEIRO","ASSOC. FISIOTERAPIA ","X","X","X","X","X","X","X","X","X"]
[147,"RIO DE JANEIRO","LABORATÓRIOS","RIO DE JANEIRO CAPITAL","RIO DE JANEIRO","INTEGRARE","X","X","X","X","X","X","X","X","X"]
[148,"RIO DE JANEIRO","LABORATÓRIOS","RIO DE JANEIRO CAPITAL","RIO DE JANEIRO","3 D DIAGNOSE",null,"X","X","X","X","X","X","X","X"]
[149,"RIO DE JANEIRO","LABORATÓRIOS","RIO DE JANEIRO CAPITAL","RIO DE JANEIRO","CENTRO DE MEDICINA NUCLEAR DA GUANABARA",null,"X","X","X","X","X","X","X","X"]
[150,"RIO DE JANEIRO","LABORATÓRIOS","RIO DE JANEIRO CAPITAL","RIO DE JANEIRO","CEPEM CENTRO DE PESQUISA DA MULHER",null,"X","X","X","X","X","X","X","X"]
[151,"RIO DE JANEIRO","LABORATÓRIOS","RIO DE JANEIRO CAPITAL","RIO DE JANEIRO","CLINICA DE ULTRA-SONOGRAFIA DA BARRA",null,"X","X","X","X","X","X","X","X"]
[152,"RIO DE JANEIRO","LABORATÓRIOS","RIO DE JANEIRO CAPITAL","RIO DE JANEIRO","CLINICA DE ULTRASSONOGRAFIA GALEAO",null,"X","X","X","X","X","X","X","X"]
[153,"RIO DE JANEIRO","LABORATÓRIOS","RIO DE JANEIRO CAPITAL","RIO DE JANEIRO","DLC DIAGNOSTICOS EPP",null,"X","X","X","X","X","X","X","X"]
[154,"RIO DE JANEIRO","LABORATÓRIOS","RIO DE JANEIRO CAPITAL","RIO DE JANEIRO","LABORATORIO BIOMEDICO LB",null,"X","X","X","X","X","X","X","X"]
[155,"RIO DE JANEIRO","LABORATÓRIOS","RIO DE JANEIRO CAPITAL","RIO DE JANEIRO","LAGAM LABORATORIO DE PATOLOGIA",null,"X","X","X","X","X","X","X","X"]
[156,"RIO DE JANEIRO","LABORATÓRIOS","RIO DE JANEIRO CAPITAL","RIO DE JANEIRO","LIFE IMAGEM - DIAGNOSTICO POR IMAGEM",null,"X","X","X","X","X","X","X","X"]
[157,"RIO DE JANEIRO","LABORATÓRIOS","RIO DE JANEIRO CAPITAL","RIO DE JANEIRO","PLANETA PHISIO FISIOTERAPIA - EPP",null,"X","X","X","X","X","X","X","X"]
[158,"RIO DE JANEIRO","LABORATÓRIOS","RIO DE JANEIRO CAPITAL","RIO DE JANEIRO","RX BANDEIRANTES SERVICOS RADIOLOGICOS",null,"X","X","X","X","X","X","X","X"]
[159,"RIO DE JANEIRO","LABORATÓRIOS","RIO DE JANEIRO CAPITAL","RIO DE JANEIRO","SILVESTRE CLINICA FISIOTERAPIA ME",null,"X","X","X","X","X","X","X","X"]
[160,"RIO DE JANEIRO","LABORATÓRIOS","RIO DE JANEIRO CAPITAL","RIO DE JANEIRO","SONUS SERVICOS MEDICOS",null,"X","X","X","X","X","X","X","X"]
[161,"RIO DE JANEIRO","LABORATÓRIOS","RIO DE JANEIRO CAPITAL","RIO DE JANEIRO","ULTRASONOGRAFIA BARRA BANGU",null,"X","X","X","X","X","X","X","X"]
[162,"RIO DE JANEIRO","LABORATÓRIOS","RIO DE JANEIRO CAPITAL","RIO DE JANEIRO","CARDIODIAGNOSE SERVICOS MEDICOS",null,null,"X","X","X","X","X","X","X"]
[163,"RIO DE JANEIRO","LABORATÓRIOS","RIO DE JANEIRO CAPITAL","RIO DE JANEIRO","CEDIMAGEM-CENTRO DE DIAGNOSTICO",null,null,"X","X","X","X","X","X","X"]
[164,"RIO DE JANEIRO","LABORATÓRIOS","RIO DE JANEIRO CAPITAL","RIO DE JANEIRO","ECOR ECOCARDIOGRAFIA",null,null,"X","X","X","X","X","X","X"]
[165,"RIO DE JANEIRO","LABORATÓRIOS","RIO DE JANEIRO CAPITAL","RIO DE JANEIRO","CLINICA LUIZ FELIPPE MATTOSO",null,null,"X","X","X","X","X","X","X"]
[166,"RIO DE JANEIRO","LABORATÓRIOS","RIO DE JANEIRO CAPITAL","RIO DE JANEIRO","INSTITUTO DE ANALISES CLINICAS BANGU",null,null,"X","X","X","X","X","X","X"]
[167,"RIO DE JANEIRO","LABORATÓRIOS","RIO DE JANEIRO CAPITAL","RIO DE JANEIRO","PREVTOTAL LABORATORIO DE IMAGEM",null,null,"X","X","X","X","X","X","X"]
[168,"RIO DE JANEIRO","LABORATÓRIOS","RIO DE JANEIRO CAPITAL","RIO DE JANEIRO","ULTRA-SONOGRAFIA BOTAFOGO .",null,null,"X","X","X","X","X","X","X"]
[169,"RIO DE JANEIRO","LABORATÓRIOS","RIO DE JANEIRO CAPITAL","RIO DE JANEIRO","ULTRA-SONOGRAFIA DA BARRA IPANEMA",null,null,"X","X","X","X","X","X","X"]
[170,"RIO DE JANEIRO","LABORATÓRIOS","RIO DE JANEIRO CAPITAL","RIO DE JANEIRO","CENTRO MEDICO E DIAGNOSTICO DA TIJUCA",null,null,null,"X","X","X","X","X","X"]
[171,"RIO DE JANEIRO","LABORATÓRIOS","RIO DE JANEIRO CAPITAL","RIO DE JANEIRO","CLINICA COPACABANA",null,null,null,"X","X","X","X","X","X"]
[172,"RIO DE JANEIRO","LABORATÓRIOS","RIO DE JANEIRO CAPITAL","RIO DE JANEIRO","CLINICA MEDICA E ODONTOLOGICA BERNARDO",null,null,null,"X","X","X","X","X","X"]
[173,"RIO DE JANEIRO","LABORATÓRIOS","RIO DE JANEIRO CAPITAL","RIO DE JANEIRO","IRM RESSONANCIA MAGNETICA",null,null,null,"X","X","X","X","X","X"]
[174,"RIO DE JANEIRO","LABORATÓRIOS","RIO DE JANEIRO CAPITAL","RIO DE JANEIRO","PRO ECHO CARDIODATA SERVICOS MEDICOS",null,null,null,"X","X","X","X","X","X"]
[175,"RIO DE JANEIRO","LABORATÓRIOS","RIO DE JANEIRO CAPITAL","RIO DE JANEIRO","CENTRO MEDICO ROCHA MIRANDA",null,null,null,null,"X","X","X","X","X"]
[176,"RIO DE JANEIRO","LABORATÓRIOS","RIO DE JANEIRO CAPITAL","RIO DE JANEIRO","CRUZEIRO DO SUL MEDICINA DIAGNOSTICA",null,null,null,null,"X","X","X","X","X"]
[177,"RIO DE JANEIRO","LABORATÓRIOS","RIO DE JANEIRO CAPITAL","RIO DE JANEIRO","DIAGNOMED EXAMES COMPLEMENTARES",null,null,null,null,"X","X","X","X","X"]
[178,"RIO DE JANEIRO","LABORATÓRIOS","RIO DE JANEIRO CAPITAL","RIO DE JANEIRO","LABORATORIO BRONSTEIN",null,null,null,null,"X","X","X","X","X"]
[179,"RIO DE JANEIRO","LABORATÓRIOS","RIO DE JANEIRO CAPITAL","RIO DE JANEIRO","LAFE SERVICOS MEDICOS DIAGNOSTICOS",null,null,null,null,"X","X","X","X","X"]
[180,"RIO DE JANEIRO","LABORATÓRIOS","RIO DE JANEIRO CAPITAL","RIO DE JANEIRO","MEDICAL DATA SYSTEMS",null,null,null,null,"X","X","X","X","X"]
[181,"RIO DE JANEIRO","LABORATÓRIOS","RIO DE JANEIRO CAPITAL","RIO DE JANEIRO","AMACOR SERVICOS MEDICOS E EXAMES COMPLEMENTARES",null,null,null,null,null,"X","X","X","X"]
[182,"RIO DE JANEIRO","LABORATÓRIOS","RIO DE JANEIRO CAPITAL","RIO DE JANEIRO","CENTRO MEDICO PILARES",null,null,null,null,null,"X","X","X","X"]
[183,"RIO DE JANEIRO","LABORATÓRIOS","RIO DE JANEIRO CAPITAL","RIO DE JANEIRO","CLINICA RADIOLOGICA SAO SEBASTIAO",null,null,null,null,null,"X","X","X","X"]
[184,"RIO DE JANEIRO","LABORATÓRIOS","RIO DE JANEIRO CAPITAL","RIO DE JANEIRO","DANIELE GUSMAO SERVICOS MEDICOS CARDIOLOGICOS",null,null,null,null,null,"X","X","X","X"]
[185,"RIO DE JANEIRO","LABORATÓRIOS","RIO DE JANEIRO CAPITAL","RIO DE JANEIRO","MEDCOR SERVICOS CARDIOLOGICOS",null,null,null,null,null,"X","X","X","X"]
[186,"RIO DE JANEIRO","LABORATÓRIOS","RIO DE JANEIRO CAPITAL","RIO DE JANEIRO","SERGIO ZUSMAN",null,null,null,null,null,"X","X","X","X"]
[187,"RIO DE JANEIRO","LABORATÓRIOS","RIO DE JANEIRO CAPITAL","RIO DE JANEIRO","CENTRO MEDICO RIO MAR",null,null,null,null,null,null,"X","X","X"]
[188,"RIO DE JANEIRO","LABORATÓRIOS","RIO DE JANEIRO CAPITAL","RIO DE JANEIRO","CICRC - DR CARLOS ALBERTO SORIA",null,null,null,null,null,null,"X","X","X"]
[189,"RIO DE JANEIRO","LABORATÓRIOS","RIO DE JANEIRO CAPITAL","RIO DE JANEIRO","CLUB D A",null,null,null,null,null,null,"X","X","X"]
[190,"RIO DE JANEIRO","LABORATÓRIOS","RIO DE JANEIRO CAPITAL","RIO DE JANEIRO","EXMED RIO CONSULTORIA TECNICA",null,null,null,null,null,null,"X","X","X"]
[191,"RIO DE JANEIRO","LABORATÓRIOS","RIO DE JANEIRO CAPITAL","RIO DE JANEIRO","SAMPEI CLINICA RADIOLOGICA DR THADEU LUCCHESI",null,null,null,null,null,null,"X","X","X"]
[192,"RIO DE JANEIRO","LABORATÓRIOS","RIO DE JANEIRO CAPITAL","RIO DE JANEIRO","LABORATORIO LAMINA",null,null,null,null,null,null,"X","X","X"]
[193,"RIO DE JANEIRO","LABORATÓRIOS","RIO DE JANEIRO CAPITAL","RIO DE JANEIRO","LABORATORIOS MEDICOS DR SERGIO FRANCO",null,null,null,null,null,null,"X","X","X"]
[{"$f":"ROW()-1","v":194},"RIO DE JANEIRO","LABORATÓRIOS","RIO DE JANEIRO CAPITAL","RIO DE JANEIRO","ABBR - ASSOCIACAO BRASILEIRA BENEFICENTE DE REABIL",null,null,null,null,null,null,null,null,"X"]
[195,"RIO DE JANEIRO","LABORATÓRIOS","RIO DE JANEIRO DEMAIS CIDADES","ANGRA DOS REIS","ANGRA LAB - LAB DE ANAL CL DE ANGRA DOS REIS",null,null,null,"X","X","X","X","X","X"]
[196,"RIO DE JANEIRO","LABORATÓRIOS","RIO DE JANEIRO DEMAIS CIDADES","ANGRA DOS REIS","CLIN MED AMBULATORIAL SOJ",null,null,null,"X","X","X","X","X","X"]
[197,"RIO DE JANEIRO","LABORATÓRIOS","RIO DE JANEIRO DEMAIS CIDADES","ANGRA DOS REIS","CLINICA DE IMAGEM COMPUTADORIZADA",null,null,null,"X","X","X","X","X","X"]
[198,"RIO DE JANEIRO","LABORATÓRIOS","RIO DE JANEIRO DEMAIS CIDADES","ANGRA DOS REIS","CLINICA SANTA AMELIA",null,null,null,"X","X","X","X","X","X"]
[199,"RIO DE JANEIRO","LABORATÓRIOS","RIO DE JANEIRO DEMAIS CIDADES","ANGRA DOS REIS","TM & B - LABORATORIO DE ANALISE CLINICAS ME",null,null,null,"X","X","X","X","X","X"]
[200,"RIO DE JANEIRO","LABORATÓRIOS","RIO DE JANEIRO DEMAIS CIDADES","ANGRA DOS REIS","ULTRA-SONOGRAFIA WINSTON MARQUES DE ANDRADE",null,null,null,"X","X","X","X","X","X"]
[201,"RIO DE JANEIRO","LABORATÓRIOS","RIO DE JANEIRO DEMAIS CIDADES","ANGRA DOS REIS","CENTRO DE DIAGNOSTICO BIOMEDICO-CDB",null,null,null,null,null,null,"X","X","X"]
[202,"RIO DE JANEIRO","LABORATÓRIOS","RIO DE JANEIRO DEMAIS CIDADES","ARARUAMA","CLINICA DE FISIOTERAPIA FISIOLAGOS",null,null,null,"X","X","X","X","X","X"]
[203,"RIO DE JANEIRO","LABORATÓRIOS","RIO DE JANEIRO DEMAIS CIDADES","ARARUAMA","EXATA LABORATORIO DE ANALISES CLINICAS",null,null,null,"X","X","X","X","X","X"]
[204,"RIO DE JANEIRO","LABORATÓRIOS","RIO DE JANEIRO DEMAIS CIDADES","BARRA DO PIRAI","CLINICA SAO MIGUEL",null,null,null,"X","X","X","X","X","X"]
[205,"RIO DE JANEIRO","LABORATÓRIOS","RIO DE JANEIRO DEMAIS CIDADES","BARRA DO PIRAI","LABORATORIO MEDICO DR FALCAO B P",null,null,null,"X","X","X","X","X","X"]
[206,"RIO DE JANEIRO","LABORATÓRIOS","RIO DE JANEIRO DEMAIS CIDADES","BARRA MANSA","C.E.D.A. CL DE ECOGRAFIA DIAGNOSTICA ANDRADE",null,null,null,"X","X","X","X","X","X"]
[207,"RIO DE JANEIRO","LABORATÓRIOS","RIO DE JANEIRO DEMAIS CIDADES","BARRA MANSA","HEMOLAB LAB DE HEMAT E ANALISES CLINICAS",null,null,null,"X","X","X","X","X","X"]
[208,"RIO DE JANEIRO","LABORATÓRIOS","RIO DE JANEIRO DEMAIS CIDADES","BARRA MANSA","J C HENRIQUES LAB DE ANALISES CLINICAS",null,null,null,"X","X","X","X","X","X"]
[209,"RIO DE JANEIRO","LABORATÓRIOS","RIO DE JANEIRO DEMAIS CIDADES","BARRA MANSA","LACLIN LAB. DE ANALISES CLIN DE BARRA MANSA",null,null,null,"X","X","X","X","X","X"]
[210,"RIO DE JANEIRO","LABORATÓRIOS","RIO DE JANEIRO DEMAIS CIDADES","BARRA MANSA","LABORATORIO MEDICO DIAGNOLAB HSN",null,null,null,null,"X","X","X","X","X"]
[211,"RIO DE JANEIRO","LABORATÓRIOS","RIO DE JANEIRO DEMAIS CIDADES","BARRA MANSA","LABORATORIO MEDICO DIAGNOLAB",null,null,null,null,"X","X","X","X","X"]
[212,"RIO DE JANEIRO","LABORATÓRIOS","RIO DE JANEIRO DEMAIS CIDADES","BELFORD ROXO","NEUROFISIOLOGIA CLIN DE IGUACU LTDA",null,"X","X","X","X","X","X","X","X"]
[213,"RIO DE JANEIRO","LABORATÓRIOS","RIO DE JANEIRO DEMAIS CIDADES","BELFORD ROXO","DIMAGEM DIAG POR IMAGEM LTDA",null,"X","X","X","X","X","X","X","X"]
[214,"RIO DE JANEIRO","LABORATÓRIOS","RIO DE JANEIRO DEMAIS CIDADES","BELFORD ROXO","LABORATORIOS MEDICOS DR ELIEL FIGUEIREDO",null,"X","X","X","X","X","X","X","X"]
[215,"RIO DE JANEIRO","LABORATÓRIOS","RIO DE JANEIRO DEMAIS CIDADES","CABO FRIO","CENTRO DE DIAGNOSTICO CITOLOGICO",null,null,null,"X","X","X","X","X","X"]
[216,"RIO DE JANEIRO","LABORATÓRIOS","RIO DE JANEIRO DEMAIS CIDADES","CABO FRIO","CLINICA DE ACUPUNTURA E TERAPIA COMPLEMENTARES LTD",null,null,null,"X","X","X","X","X","X"]
[217,"RIO DE JANEIRO","LABORATÓRIOS","RIO DE JANEIRO DEMAIS CIDADES","CABO FRIO","ILAGOS DIAGNOSTICOS POR IMAGEM",null,null,null,"X","X","X","X","X","X"]
[218,"RIO DE JANEIRO","LABORATÓRIOS","RIO DE JANEIRO DEMAIS CIDADES","CABO FRIO","LABORATORIO O S REZENDE",null,null,null,"X","X","X","X","X","X"]
[219,"RIO DE JANEIRO","LABORATÓRIOS","RIO DE JANEIRO DEMAIS CIDADES","CAMPOS DOS GOYTACAZES","ANDREA GUEDES CLINICA MEDICA EIRELI",null,null,null,"X","X","X","X","X","X"]
[220,"RIO DE JANEIRO","LABORATÓRIOS","RIO DE JANEIRO DEMAIS CIDADES","CAMPOS DOS GOYTACAZES","BEDAIMAGEM SERVICOS MEDICOS",null,null,null,"X","X","X","X","X","X"]
[221,"RIO DE JANEIRO","LABORATÓRIOS","RIO DE JANEIRO DEMAIS CIDADES","CAMPOS DOS GOYTACAZES","CLINICA SANTA MARIA DE CAMPOS",null,null,null,"X","X","X","X","X","X"]
[222,"RIO DE JANEIRO","LABORATÓRIOS","RIO DE JANEIRO DEMAIS CIDADES","CAMPOS DOS GOYTACAZES","LABORATORIO DE PESQUISAS CLINICAS",null,null,null,"X","X","X","X","X","X"]
[223,"RIO DE JANEIRO","LABORATÓRIOS","RIO DE JANEIRO DEMAIS CIDADES","CAMPOS DOS GOYTACAZES","RAD MED DIAGNOSTICO POR IMAGEM",null,null,null,"X","X","X","X","X","X"]
[224,"RIO DE JANEIRO","LABORATÓRIOS","RIO DE JANEIRO DEMAIS CIDADES","CAMPOS DOS GOYTACAZES","BEDALAB LABORATORIO DE ANALISES CLINICAS",null,null,null,null,"X","X","X","X","X"]
[225,"RIO DE JANEIRO","LABORATÓRIOS","RIO DE JANEIRO DEMAIS CIDADES","CAMPOS DOS GOYTACAZES","CLINICA DE FISIOTERAPIA FISIOVIDA",null,null,null,null,null,"X","X","X","X"]
[226,"RIO DE JANEIRO","LABORATÓRIOS","RIO DE JANEIRO DEMAIS CIDADES","CAMPOS DOS GOYTACAZES","UNICAMPOS UNIDADE DE IMAGEM DE CAMPOS",null,null,null,null,null,"X","X","X","X"]
[227,"RIO DE JANEIRO","LABORATÓRIOS","RIO DE JANEIRO DEMAIS CIDADES","DUQUE DE CAXIAS","LABORATORIOS MEDICOS DR ELIEL FIGUEIREDO","X","X","X","X","X","X","X","X","X"]
[228,"RIO DE JANEIRO","LABORATÓRIOS","RIO DE JANEIRO DEMAIS CIDADES","DUQUE DE CAXIAS","SKOPIA SERV. MEDICOS ","X","X","X","X","X","X","X","X","X"]
[229,"RIO DE JANEIRO","LABORATÓRIOS","RIO DE JANEIRO DEMAIS CIDADES","DUQUE DE CAXIAS","FISIOMED","X","X","X","X","X","X","X","X","X"]
[230,"RIO DE JANEIRO","LABORATÓRIOS","RIO DE JANEIRO DEMAIS CIDADES","DUQUE DE CAXIAS","CG EGO CONSULTORIO ","X","X","X","X","X","X","X","X","X"]
[231,"RIO DE JANEIRO","LABORATÓRIOS","RIO DE JANEIRO DEMAIS CIDADES","DUQUE DE CAXIAS","CENTRO DE MEDICINA NUCLEAR DA GUANABARA",null,"X","X","X","X","X","X","X","X"]
[232,"RIO DE JANEIRO","LABORATÓRIOS","RIO DE JANEIRO DEMAIS CIDADES","DUQUE DE CAXIAS","CLINICA DE RADIOLOGIA RIO DE JANEIRO",null,"X","X","X","X","X","X","X","X"]
[233,"RIO DE JANEIRO","LABORATÓRIOS","RIO DE JANEIRO DEMAIS CIDADES","DUQUE DE CAXIAS","CLINOLHOS CLINICA DE OLHOS ME",null,"X","X","X","X","X","X","X","X"]
[234,"RIO DE JANEIRO","LABORATÓRIOS","RIO DE JANEIRO DEMAIS CIDADES","DUQUE DE CAXIAS","LIFE IMAGEM - DIAGNOSTICO POR IMAGEM",null,"X","X","X","X","X","X","X","X"]
[235,"RIO DE JANEIRO","LABORATÓRIOS","RIO DE JANEIRO DEMAIS CIDADES","DUQUE DE CAXIAS","LABORATORIO DE ANAL CLINICAS LIPASE",null,null,"X","X","X","X","X","X","X"]
[236,"RIO DE JANEIRO","LABORATÓRIOS","RIO DE JANEIRO DEMAIS CIDADES","DUQUE DE CAXIAS","METODOS DIAGNOSTICOS COMPLEMENTARES",null,null,"X","X","X","X","X","X","X"]
[237,"RIO DE JANEIRO","LABORATÓRIOS","RIO DE JANEIRO DEMAIS CIDADES","DUQUE DE CAXIAS","SMH SOCIEDADE MEDICO HOSPAR (BENEF DE PETROPO",null,null,"X","X","X","X","X","X","X"]
[238,"RIO DE JANEIRO","LABORATÓRIOS","RIO DE JANEIRO DEMAIS CIDADES","DUQUE DE CAXIAS","CEYC SAUDE SERVICOS MEDICOS",null,null,null,"X","X","X","X","X","X"]
[239,"RIO DE JANEIRO","LABORATÓRIOS","RIO DE JANEIRO DEMAIS CIDADES","DUQUE DE CAXIAS","LAFE SERVICOS MEDICOS DIAGNOSTICOS",null,null,null,null,"X","X","X","X","X"]
[240,"RIO DE JANEIRO","LABORATÓRIOS","RIO DE JANEIRO DEMAIS CIDADES","DUQUE DE CAXIAS","FISIOTERAPIA HOME CLIN CARE",null,null,null,null,null,"X","X","X","X"]
[241,"RIO DE JANEIRO","LABORATÓRIOS","RIO DE JANEIRO DEMAIS CIDADES","DUQUE DE CAXIAS","LABORATORIOS MEDICOS DR SERGIO FRANCO",null,null,null,null,null,null,"X","X","X"]
[242,"RIO DE JANEIRO","LABORATÓRIOS","RIO DE JANEIRO DEMAIS CIDADES","ITABORAI","BABY CLINICA",null,null,null,null,null,"X","X","X","X"]
[243,"RIO DE JANEIRO","LABORATÓRIOS","RIO DE JANEIRO DEMAIS CIDADES","ITABORAI","LABORATORIOS MEDICOS DR SERGIO FRANCO",null,null,null,null,null,null,"X","X","X"]
[244,"RIO DE JANEIRO","LABORATÓRIOS","RIO DE JANEIRO DEMAIS CIDADES","ITAGUAI","LABORATORIOS MEDICOS DR SERGIO FRANCO",null,null,null,null,null,null,"X","X","X"]
[245,"RIO DE JANEIRO","LABORATÓRIOS","RIO DE JANEIRO DEMAIS CIDADES","MACAE","ALCYR ALVES FERREIRA E CIA",null,null,null,"X","X","X","X","X","X"]
[246,"RIO DE JANEIRO","LABORATÓRIOS","RIO DE JANEIRO DEMAIS CIDADES","MACAE","Q H Z ANALISES CLINICAS",null,null,null,"X","X","X","X","X","X"]
[247,"RIO DE JANEIRO","LABORATÓRIOS","RIO DE JANEIRO DEMAIS CIDADES","MACAE","LABORATORIO DE ANALISES CLINICAS PIONNER",null,null,null,null,null,"X","X","X","X"]
[248,"RIO DE JANEIRO","LABORATÓRIOS","RIO DE JANEIRO DEMAIS CIDADES","MAGE","LACE LABORAT DE ANALISES CLIN ESPECIAL ME",null,"X","X","X","X","X","X","X","X"]
[249,"RIO DE JANEIRO","LABORATÓRIOS","RIO DE JANEIRO DEMAIS CIDADES","MAGE","CLIMAMP CL MED AMBULATORIAL PIABETA",null,null,null,"X","X","X","X","X","X"]
[250,"RIO DE JANEIRO","LABORATÓRIOS","RIO DE JANEIRO DEMAIS CIDADES","MAGE","LABOCLIN LABORATORIO DE ANALISES CLINICAS",null,null,null,null,null,"X","X","X","X"]
[251,"RIO DE JANEIRO","LABORATÓRIOS","RIO DE JANEIRO DEMAIS CIDADES","MARICA","LAB DE PATOL CLINICA GOLONI",null,null,null,null,"X","X","X","X","X"]
[252,"RIO DE JANEIRO","LABORATÓRIOS","RIO DE JANEIRO DEMAIS CIDADES","MARICA","D IMAGEM DIAGNOSTICOS POR IMAGEM",null,null,null,null,null,"X","X","X","X"]
[253,"RIO DE JANEIRO","LABORATÓRIOS","RIO DE JANEIRO DEMAIS CIDADES","MARICA","LABORATORIO DOM BOSCO",null,null,null,null,null,"X","X","X","X"]
[254,"RIO DE JANEIRO","LABORATÓRIOS","RIO DE JANEIRO DEMAIS CIDADES","MARICA","LABORATORIOS MEDICOS DR SERGIO FRANCO",null,null,null,null,null,null,"X","X","X"]
[255,"RIO DE JANEIRO","LABORATÓRIOS","RIO DE JANEIRO DEMAIS CIDADES","MESQUITA","CENTRO MEDICO MESQUITA",null,"X","X","X","X","X","X","X","X"]
[256,"RIO DE JANEIRO","LABORATÓRIOS","RIO DE JANEIRO DEMAIS CIDADES","NILOPOLIS","D IMAGEM","X","X","X","X","X","X","X","X","X"]
[257,"RIO DE JANEIRO","LABORATÓRIOS","RIO DE JANEIRO DEMAIS CIDADES","NILOPOLIS","LABORATORIOS MEDICOS DR ELIEL FIGUEIREDO","X","X","X","X","X","X","X","X","X"]
[{"$f":"ROW()-1","v":258},"RIO DE JANEIRO","LABORATÓRIOS","RIO DE JANEIRO DEMAIS CIDADES","NILOPOLIS","CENTRO MEDICO E IMAGENS PALADINO -ME",null,"X","X","X","X","X","X","X","X"]
[259,"RIO DE JANEIRO","LABORATÓRIOS","RIO DE JANEIRO DEMAIS CIDADES","NILOPOLIS","LAFE SERVICOS MEDICOS DIAGNOSTICOS",null,null,null,null,"X","X","X","X","X"]
[260,"RIO DE JANEIRO","LABORATÓRIOS","RIO DE JANEIRO DEMAIS CIDADES","NILOPOLIS","LABORATORIOS MEDICOS DR SERGIO FRANCO",null,null,null,null,null,null,"X","X","X"]
[261,"RIO DE JANEIRO","LABORATÓRIOS","RIO DE JANEIRO DEMAIS CIDADES","NITEROI","GASTROLIFE GFM SERVS MEDS LTDA","X","X","X","X","X","X","X","X","X"]
[262,"RIO DE JANEIRO","LABORATÓRIOS","RIO DE JANEIRO DEMAIS CIDADES","NITEROI","CERPAM CENTRO DE REAB S S LTDA ME","X","X","X","X","X","X","X","X","X"]
[263,"RIO DE JANEIRO","LABORATÓRIOS","RIO DE JANEIRO DEMAIS CIDADES","NITEROI","CLIN DE FISIOT E REAB LTDA","X","X","X","X","X","X","X","X","X"]
[264,"RIO DE JANEIRO","LABORATÓRIOS","RIO DE JANEIRO DEMAIS CIDADES","NITEROI","INTEGRARE ","X","X","X","X","X","X","X","X","X"]
[265,"RIO DE JANEIRO","LABORATÓRIOS","RIO DE JANEIRO DEMAIS CIDADES","NITEROI","LABORATORIO BIOMEDICO LB",null,"X","X","X","X","X","X","X","X"]
[266,"RIO DE JANEIRO","LABORATÓRIOS","RIO DE JANEIRO DEMAIS CIDADES","NITEROI","LABORATORIO DE ANALISES CLINICAS PASCOTO",null,"X","X","X","X","X","X","X","X"]
[267,"RIO DE JANEIRO","LABORATÓRIOS","RIO DE JANEIRO DEMAIS CIDADES","NITEROI","LAB DE PATOL CLINICA GOLONI",null,null,null,null,"X","X","X","X","X"]
[268,"RIO DE JANEIRO","LABORATÓRIOS","RIO DE JANEIRO DEMAIS CIDADES","NITEROI","LAFE SERVICOS MEDICOS DIAGNOSTICOS",null,null,null,null,"X","X","X","X","X"]
[269,"RIO DE JANEIRO","LABORATÓRIOS","RIO DE JANEIRO DEMAIS CIDADES","NITEROI","LABORATORIO DOM BOSCO",null,null,null,null,null,"X","X","X","X"]
[270,"RIO DE JANEIRO","LABORATÓRIOS","RIO DE JANEIRO DEMAIS CIDADES","NITEROI","LABORATORIO MORALES",null,null,null,null,null,null,"X","X","X"]
[271,"RIO DE JANEIRO","LABORATÓRIOS","RIO DE JANEIRO DEMAIS CIDADES","NOVA FRIBURGO","RADIOLOGICA DE FRIBURGO DIAGNOSTICO POR IMAGEM LTD",null,null,null,null,null,"X","X","X","X"]
[272,"RIO DE JANEIRO","LABORATÓRIOS","RIO DE JANEIRO DEMAIS CIDADES","NOVA IGUACU","LABORATORIOS MEDICOS DR ELIEL FIGUEIREDO","X","X","X","X","X","X","X","X","X"]
[273,"RIO DE JANEIRO","LABORATÓRIOS","RIO DE JANEIRO DEMAIS CIDADES","NOVA IGUACU","D IMAGEM","X","X","X","X","X","X","X","X","X"]
[274,"RIO DE JANEIRO","LABORATÓRIOS","RIO DE JANEIRO DEMAIS CIDADES","NOVA IGUACU","MEDCLINIC VITA","X","X","X","X","X","X","X","X","X"]
[275,"RIO DE JANEIRO","LABORATÓRIOS","RIO DE JANEIRO DEMAIS CIDADES","NOVA IGUACU","FISIOCLIN","X","X","X","X","X","X","X","X","X"]
[276,"RIO DE JANEIRO","LABORATÓRIOS","RIO DE JANEIRO DEMAIS CIDADES","NOVA IGUACU","CENTRO DE MEDICINA NUCLEAR DA GUANABARA",null,"X","X","X","X","X","X","X","X"]
[277,"RIO DE JANEIRO","LABORATÓRIOS","RIO DE JANEIRO DEMAIS CIDADES","NOVA IGUACU","CLINICA RADIOLOGICA NOVA IGUACU",null,null,"X","X","X","X","X","X","X"]
[278,"RIO DE JANEIRO","LABORATÓRIOS","RIO DE JANEIRO DEMAIS CIDADES","NOVA IGUACU","LAFE SERVICOS MEDICOS DIAGNOSTICOS",null,null,null,null,"X","X","X","X","X"]
[279,"RIO DE JANEIRO","LABORATÓRIOS","RIO DE JANEIRO DEMAIS CIDADES","NOVA IGUACU","LABORATORIOS MEDICOS DR SERGIO FRANCO",null,null,null,null,null,null,"X","X","X"]
[280,"RIO DE JANEIRO","LABORATÓRIOS","RIO DE JANEIRO DEMAIS CIDADES","PETROPOLIS","CENTRO MEDICO LOUIS PASTEUR",null,null,null,"X","X","X","X","X","X"]
[281,"RIO DE JANEIRO","LABORATÓRIOS","RIO DE JANEIRO DEMAIS CIDADES","PETROPOLIS","CLINICA DR FRAGOSO BORGES",null,null,null,"X","X","X","X","X","X"]
[282,"RIO DE JANEIRO","LABORATÓRIOS","RIO DE JANEIRO DEMAIS CIDADES","PETROPOLIS","CLINICA RADIOLOGICA PEDRO II",null,null,null,"X","X","X","X","X","X"]
[283,"RIO DE JANEIRO","LABORATÓRIOS","RIO DE JANEIRO DEMAIS CIDADES","PETROPOLIS","ESPACO CLINICO PETROPOLIS",null,null,null,"X","X","X","X","X","X"]
[284,"RIO DE JANEIRO","LABORATÓRIOS","RIO DE JANEIRO DEMAIS CIDADES","PETROPOLIS","LABORATORIO DR HOMERO SOARES RAMOS",null,null,null,"X","X","X","X","X","X"]
[285,"RIO DE JANEIRO","LABORATÓRIOS","RIO DE JANEIRO DEMAIS CIDADES","PETROPOLIS","SERVICO DE HEMATOLOGIA ERNESTO BAFFI",null,null,null,"X","X","X","X","X","X"]
[286,"RIO DE JANEIRO","LABORATÓRIOS","RIO DE JANEIRO DEMAIS CIDADES","PETROPOLIS","LABORATORIOS MEDICOS DR SERGIO FRANCO",null,null,null,null,null,null,"X","X","X"]
[287,"RIO DE JANEIRO","LABORATÓRIOS","RIO DE JANEIRO DEMAIS CIDADES","QUEIMADOS","CLINICA CONTEMPORANEA",null,"X","X","X","X","X","X","X","X"]
[288,"RIO DE JANEIRO","LABORATÓRIOS","RIO DE JANEIRO DEMAIS CIDADES","QUEIMADOS","LABORATORIOS MEDICOS DR ELIEL FIGUEIREDO",null,"X","X","X","X","X","X","X","X"]
[289,"RIO DE JANEIRO","LABORATÓRIOS","RIO DE JANEIRO DEMAIS CIDADES","RESENDE","CENTRO DE DIAGNOSTICO CLAUDIO RAMOS",null,null,null,"X","X","X","X","X","X"]
[290,"RIO DE JANEIRO","LABORATÓRIOS","RIO DE JANEIRO DEMAIS CIDADES","RESENDE","PROEXAMES SERVICOS MEDICOS",null,null,null,"X","X","X","X","X","X"]
[291,"RIO DE JANEIRO","LABORATÓRIOS","RIO DE JANEIRO DEMAIS CIDADES","RESENDE","RM DIAGNOSTICO POR IMAGEM",null,null,null,"X","X","X","X","X","X"]
[292,"RIO DE JANEIRO","LABORATÓRIOS","RIO DE JANEIRO DEMAIS CIDADES","RESENDE","UNICLINICAS",null,null,null,"X","X","X","X","X","X"]
[293,"RIO DE JANEIRO","LABORATÓRIOS","RIO DE JANEIRO DEMAIS CIDADES","RESENDE","CENTRO DE DIAGNOSTICO CLAUDIO RAMOS -CEDIMAGEM",null,null,null,null,"X","X","X","X","X"]
[294,"RIO DE JANEIRO","LABORATÓRIOS","RIO DE JANEIRO DEMAIS CIDADES","SAO GONCALO","CLIMEDT ENDOS","X","X","X","X","X","X","X","X","X"]
[295,"RIO DE JANEIRO","LABORATÓRIOS","RIO DE JANEIRO DEMAIS CIDADES","SAO GONCALO","FISIO DOR","X","X","X","X","X","X","X","X","X"]
[296,"RIO DE JANEIRO","LABORATÓRIOS","RIO DE JANEIRO DEMAIS CIDADES","SAO GONCALO","CARDIOMED S/S",null,"X","X","X","X","X","X","X","X"]
[297,"RIO DE JANEIRO","LABORATÓRIOS","RIO DE JANEIRO DEMAIS CIDADES","SAO GONCALO","CLINICA DE ULTRASSONOGRAFIA GALEAO",null,"X","X","X","X","X","X","X","X"]
[298,"RIO DE JANEIRO","LABORATÓRIOS","RIO DE JANEIRO DEMAIS CIDADES","SAO GONCALO","FISIO DOR FISIOTERAPIA E REABILITACAO ME",null,"X","X","X","X","X","X","X","X"]
[299,"RIO DE JANEIRO","LABORATÓRIOS","RIO DE JANEIRO DEMAIS CIDADES","SAO GONCALO","LABORATORIO DE ANALISES CLINICAS PASCOTO",null,"X","X","X","X","X","X","X","X"]
[300,"RIO DE JANEIRO","LABORATÓRIOS","RIO DE JANEIRO DEMAIS CIDADES","SAO GONCALO","CC SAO GONCALO (NOVO)",null,"X","X","X","X","X","X","X","X"]
[301,"RIO DE JANEIRO","LABORATÓRIOS","RIO DE JANEIRO DEMAIS CIDADES","SAO GONCALO","RAFA METODO GRAFICO E IMAGEM DIAGNOSTICA ME",null,"X","X","X","X","X","X","X","X"]
[302,"RIO DE JANEIRO","LABORATÓRIOS","RIO DE JANEIRO DEMAIS CIDADES","SAO GONCALO","SERVICO DE ULTRASSONOGRAFIA ALCANTARA",null,"X","X","X","X","X","X","X","X"]
[303,"RIO DE JANEIRO","LABORATÓRIOS","RIO DE JANEIRO DEMAIS CIDADES","SAO GONCALO","CLINICA RADIOLOGICA FELICIANO SODRE",null,null,"X","X","X","X","X","X","X"]
[304,"RIO DE JANEIRO","LABORATÓRIOS","RIO DE JANEIRO DEMAIS CIDADES","SAO GONCALO","PRO ECHO CARDIODATA SERVICOS MEDICOS",null,null,null,"X","X","X","X","X","X"]
[305,"RIO DE JANEIRO","LABORATÓRIOS","RIO DE JANEIRO DEMAIS CIDADES","SAO GONCALO","SERVICOS RADIOLOGICOS GONCALENSE",null,null,null,"X","X","X","X","X","X"]
[306,"RIO DE JANEIRO","LABORATÓRIOS","RIO DE JANEIRO DEMAIS CIDADES","SAO GONCALO","LAB DE PATOL CLINICA GOLONI",null,null,null,null,"X","X","X","X","X"]
[307,"RIO DE JANEIRO","LABORATÓRIOS","RIO DE JANEIRO DEMAIS CIDADES","SAO GONCALO","LAFE SERVICOS MEDICOS DIAGNOSTICOS",null,null,null,null,"X","X","X","X","X"]
[308,"RIO DE JANEIRO","LABORATÓRIOS","RIO DE JANEIRO DEMAIS CIDADES","SAO GONCALO","LABORATORIO DOM BOSCO",null,null,null,null,null,"X","X","X","X"]
[309,"RIO DE JANEIRO","LABORATÓRIOS","RIO DE JANEIRO DEMAIS CIDADES","SAO GONCALO","PROSAUDE SERVICO INTEGRADO EM MEDICINA",null,null,null,null,null,"X","X","X","X"]
[310,"RIO DE JANEIRO","LABORATÓRIOS","RIO DE JANEIRO DEMAIS CIDADES","SAO GONCALO","LABORATORIOS MEDICOS DR SERGIO FRANCO",null,null,null,null,null,null,"X","X","X"]
[311,"RIO DE JANEIRO","LABORATÓRIOS","RIO DE JANEIRO DEMAIS CIDADES","SAO JOAO DE MERITI","CENTRO MEDICO OFTALMOLOGICO MATRIZ SS",null,"X","X","X","X","X","X","X","X"]
[312,"RIO DE JANEIRO","LABORATÓRIOS","RIO DE JANEIRO DEMAIS CIDADES","SAO JOAO DE MERITI","LABORATORIOS MEDICOS DR ELIEL FIGUEIREDO",null,"X","X","X","X","X","X","X","X"]
[313,"RIO DE JANEIRO","LABORATÓRIOS","RIO DE JANEIRO DEMAIS CIDADES","SAO JOAO DE MERITI","LABORATORIOS MEDICOS DR SERGIO FRANCO",null,null,null,null,null,null,"X","X","X"]
[314,"RIO DE JANEIRO","LABORATÓRIOS","RIO DE JANEIRO DEMAIS CIDADES","TERESOPOLIS","LABORATORIO SAO LUCAS DE ANALISES CLINICAS",null,null,null,"X","X","X","X","X","X"]
[315,"RIO DE JANEIRO","LABORATÓRIOS","RIO DE JANEIRO DEMAIS CIDADES","TRES RIOS","FERNANDO MARIZ DIAGNOSTICO POR IMAGEM",null,null,null,null,null,"X","X","X","X"]
[316,"RIO DE JANEIRO","LABORATÓRIOS","RIO DE JANEIRO DEMAIS CIDADES","VOLTA REDONDA","C.E.D.A. CL DE ECOGRAFIA DIAGNOSTICA ANDRADE",null,null,null,"X","X","X","X","X","X"]
[317,"RIO DE JANEIRO","LABORATÓRIOS","RIO DE JANEIRO DEMAIS CIDADES","VOLTA REDONDA","CLINICA RADIOLOGIA SAO JOAO BATISTA",null,null,null,"X","X","X","X","X","X"]
[318,"RIO DE JANEIRO","LABORATÓRIOS","RIO DE JANEIRO DEMAIS CIDADES","VOLTA REDONDA","CT TECNICO DE PATOLOGIA CLINICA DE V REDONDA",null,null,null,"X","X","X","X","X","X"]
[319,"RIO DE JANEIRO","LABORATÓRIOS","RIO DE JANEIRO DEMAIS CIDADES","VOLTA REDONDA","ELETRONEURODIAGNOSTICO DE VOLTA REDONDA",null,null,null,"X","X","X","X","X","X"]
[320,"RIO DE JANEIRO","LABORATÓRIOS","RIO DE JANEIRO DEMAIS CIDADES","VOLTA REDONDA","LABES LABORATORIO ESPEALIZADO",null,null,null,"X","X","X","X","X","X"]
[321,"RIO DE JANEIRO","LABORATÓRIOS","RIO DE JANEIRO DEMAIS CIDADES","VOLTA REDONDA","LABORATORIO FALCAO",null,null,null,"X","X","X","X","X","X"]
[{"$f":"ROW()-1","v":322},"RIO DE JANEIRO","LABORATÓRIOS","RIO DE JANEIRO DEMAIS CIDADES","VOLTA REDONDA","LABORATORIO MEDICO DIAGNOLAB HSN",null,null,null,"X","X","X","X","X","X"]
[323,"RIO DE JANEIRO","LABORATÓRIOS","RIO DE JANEIRO DEMAIS CIDADES","VOLTA REDONDA","LABORATORIO REUNIDOS DR TULLIO REZENDE",null,null,null,"X","X","X","X","X","X"]
[324,"RIO DE JANEIRO","LABORATÓRIOS","RIO DE JANEIRO DEMAIS CIDADES","VOLTA REDONDA","LAPEC - LABORATORIO DE ANALISES E PESQ CLIN",null,null,null,"X","X","X","X","X","X"]
[325,"RIO DE JANEIRO","LABORATÓRIOS","RIO DE JANEIRO DEMAIS CIDADES","VOLTA REDONDA","S R BIANCO ULTRASSONOGRAFIA E DIAGNOSTICO",null,null,null,"X","X","X","X","X","X"]

{"sheet":"tblFeriados","index":12,"n_rows":26,"n_cols":2,"rows_kept":26,"cut":false,"hidden":true,"merged":[]}
["DATA_FERIADO","DESCR_FERIADO"]
["2017-01-01","CONFRATERNIZAÇÃO UNIVERSAL"]
["2017-02-28","CARNAVAL"]
["2017-04-14","PAIXÃO DE CRISTO"]
["2017-04-21","TIRADENTES"]
["2017-05-01","DIA DO TRABALHO"]
["2017-06-15","CORPUS CHRISTI (FACULTATIVO)"]
["2017-09-07","INDEPENDÊNCIA DO BRASIL"]
["2017-10-12","NOSSA SENHORA APARECIDA"]
["2017-11-02","FINADOS"]
["2017-11-15","PROCLAMAÇÃO DA REPÚBLICA"]
["2017-12-25","NATAL"]
["2018-01-01","CONFRATERNIZAÇÃO UNIVERSAL"]
["2018-01-25","ANIVERSÁRIO DE SÃO PAULO"]
["2018-02-13","CARNAVAL"]
["2018-03-30","PAIXÃO DE CRISTO"]
["2018-04-21","TIRADENTES"]
["2018-05-01","DIA DO TRABALHO"]
["2018-05-31","CORPUS CHRISTI"]
["2018-07-09","REVOLUÇÃO CONSTITUCIONALISTA"]
["2018-09-07","INDEPENDÊNCIA DO BRASIL"]
["2018-10-12","NOSSA SR.A APARECIDA - PADROEIRA DO BRASIL"]
["2018-11-02","FINADOS"]
["2018-11-15","PROCLAMAÇÃO DA REPÚBLICA"]
["2018-11-20","CONSCIENCIA NEGRA"]
["2018-12-25","NATAL"]

{"sheet":"tblUsuarios","index":13,"n_rows":6,"n_cols":5,"rows_kept":6,"cut":false,"hidden":true,"merged":[]}
["USUARIO","NOME",null,"Usuario_Alteracao","jefferson.barbosa"]
["elani.santos","Elani Santos"]
["guilherme.herbst","Guilherme Herbst"]
["isabelle.inhota","Isabelle Inhota"]
["jefferson.barbosa","Jefferson Barbosa"]
["robinson.rodrigues","Robinson Silva"]